Workbook

Sheet 2017-18 DATA (Final)
A1: Your Council 2017/18 | F1: The State of Local Government in NSW | AE1: How is the NSW Local Government Sector Performing Financially? | BC1: Services Provided to You by Council | CR1: Managing Community Assets | CW1: Stronger Community Leadership
F2: Your Local Population | U2: Your Local Economy | AE2: Your Council's Financial Performance | AM2: Your Council's Financial Result | AO2: Your Council's Rating Revenue | BC2: Your Council's Expenditure on Services | BZ2: Your Council's Waste Management | CI2: Your Council's Services | CR2: Your Council's Community Assets | CW2: Your Council's Community Leadership | DG2: Your Council
A3: Council The councils listed are those that continued operations and reported for the financial year 1 July 2017 to 30 June 2018 | B3: OLG Group | C3: Classification | D3: Joint Organisation Region | E3: Council Area (km2) | F3: Population | G3: Population Change over 5 years (%) | H3: Population Density per capita/km2 | I3: Male Population | J3: Male Population (%) | K3: Female Population | L3: Female Population (%) | M3: Population aged <20 (%) | N3: Population aged between 20 and 60 (%) | O3: Population aged >60 (%) | P3: Population aged <30 (%) | Q3: Population aged between 30 and 60 (%) | R3: Population aged >60 (%) | S3: Aboriginal & Torres Strait Islanders Population (%) | T3: Language other than English Population (%) | U3: Census 2016 - Relative Socio-Economic Advantage & Disadvantage Index Rating | V3: Census - Unemployment Rate at 30 Sept 2018 (%) | W3: Census 2016 - Average taxable income (taxable and non-taxable individuals) ($) | X3: Census 2016 - Average Household Size (Number) | Y3: Largest Industry Employer | Z3: Number of Active Businesses in LGA | AA3: Number Development Applications Determined by Councillors # | AB3: Number of Development Applications Determined # | AC3: Value of Development Applications Determined ($) # | AD3: Mean Gross Days for Development Applications # | AE3: Operating Performance Ratio | AF3: Unrestricted Current Ratio | AG3: % Own Source Revenue | AH3: % Grants & Contributions Revenue | AI3: Rates and Annual Charges Outstanding (%) | AJ3: Debt Service Cover Ratio | AK3: Debt Service Ratio | AL3: Cash Expense Cover Ratio | AM3: Total Expenses from Continuing Operations 2017/18 ($'000) | AN3: Total Revenue from Continuing Operations 2017/18 ($,000) | AO3: Total Residential Rating Revenue 2017/18 ($'000) | AP3: Average Residential Rate 2017/18 ($) | AQ3: Number of Residential Rating Assessments 2017/18 | AR3: Total Farmland Rates Revenue 2017/18 ($'000) | AS3: Average Farmland Rate 2017/18 ($) | AT3: Number of Farmland Rating Assessments 2017/18 | AU3: Total Business Rates Revenue 2017/18 ($'000) | AV3: Average Business Rate 2017/18 ($) | AW3: Number of Business Rating Assessments 2017/18 | AX3: Total Mining Rates Revenue 2017/18 ($'000) | AY3: Average Mining Rate 2017/18 ($) | AZ3: Number of Mining Rating Assessments 2017/18 | BA3: Total Land Value / Total Rate Income ($) | BB3: Pensioner Residential Rate (%) | BC3: Total Governance & Administration Expenditure ($'000) | BD3: % of Total Expenditure on Governance & Administration | BE3: Total Public Order, Safety, Health, Water & Sewer Expenditure ($'000) | BF3: % of Total Expenditure on Public Order, Safety, Health, Water & Sewer | BG3: Total Environmental Expenditure ($'000) | BH3: % of Total Expenditure on Environmental | BI3: Total Community Services, Education & Housing Expenditure ($'000) | BJ3: % of Total Expenditure on Community Services, Education & Housing | BK3: Total Recreational & Cultural Expenditure ($'000) | BL3: % of Total Expenditure on Recreational & Cultural | BM3: Total Roads, Bridges & Footpaths Expenditure ($'000) | BN3: % of Total Expenditure on Roads, Bridges & Footpaths | BO3: Total Other Services Expenditure ($'000) | BP3: % of Total Expenditure on Other Services | BQ3: Governance & Administration Expenditure per capita ($) | BR3: Environmental Expenditure per capita ($) | BS3: Total Water & Sewer Expenditure per capita ($) | BT3: Community Services & Education, Housing & Community Amenities Expenditure per capita ($) | BU3: Recreational & Cultural Expenditure per capita ($) | BV3: Public Order, Safety & Health Expenditure per capita ($) | BW3: Other Services Expenditure per capita ($) | BX3: Library Services Expenditure per Capita ($) | BY3: Roads, Bridges & Footpaths Expenditure per capita ($) | BZ3: Typical Water & Sewer Bill ($) # | CA3: Average Domestic Waste Annual Charge ($) | CB3: Recycling Rate (%) # | CC3: Tonnes Collected of Dry Recycling # | CD3: Dry Recycling of Total Waste (%) # | CE3: Tonnes Collected of Organics # | CF3: Organics of Total Waste (%) # | CG3: Tonnes Collected of Residual Waste # | CH3: Residual Waste of Total Waste (%) # | CI3: Companion Animals micro chipped (No.) | CJ3: Companion Animals micro chipped and registered (%) | CK3: Total Road Length (including local & regional roads) (km) | CL3: Metre Road Length per capita | CM3: Open Public Space (ha) | CN3: Number of Public Swimming Pools (Including Tidal & Rock Pools) | CO3: Number of Public Halls | CP3: Number of Public Libraries | CQ3: Library circulation per capita | CR3: Actual Asset Maintenance Expenditure 2017/18 ($'000) | CS3: Required Asset Maintenance Expenditure 2017/18 ($'000) | CT3: Asset Maintenance Ratio (%) | CU3: Building & Infrastructure Renewal Ratio (%) | CV3: Infrastructure Backlog Ratio | CW3: Audited Financial Statements Submitted on Time | CX3: Councillor Expenses ($) | CY3: Total Mayoral & Councillor Fees ($) | CZ3: Mayoral & Councillor Overseas Travel ($) | DA3: Mayoral & Councillor Conference Expenses ($) | DB3: Mayoral & Councillor Interstate Travel ($) | DC3: General Manager's Remuneration ($) | DD3: Number of Code of Conduct Complaints Received | DE3: Cost of dealing with Code of Conduct Complaints ($) | DF3: Complaints Investigated for Breach (No.) | DG3: Number of Councillors | DH3: Population/ Number of Councillors | DI3: Elected Female Councillors (%) | DJ3: Elected Male Councillors (%) | DK3: Councillors ATSI (%) | DL3: Councillors NESB (%) | DM3: Elected Age <30 (%) | DN3: Elected Age between 30 and 59 (%) | DO3: Elected Age >60 (%) | DP3: Full Time Equivalent Staff | DQ3: Population/Equivalent Full Time Staff
A4: Albury | B4: 4 | C4: Regional Town/City | D4: Riverina and Murray | E4: 305.9 | F4: 52949 | G4: 6.633773034 | H4: 173.0925139 | I4: 25703 | J4: 48.54293754 | K4: 27246 | L4: 51.45706246 | M4: 25.67942737 | N4: 51.04534552 | O4: 23.27522711 | P4: 39.57959546 | Q4: 37.14517743 | R4: 23.27522711 | S4: 2.8 | T4: 6.7 | U4: 64 | V4: 10.3 | W4: 50857 | X4: 2.3 | Y4: Health Care & Social Assistance | Z4: 4557 | AA4: Data not yet available | AB4: Data not yet available | AC4: Data not yet available | AD4: Data not yet available | AE4: 15.17 | AF4: 2.62 | AG4: 79.47 | AH4: 20.52579392 | AI4: 10.65 | AJ4: 7.2 | AK4: 5.524535295 | AL4: 18.61 | AM4: 106194 | AN4: 125187 | AO4: 27677 | AP4: 1235.635519 | AQ4: 22399 | AR4: 621 | AS4: 3508.474576 | AT4: 177 | AU4: 10831 | AV4: 6228.292122 | AW4: 1739 | AX4: N/A | AY4: N/A | AZ4: 0 | BA4: 90.95734591 | BB4: 16.93379169 | BC4: 11718 | BD4: 11.00571042 | BE4: 24074 | BF4: 22.61063942 | BG4: 13699 | BH4: 12.86629349 | BI4: 11592 | BJ4: 10.88736945 | BK4: 19733 | BL4: 18.53351116 | BM4: 11381 | BN4: 10.68919528 | BO4: 14275 | BP4: 13.40728079 | BQ4: 221.3072957 | BR4: 258.7206557 | BS4: 409.6583505 | BT4: 218.9276474 | BU4: 328.5047876 | BV4: 45.0055714 | BW4: 269.5990481 | BX4: 44.17458309 | BY4: 214.9426807 | BZ4: Data not yet available | CA4: 230.3227823 | CB4: Data not yet available | CC4: Data not yet available | CD4: Data not yet available | CE4: Data not yet available | CF4: Data not yet available | CG4: Data not yet available | CH4: Data not yet available | CI4: 35173 | CJ4: 53.95047337 | CK4: 581.05 | CL4: 10.97376721 | CM4: 2029.7 | CN4: 2 | CO4: 13 | CP4: 2 | CQ4: 6.428449873 | CR4: 29194 | CS4: 35160 | CT4: 83.03 | CU4: 59.52 | CV4: 3.08 | CW4: Y | CX4: 28000 | CY4: 216000 | CZ4: 0 | DA4: 8110 | DB4: 0 | DC4: 336314 | DD4: 5 | DE4: 1600 | DF4: 0 | DG4: 9 | DH4: 5883.222222 | DI4: 22 | DJ4: 78 | DK4: 0 | DL4: 11 | DM4: 11 | DN4: 55.55555556 | DO4: 33 | DP4: 478 | DQ4: 110.7719665
A5: Armidale Regional | B5: 4 | C5: Regional Town/City | D5: New England | E5: 8620.7 | F5: 30594 | G5: 2.56118002 | H5: 3.548899741 | I5: 14855 | J5: 48.55527228 | K5: 15739 | L5: 51.44472772 | M5: 27.07720468 | N5: 50.96750997 | O5: 21.95528535 | P5: 43.53468 | Q5: 34.51003465 | R5: 21.95528535 | S5: 7.4 | T5: 7.9 | U5: 87 | V5: 6.6 | W5: 47386 | X5: 2.4 | Y5: Education & Training | Z5: 2908 | AA5: Data not yet available | AB5: Data not yet available | AC5: Data not yet available | AD5: Data not yet available | AE5: -8.73 | AF5: 1.53 | AG5: 71.27 | AH5: 28.72569945 | AI5: 6.67 | AJ5: 2.81 | AK5: 6.485202241 | AL5: 13.37 | AM5: 74139 | AN5: 68186 | AO5: 10140 | AP5: 898.6175115 | AQ5: 11284 | AR5: 4634 | AS5: 2789.885611 | AT5: 1661 | AU5: 2470 | AV5: 7623.45679 | AW5: 324 | AX5: 63 | AY5: 3705.882353 | AZ5: 17 | BA5: 180.2102216 | BB5: 17.09500177 | BC5: 3126 | BD5: 3.895666912 | BE5: 22020 | BF5: 27.441646 | BG5: 9192 | BH5: 11.45520482 | BI5: 7502 | BJ5: 9.349102102 | BK5: 13272 | BL5: 16.53976048 | BM5: 11602 | BN5: 14.45858206 | BO5: 13529 | BP5: 16.86003764 | BQ5: 102.1768974 | BR5: 300.4510688 | BS5: 607.5047395 | BT5: 245.2114794 | BU5: 357.9786886 | BV5: 112.2442309 | BW5: 442.210891 | BX5: 75.83186246 | BY5: 379.2246846 | BZ5: Data not yet available | CA5: 306.8947182 | CB5: Data not yet available | CC5: Data not yet available | CD5: Data not yet available | CE5: Data not yet available | CF5: Data not yet available | CG5: Data not yet available | CH5: Data not yet available | CI5: 21015 | CJ5: 52.36735665 | CK5: 2041.08 | CL5: 66.71504217 | CM5: 2597 | CN5: 2 | CO5: 8 | CP5: 2 | CQ5: 0 | CR5: 32355 | CS5: 33609 | CT5: 96.27 | CU5: 42.24 | CV5: 8.11 | CW5: Y | CX5: 8000 | CY5: 199000 | CZ5: 0 | DA5: 6000 | DB5: 0 | DC5: 315486 | DD5: 3 | DE5: 15174 | DF5: 0 | DG5: 11 | DH5: 2781.272727 | DI5: 45 | DJ5: 55 | DK5: 9 | DL5: 0 | DM5: 0 | DN5: 64 | DO5: 36 | DP5: 275 | DQ5: 111.2509091
A6: Ballina | B6: 4 | C6: Regional Town/City | D6: Northern Rivers | E6: 484.9 | F6: 43457 | G6: 5.977174072 | H6: 89.62054032 | I6: 20952 | J6: 48.21317624 | K6: 22505 | L6: 51.78682376 | M6: 22.87548611 | N6: 44.90876038 | O6: 32.2157535 | P6: 31.06288975 | Q6: 36.72135674 | R6: 32.2157535 | S6: 3.3 | T6: 3.8 | U6: 92 | V6: 3.5 | W6: 48108 | X6: 2.3 | Y6: Health Care & Social Assistance | Z6: 4244 | AA6: Data not yet available | AB6: Data not yet available | AC6: Data not yet available | AD6: Data not yet available | AE6: 3.12 | AF6: 4.84 | AG6: 59.66 | AH6: 39.96559932 | AI6: 3.38 | AJ6: 2.38 | AK6: 26.7055953 | AL6: 10.01 | AM6: 81796 | AN6: 85613 | AO6: 15352 | AP6: 953.8365952 | AQ6: 16095 | AR6: 1537 | AS6: 1544.723618 | AT6: 995 | AU6: 4008 | AV6: 3138.606108 | AW6: 1277 | AX6: N/A | AY6: N/A | AZ6: 0 | BA6: 287.5904412 | BB6: 22.69027648 | BC6: 5345 | BD6: 6.534549367 | BE6: 30085 | BF6: 36.78052717 | BG6: 10611 | BH6: 12.97251699 | BI6: 6302 | BJ6: 7.704533229 | BK6: 8010 | BL6: 9.792654898 | BM6: 11211 | BN6: 13.7060492 | BO6: 10232 | BP6: 12.50916915 | BQ6: 122.9951446 | BR6: 244.1724003 | BS6: 633.5688152 | BT6: 145.0169133 | BU6: 146.7887797 | BV6: 58.72471639 | BW6: 235.4511356 | BX6: 37.53135283 | BY6: 257.9791518 | BZ6: Data not yet available | CA6: 380.73936 | CB6: Data not yet available | CC6: Data not yet available | CD6: Data not yet available | CE6: Data not yet available | CF6: Data not yet available | CG6: Data not yet available | CH6: Data not yet available | CI6: 17887 | CJ6: 66.23804998 | CK6: 693.091 | CL6: 15.94889201 | CM6: 391 | CN6: 3 | CO6: 12 | CP6: 3 | CQ6: 9.338426528 | CR6: 6786.97303 | CS6: 7004.333333 | CT6: 96.9 | CU6: 19.74 | CV6: 1.92 | CW6: Y | CX6: 46000 | CY6: 235000 | CZ6: 0 | DA6: 15000 | DB6: 1000 | DC6: 311090 | DD6: 4 | DE6: 13438 | DF6: 0 | DG6: 10 | DH6: 4345.7 | DI6: 20 | DJ6: 80 | DK6: 0 | DL6: 0 | DM6: 0 | DN6: 50 | DO6: 50 | DP6: 306 | DQ6: 142.0163399
A7: Balranald | B7: 9 | C7: Rural | D7: Far South West | E7: 21690.7 | F7: 2341 | G7: -0.08536064874 | H7: 0.1079264385 | I7: 1200 | J7: 51.26014524 | K7: 1141 | L7: 48.73985476 | M7: 26.7407091 | N7: 48.69713798 | O7: 24.56215293 | P7: 39.42759504 | Q7: 36.01025203 | R7: 24.56215293 | S7: 8.8 | T7: 6.7 | U7: 30 | V7: 4.4 | W7: 42262 | X7: 2.5 | Y7: Health Care & Social Assistance | Z7: 277 | AA7: Data not yet available | AB7: Data not yet available | AC7: Data not yet available | AD7: Data not yet available | AE7: -5.95 | AF7: 4.64 | AG7: 39.82 | AH7: 60.18132754 | AI7: 4.6 | AJ7: 7.23 | AK7: 3.330651649 | AL7: 11.03 | AM7: 13170 | AN7: 12430 | AO7: 237 | AP7: 261.589404 | AQ7: 906 | AR7: 905 | AS7: 1917.372881 | AT7: 472 | AU7: 140 | AV7: 823.5294118 | AW7: 170 | AX7: N/A | AY7: N/A | AZ7: 0 | BA7: 196.5828471 | BB7: 15.78366446 | BC7: 3566 | BD7: 27.07668945 | BE7: 1374 | BF7: 10.43280182 | BG7: 412 | BH7: 3.128321944 | BI7: 1606 | BJ7: 12.19438117 | BK7: 891 | BL7: 6.765375854 | BM7: 4179 | BN7: 31.73120729 | BO7: 1142 | BP7: 8.671222475 | BQ7: 1523.280649 | BR7: 175.9931653 | BS7: 466.8944895 | BT7: 686.0316104 | BU7: 351.1319949 | BV7: 120.0341734 | BW7: 487.8257155 | BX7: 29.47458351 | BY7: 1785.134558 | BZ7: Data not yet available | CA7: 225.1655629 | CB7: Data not yet available | CC7: Data not yet available | CD7: Data not yet available | CE7: Data not yet available | CF7: Data not yet available | CG7: Data not yet available | CH7: Data not yet available | CI7: 355 | CJ7: 76.90140845 | CK7: 1586.95 | CL7: 677.8940624 | CM7: 58.18 | CN7: 1 | CO7: 4 | CP7: 1 | CQ7: 17.21052632 | CR7: 2877 | CS7: 2646 | CT7: 108.73 | CU7: 76.49 | CV7: 2.24 | CW7: N | CX7: 29000 | CY7: 119000 | CZ7: 0 | DA7: 10000 | DB7: 0 | DC7: 276253 | DD7: 2 | DE7: 3000 | DF7: 0 | DG7: 8 | DH7: 292.625 | DI7: 13 | DJ7: 87 | DK7: 0 | DL7: 13 | DM7: 0 | DN7: 50 | DO7: 50 | DP7: 50 | DQ7: 46.82
A8: Bathurst Regional | B8: 4 | C8: Regional Town/City | D8: Central NSW | E8: 3817.9 | F8: 42779 | G8: 6.275308673 | H8: 11.20485083 | I8: 21487 | J8: 50.22791557 | K8: 21292 | L8: 49.77208443 | M8: 27.19558662 | N8: 51.31957269 | O8: 21.48484069 | P8: 42.16087333 | Q8: 36.35428598 | R8: 21.48484069 | S8: 5.4 | T8: 4.1 | U8: 84 | V8: 4.8 | W8: 54554 | X8: 2.5 | Y8: Education & Training | Z8: 3376 | AA8: Data not yet available | AB8: Data not yet available | AC8: Data not yet available | AD8: Data not yet available | AE8: -6.92 | AF8: 1.14 | AG8: 69.3 | AH8: 30.69639875 | AI8: 6.17 | AJ8: 3.66 | AK8: 5.715617412 | AL8: 10.47 | AM8: 98640 | AN8: 92256 | AO8: 16801 | AP8: 1020.035213 | AQ8: 16471 | AR8: 2015 | AS8: 1389.655172 | AT8: 1450 | AU8: 5207 | AV8: 3923.88847 | AW8: 1327 | AX8: 10 | AY8: 454.5454545 | AZ8: 22 | BA8: 135.9751097 | BB8: 16.98743246 | BC8: 15872 | BD8: 16.09083536 | BE8: 23506 | BF8: 23.83008921 | BG8: 9840 | BH8: 9.9756691 | BI8: 5636 | BJ8: 5.713706407 | BK8: 17565 | BL8: 17.80717762 | BM8: 15959 | BN8: 16.17903487 | BO8: 10262 | BP8: 10.40348743 | BQ8: 371.0231656 | BR8: 230.019402 | BS8: 506.4400757 | BT8: 131.7468852 | BU8: 373.9919119 | BV8: 43.03513406 | BW8: 239.8840553 | BX8: 36.6067463 | BY8: 373.0568737 | BZ8: Data not yet available | CA8: 323.7811912 | CB8: Data not yet available | CC8: Data not yet available | CD8: Data not yet available | CE8: Data not yet available | CF8: Data not yet available | CG8: Data not yet available | CH8: Data not yet available | CI8: 31123 | CJ8: 37.61205539 | CK8: 1352.48 | CL8: 31.61551228 | CM8: 384.3 | CN8: 1 | CO8: 5 | CP8: 1 | CQ8: 5.733146853 | CR8: 15995 | CS8: 19628 | CT8: 81.49 | CU8: 44.18 | CV8: 8.86 | CW8: Y | CX8: 40000 | CY8: 206000 | CZ8: 0 | DA8: 13574 | DB8: 0 | DC8: 341282 | DD8: 16 | DE8: 2000 | DF8: 0 | DG8: 9 | DH8: 4753.222222 | DI8: 22 | DJ8: 78 | DK8: 0 | DL8: 0 | DM8: 0 | DN8: 70 | DO8: 30 | DP8: 378 | DQ8: 113.1719577
A9: Bayside | B9: 3 | C9: Metropolitan | E9: 49.9 | F9: 170089 | G9: 15.28018761 | H9: 3408.597194 | I9: 85037 | J9: 49.99559054 | K9: 85052 | L9: 50.00440946 | M9: 21.099542 | N9: 60.20789116 | O9: 18.69256683 | P9: 39.80386739 | Q9: 41.50356578 | R9: 18.69256683 | S9: 2.4 | T9: 52.8 | U9: 101 | V9: 3.9 | W9: 59992 | X9: - | Y9: Health Care & Social Assistance | Z9: 15172 | AA9: Data not yet available | AB9: Data not yet available | AC9: Data not yet available | AD9: Data not yet available | AE9: * | AF9: * | AG9: * | AH9: * | AI9: * | AJ9: * | AK9: * | AL9: * | AM9: * | AN9: * | AO9: * | AP9: * | AQ9: * | AR9: * | AS9: * | AT9: * | AU9: * | AV9: * | AW9: * | AX9: * | AY9: * | AZ9: * | BA9: * | BB9: * | BC9: * | BD9: * | BE9: * | BF9: * | BG9: * | BH9: * | BI9: * | BJ9: * | BK9: * | BL9: * | BM9: * | BN9: * | BO9: * | BP9: * | BQ9: * | BR9: * | BS9: * | BT9: * | BU9: * | BV9: * | BW9: * | BX9: * | BY9: * | BZ9: Data not yet available | CA9: * | CB9: Data not yet available | CC9: Data not yet available | CD9: Data not yet available | CE9: Data not yet available | CF9: Data not yet available | CG9: Data not yet available | CH9: Data not yet available | CI9: 31708 | CJ9: 57.09915479 | CK9: 364.79 | CL9: 2.144700716 | CM9: 382.61 | CN9: 7 | CO9: 6 | CP9: 8 | CQ9: 4.159731969 | CR9: * | CS9: * | CT9: * | CU9: * | CV9: * | CW9: N | CX9: * | CY9: * | CZ9: * | DA9: * | DB9: * | DC9: * | DD9: 1 | DE9: 0 | DF9: 0 | DG9: 15 | DH9: 11339.26667 | DI9: 30 | DJ9: 70 | DK9: 0 | DL9: 80 | DM9: 13 | DN9: 80 | DO9: 7 | DP9: * | DQ9: *
A10: Bega Valley | B10: 4 | C10: Regional Town/City | D10: Canberra | E10: 6278.9 | F10: 34102 | G10: 2.534652275 | H10: 5.431206103 | I10: 16731 | J10: 49.06163861 | K10: 17371 | L10: 50.93836139 | M10: 21.4532872 | N10: 43.51357692 | O10: 35.03313589 | P10: 29.13905343 | Q10: 35.82781069 | R10: 35.03313589 | S10: 3.1 | T10: 3 | U10: 57 | V10: 6.7 | W10: 44685 | X10: 2.2 | Y10: Health Care & Social Assistance | Z10: 2942 | AA10: Data not yet available | AB10: Data not yet available | AC10: Data not yet available | AD10: Data not yet available | AE10: 1.14 | AF10: 2 | AG10: 69.68 | AH10: 30.32132188 | AI10: 3.99 | AJ10: 28.7 | AK10: 0.8995599275 | AL10: 12.83 | AM10: 91653 | AN10: 92712 | AO10: 18298 | AP10: 1016.103954 | AQ10: 18008 | AR10: 1684 | AS10: 2128.950695 | AT10: 791 | AU10: 2202 | AV10: 2587.544066 | AW10: 851 | AX10: N/A | AY10: N/A | AZ10: N/A | BA10: 149.4716263 | BB10: 0 | BC10: 26186 | BD10: 28.57049338 | BE10: 27916 | BF10: 30.45802693 | BG10: 10627 | BH10: 11.59469308 | BI10: 9249 | BJ10: 10.0912126 | BK10: 6298 | BL10: 6.87149497 | BM10: 10303 | BN10: 11.24118969 | BO10: 1075 | BP10: 1.172889345 | BQ10: 767.872852 | BR10: 311.6239517 | BS10: 737.6106973 | BT10: 271.2157645 | BU10: 148.5250132 | BV10: 80.99231717 | BW10: 31.52307783 | BX10: 36.15623717 | BY10: 302.1230426 | BZ10: Data not yet available | CA10: 385.0510884 | CB10: Data not yet available | CC10: Data not yet available | CD10: Data not yet available | CE10: Data not yet available | CF10: Data not yet available | CG10: Data not yet available | CH10: Data not yet available | CI10: 21374 | CJ10: 67.98446711 | CK10: 1413.64 | CL10: 41.4532872 | CM10: 1016 | CN10: 8 | CO10: 21 | CP10: 4 | CQ10: 6.975920223 | CR10: 9283 | CS10: 11518 | CT10: 80.6 | CU10: 0 | CV10: 0.15 | CW10: N | CX10: 117000 | CY10: 229000 | CZ10: 0 | DA10: 0 | DB10: 0 | DC10: 281142 | DD10: 10 | DE10: 5538 | DF10: 0 | DG10: 9 | DH10: 3789.111111 | DI10: 67 | DJ10: 33 | DK10: 0 | DL10: 0 | DM10: 0 | DN10: 56 | DO10: 44.44444444 | DP10: 326 | DQ10: 104.607362
A11: Bellingen | B11: 11 | C11: Large Rural | D11: Mid North Coast | E11: 1600.4 | F11: 12946 | G11: 0.9907169046 | H11: 8.089227693 | I11: 6281 | J11: 48.51691642 | K11: 6665 | L11: 51.48308358 | M11: 23.58257377 | N11: 44.52340491 | O11: 31.89402132 | P11: 30.65811834 | Q11: 37.44786034 | R11: 31.89402132 | S11: 3.5 | T11: 3.2 | U11: 63 | V11: 8.8 | W11: 45694 | X11: 2.3 | Y11: Health Care & Social Assistance | Z11: 1161 | AA11: Data not yet available | AB11: Data not yet available | AC11: Data not yet available | AD11: Data not yet available | AE11: 0.51 | AF11: 2.33 | AG11: 63.41 | AH11: 36.58575192 | AI11: 5.25 | AJ11: 6.34 | AK11: 3.905681593 | AL11: 6.51 | AM11: 30084 | AN11: 30238 | AO11: 5562 | AP11: 1057.012543 | AQ11: 5262 | AR11: 996 | AS11: 2515.151515 | AT11: 396 | AU11: 445 | AV11: 1072.289157 | AW11: 415 | AX11: N/A | AY11: N/A | AZ11: N/A | BA11: 232.5699465 | BB11: 24.95248955 | BC11: 1923 | BD11: 6.392102114 | BE11: 6434 | BF11: 21.38678367 | BG11: 4632 | BH11: 15.39688871 | BI11: 1953 | BJ11: 6.491822896 | BK11: 2596 | BL11: 8.629171653 | BM11: 8041 | BN11: 26.72849355 | BO11: 4505 | BP11: 14.9747374 | BQ11: 148.5400896 | BR11: 357.7939132 | BS11: 429.8625058 | BT11: 150.8574077 | BU11: 148.3083578 | BV11: 67.12498069 | BW11: 347.9839333 | BX11: 52.21690097 | BY11: 621.1184922 | BZ11: Data not yet available | CA11: 479.8555682 | CB11: Data not yet available | CC11: Data not yet available | CD11: Data not yet available | CE11: Data not yet available | CF11: Data not yet available | CG11: Data not yet available | CH11: Data not yet available | CI11: 6644 | CJ11: 63.26008429 | CK11: 598.52 | CL11: 46.23204078 | CM11: 69.25 | CN11: 3 | CO11: 13 | CP11: 3 | CQ11: 5.351955307 | CR11: 3667 | CS11: 3667 | CT11: 100 | CU11: 165.94 | CV11: 6.44 | CW11: Y | CX11: 0 | CY11: 106000 | CZ11: 0 | DA11: 9000 | DB11: 0 | DC11: 257827 | DD11: 2 | DE11: 2511 | DF11: 3 | DG11: 7 | DH11: 1849.428571 | DI11: 43 | DJ11: 57 | DK11: 0 | DL11: 0 | DM11: 0 | DN11: 57 | DO11: 43 | DP11: 127 | DQ11: 101.9370079
A12: Berrigan | B12: 10 | C12: Large Rural | D12: Riverina and Murray | E12: 2065.8 | F12: 8664 | G12: 3.922274199 | H12: 4.194016846 | I12: 4352 | J12: 50.23084026 | K12: 4312 | L12: 49.76915974 | M12: 22.14912281 | N12: 41.82825485 | O12: 36.02262235 | P12: 31.29039705 | Q12: 32.68698061 | R12: 36.02262235 | S12: 2.3 | T12: 3.1 | U12: 36 | V12: 6.6 | W12: 44545 | X12: 2.2 | Y12: Agriculture, Forestry and Fishing | Z12: 858 | AA12: Data not yet available | AB12: Data not yet available | AC12: Data not yet available | AD12: Data not yet available | AE12: 18.24 | AF12: 7.24 | AG12: 61.16 | AH12: 38.83814169 | AI12: 3.3 | AJ12: 48.7 | AK12: 0.8870753127 | AL12: 27.97 | AM12: 18433 | AN12: 22546 | AO12: 2500 | AP12: 671.5014773 | AQ12: 3723 | AR12: 1833 | AS12: 2036.666667 | AT12: 900 | AU12: 510 | AV12: 1217.183771 | AW12: 419 | AX12: N/A | AY12: N/A | AZ12: N/A | BA12: 115.0640657 | BB12: 28.79398335 | BC12: 876 | BD12: 4.752346335 | BE12: 5257 | BF12: 28.51950307 | BG12: 2119 | BH12: 11.49568708 | BI12: 1180 | BJ12: 6.401562415 | BK12: 2066 | BL12: 11.20815928 | BM12: 5754 | BN12: 31.21575435 | BO12: 1181 | BP12: 6.406987468 | BQ12: 101.1080332 | BR12: 244.5752539 | BS12: 567.6361958 | BT12: 136.1957525 | BU12: 172.7839335 | BV12: 39.12742382 | BW12: 136.3111727 | BX12: 65.67405355 | BY12: 664.1274238 | BZ12: Data not yet available | CA12: 228.3105023 | CB12: Data not yet available | CC12: Data not yet available | CD12: Data not yet available | CE12: Data not yet available | CF12: Data not yet available | CG12: Data not yet available | CH12: Data not yet available | CI12: 4033 | CJ12: 53.13662286 | CK12: 1431.36 | CL12: 165.2077562 | CM12: 138 | CN12: 3 | CO12: 7 | CP12: 4 | CQ12: 3.64546826 | CR12: 4556 | CS12: 4385 | CT12: 103.9 | CU12: 66.95 | CV12: 0 | CW12: Y | CX12: 86000 | CY12: 115000 | CZ12: 0 | DA12: 11000 | DB12: 3000 | DC12: 230866 | DD12: 0 | DE12: 0 | DF12: 0 | DG12: 8 | DH12: 1083 | DI12: 0 | DJ12: 100 | DK12: 0 | DL12: 0 | DM12: 0 | DN12: 38 | DO12: 62 | DP12: 90 | DQ12: 96.26666667
A13: Blacktown | B13: 3 | C13: Metropolitan | E13: 247 | F13: 357479 | G13: 12.557069 | H13: 1447.283401 | I13: 179045 | J13: 50.08545957 | K13: 178434 | L13: 49.91454043 | M13: 29.53236414 | N13: 55.76831087 | O13: 14.699325 | P13: 44.17602153 | Q13: 41.12465348 | R13: 14.699325 | S13: 2.8 | T13: 41 | U13: 95 | V13: 5.1 | W13: 56407 | X13: 3.2 | Y13: Health Care & Social Assistance | Z13: 21136 | AA13: Data not yet available | AB13: Data not yet available | AC13: Data not yet available | AD13: Data not yet available | AE13: -6.7 | AF13: 3.05 | AG13: 46.27 | AH13: 53.72660088 | AI13: 4.33 | AJ13: 0 | AK13: 0 | AL13: 21.91 | AM13: 333613 | AN13: 312676 | AO13: 111370 | AP13: 972.6977362 | AQ13: 114496 | AR13: 320 | AS13: 2442.748092 | AT13: 131 | AU13: 47275 | AV13: 9235.202188 | AW13: 5119 | AX13: N/A | AY13: N/A | AZ13: N/A | BA13: 313.8128422 | BB13: 12.5864659 | BC13: 58774 | BD13: 17.59906097 | BE13: 12236 | BF13: 3.663900875 | BG13: 66538 | BH13: 19.92388333 | BI13: 46076 | BJ13: 13.79682059 | BK13: 78336 | BL13: 23.45663116 | BM13: 52961 | BN13: 15.85843856 | BO13: 19040 | BP13: 5.701264519 | BQ13: 164.412455 | BR13: 186.1312133 | BS13: 0 | BT13: 128.8914873 | BU13: 191.0266058 | BV13: 34.22858406 | BW13: 53.26186993 | BX13: 28.1079448 | BY13: 148.1513599 | BZ13: Data not yet available | CA13: 426.5301845 | CB13: Data not yet available | CC13: Data not yet available | CD13: Data not yet available | CE13: Data not yet available | CF13: Data not yet available | CG13: Data not yet available | CH13: Data not yet available | CI13: 109105 | CJ13: 58.82773475 | CK13: 1438.67 | CL13: 4.024488152 | CM13: 3413.03157 | CN13: 5 | CO13: 38 | CP13: 5 | CQ13: 2.903580966 | CR13: 62724 | CS13: 62992 | CT13: 99.57 | CU13: 51.34 | CV13: 2.3 | CW13: Y | CX13: 390000 | CY13: 518000 | CZ13: 7000 | DA13: 31000 | DB13: 51000 | DC13: 368356 | DD13: 1 | DE13: 8000 | DF13: 2 | DG13: 15 | DH13: 23831.93333 | DI13: 27 | DJ13: 73 | DK13: 0 | DL13: 53 | DM13: 0 | DN13: 53 | DO13: 47 | DP13: 1384 | DQ13: 258.2940751
A14: Bland | B14: 10 | C14: Large Rural | D14: Riverina | E14: 8557.7 | F14: 5985 | G14: -1.156069364 | H14: 0.6993701579 | I14: 3009 | J14: 50.27568922 | K14: 2976 | L14: 49.72431078 | M14: 26.4160401 | N14: 45.81453634 | O14: 27.76942356 | P14: 35.839599 | Q14: 36.39097744 | R14: 27.76942356 | S14: 4.4 | T14: 2.2 | U14: 62 | V14: 4.1 | W14: 46626 | X14: 2.4 | Y14: Agriculture, Forestry and Fishing | Z14: 775 | AA14: Data not yet available | AB14: Data not yet available | AC14: Data not yet available | AD14: Data not yet available | AE14: -1.05 | AF14: 14.3 | AG14: 44.71 | AH14: 55.29023744 | AI14: 6.93 | AJ14: 16.24 | AK14: 1.283427051 | AL14: 25.72 | AM14: 23541 | AN14: 23297 | AO14: 1063 | AP14: 485.3881279 | AQ14: 2190 | AR14: 3842 | AS14: 2831.245394 | AT14: 1357 | AU14: 465 | AV14: 1091.549296 | AW14: 426 | AX14: 2307 | AY14: 769000 | AZ14: 3 | BA14: 128.826662 | BB14: 25.66210046 | BC14: 2906 | BD14: 12.34546922 | BE14: 2257 | BF14: 9.58834275 | BG14: 2056 | BH14: 8.734440715 | BI14: 2439 | BJ14: 10.36152768 | BK14: 2260 | BL14: 9.601087557 | BM14: 10209 | BN14: 43.37057649 | BO14: 1412 | BP14: 5.998555589 | BQ14: 485.5472013 | BR14: 343.5254804 | BS14: 257.1428571 | BT14: 407.518797 | BU14: 325.647452 | BV14: 119.9665831 | BW14: 235.9231412 | BX14: 51.96324144 | BY14: 1705.764411 | BZ14: Data not yet available | CA14: 317.8082192 | CB14: Data not yet available | CC14: Data not yet available | CD14: Data not yet available | CE14: Data not yet available | CF14: Data not yet available | CG14: Data not yet available | CH14: Data not yet available | CI14: 3192 | CJ14: 50.68922306 | CK14: 3070.82 | CL14: 513.0860485 | CM14: 1750 | CN14: 2 | CO14: 2 | CP14: 1 | CQ14: 5.222370618 | CR14: 6459 | CS14: 5709 | CT14: 113.14 | CU14: 55.3 | CV14: 12.12 | CW14: Y | CX14: 23000 | CY14: 126000 | CZ14: 0 | DA14: 8000 | DB14: 0 | DC14: 211465 | DD14: 0 | DE14: 0 | DF14: 0 | DG14: 9 | DH14: 665 | DI14: 33 | DJ14: 67 | DK14: 0 | DL14: 0 | DM14: 0 | DN14: 33 | DO14: 67 | DP14: 115 | DQ14: 52.04347826
A15: Blayney | B15: 10 | C15: Large Rural | D15: Central NSW | E15: 1524.6 | F15: 7344 | G15: 0.9345794393 | H15: 4.817001181 | I15: 3676 | J15: 50.05446623 | K15: 3668 | L15: 49.94553377 | M15: 27.5462963 | N15: 47.3583878 | O15: 25.0953159 | P15: 37.62254902 | Q15: 37.28213508 | R15: 25.0953159 | S15: 3.7 | T15: 1.6 | U15: 74 | V15: 4.3 | W15: 54672 | X15: 2.5 | Y15: Agriculture, Forestry and Fishing | Z15: 765 | AA15: Data not yet available | AB15: Data not yet available | AC15: Data not yet available | AD15: Data not yet available | AE15: 0.74 | AF15: 5.83 | AG15: 58.54 | AH15: 41.46029215 | AI15: 2.07 | AJ15: 14.33 | AK15: 2.284760589 | AL15: 14.26 | AM15: 17248 | AN15: 17376 | AO15: 1680 | AP15: 597.4395448 | AQ15: 2812 | AR15: 2108 | AS15: 2829.530201 | AT15: 745 | AU15: 346 | AV15: 1108.974359 | AW15: 312 | AX15: 4180 | AY15: 2090000 | AZ15: 2 | BA15: 115.961385 | BB15: 21.62162162 | BC15: 3606 | BD15: 20.9067718 | BE15: 2102 | BF15: 12.18692022 | BG15: 1503 | BH15: 8.714053803 | BI15: 628 | BJ15: 3.641001855 | BK15: 2925 | BL15: 16.95848794 | BM15: 4629 | BN15: 26.83789425 | BO15: 1855 | BP15: 10.75487013 | BQ15: 491.0130719 | BR15: 204.6568627 | BS15: 209.2864924 | BT15: 85.51198257 | BU15: 372.6851852 | BV15: 76.9335512 | BW15: 252.587146 | BX15: 25.59912854 | BY15: 630.3104575 | BZ15: Data not yet available | CA15: 1367.785235 | CB15: Data not yet available | CC15: Data not yet available | CD15: Data not yet available | CE15: Data not yet available | CF15: Data not yet available | CG15: Data not yet available | CH15: Data not yet available | CI15: 6924 | CJ15: 27.68630849 | CK15: 737.04 | CL15: 100.3594771 | CM15: 37 | CN15: 1 | CO15: 6 | CP15: 1 | CQ15: 1.443020904 | CR15: 3162 | CS15: 3012 | CT15: 104.98 | CU15: 231.92 | CV15: 8.28 | CW15: Y | CX15: 19000 | CY15: 104000 | CZ15: 0 | DA15: 12825 | DB15: 0 | DC15: 238000 | DD15: 0 | DE15: 0 | DF15: 0 | DG15: 7 | DH15: 1049.142857 | DI15: 0 | DJ15: 100 | DK15: 0 | DL15: 0 | DM15: 0 | DN15: 57.14285714 | DO15: 42.85714286 | DP15: 92 | DQ15: 79.82608696
A16: Blue Mountains | B16: 7 | C16: Metropolitan Fringe | E16: 1431.1 | F16: 78968 | G16: 0.3520097597 | H16: 55.17993152 | I16: 38458 | J16: 48.70073954 | K16: 40510 | L16: 51.29926046 | M16: 24.93415054 | N16: 48.51332185 | O16: 26.55252761 | P16: 34.29237159 | Q16: 39.1551008 | R16: 26.55252761 | S16: 2.4 | T16: 6.1 | U16: 105 | V16: 2.8 | W16: 60466 | X16: 2.5 | Y16: Education & Training | Z16: 5475 | AA16: Data not yet available | AB16: Data not yet available | AC16: Data not yet available | AD16: Data not yet available | AE16: -4.37 | AF16: 1.57 | AG16: 83.52 | AH16: 16.47865221 | AI16: 3.73 | AJ16: 1.69 | AK16: 6.70585069 | AL16: 3.37 | AM16: 120216 | AN16: 115183 | AO16: 55175 | AP16: 1591.708978 | AQ16: 34664 | AR16: 336.4 | AS16: 2473.529412 | AT16: 136 | AU16: 4977.2 | AV16: 3714.328358 | AW16: 1340 | AX16: N/A | AY16: N/A | AZ16: 0 | BA16: 158.2895297 | BB16: 18.08216017 | BC16: 36637 | BD16: 30.45596243 | BE16: 4317 | BF16: 3.588677834 | BG16: 29709 | BH16: 24.69678707 | BI16: 6534 | BJ16: 5.431647201 | BK16: 20743 | BL16: 17.2434432 | BM16: 9625 | BN16: 8.001163806 | BO16: 12730 | BP16: 10.58231847 | BQ16: 463.9474217 | BR16: 376.2156823 | BS16: 0 | BT16: 82.74237666 | BU16: 224.5593152 | BV16: 54.6677135 | BW16: 161.2045385 | BX16: 38.1167055 | BY16: 121.8848141 | BZ16: Data not yet available | CA16: 393.2321717 | CB16: Data not yet available | CC16: Data not yet available | CD16: Data not yet available | CE16: Data not yet available | CF16: Data not yet available | CG16: Data not yet available | CH16: Data not yet available | CI16: 42818 | CJ16: 57.03208931 | CK16: 744.42 | CL16: 9.426856448 | CM16: 6556.41 | CN16: 5 | CO16: 16 | CP16: 6 | CQ16: 7.066104061 | CR16: 24322 | CS16: 24558 | CT16: 99.04 | CU16: 12.1 | CV16: 1.99 | CW16: Y | CX16: 37000 | CY16: 260000 | CZ16: 0 | DA16: 18000 | DB16: 0 | DC16: 979566 | DD16: 8 | DE16: 99253 | DF16: 3 | DG16: 12 | DH16: 6580.666667 | DI16: 25 | DJ16: 75 | DK16: 0 | DL16: 0 | DM16: 8.333333333 | DN16: 50 | DO16: 42 | DP16: 549 | DQ16: 143.8397086
A17: Bogan | B17: 9 | C17: Rural | D17: Orana | E17: 14599.9 | F17: 2664 | G17: -11.96298744 | H17: 0.1824670032 | I17: 1338 | J17: 50.22522523 | K17: 1326 | L17: 49.77477477 | M17: 27.17717718 | N17: 49.66216216 | O17: 23.16066066 | P17: 40.09009009 | Q17: 36.74924925 | R17: 23.16066066 | S17: 16.5 | T17: 2.5 | U17: 42 | V17: 2.7 | W17: 51762 | X17: 2.4 | Y17: Agriculture, Forestry and Fishing | Z17: 408 | AA17: Data not yet available | AB17: Data not yet available | AC17: Data not yet available | AD17: Data not yet available | AE17: 4.94 | AF17: 4.18 | AG17: 40.2 | AH17: 61.12653533 | AI17: 6.03 | AJ17: 26.86 | AK17: 0.9161451815 | AL17: 8.65 | AM17: 18989 | AN17: 19975 | AO17: 285 | AP17: 266.1064426 | AQ17: 1071 | AR17: 1680 | AS17: 2718.446602 | AT17: 618 | AU17: 234 | AV17: 966.9421488 | AW17: 242 | AX17: 582 | AY17: 194000 | AZ17: 3 | BA17: 136.3916462 | BB17: 18.86087768 | BC17: 1569 | BD17: 8.027217845 | BE17: 5075 | BF17: 25.96439169 | BG17: 1333 | BH17: 6.81980968 | BI17: 1456 | BJ17: 7.449094444 | BK17: 1434 | BL17: 7.336539445 | BM17: 5875 | BN17: 30.05730073 | BO17: 2804 | BP17: 14.34564617 | BQ17: 588.963964 | BR17: 500.3753754 | BS17: 1433.558559 | BT17: 546.5465465 | BU17: 454.2042042 | BV17: 471.4714715 | BW17: 1052.552553 | BX17: 84.08408408 | BY17: 2205.33033 | BZ17: Data not yet available | CA17: 507.9365079 | CB17: Data not yet available | CC17: Data not yet available | CD17: Data not yet available | CE17: Data not yet available | CF17: Data not yet available | CG17: Data not yet available | CH17: Data not yet available | CI17: 2185 | CJ17: 46.31578947 | CK17: 1616.63 | CL17: 606.8430931 | CM17: 74.9 | CN17: 1 | CO17: 5 | CP17: 1 | CQ17: 5.575825826 | CR17: 3955 | CS17: 3988 | CT17: 99.17 | CU17: 61.91 | CV17: 2.29 | CW17: Y | CX17: 56000 | CY17: 98000 | CZ17: 0 | DA17: 6193 | DB17: 0 | DC17: 254512 | DD17: 0 | DE17: 0 | DF17: 0 | DG17: 9 | DH17: 296 | DI17: 33.33333333 | DJ17: 66.66666667 | DK17: 11 | DL17: 0 | DM17: 0 | DN17: 67 | DO17: 33 | DP17: 90 | DQ17: 29.6
A18: Bourke | B18: 9 | C18: Rural | D18: Far North West | E18: 41599.5 | F18: 2695 | G18: -10.96795507 | H18: 0.06478443251 | I18: 1302 | J18: 48.31168831 | K18: 1393 | L18: 51.68831169 | M18: 28.53432282 | N18: 52.69016698 | O18: 18.7755102 | P18: 41.3729128 | Q18: 39.85157699 | R18: 18.7755102 | S18: 31.5 | T18: 2.4 | U18: 33 | V18: 4.7 | W18: 50194 | X18: 2.5 | Y18: Education & Training | Z18: 191 | AA18: Data not yet available | AB18: Data not yet available | AC18: Data not yet available | AD18: Data not yet available | AE18: 9.48 | AF18: 5.26 | AG18: 44.32 | AH18: 55.68440004 | AI18: 15.19 | AJ18: 7.53 | AK18: 3.317371488 | AL18: 10.74 | AM18: 28241 | AN18: 31199.4 | AO18: 384 | AP18: 336.5468887 | AQ18: 1141 | AR18: 1081 | AS18: 2867.374005 | AT18: 377 | AU18: 110 | AV18: 500 | AW18: 220 | AX18: N/A | AY18: N/A | AZ18: N/A | BA18: 129.1978349 | BB18: 12.70815074 | BC18: 1335 | BD18: 4.671262116 | BE18: 4694 | BF18: 16.42464747 | BG18: 1529 | BH18: 5.350082228 | BI18: 601 | BJ18: 2.10294272 | BK18: 1527 | BL18: 5.343084083 | BM18: 4187 | BN18: 14.65061759 | BO18: 14706 | BP18: 51.4573638 | BQ18: 495.3617811 | BR18: 567.3469388 | BS18: 1240.816327 | BT18: 223.0055659 | BU18: 463.4508349 | BV18: 500.9276438 | BW18: 5456.7718 | BX18: 103.1539889 | BY18: 1553.617811 | BZ18: Data not yet available | CA18: 256.7922875 | CB18: Data not yet available | CC18: Data not yet available | CD18: Data not yet available | CE18: Data not yet available | CF18: Data not yet available | CG18: Data not yet available | CH18: Data not yet available | CI18: 2414 | CJ18: 47.97017399 | CK18: 2453.86 | CL18: 910.5231911 | CM18: 220 | CN18: 1 | CO18: 5 | CP18: 1 | CQ18: 4.076470588 | CR18: 4154 | CS18: 4563 | CT18: 91.04 | CU18: 69.3 | CV18: 2.84 | CW18: Y | CX18: 87000 | CY18: 143000 | CZ18: 0 | DA18: 36000 | DB18: 0 | DC18: 211952 | DD18: 0 | DE18: 0 | DF18: 0 | DG18: 10 | DH18: 269.5 | DI18: 20 | DJ18: 80 | DK18: 10 | DL18: 0 | DM18: 20 | DN18: 20 | DO18: 60 | DP18: 85 | DQ18: 31.70588235
A19: Brewarrina | B19: 8 | C19: Rural | E19: 19163.5 | F19: 1670 | G19: -10.83822744 | H19: 0.08714483262 | I19: 886 | J19: 53.05389222 | K19: 784 | L19: 46.94610778 | M19: 30.2994012 | N19: 55.4491018 | O19: 14.25149701 | P19: 46.16766467 | Q19: 39.58083832 | R19: 14.25149701 | S19: 61.2 | T19: 3.6 | U19: 1 | V19: 5.1 | W19: 47323 | X19: 2.6 | Y19: Agriculture, Forestry and Fishing | Z19: 122 | AA19: Data not yet available | AB19: Data not yet available | AC19: Data not yet available | AD19: Data not yet available | AE19: 12.98 | AF19: 4.16 | AG19: 51.71 | AH19: 48.29101906 | AI19: 7.79 | AJ19: 20.98 | AK19: 1.607347876 | AL19: 12.49 | AM19: 14401 | AN19: 16549 | AO19: 60 | AP19: 103.9861352 | AQ19: 577 | AR19: 904 | AS19: 2682.492582 | AT19: 337 | AU19: 15 | AV19: 263.1578947 | AW19: 57 | AX19: N/A | AY19: N/A | AZ19: N/A | BA19: 276.2575638 | BB19: 9.185441941 | BC19: 1711 | BD19: 11.38087003 | BE19: 1968 | BF19: 13.09032859 | BG19: 531 | BH19: 3.531994147 | BI19: 949 | BJ19: 6.312358654 | BK19: 742 | BL19: 4.93547958 | BM19: 3992 | BN19: 26.5531462 | BO19: 5141 | BP19: 34.1958228 | BQ19: 1024.550898 | BR19: 317.9640719 | BS19: 928.1437126 | BT19: 568.2634731 | BU19: 405.988024 | BV19: 250.2994012 | BW19: 3078.443114 | BX19: 38.32335329 | BY19: 2390.419162 | BZ19: Data not yet available | CA19: 398.6135182 | CB19: Data not yet available | CC19: Data not yet available | CD19: Data not yet available | CE19: Data not yet available | CF19: Data not yet available | CG19: Data not yet available | CH19: Data not yet available | CI19: 1228 | CJ19: 38.02931596 | CK19: 1551.7 | CL19: 929.1616766 | CM19: 345 | CN19: 1 | CO19: 3 | CP19: 1 | CQ19: 0.8002371073 | CR19: 2022 | CS19: 2296 | CT19: 88.07 | CU19: 50.74 | CV19: 2.15 | CW19: Y | CX19: 3000 | CY19: 126000 | CZ19: 0 | DA19: 0 | DB19: 0 | DC19: 181289.8 | DD19: 0 | DE19: 0 | DF19: 0 | DG19: 9 | DH19: 185.5555556 | DI19: 23 | DJ19: 77 | DK19: 33 | DL19: 0 | DM19: 0 | DN19: 56 | DO19: 44 | DP19: 60 | DQ19: 27.83333333
A20: Broken Hill | B20: 4 | C20: Regional Town/City | D20: Far South West | E20: 170.1 | F20: 17873 | G20: -6.438779249 | H20: 105.0734862 | I20: 8751 | J20: 48.96212164 | K20: 9122 | L20: 51.03787836 | M20: 22.32977116 | N20: 49.20830303 | O20: 28.46192581 | P20: 34.60527052 | Q20: 36.93280367 | R20: 28.46192581 | S20: 8.5 | T20: 2.5 | U20: 7 | V20: 3.3 | W20: 54978 | X20: 2.2 | Y20: Health Care & Social Assistance | Z20: 963 | AA20: Data not yet available | AB20: Data not yet available | AC20: Data not yet available | AD20: Data not yet available | AE20: -21.71 | AF20: 1.97 | AG20: 77.79 | AH20: 22.20674324 | AI20: 12.01 | AJ20: 0.48 | AK20: 16.19337036 | AL20: 10.71 | AM20: 34843 | AN20: 28633 | AO20: 8771 | AP20: 928.6394918 | AQ20: 9445 | AR20: 21 | AS20: 4200 | AT20: 5 | AU20: 3428 | AV20: 5467.304625 | AW20: 627 | AX20: 2181 | AY20: 1090500 | AZ20: 2 | BA20: 17.75794598 | BB20: 24.53149815 | BC20: 9623 | BD20: 27.61817295 | BE20: 1089 | BF20: 3.12544844 | BG20: 2609 | BH20: 7.487874178 | BI20: 1846 | BJ20: 5.298051259 | BK20: 8009 | BL20: 22.98596562 | BM20: 6434 | BN20: 18.46568895 | BO20: 5233 | BP20: 15.01879861 | BQ20: 538.409892 | BR20: 145.9743748 | BS20: 0 | BT20: 103.2842836 | BU20: 386.1131315 | BV20: 60.92989425 | BW20: 292.7880043 | BX20: 61.99295026 | BY20: 359.9843339 | BZ20: Data not yet available | CA20: 282.3716252 | CB20: Data not yet available | CC20: Data not yet available | CD20: Data not yet available | CE20: Data not yet available | CF20: Data not yet available | CG20: Data not yet available | CH20: Data not yet available | CI20: 15367 | CJ20: 64.3717056 | CK20: 250.96 | CL20: 14.04129133 | CM20: 3800 | CN20: 1 | CO20: 3 | CP20: 1 | CQ20: 4.264735658 | CR20: 3422 | CS20: 1982 | CT20: 172.65 | CU20: 18.56 | CV20: 24.15 | CW20: Y | CX20: 0 | CY20: 213000 | CZ20: 0 | DA20: 11000 | DB20: 0 | DC20: 240000 | DD20: 1 | DE20: 8412 | DF20: 0 | DG20: 10 | DH20: 1787.3 | DI20: 40 | DJ20: 60 | DK20: 0 | DL20: 0 | DM20: 0 | DN20: 50 | DO20: 50 | DP20: 162 | DQ20: 110.3271605
A21: Burwood | B21: 2 | C21: Metropolitan | E21: 7.1 | F21: 39310 | G21: 13.38986962 | H21: 5536.619718 | I21: 19243 | J21: 48.95192063 | K21: 20067 | L21: 51.04807937 | M21: 18.46095141 | N21: 63.15186975 | O21: 18.38717883 | P21: 44.32205546 | Q21: 37.29076571 | R21: 18.38717883 | S21: 0.4 | T21: 63.6 | U21: 106 | V21: 5.2 | W21: 54171 | X21: 2.9 | Y21: Health Care & Social Assistance | Z21: 4814 | AA21: Data not yet available | AB21: Data not yet available | AC21: Data not yet available | AD21: Data not yet available | AE21: 6.96 | AF21: 4.9 | AG21: 71.91 | AH21: 28.09357503 | AI21: 2.61 | AJ21: 13.49 | AK21: 1.628007492 | AL21: 10.77 | AM21: 45207 | AN21: 48587 | AO21: 15913 | AP21: 1267.6651 | AQ21: 12553 | AR21: N/A | AS21: N/A | AT21: N/A | AU21: 5504 | AV21: 5727.367326 | AW21: 961 | AX21: N/A | AY21: N/A | AZ21: 0 | BA21: 568.5217497 | BB21: 14.74547917 | BC21: 11966 | BD21: 25.68196939 | BE21: 1774 | BF21: 3.807438886 | BG21: 8027 | BH21: 17.22790977 | BI21: 5830 | BJ21: 12.51260919 | BK21: 8490 | BL21: 18.22162127 | BM21: 6892 | BN21: 14.79192153 | BO21: 3614 | BP21: 7.756529951 | BQ21: 304.4009158 | BR21: 204.1974052 | BS21: 0 | BT21: 148.3083185 | BU21: 158.7382345 | BV21: 45.12846604 | BW21: 91.93589417 | BX21: 57.23734419 | BY21: 175.324345 | BZ21: Data not yet available | CA21: 395.2839959 | CB21: Data not yet available | CC21: Data not yet available | CD21: Data not yet available | CE21: Data not yet available | CF21: Data not yet available | CG21: Data not yet available | CH21: Data not yet available | CI21: 7130 | CJ21: 58.41514727 | CK21: 85.46 | CL21: 2.174001526 | CM21: 39.69 | CN21: 1 | CO21: 2 | CP21: 1 | CQ21: 5.463519861 | CR21: 7082 | CS21: 5881 | CT21: 120.42 | CU21: 128.31 | CV21: 7.42 | CW21: Y | CX21: 96000 | CY21: 171000 | CZ21: 0 | DA21: 12533 | DB21: 0 | DC21: 325000 | DD21: 0 | DE21: 0 | DF21: 0 | DG21: 7 | DH21: 5615.714286 | DI21: 29 | DJ21: 71 | DK21: 0 | DL21: 0 | DM21: 0 | DN21: 100 | DO21: 0 | DP21: 159 | DQ21: 247.2327044
A22: Byron | B22: 4 | C22: Regional Town/City | D22: Northern Rivers | E22: 565.8 | F22: 33987 | G22: 9.777131783 | H22: 60.06892895 | I22: 16439 | J22: 48.36849384 | K22: 17548 | L22: 51.63150616 | M22: 22.17318386 | N22: 52.54067732 | O22: 25.28613882 | P22: 31.79450967 | Q22: 42.91935152 | R22: 25.28613882 | S22: 1.8 | T22: 6.8 | U22: 98 | V22: 5 | W22: 41450 | X22: 2.4 | Y22: Health Care & Social Assistance | Z22: 4494 | AA22: Data not yet available | AB22: Data not yet available | AC22: Data not yet available | AD22: Data not yet available | AE22: -1 | AF22: 3.4 | AG22: 61.61 | AH22: 38.38275862 | AI22: 3.56 | AJ22: 2.77 | AK22: 8.267422281 | AL22: 12.33 | AM22: 82765.7889 | AN22: 83099.19 | AO22: 15438.134 | AP22: 1137.163671 | AQ22: 13576 | AR22: 1056.848 | AS22: 1935.619048 | AT22: 546 | AU22: 4097.144 | AV22: 2821.724518 | AW22: 1452 | AX22: N/A | AY22: N/A | AZ22: 0 | BA22: 408.7325736 | BB22: 15.03388332 | BC22: 2106.87368 | BD22: 2.475234582 | BE22: 27879.738 | BF22: 32.75416666 | BG22: 9651.33784 | BH22: 11.33875534 | BI22: 10092.384 | BJ22: 11.85691298 | BK22: 10048.612 | BL22: 11.80548799 | BM22: 17701.24622 | BN22: 20.79609101 | BO22: 7637.95 | BP22: 8.973351443 | BQ22: 61.99057522 | BR22: 283.971455 | BS22: 704.480213 | BT22: 296.9483626 | BU22: 237.7835937 | BV22: 115.8257275 | BW22: 224.731515 | BX22: 57.87686468 | BY22: 520.8240274 | BZ22: Data not yet available | CA22: 360.203079 | CB22: Data not yet available | CC22: Data not yet available | CD22: Data not yet available | CE22: Data not yet available | CF22: Data not yet available | CG22: Data not yet available | CH22: Data not yet available | CI22: 14578 | CJ22: 76.49883386 | CK22: 605.534 | CL22: 17.81663577 | CM22: 277.15 | CN22: 2 | CO22: 15 | CP22: 3 | CQ22: 10.75341192 | CR22: 13412.02307 | CS22: 13902.462 | CT22: 96.47 | CU22: 104.16 | CV22: 6.86 | CW22: Y | CX22: 59410 | CY22: 215909 | CZ22: 0 | DA22: 26000 | DB22: 16000 | DC22: 208877 | DD22: 10 | DE22: 1469 | DF22: 1 | DG22: 9 | DH22: 3776.333333 | DI22: 44 | DJ22: 56 | DK22: 0 | DL22: 0 | DM22: 0 | DN22: 78 | DO22: 22 | DP22: 305 | DQ22: 111.4327869
A23: Cabonne | B23: 11 | C23: Large Rural | D23: Central NSW | E23: 6022.3 | F23: 13605 | G23: 0.9198130702 | H23: 2.259103665 | I23: 6820 | J23: 50.12862918 | K23: 6785 | L23: 49.87137082 | M23: 28.53362734 | N23: 45.79933848 | O23: 25.66703418 | P23: 36.9937523 | Q23: 37.33921352 | R23: 25.66703418 | S23: 3.7 | T23: 2 | U23: 97 | V23: 3 | W23: 51903 | X23: 2.6 | Y23: Agriculture, Forestry and Fishing | Z23: 1713 | AA23: Data not yet available | AB23: Data not yet available | AC23: Data not yet available | AD23: Data not yet available | AE23: 4.18 | AF23: 5.71 | AG23: 57.24 | AH23: 42.76327783 | AI23: 5.26 | AJ23: 35.46 | AK23: 0.9514398645 | AL23: 24.29 | AM23: 33938 | AN23: 35420 | AO23: 2922 | AP23: 637.0176586 | AQ23: 4587 | AR23: 4911 | AS23: 2485.323887 | AT23: 1976 | AU23: 242 | AV23: 540.1785714 | AW23: 448 | AX23: 1723 | AY23: 172300 | AZ23: 10 | BA23: 189.7259748 | BB23: 21.47373011 | BC23: 3428 | BD23: 10.100772 | BE23: 5613 | BF23: 16.53898285 | BG23: 2723 | BH23: 8.023454535 | BI23: 2544 | BJ23: 7.496022158 | BK23: 3986 | BL23: 11.74494667 | BM23: 7584 | BN23: 22.34663209 | BO23: 8060 | BP23: 23.7491897 | BQ23: 251.9661889 | BR23: 200.1470048 | BS23: 274.8989342 | BT23: 186.9900772 | BU23: 263.9470783 | BV23: 137.6699743 | BW23: 592.429254 | BX23: 29.03344359 | BY23: 557.4421169 | BZ23: Data not yet available | CA23: 262.6989318 | CB23: Data not yet available | CC23: Data not yet available | CD23: Data not yet available | CE23: Data not yet available | CF23: Data not yet available | CG23: Data not yet available | CH23: Data not yet available | CI23: 9007 | CJ23: 24.21449983 | CK23: 1930.27 | CL23: 141.8794561 | CM23: 29 | CN23: 7 | CO23: 8 | CP23: 3 | CQ23: 1.562761046 | CR23: 5170 | CS23: 5367 | CT23: 96.33 | CU23: 117.05 | CV23: 11.94 | CW23: Y | CX23: 39000 | CY23: 151000 | CZ23: 0 | DA23: 21000 | DB23: 3000 | DC23: 250000 | DD23: 0 | DE23: 0 | DF23: 0 | DG23: 12 | DH23: 1133.75 | DI23: 36 | DJ23: 64 | DK23: 0 | DL23: 0 | DM23: 0 | DN23: 27 | DO23: 73 | DP23: 158 | DQ23: 86.10759494
A24: Camden | B24: 7 | C24: Metropolitan Fringe | E24: 201 | F24: 87068 | G24: 43.80471047 | H24: 433.1741294 | I24: 42923 | J24: 49.29824964 | K24: 44145 | L24: 50.70175036 | M24: 31.03551247 | N24: 54.72389397 | O24: 14.24059356 | P24: 45.27840309 | Q24: 40.48100335 | R24: 14.24059356 | S24: 2.5 | T24: 14.4 | U24: 109 | V24: 2 | W24: 62931 | X24: 3.1 | Y24: Construction | Z24: 6203 | AA24: Data not yet available | AB24: Data not yet available | AC24: Data not yet available | AD24: Data not yet available | AE24: -3.67 | AF24: 2.45 | AG24: 33.38 | AH24: 66.61845225 | AI24: 3.07 | AJ24: 3.66 | AK24: 5.191166612 | AL24: 14.77 | AM24: 103588 | AN24: 99939 | AO24: 42273 | AP24: 1257.152204 | AQ24: 33626 | AR24: 547 | AS24: 2707.920792 | AT24: 202 | AU24: 8156 | AV24: 4531.111111 | AW24: 1800 | AX24: N/A | AY24: N/A | AZ24: 0 | BA24: 338.123884 | BB24: 8.856242194 | BC24: 39587 | BD24: 36.09021871 | BE24: 3053 | BF24: 2.783323761 | BG24: 13444 | BH24: 12.25647057 | BI24: 9277 | BJ24: 8.457548159 | BK24: 21060 | BL24: 19.19973744 | BM24: 15091 | BN24: 13.75798849 | BO24: 8177 | BP24: 7.45471287 | BQ24: 454.6676161 | BR24: 154.4080489 | BS24: 0 | BT24: 106.5489043 | BU24: 209.1239032 | BV24: 35.06454725 | BW24: 93.91510084 | BX24: 32.7560068 | BY24: 173.3242982 | BZ24: Data not yet available | CA24: 366.4723726 | CB24: Data not yet available | CC24: Data not yet available | CD24: Data not yet available | CE24: Data not yet available | CF24: Data not yet available | CG24: Data not yet available | CH24: Data not yet available | CI24: 36504 | CJ24: 57.50054789 | CK24: 695.61 | CL24: 7.989272752 | CM24: 462.692 | CN24: 2 | CO24: 19 | CP24: 2 | CQ24: 2.621696275 | CR24: 5227 | CS24: 5695.41 | CT24: 91.78 | CU24: 14.42 | CV24: 1.12 | CW24: Y | CX24: 67000 | CY24: 179000 | CZ24: 0 | DA24: 0 | DB24: 0 | DC24: 353625 | DD24: 0 | DE24: 0 | DF24: 0 | DG24: 9 | DH24: 9674.222222 | DI24: 56 | DJ24: 44.44444444 | DK24: 0 | DL24: 0 | DM24: 11 | DN24: 78 | DO24: 11.11111111 | DP24: 425 | DQ24: 204.8658824
A25: Campbelltown | B25: 7 | C25: Metropolitan Fringe | E25: 311.9 | F25: 164508 | G25: 7.794930936 | H25: 527.4382815 | I25: 81308 | J25: 49.42495198 | K25: 83200 | L25: 50.57504802 | M25: 28.45515112 | N25: 54.42774819 | O25: 17.11710069 | P25: 43.49940428 | Q25: 39.38349503 | R25: 17.11710069 | S25: 3.8 | T25: 30.4 | U25: 55 | V25: 5.4 | W25: 53404 | X25: 3 | Y25: Health Care & Social Assistance | Z25: 8869 | AA25: Data not yet available | AB25: Data not yet available | AC25: Data not yet available | AD25: Data not yet available | AE25: 8.35 | AF25: 4.82 | AG25: 56.19 | AH25: 43.81267202 | AI25: 3.36 | AJ25: 8.33 | AK25: 2.730281302 | AL25: 19.62 | AM25: 146215 | AN25: 159544 | AO25: 64882 | AP25: 1146.244082 | AQ25: 56604 | AR25: 519 | AS25: 7863.636364 | AT25: 66 | AU25: 18441 | AV25: 6441.145651 | AW25: 2863 | AX25: 26 | AY25: 13000 | AZ25: 2 | BA25: 242.3462474 | BB25: 14.13681012 | BC25: 27844 | BD25: 18.86104845 | BE25: 7210 | BF25: 4.883930446 | BG25: 26013 | BH25: 17.62076043 | BI25: 22951 | BJ25: 15.5466141 | BK25: 36274 | BL25: 24.57138599 | BM25: 18028 | BN25: 12.21185826 | BO25: 9307 | BP25: 6.304402311 | BQ25: 169.2562064 | BR25: 158.1260486 | BS25: 0 | BT25: 139.512972 | BU25: 186.5137258 | BV25: 43.8276558 | BW25: 56.57475624 | BX25: 33.98618912 | BY25: 109.5873757 | BZ25: Data not yet available | CA25: 341.7072998 | CB25: Data not yet available | CC25: Data not yet available | CD25: Data not yet available | CE25: Data not yet available | CF25: Data not yet available | CG25: Data not yet available | CH25: Data not yet available | CI25: 66024 | CJ25: 61.96988974 | CK25: 762.195 | CL25: 4.633178934 | CM25: 1100 | CN25: 3 | CO25: 19 | CP25: 4 | CQ25: 2.704802372 | CR25: 17490 | CS25: 17289 | CT25: 101.16 | CU25: 81.19 | CV25: 1.6 | CW25: Y | CX25: 235000 | CY25: 410000 | CZ25: 4536 | DA25: 32072 | DB25: 3420 | DC25: 365313 | DD25: 0 | DE25: 0 | DF25: 0 | DG25: 15 | DH25: 10967.2 | DI25: 20 | DJ25: 80 | DK25: 0 | DL25: 40 | DM25: 6 | DN25: 47 | DO25: 47 | DP25: 612 | DQ25: 268.8039216
A26: Canada Bay | B26: 3 | C26: Metropolitan | E26: 19.9 | F26: 94150 | G26: 14.53631951 | H26: 4731.155779 | I26: 45713 | J26: 48.55337228 | K26: 48437 | L26: 51.44662772 | M26: 20.62984599 | N26: 60.04142326 | O26: 19.32873075 | P26: 37.93945831 | Q26: 42.73181094 | R26: 19.32873075 | S26: 0.5 | T26: 40.9 | U26: 119 | V26: 2.9 | W26: 75285 | X26: 2.6 | Y26: Professional Scientific & Technical Services | Z26: 10633 | AA26: Data not yet available | AB26: Data not yet available | AC26: Data not yet available | AD26: Data not yet available | AE26: 0.37 | AF26: 3.95 | AG26: 82.93 | AH26: 17.06592841 | AI26: 2.18 | AJ26: 21.12 | AK26: 0.7619223532 | AL26: 12.27 | AM26: 86303.53 | AN26: 86623 | AO26: 31575 | AP26: 896.5076661 | AQ26: 35220 | AR26: N/A | AS26: N/A | AT26: N/A | AU26: 5174 | AV26: 2850.688705 | AW26: 1815 | AX26: N/A | AY26: N/A | AZ26: 0 | BA26: 757.7283829 | BB26: 11.03918228 | BC26: 4046 | BD26: 4.672001478 | BE26: 5517 | BF26: 6.370596182 | BG26: 19053 | BH26: 22.00090068 | BI26: 14886 | BJ26: 17.18917795 | BK26: 28433 | BL26: 32.83218439 | BM26: 10046 | BN26: 11.60032794 | BO26: 4620 | BP26: 5.334811376 | BQ26: 42.9739777 | BR26: 202.3685608 | BS26: 0 | BT26: 158.1093999 | BU26: 238.2687201 | BV26: 58.59798194 | BW26: 49.07063197 | BX26: 63.72809347 | BY26: 106.7020712 | BZ26: Data not yet available | CA26: 384.1283362 | CB26: Data not yet available | CC26: Data not yet available | CD26: Data not yet available | CE26: Data not yet available | CF26: Data not yet available | CG26: Data not yet available | CH26: Data not yet available | CI26: 18909 | CJ26: 55.73536411 | CK26: 207 | CL26: 2.198619225 | CM26: 128.68 | CN26: 1 | CO26: 12 | CP26: 3 | CQ26: 5.299399092 | CR26: 14232 | CS26: 15316 | CT26: 92.92 | CU26: 61.83 | CV26: 1.82 | CW26: Y | CX26: 26000 | CY26: 206000 | CZ26: 0 | DA26: 12000 | DB26: 7000 | DC26: 340000 | DD26: 0 | DE26: 0 | DF26: 0 | DG26: 9 | DH26: 10461.11111 | DI26: 44 | DJ26: 56 | DK26: 0 | DL26: 0 | DM26: 11 | DN26: 56 | DO26: 33 | DP26: 331 | DQ26: 284.4410876
A27: Canterbury-Bankstown | B27: 3 | C27: Metropolitan | E27: 110.3 | F27: 368045 | G27: 8.2081105 | H27: 3336.763373 | I27: 184629 | J27: 50.16478963 | K27: 183416 | L27: 49.83521037 | M27: 26.55762203 | N27: 54.86503009 | O27: 18.57734788 | P27: 42.19266666 | Q27: 39.22998546 | R27: 18.57734788 | S27: 0.7 | T27: 60.2 | U27: 72 | V27: 7.5 | W27: 51942 | X27: 3 | Y27: Health Care & Social Assistance | Z27: 32437 | AA27: Data not yet available | AB27: Data not yet available | AC27: Data not yet available | AD27: Data not yet available | AE27: 2.31 | AF27: 3.07 | AG27: 84.1 | AH27: 15.90101042 | AI27: 4.81 | AJ27: 49 | AK27: 0.3143016106 | AL27: 14.28 | AM27: 286563 | AN27: 293408 | AO27: 115601 | AP27: 1037.319861 | AQ27: 111442 | AR27: N/A | AS27: N/A | AT27: N/A | AU27: 43893 | AV27: 5770.080189 | AW27: 7607 | AX27: N/A | AY27: N/A | AZ27: 0 | BA27: 440.6262004 | BB27: 19.83812207 | BC27: 72456 | BD27: 24.49749636 | BE27: 14812 | BF27: 5.007962295 | BG27: 70813 | BH27: 23.94199527 | BI27: 35878 | BJ27: 12.13041259 | BK27: 58601 | BL27: 19.81309738 | BM27: 33572 | BN27: 11.35075008 | BO27: 9637 | BP27: 3.258286027 | BQ27: 196.8672309 | BR27: 192.4031029 | BS27: 0 | BT27: 97.48264479 | BU27: 123.8734394 | BV27: 40.24507873 | BW27: 26.18429812 | BX27: 35.34893831 | BY27: 91.2171066 | BZ27: Data not yet available | CA27: 490.658818 | CB27: Data not yet available | CC27: Data not yet available | CD27: Data not yet available | CE27: Data not yet available | CF27: Data not yet available | CG27: Data not yet available | CH27: Data not yet available | CI27: 66481 | CJ27: 57.77440171 | CK27: 942.131 | CL27: 2.559825565 | CM27: 1562.61 | CN27: 6 | CO27: 46 | CP27: 10 | CQ27: 2.630487131 | CR27: 31073 | CS27: 34322 | CT27: 90.53 | CU27: 36.39 | CV27: 1.1 | CW27: Y | CX27: 206000 | CY27: 410000 | CZ27: 0 | DA27: 53322 | DB27: 7345 | DC27: 472454 | DD27: 1 | DE27: 1694 | DF27: 0 | DG27: 15 | DH27: 24536.33333 | DI27: 34 | DJ27: 66 | DK27: 0 | DL27: 53 | DM27: 7 | DN27: 80 | DO27: 13 | DP27: 1170 | DQ27: 314.5683761
A28: Carrathool | B28: 9 | C28: Rural | D28: Riverina and Murray | E28: 18932.5 | F28: 2796 | G28: 3.555555556 | H28: 0.1476825565 | I28: 1433 | J28: 51.25178827 | K28: 1363 | L28: 48.74821173 | M28: 25.35765379 | N28: 54.47067239 | O28: 20.17167382 | P28: 38.98426323 | Q28: 40.84406295 | R28: 20.17167382 | S28: 8 | T28: 5.9 | U28: 73 | V28: 4 | W28: 40443 | X28: 2.4 | Y28: Agriculture, Forestry and Fishing | Z28: 406 | AA28: Data not yet available | AB28: Data not yet available | AC28: Data not yet available | AD28: Data not yet available | AE28: 6.97 | AF28: 6.64 | AG28: 44.34 | AH28: 55.65806061 | AI28: 3.72 | AJ28: 23.69 | AK28: 1.662779649 | AL28: 12.79 | AM28: 21540 | AN28: 23154 | AO28: 301 | AP28: 372.5247525 | AQ28: 808 | AR28: 2749 | AS28: 3014.254386 | AT28: 912 | AU28: 213 | AV28: 1109.375 | AW28: 192 | AX28: N/A | AY28: N/A | AZ28: 0 | BA28: 204.8759982 | BB28: 22.02970297 | BC28: 3280 | BD28: 15.22748375 | BE28: 2901 | BF28: 13.46796657 | BG28: 546 | BH28: 2.534818942 | BI28: 1126 | BJ28: 5.227483751 | BK28: 1469 | BL28: 6.819870009 | BM28: 10710 | BN28: 49.72144847 | BO28: 1508 | BP28: 7.000928505 | BQ28: 1173.104435 | BR28: 195.27897 | BS28: 853.3619456 | BT28: 402.7181688 | BU28: 416.6666667 | BV28: 184.1917024 | BW28: 539.341917 | BX28: 108.7267525 | BY28: 3830.472103 | BZ28: Data not yet available | CA28: 336.6336634 | CB28: Data not yet available | CC28: Data not yet available | CD28: Data not yet available | CE28: Data not yet available | CF28: Data not yet available | CG28: Data not yet available | CH28: Data not yet available | CI28: 2125 | CJ28: 42.30588235 | CK28: 2610.55 | CL28: 933.6731044 | CM28: 23.65 | CN28: 2 | CO28: 6 | CP28: 1 | CQ28: 6.573262032 | CR28: 4666 | CS28: 3242 | CT28: 143.92 | CU28: 87.19 | CV28: 0.6 | CW28: Y | CX28: 35000 | CY28: 135000 | CZ28: 0 | DA28: 6000 | DB28: 0 | DC28: 230452 | DD28: 1 | DE28: 300 | DF28: 0 | DG28: 10 | DH28: 279.6 | DI28: 10 | DJ28: 90 | DK28: 0 | DL28: 0 | DM28: 0 | DN28: 50 | DO28: 50 | DP28: 95 | DQ28: 29.43157895
A29: Central Coast | B29: 7 | C29: Metropolitan Fringe | E29: 1681.1 | F29: 339196 | G29: 4.273351881 | H29: 201.7702695 | I29: 165783 | J29: 48.87528155 | K29: 173413 | L29: 51.12471845 | M29: 24.92865482 | N29: 48.72345193 | O29: 26.34789325 | P29: 36.35921414 | Q29: 37.2928926 | R29: 26.34789325 | S29: 3.8 | T29: 5.9 | U29: 86 | V29: 5.8 | W29: 54428 | X29: 2.5 | Y29: Health Care & Social Assistance | Z29: 22604 | AA29: Data not yet available | AB29: Data not yet available | AC29: Data not yet available | AD29: Data not yet available | AE29: 2.91 | AF29: 1.55 | AG29: 79.49 | AH29: 20.50531923 | AI29: 7.84 | AJ29: 3.95 | AK29: 7.614930008 | AL29: 12.03 | AM29: 545928 | AN29: 562277 | AO29: 135337 | AP29: 1028.388842 | AQ29: 131601 | AR29: 756 | AS29: 1750 | AT29: 432 | AU29: 22113 | AV29: 3515.580286 | AW29: 6290 | AX29: 911 | AY29: 182200 | AZ29: 5 | BA29: 264.2600811 | BB29: 22.18068252 | BC29: 40155 | BD29: 6.864360711 | BE29: 191997 | BF29: 32.8212343 | BG29: 128475 | BH29: 21.9623644 | BI29: 43784 | BJ29: 7.484725921 | BK29: 73215 | BL29: 12.5158553 | BM29: 76751 | BN29: 13.12032247 | BO29: 30601 | BP29: 5.231136897 | BQ29: 118.3828819 | BR29: 378.7633109 | BS29: 503.6674961 | BT29: 129.0817109 | BU29: 178.1683746 | BV29: 62.36807038 | BW29: 90.21627614 | BX29: 37.68027925 | BY29: 226.2733051 | BZ29: Data not yet available | CA29: 488.4537352 | CB29: Data not yet available | CC29: Data not yet available | CD29: Data not yet available | CE29: Data not yet available | CF29: Data not yet available | CG29: Data not yet available | CH29: Data not yet available | CI29: 167079 | CJ29: 63.25151575 | CK29: 2198.5 | CL29: 6.48150332 | CM29: 3625 | CN29: 8 | CO29: 142 | CP29: 12 | CQ29: 4.17778337 | CR29: 75354.589 | CS29: 82412.425 | CT29: 91.44 | CU29: 104.77 | CV29: 2.43 | CW29: Y | CX29: 37000 | CY29: 389000 | CZ29: 7000 | DA29: 11000 | DB29: 0 | DC29: 465000 | DD29: 3 | DE29: 8000 | DF29: 2 | DG29: 15 | DH29: 22613.06667 | DI29: 40 | DJ29: 60 | DK29: 0 | DL29: 0 | DM29: 13 | DN29: 60 | DO29: 27 | DP29: 1861 | DQ29: 182.2654487
A30: Central Darling | B30: 9 | C30: Rural | D30: Far South West | E30: 53492.2 | F30: 1846 | G30: -11.42034549 | H30: 0.03450970422 | I30: 993 | J30: 53.79198267 | K30: 853 | L30: 46.20801733 | M30: 26.81473456 | N30: 52.32936078 | O30: 20.85590466 | P30: 40.73672806 | Q30: 38.40736728 | R30: 20.85590466 | S30: 39.5 | T30: 2.7 | U30: 2 | V30: 4.6 | W30: 43744 | X30: 2.4 | Y30: Agriculture, Forestry and Fishing | Z30: 155 | AA30: Data not yet available | AB30: Data not yet available | AC30: Data not yet available | AD30: Data not yet available | AE30: 0.03 | AF30: 0.65 | AG30: 52.03 | AH30: 47.97422149 | AI30: 36.34 | AJ30: 20.8 | AK30: 0.7403419034 | AL30: 2.46 | AM30: 22280 | AN30: 22287 | AO30: 322 | AP30: 293.2604736 | AQ30: 1098 | AR30: 429 | AS30: 1137.931034 | AT30: 377 | AU30: 44 | AV30: 316.5467626 | AW30: 139 | AX30: N/A | AY30: N/A | AZ30: 0 | BA30: 274.0694113 | BB30: 11.20218579 | BC30: 5923 | BD30: 26.58438061 | BE30: 2344 | BF30: 10.52064632 | BG30: 558 | BH30: 2.50448833 | BI30: 408 | BJ30: 1.831238779 | BK30: 677 | BL30: 3.038599641 | BM30: 11959 | BN30: 53.67594255 | BO30: 411 | BP30: 1.84470377 | BQ30: 3208.559047 | BR30: 302.2751896 | BS30: 1076.923077 | BT30: 221.0184182 | BU30: 366.7388949 | BV30: 192.8494041 | BW30: 222.6435536 | BX30: 0 | BY30: 6478.331528 | BZ30: Data not yet available | CA30: 459.0163934 | CB30: Data not yet available | CC30: Data not yet available | CD30: Data not yet available | CE30: Data not yet available | CF30: Data not yet available | CG30: Data not yet available | CH30: Data not yet available | CI30: 1251 | CJ30: 31.0951239 | CK30: 2395.82 | CL30: 1297.843987 | CM30: 1 | CN30: 4 | CO30: 7 | CP30: 0 | CQ30: 0 | CR30: 5706 | CS30: 6931 | CT30: 82.33 | CU30: 0.23 | CV30: 19.11 | CW30: Y | CX30: 0 | CY30: 0 | CZ30: 0 | DA30: 0 | DB30: 0 | DC30: 200000 | DD30: 0 | DE30: 0 | DF30: 0 | DG30: 0 | DH30: N/A | DI30: N/A | DJ30: N/A | DK30: N/A | DL30: N/A | DM30: N/A | DN30: N/A | DO30: N/A | DP30: 42 | DQ30: 43.95238095
A31: Cessnock | B31: 4 | C31: Regional Town/City | D31: Hunter | E31: 1965.2 | F31: 57521 | G31: 7.941601456 | H31: 29.26979442 | I31: 28684 | J31: 49.86700509 | K31: 28837 | L31: 50.13299491 | M31: 27.22136263 | N31: 50.92748735 | O31: 21.85115001 | P31: 40.25834043 | Q31: 37.89050955 | R31: 21.85115001 | S31: 7.2 | T31: 1.9 | U31: 12 | V31: 7.6 | W31: 55219 | X31: 2.6 | Y31: Health Care & Social Assistance | Z31: 2750 | AA31: Data not yet available | AB31: Data not yet available | AC31: Data not yet available | AD31: Data not yet available | AE31: -3.14 | AF31: 2.66 | AG31: 52.16 | AH31: 47.84406702 | AI31: 1.69 | AJ31: 4.78 | AK31: 2.294876645 | AL31: 6.35 | AM31: 79057 | AN31: 76649 | AO31: 25833 | AP31: 1101.150895 | AQ31: 23460 | AR31: 2870 | AS31: 3033.826638 | AT31: 946 | AU31: 4794 | AV31: 3191.744341 | AW31: 1502 | AX31: 1027 | AY31: 205400 | AZ31: 5 | BA31: 134.0111055 | BB31: 19.7144075 | BC31: 15478 | BD31: 18.87031686 | BE31: 3295 | BF31: 4.017165917 | BG31: 21004 | BH31: 25.60745157 | BI31: 6518 | BJ31: 7.946551577 | BK31: 10826 | BL31: 13.19873694 | BM31: 14691 | BN31: 17.91082989 | BO31: 10211 | BP31: 12.44894725 | BQ31: 269.0843344 | BR31: 365.1535961 | BS31: 0 | BT31: 113.3151371 | BU31: 152.0662019 | BV31: 57.28342692 | BW31: 177.5177761 | BX31: 36.14332157 | BY31: 255.4023748 | BZ31: Data not yet available | CA31: 481.202046 | CB31: Data not yet available | CC31: Data not yet available | CD31: Data not yet available | CE31: Data not yet available | CF31: Data not yet available | CG31: Data not yet available | CH31: Data not yet available | CI31: 41779 | CJ31: 63.48404701 | CK31: 1051.12 | CL31: 18.27367396 | CM31: 651.42 | CN31: 3 | CO31: 22 | CP31: 2 | CQ31: 3.247414258 | CR31: 11672 | CS31: 10818 | CT31: 107.89 | CU31: 35.46 | CV31: 4.26 | CW31: Y | CX31: 91000 | CY31: 293000 | CZ31: 0 | DA31: 45000 | DB31: 4000 | DC31: 308449 | DD31: 1 | DE31: 26508 | DF31: 0 | DG31: 13 | DH31: 4424.692308 | DI31: 23.07692308 | DJ31: 76.92307692 | DK31: 0 | DL31: 0 | DM31: 0 | DN31: 69 | DO31: 31 | DP31: 299 | DQ31: 192.3779264
A32: Clarence Valley | B32: 4 | C32: Regional Town/City | E32: 10428.7 | F32: 51570 | G32: 0.4362559888 | H32: 4.945007527 | I32: 25772 | J32: 49.97479155 | K32: 25798 | L32: 50.02520845 | M32: 22.88345938 | N32: 43.87240644 | O32: 33.24413419 | P32: 31.5163855 | Q32: 35.23948032 | R32: 33.24413419 | S32: 6.3 | T32: 2.1 | U32: 16 | V32: 10.3 | W32: 45451 | X32: 2.3 | Y32: Health Care & Social Assistance | Z32: 3847 | AA32: Data not yet available | AB32: Data not yet available | AC32: Data not yet available | AD32: Data not yet available | AE32: -5.97 | AF32: 4.29 | AG32: 67.32 | AH32: 32.68115083 | AI32: 6.03 | AJ32: 2.89 | AK32: 11.47979318 | AL32: 13.22 | AM32: 131583 | AN32: 124159 | AO32: 20755 | AP32: 917.2183382 | AQ32: 22628.2 | AR32: 2886 | AS32: 1295.332136 | AT32: 2228 | AU32: 3518 | AV32: 2367.748015 | AW32: 1485.8 | AX32: N/A | AY32: N/A | AZ32: 0 | BA32: 167.3028003 | BB32: 26.5332638 | BC32: 23212 | BD32: 17.10676621 | BE32: 33904 | BF32: 24.98655013 | BG32: 14899 | BH32: 10.98025632 | BI32: 10749 | BJ32: 7.921791744 | BK32: 10459 | BL32: 7.708067714 | BM32: 32623 | BN32: 24.04247949 | BO32: 9843 | BP32: 7.254088393 | BQ32: 450.1066512 | BR32: 288.90828 | BS32: 604.8283886 | BT32: 208.4351367 | BU32: 170.0019391 | BV32: 52.60810549 | BW32: 190.866783 | BX32: 32.80977312 | BY32: 632.5964708 | BZ32: Data not yet available | CA32: 266.5700321 | CB32: Data not yet available | CC32: Data not yet available | CD32: Data not yet available | CE32: Data not yet available | CF32: Data not yet available | CG32: Data not yet available | CH32: Data not yet available | CI32: 31631 | CJ32: 50.88362682 | CK32: 2446.33 | CL32: 47.43707582 | CM32: 646 | CN32: 7 | CO32: 24 | CP32: 4 | CQ32: 4.497953137 | CR32: 15706 | CS32: 21084 | CT32: 74.49 | CU32: 21.29 | CV32: 3.87 | CW32: Y | CX32: 24000 | CY32: 195000 | CZ32: 0 | DA32: 4000 | DB32: 5000 | DC32: 272366 | DD32: 4 | DE32: 200 | DF32: 0 | DG32: 9 | DH32: 5730 | DI32: 23 | DJ32: 77 | DK32: 0 | DL32: 0 | DM32: 0 | DN32: 56 | DO32: 44 | DP32: 512 | DQ32: 100.7226562
A33: Cobar | B33: 10 | C33: Large Rural | D33: Far North West | E33: 45579.3 | F33: 4729 | G33: -3.489795918 | H33: 0.1037532389 | I33: 2433 | J33: 51.4485092 | K33: 2296 | L33: 48.5514908 | M33: 27.34193276 | N33: 53.24592937 | O33: 19.41213787 | P33: 40.51596532 | Q33: 40.07189681 | R33: 19.41213787 | S33: 13.7 | T33: 4.1 | U33: 58 | V33: 1.4 | W33: 69031 | X33: 2.4 | Y33: Mining | Z33: 462 | AA33: Data not yet available | AB33: Data not yet available | AC33: Data not yet available | AD33: Data not yet available | AE33: 2.66 | AF33: 6.07 | AG33: 49.65 | AH33: 50.35462797 | AI33: 5.14 | AJ33: 5.52 | AK33: 3.914790732 | AL33: 8.48 | AM33: 31751.802 | AN33: 32619.879 | AO33: 1093 | AP33: 533.9521251 | AQ33: 2047 | AR33: 677 | AS33: 1635.2657 | AT33: 414 | AU33: 394 | AV33: 1028.720627 | AW33: 383 | AX33: 3107 | AY33: 115074.0741 | AZ33: 27 | BA33: 49.75329349 | BB33: 13.33659013 | BC33: 2061 | BD33: 6.490929705 | BE33: 5179 | BF33: 16.31078357 | BG33: 765 | BH33: 2.409297052 | BI33: 5791 | BJ33: 18.23822121 | BK33: 2898 | BL33: 9.126984127 | BM33: 7361 | BN33: 23.18279164 | BO33: 7697 | BP33: 24.24099269 | BQ33: 435.8215267 | BR33: 161.7678156 | BS33: 902.9393106 | BT33: 1224.571791 | BU33: 523.1550011 | BV33: 192.218228 | BW33: 1627.616832 | BX33: 89.65954747 | BY33: 1556.56587 | BZ33: Data not yet available | CA33: 283.8299951 | CB33: Data not yet available | CC33: Data not yet available | CD33: Data not yet available | CE33: Data not yet available | CF33: Data not yet available | CG33: Data not yet available | CH33: Data not yet available | CI33: 4181 | CJ33: 41.13848362 | CK33: 2319.98 | CL33: 490.5857475 | CM33: 121 | CN33: 1 | CO33: 4 | CP33: 1 | CQ33: 5.407596011 | CR33: 4788 | CS33: 4430 | CT33: 108.08 | CU33: 28.92 | CV33: 1.79 | CW33: Y | CX33: 18000 | CY33: 164000 | CZ33: 0 | DA33: 15996 | DB33: 0 | DC33: 228517 | DD33: 1 | DE33: 27000 | DF33: 2 | DG33: 12 | DH33: 394.0833333 | DI33: 33.33333333 | DJ33: 66.66666667 | DK33: 8.333333333 | DL33: 0 | DM33: 8 | DN33: 42 | DO33: 50 | DP33: 142 | DQ33: 33.3028169
A34: Coffs Harbour | B34: 5 | C34: Regional Town/City | E34: 1173.7 | F34: 75503 | G34: 6.357233413 | H34: 64.3290449 | I34: 36707 | J34: 48.61661126 | K34: 38796 | L34: 51.38338874 | M34: 24.74868548 | N34: 47.51069494 | O34: 27.74061958 | P34: 35.64096791 | Q34: 36.61841251 | R34: 27.74061958 | S34: 5 | T34: 7.5 | U34: 61 | V34: 8.1 | W34: 46577 | X34: 2.4 | Y34: Health Care & Social Assistance | Z34: 5750 | AA34: Data not yet available | AB34: Data not yet available | AC34: Data not yet available | AD34: Data not yet available | AE34: 3.23 | AF34: 9.64 | AG34: 73.2 | AH34: 26.78623345 | AI34: 6.58 | AJ34: 2.33 | AK34: 14.69204888 | AL34: 10.2 | AM34: 164827 | AN34: 170406 | AO34: 35375 | AP34: 1167.222094 | AQ34: 30307 | AR34: 888 | AS34: 2119.331742 | AT34: 419 | AU34: 8191 | AV34: 4512.947658 | AW34: 1815 | AX34: N/A | AY34: N/A | AZ34: 0 | BA34: 163.1559736 | BB34: 20.20985251 | BC34: 39955 | BD34: 23.39436381 | BE34: 46800 | BF34: 27.40223316 | BG34: 25054 | BH34: 14.66956303 | BI34: 5958 | BJ34: 3.488515068 | BK34: 12514 | BL34: 7.327169783 | BM34: 21888 | BN34: 12.81581366 | BO34: 18620 | BP34: 10.90234149 | BQ34: 529.1842708 | BR34: 331.8278744 | BS34: 569.8978849 | BT34: 78.91077176 | BU34: 137.8223382 | BV34: 49.9450353 | BW34: 246.6127174 | BX34: 27.91942042 | BY34: 289.8957657 | BZ34: Data not yet available | CA34: 593.5922394 | CB34: Data not yet available | CC34: Data not yet available | CD34: Data not yet available | CE34: Data not yet available | CF34: Data not yet available | CG34: Data not yet available | CH34: Data not yet available | CI34: 35431 | CJ34: 69.66216026 | CK34: 880.093 | CL34: 11.65639776 | CM34: 1618 | CN34: 4 | CO34: 10 | CP34: 3 | CQ34: 4.576055853 | CR34: 15476 | CS34: 15432 | CT34: 100.29 | CU34: 19.83 | CV34: 0 | CW34: Y | CX34: 70000 | CY34: 212000 | CZ34: 0 | DA34: 28158 | DB34: 12345 | DC34: 340154 | DD34: 2 | DE34: 14016 | DF34: 0 | DG34: 9 | DH34: 8389.222222 | DI34: 50 | DJ34: 50 | DK34: 0 | DL34: 0 | DM34: 0 | DN34: 57 | DO34: 43 | DP34: 564 | DQ34: 133.8705674
A35: Coolamon | B35: 9 | C35: Rural | D35: Riverina | E35: 2430.9 | F35: 4390 | G35: 2.354861273 | H35: 1.805915505 | I35: 2183 | J35: 49.72665148 | K35: 2207 | L35: 50.27334852 | M35: 27.06150342 | N35: 44.39635535 | O35: 28.54214123 | P35: 36.81093394 | Q35: 34.64692483 | R35: 28.54214123 | S35: 3.2 | T35: 1.2 | U35: 71 | V35: 3.5 | W35: 48069 | X35: 2.5 | Y35: Agriculture, Forestry and Fishing | Z35: 279 | AA35: Data not yet available | AB35: Data not yet available | AC35: Data not yet available | AD35: Data not yet available | AE35: 9.49 | AF35: 9.74 | AG35: 47.89 | AH35: 52.11045761 | AI35: 5.5 | AJ35: 547.62 | AK35: 0.0134562336 | AL35: 21.44 | AM35: 13453 | AN35: 14863 | AO35: 599 | AP35: 335.3863382 | AQ35: 1786 | AR35: 1585 | AS35: 1849.474912 | AT35: 857 | AU35: 90 | AV35: 386.2660944 | AW35: 233 | AX35: N/A | AY35: N/A | AZ35: 0 | BA35: 249.8341865 | BB35: 21.94848824 | BC35: 603 | BD35: 4.482271612 | BE35: 1439 | BF35: 10.69649892 | BG35: 822 | BH35: 6.110161302 | BI35: 1944 | BJ35: 14.45030848 | BK35: 1241 | BL35: 9.224708244 | BM35: 4085 | BN35: 30.36497436 | BO35: 3319 | BP35: 24.67107708 | BQ35: 137.357631 | BR35: 187.2437358 | BS35: 183.5990888 | BT35: 442.8246014 | BU35: 235.9908884 | BV35: 144.191344 | BW35: 756.0364465 | BX35: 46.69703872 | BY35: 930.523918 | BZ35: Data not yet available | CA35: 260.9182531 | CB35: Data not yet available | CC35: Data not yet available | CD35: Data not yet available | CE35: Data not yet available | CF35: Data not yet available | CG35: Data not yet available | CH35: Data not yet available | CI35: 3691 | CJ35: 45.38065565 | CK35: 1338.67 | CL35: 304.9362187 | CM35: 13 | CN35: 3 | CO35: 7 | CP35: 1 | CQ35: 5.434772727 | CR35: 3410 | CS35: 3108 | CT35: 109.72 | CU35: 146.36 | CV35: 0.4 | CW35: Y | CX35: 10000 | CY35: 92000 | CZ35: 0 | DA35: 3769 | DB35: 0 | DC35: 209650 | DD35: 0 | DE35: 0 | DF35: 0 | DG35: 9 | DH35: 487.7777778 | DI35: 22 | DJ35: 78 | DK35: 0 | DL35: 0 | DM35: 0 | DN35: 77.77777778 | DO35: 22.22222222 | DP35: 74 | DQ35: 59.32432432
A36: Coonamble | B36: 9 | C36: Rural | E36: 9916.1 | F36: 4031 | G36: -4.817001181 | H36: 0.4065106241 | I36: 2027 | J36: 50.28528901 | K36: 2004 | L36: 49.71471099 | M36: 27.01562888 | N36: 47.45720665 | O36: 25.52716448 | P36: 38.32795832 | Q36: 36.1448772 | R36: 25.52716448 | S36: 4.6 | T36: 1.3 | U36: 5 | V36: 4.8 | W36: 41468 | X36: 2.4 | Y36: Agriculture, Forestry and Fishing | Z36: 632 | AA36: Data not yet available | AB36: Data not yet available | AC36: Data not yet available | AD36: Data not yet available | AE36: 8 | AF36: 5.13 | AG36: 61.58 | AH36: 38.42286358 | AI36: 5.25 | AJ36: 131.98 | AK36: 0.2287955548 | AL36: 18.39 | AM36: 22519 | AN36: 24476 | AO36: 603 | AP36: 415.2892562 | AQ36: 1452 | AR36: 3772 | AS36: 4233.445567 | AT36: 891 | AU36: 159 | AV36: 757.1428571 | AW36: 210 | AX36: N/A | AY36: N/A | AZ36: 0 | BA36: 225.9337419 | BB36: 20.17906336 | BC36: 5158 | BD36: 22.61487197 | BE36: 3246 | BF36: 14.23184847 | BG36: 1314 | BH36: 5.761136443 | BI36: 647 | BJ36: 2.836723957 | BK36: 1626 | BL36: 7.129077517 | BM36: 5654 | BN36: 24.78954753 | BO36: 5163 | BP36: 22.63679411 | BQ36: 1279.58323 | BR36: 325.9737038 | BS36: 599.1069214 | BT36: 160.5060779 | BU36: 343.8352766 | BV36: 206.1523195 | BW36: 1280.823617 | BX36: 59.53857604 | BY36: 1402.62962 | BZ36: Data not yet available | CA36: 316.8044077 | CB36: Data not yet available | CC36: Data not yet available | CD36: Data not yet available | CE36: Data not yet available | CF36: Data not yet available | CG36: Data not yet available | CH36: Data not yet available | CI36: 3958 | CJ36: 54.77513896 | CK36: 1657.04 | CL36: 411.0741751 | CM36: 30 | CN36: 3 | CO36: 3 | CP36: 1 | CQ36: 4.145956607 | CR36: 3936 | CS36: 2283 | CT36: 172.4 | CU36: 111.69 | CV36: 0.8 | CW36: Y | CX36: 22000 | CY36: 88000 | CZ36: 0 | DA36: 3596 | DB36: 0 | DC36: 271535 | DD36: 0 | DE36: 0 | DF36: 0 | DG36: 7 | DH36: 575.8571429 | DI36: 14 | DJ36: 86 | DK36: 28.57142857 | DL36: 14.28571429 | DM36: 0 | DN36: 57.14285714 | DO36: 42.85714286 | DP36: 84 | DQ36: 47.98809524
A37: Cootamundra-Gundagai Regional | B37: 11 | C37: Large Rural | D37: Riverina | E37: 3981.4 | F37: 11244 | G37: -1.221119213 | H37: 2.824132215 | I37: 5619 | J37: 49.9733191 | K37: 5625 | L37: 50.0266809 | M37: 24.34187122 | N37: 43.32977588 | O37: 32.3283529 | P37: 32.98648168 | Q37: 34.68516542 | R37: 32.3283529 | S37: 30.1 | T37: 2 | U37: 27 | V37: 7 | W37: 45568 | X37: 2.3 | Y37: Agriculture, Forestry and Fishing | Z37: 1156 | AA37: Data not yet available | AB37: Data not yet available | AC37: Data not yet available | AD37: Data not yet available | AE37: -29.61 | AF37: 5.4 | AG37: 65.28 | AH37: 34.72003752 | AI37: 7.68 | AJ37: -0.66 | AK37: 1.911927112 | AL37: 13.16 | AM37: 37557 | AN37: 28976 | AO37: 2526 | AP37: 545.6902139 | AQ37: 4629 | AR37: 3492 | AS37: 2704.879938 | AT37: 1291 | AU37: 987 | AV37: 1855.263158 | AW37: 532 | AX37: N/A | AY37: N/A | AZ37: 0 | BA37: 178.2694171 | BB37: 31.02181897 | BC37: 13598 | BD37: 34.99588223 | BE37: 5815 | BF37: 14.96551369 | BG37: 1692 | BH37: 4.354539839 | BI37: 1496 | BJ37: 3.850113239 | BK37: 2893 | BL37: 7.445439572 | BM37: 9846 | BN37: 25.33971587 | BO37: 3516 | BP37: 9.048795553 | BQ37: 1209.356101 | BR37: 150.4802561 | BS37: 430.5407328 | BT37: 133.0487371 | BU37: 194.414799 | BV37: 86.62397723 | BW37: 312.7001067 | BX37: 62.87797937 | BY37: 875.6670224 | BZ37: Data not yet available | CA37: 351.2637719 | CB37: Data not yet available | CC37: Data not yet available | CD37: Data not yet available | CE37: Data not yet available | CF37: Data not yet available | CG37: Data not yet available | CH37: Data not yet available | CI37: 8195 | CJ37: 40.89078707 | CK37: 0 | CL37: 0 | CM37: 143 | CN37: 2 | CO37: 8 | CP37: 2 | CQ37: 5.718366257 | CR37: 7436 | CS37: 0 | CT37: 0 | CU37: 93.87 | CV37: 6.95 | CW37: N | CX37: 49000 | CY37: 122000 | CZ37: 0 | DA37: 4000 | DB37: 0 | DC37: 275522 | DD37: 0 | DE37: 0 | DF37: 0 | DG37: 9 | DH37: 1249.333333 | DI37: 22 | DJ37: 78 | DK37: 0 | DL37: 0 | DM37: 0 | DN37: 44 | DO37: 56 | DP37: 188 | DQ37: 59.80851064
A38: Cowra | B38: 11 | C38: Large Rural | D38: Central NSW | E38: 2808.8 | F38: 12694 | G38: 0.570432578 | H38: 4.519367702 | I38: 6328 | J38: 49.85032299 | K38: 6366 | L38: 50.14967701 | M38: 23.83803372 | N38: 44.87947062 | O38: 31.28249567 | P38: 34.19725855 | Q38: 34.52024579 | R38: 31.28249567 | S38: 7.9 | T38: 2.6 | U38: 19 | V38: 8.1 | W38: 42984 | X38: 2.3 | Y38: Agriculture, Forestry and Fishing | Z38: 1328 | AA38: Data not yet available | AB38: Data not yet available | AC38: Data not yet available | AD38: Data not yet available | AE38: 8.14 | AF38: 4.07 | AG38: 77.73 | AH38: 22.27077156 | AI38: 9.01 | AJ38: 4.13 | AK38: 6.810917138 | AL38: 10.6 | AM38: 33622 | AN38: 36603 | AO38: 2195 | AP38: 422.1153846 | AQ38: 5200 | AR38: 2899 | AS38: 1769.84127 | AT38: 1638 | AU38: 1250 | AV38: 3109.452736 | AW38: 402 | AX38: 19 | AY38: 19000 | AZ38: 1 | BA38: 146.1477195 | BB38: 26.69230769 | BC38: 5302 | BD38: 15.76943668 | BE38: 8565 | BF38: 25.47439177 | BG38: 3111 | BH38: 9.252870145 | BI38: 2073 | BJ38: 6.165605853 | BK38: 3585 | BL38: 10.66266135 | BM38: 5090 | BN38: 15.13889715 | BO38: 5896 | BP38: 17.53613705 | BQ38: 417.677643 | BR38: 245.0764141 | BS38: 626.9103513 | BT38: 163.3054987 | BU38: 209.153931 | BV38: 47.81786671 | BW38: 464.4714038 | BX38: 73.26295888 | BY38: 400.9768395 | BZ38: Data not yet available | CA38: 378.0769231 | CB38: Data not yet available | CC38: Data not yet available | CD38: Data not yet available | CE38: Data not yet available | CF38: Data not yet available | CG38: Data not yet available | CH38: Data not yet available | CI38: 9181 | CJ38: 37.95882801 | CK38: 1267.86 | CL38: 99.87868284 | CM38: 48 | CN38: 1 | CO38: 1 | CP38: 1 | CQ38: 2.679845633 | CR38: 9314 | CS38: 8557 | CT38: 108.85 | CU38: 70.68 | CV38: 0.46 | CW38: Y | CX38: 50000 | CY38: 129000 | CZ38: 8000 | DA38: 12000 | DB38: 0 | DC38: 225657 | DD38: 0 | DE38: 0 | DF38: 0 | DG38: 9 | DH38: 1410.444444 | DI38: 22 | DJ38: 78 | DK38: 0 | DL38: 0 | DM38: 0 | DN38: 33.33333333 | DO38: 66.66666667 | DP38: 178 | DQ38: 71.31460674
A39: Cumberland | B39: 3 | C39: Metropolitan | E39: 71.6 | F39: 231443 | G39: n/a | H39: 3232.444134 | I39: 119952 | J39: 51.82787987 | K39: 111491 | L39: 48.17212013 | M39: 25.95714712 | N39: 58.72633867 | O39: 15.31651422 | P39: 44.50599068 | Q39: 40.17749511 | R39: 15.31651422 | S39: 0.6 | T39: 65.6 | U39: 69 | V39: 7.5 | W39: 49593 | X39: 3.2 | Y39: Health Care & Social Assistance | Z39: 20369 | AA39: Data not yet available | AB39: Data not yet available | AC39: Data not yet available | AD39: Data not yet available | AE39: -5.25 | AF39: 4.31 | AG39: 73.72 | AH39: 26.27112819 | AI39: 3.34 | AJ39: 11.2 | AK39: 1.076699184 | AL39: 7.33 | AM39: 185149 | AN39: 176005 | AO39: 59712 | AP39: 874.7344828 | AQ39: 68263 | AR39: N/A | AS39: N/A | AT39: N/A | AU39: 28525 | AV39: 6560.48758 | AW39: 4348 | AX39: N/A | AY39: N/A | AZ39: 0 | BA39: 384.1379235 | BB39: 16.05115509 | BC39: 48930 | BD39: 26.40725349 | BE39: 6479 | BF39: 3.496680879 | BG39: 43084 | BH39: 23.25219926 | BI39: 34020 | BJ39: 18.36040801 | BK39: 23618 | BL39: 12.74650548 | BM39: 18595 | BN39: 10.03561984 | BO39: 10564 | BP39: 5.701333045 | BQ39: 211.4127453 | BR39: 186.1538262 | BS39: 0 | BT39: 146.9908358 | BU39: 77.37110217 | BV39: 27.99393371 | BW39: 45.64406787 | BX39: 24.67562208 | BY39: 80.34375635 | BZ39: Data not yet available | CA39: 459.2238841 | CB39: Data not yet available | CC39: Data not yet available | CD39: Data not yet available | CE39: Data not yet available | CF39: Data not yet available | CG39: Data not yet available | CH39: Data not yet available | CI39: 35436 | CJ39: 57.03239643 | CK39: 622.53 | CL39: 2.689776748 | CM39: 643 | CN39: 5 | CO39: 23 | CP39: 8 | CQ39: 3.411197561 | CR39: 13927.478 | CS39: 12074 | CT39: 115.35 | CU39: 0 | CV39: 5.34 | CW39: Y | CX39: 65000 | CY39: 410000 | CZ39: 0 | DA39: 1000 | DB39: 0 | DC39: 391442 | DD39: 0 | DE39: 0 | DF39: 0 | DG39: 15 | DH39: 15429.53333 | DI39: 13 | DJ39: 87 | DK39: 0 | DL39: 53 | DM39: 7 | DN39: 80 | DO39: 13 | DP39: 872 | DQ39: 265.4162844
A40: Dubbo Regional | B40: 4 | C40: Regional Town/City | E40: 7534.5 | F40: 52090 | G40: 5.417602655 | H40: 6.91353109 | I40: 25691 | J40: 49.32040699 | K40: 26399 | L40: 50.67959301 | M40: 27.44480706 | N40: 50.88500672 | O40: 21.67018622 | P40: 41.14033404 | Q40: 37.18947975 | R40: 21.67018622 | S40: 15.5 | T40: 4.7 | U40: 60 | V40: 2.3 | W40: 51183 | X40: 2.5 | Y40: Health Care & Social Assistance | Z40: 5054 | AA40: Data not yet available | AB40: Data not yet available | AC40: Data not yet available | AD40: Data not yet available | AE40: 18.43 | AF40: 5.52 | AG40: 56.57 | AH40: 43.42710873 | AI40: 4.88 | AJ40: 6.17 | AK40: 5.950236809 | AL40: 25.79 | AM40: 122281 | AN40: 149910 | AO40: 17096 | AP40: 875.191973 | AQ40: 19534 | AR40: 5764 | AS40: 3362.893816 | AT40: 1714 | AU40: 7964 | AV40: 4530.147895 | AW40: 1758 | AX40: 2 | AY40: 1000 | AZ40: 2 | BA40: 121.5607372 | BB40: 16.04894031 | BC40: 1587 | BD40: 1.297830407 | BE40: 36300 | BF40: 29.68572387 | BG40: 11023 | BH40: 9.014483035 | BI40: 8908 | BJ40: 7.284860281 | BK40: 21527 | BL40: 17.60453382 | BM40: 20338 | BN40: 16.63218325 | BO40: 22598 | BP40: 18.48038534 | BQ40: 30.46650029 | BR40: 211.6145133 | BS40: 612.9007487 | BT40: 171.0117105 | BU40: 366.8074486 | BV40: 83.97005183 | BW40: 433.8260703 | BX40: 46.45805337 | BY40: 390.4396237 | BZ40: Data not yet available | CA40: 297.9932426 | CB40: Data not yet available | CC40: Data not yet available | CD40: Data not yet available | CE40: Data not yet available | CF40: Data not yet available | CG40: Data not yet available | CH40: Data not yet available | CI40: 33131 | CJ40: 51.06697655 | CK40: 2719.12 | CL40: 52.20042235 | CM40: 1051 | CN40: 3 | CO40: 7 | CP40: 2 | CQ40: 4.387393441 | CR40: 10606 | CS40: 10606 | CT40: 100 | CU40: 65.39 | CV40: 0.36 | CW40: Y | CX40: 147000 | CY40: 244000 | CZ40: 0 | DA40: 5000 | DB40: 7000 | DC40: 379470 | DD40: 12 | DE40: 30498 | DF40: 0 | DG40: 10 | DH40: 5209 | DI40: 30 | DJ40: 70 | DK40: 0 | DL40: 10 | DM40: 0 | DN40: 70 | DO40: 30 | DP40: 453 | DQ40: 114.9889625
A41: Dungog | B41: 10 | C41: Large Rural | D41: Hunter | E41: 2250 | F41: 9188 | G41: 5.657773689 | H41: 4.083555556 | I41: 4619 | J41: 50.27209404 | K41: 4569 | L41: 49.72790596 | M41: 25.45711798 | N41: 47.06138441 | O41: 27.48149761 | P41: 33.73966043 | Q41: 38.77884197 | R41: 27.48149761 | S41: 5.1 | T41: 0.8 | U41: 83 | V41: 4.2 | W41: 55100 | X41: 2.5 | Y41: Construction | Z41: 1036 | AA41: Data not yet available | AB41: Data not yet available | AC41: Data not yet available | AD41: Data not yet available | AE41: -21.84 | AF41: 8.39 | AG41: 42.28 | AH41: 57.71685643 | AI41: 6.13 | AJ41: 12.02 | AK41: 1.54875018 | AL41: 10.19 | AM41: 17150 | AN41: 14075.866 | AO41: 3033 | AP41: 841.7985012 | AQ41: 3603 | AR41: 2038 | AS41: 2172.707889 | AT41: 938 | AU41: 317 | AV41: 875.6906077 | AW41: 362 | AX41: N/A | AY41: N/A | AZ41: 0 | BA41: 246.4456468 | BB41: 21.12128782 | BC41: 2524 | BD41: 13.83089484 | BE41: 631 | BF41: 3.457723711 | BG41: 2072 | BH41: 11.3540468 | BI41: 1428 | BJ41: 7.825086306 | BK41: 1757 | BL41: 9.627924818 | BM41: 8878 | BN41: 48.64924105 | BO41: 959 | BP41: 5.25508247 | BQ41: 274.7061384 | BR41: 225.5115368 | BS41: 0 | BT41: 155.4201132 | BU41: 166.8480627 | BV41: 68.67653461 | BW41: 104.3752721 | BX41: 24.3796256 | BY41: 966.2603396 | BZ41: Data not yet available | CA41: 386.8998057 | CB41: Data not yet available | CC41: Data not yet available | CD41: Data not yet available | CE41: Data not yet available | CF41: Data not yet available | CG41: Data not yet available | CH41: Data not yet available | CI41: 6833 | CJ41: 62.52012293 | CK41: 726.93 | CL41: 79.11732695 | CM41: 71.41 | CN41: 2 | CO41: 7 | CP41: 1 | CQ41: 2.255272885 | CR41: 3573 | CS41: 4780 | CT41: 74.75 | CU41: 104.67 | CV41: 7.95 | CW41: Y | CX41: 10000 | CY41: 89000 | CZ41: 0 | DA41: 0 | DB41: 0 | DC41: 250000 | DD41: 0 | DE41: 0 | DF41: 0 | DG41: 9 | DH41: 1020.888889 | DI41: 33.33333333 | DJ41: 66.66666667 | DK41: 0 | DL41: 0 | DM41: 0 | DN41: 55.55555556 | DO41: 44.44444444 | DP41: 61 | DQ41: 150.6229508
A42: Edward River | B42: 10 | C42: Large Rural | D42: Riverina and Murray | E42: 8883.4 | F42: 8949 | G42: 0.5053908356 | H42: 1.00738456 | I42: 4437 | J42: 49.58095877 | K42: 4512 | L42: 50.41904123 | M42: 23.53335568 | N42: 46.9437926 | O42: 29.52285172 | P42: 34.58486982 | Q42: 35.89227847 | R42: 29.52285172 | S42: 4 | T42: 3.3 | U42: 43 | V42: 8.9 | W42: 45202 | X42: 2.3 | Y42: Agriculture, Forestry and Fishing | Z42: 893 | AA42: Data not yet available | AB42: Data not yet available | AC42: Data not yet available | AD42: Data not yet available | AE42: 10.97 | AF42: 13.22 | AG42: 64.26 | AH42: 35.74412364 | AI42: 8.91 | AJ42: 15.04 | AK42: 2.706050641 | AL42: 27.85 | AM42: 24149 | AN42: 27124.4 | AO42: 3282 | AP42: 901.8961253 | AQ42: 3639 | AR42: 2639 | AS42: 2862.255965 | AT42: 922 | AU42: 1090 | AV42: 2158.415842 | AW42: 505 | AX42: N/A | AY42: N/A | AZ42: 0 | BA42: 86.75031522 | BB42: 23.44050563 | BC42: 7449 | BD42: 30.50993242 | BE42: 5734 | BF42: 23.48556215 | BG42: 1130 | BH42: 4.628302273 | BI42: 676 | BJ42: 2.768789678 | BK42: 2239 | BL42: 9.170591849 | BM42: 1901 | BN42: 7.78619701 | BO42: 5286 | BP42: 21.65062462 | BQ42: 832.3835065 | BR42: 126.2710917 | BS42: 528.6624204 | BT42: 75.53916639 | BU42: 202.2572354 | BV42: 112.079562 | BW42: 590.680523 | BX42: 47.93831713 | BY42: 212.4259694 | BZ42: Data not yet available | CA42: 273.7015664 | CB42: Data not yet available | CC42: Data not yet available | CD42: Data not yet available | CE42: Data not yet available | CF42: Data not yet available | CG42: Data not yet available | CH42: Data not yet available | CI42: 4730 | CJ42: 33.63636364 | CK42: 1598.76 | CL42: 178.6523634 | CM42: 1162.5 | CN42: 1 | CO42: 10 | CP42: 1 | CQ42: 5.35735938 | CR42: 4312 | CS42: 4391 | CT42: 98.2 | CU42: 81.91 | CV42: 0.94 | CW42: Y | CX42: 71000 | CY42: 111000 | CZ42: 0 | DA42: 2000 | DB42: 2000 | DC42: 200571 | DD42: 0 | DE42: 0 | DF42: 0 | DG42: 9 | DH42: 994.3333333 | DI42: 33 | DJ42: 67 | DK42: 0 | DL42: 0 | DM42: 0 | DN42: 56 | DO42: 44 | DP42: 109 | DQ42: 82.10091743
A43: Eurobodalla | B43: 4 | C43: Regional Town/City | D43: Canberra | E43: 3428.2 | F43: 38083 | G43: 2.793673073 | H43: 11.10874511 | I43: 18726 | J43: 49.17154636 | K43: 19357 | L43: 50.82845364 | M43: 19.65181314 | N43: 41.01567629 | O43: 39.33251057 | P43: 26.94640653 | Q43: 33.7210829 | R43: 39.33251057 | S43: 5.6 | T43: 3.8 | U43: 40 | V43: 9.4 | W43: 42139 | X43: 2.2 | Y43: Health Care & Social Assistance | Z43: 2838 | AA43: Data not yet available | AB43: Data not yet available | AC43: Data not yet available | AD43: Data not yet available | AE43: 5.79 | AF43: 2.51 | AG43: 74.52 | AH43: 25.47811768 | AI43: 2.77 | AJ43: 3.34 | AK43: 10.56273651 | AL43: 14.77 | AM43: 106010 | AN43: 112523 | AO43: 23380 | AP43: 977.38 | AQ43: 23921 | AR43: 426 | AS43: 1510.638298 | AT43: 282 | AU43: 4329 | AV43: 3493.946731 | AW43: 1239 | AX43: N/A | AY43: N/A | AZ43: 0 | BA43: 179.6876304 | BB43: 20.8 | BC43: 1881 | BD43: 1.716413144 | BE43: 39127 | BF43: 35.70340089 | BG43: 13260 | BH43: 12.09975454 | BI43: 11575 | BJ43: 10.56219146 | BK43: 12155 | BL43: 11.09144166 | BM43: 17739 | BN43: 16.18684357 | BO43: 13852 | BP43: 12.63995474 | BQ43: 49.39211722 | BR43: 348.186855 | BS43: 936.8222041 | BT43: 303.9413912 | BU43: 271.7748077 | BV43: 90.59160255 | BW43: 363.7318489 | BX43: 47.39647612 | BY43: 465.7983877 | BZ43: Data not yet available | CA43: 227.33 | CB43: Data not yet available | CC43: Data not yet available | CD43: Data not yet available | CE43: Data not yet available | CF43: Data not yet available | CG43: Data not yet available | CH43: Data not yet available | CI43: 22047 | CJ43: 52.42436613 | CK43: 1010.01 | CL43: 26.52128246 | CM43: 1167.28 | CN43: 3 | CO43: 15 | CP43: 3 | CQ43: 5.7230632 | CR43: 24012 | CS43: 24012 | CT43: 100 | CU43: 67.11 | CV43: 6.8 | CW43: Y | CX43: 118000 | CY43: 215000 | CZ43: 0 | DA43: 26377 | DB43: 0 | DC43: 315000 | DD43: 12 | DE43: 12698 | DF43: 0 | DG43: 9 | DH43: 4231.444444 | DI43: 44 | DJ43: 56 | DK43: 0 | DL43: 0 | DM43: 0 | DN43: 44 | DO43: 56 | DP43: 489 | DQ43: 77.8793456
A44: Fairfield | B44: 3 | C44: Metropolitan | E44: 101.5 | F44: 208468 | G44: 5.109032697 | H44: 2053.871921 | I44: 103567 | J44: 49.68004682 | K44: 104901 | L44: 50.31995318 | M44: 26.0145442 | N44: 54.5676075 | O44: 19.4178483 | P44: 41.76468331 | Q44: 38.81746839 | R44: 19.4178483 | S44: 0.7 | T44: 70.8 | U44: 8 | V44: 9.1 | W44: 48052 | X44: 3.3 | Y44: Manufacturing | Z44: 15099 | AA44: Data not yet available | AB44: Data not yet available | AC44: Data not yet available | AD44: Data not yet available | AE44: 8.27 | AF44: 2.82 | AG44: 82.61 | AH44: 17.38949204 | AI44: 3.37 | AJ44: 123.88 | AK44: 0.2005812297 | AL44: 3.15 | AM44: 160975 | AN44: 175544 | AO44: 45468 | AP44: 791.5875973 | AQ44: 57439 | AR44: 216 | AS44: 1928.571429 | AT44: 112 | AU44: 32409 | AV44: 7744.086022 | AW44: 4185 | AX44: N/A | AY44: N/A | AZ44: 0 | BA44: 370.8104483 | BB44: 21.94501993 | BC44: 44461 | BD44: 27.36718351 | BE44: 8749 | BF44: 5.38529247 | BG44: 32158 | BH44: 19.79428909 | BI44: 20260 | BJ44: 12.47068527 | BK44: 25678 | BL44: 15.80563951 | BM44: 17252 | BN44: 10.61916398 | BO44: 13903 | BP44: 8.557746167 | BQ44: 213.2749391 | BR44: 154.2586872 | BS44: 0 | BT44: 97.1851795 | BU44: 88.82418405 | BV44: 41.96807184 | BW44: 66.69129075 | BX44: 34.35059577 | BY44: 82.75610645 | BZ44: Data not yet available | CA44: 512.6482007 | CB44: Data not yet available | CC44: Data not yet available | CD44: Data not yet available | CE44: Data not yet available | CF44: Data not yet available | CG44: Data not yet available | CH44: Data not yet available | CI44: 38964 | CJ44: 74.6381275 | CK44: 681.07 | CL44: 3.267024196 | CM44: 981 | CN44: 3 | CO44: 24 | CP44: 5 | CQ44: 2.104798022 | CR44: 42372 | CS44: 34616 | CT44: 122.41 | CU44: 147.63 | CV44: 1.67 | CW44: Y | CX44: 61000 | CY44: 444000 | CZ44: 0 | DA44: 18247 | DB44: 0 | DC44: 443582 | DD44: 2 | DE44: 4893 | DF44: 0 | DG44: 13 | DH44: 16036 | DI44: 31 | DJ44: 69 | DK44: 0 | DL44: 69 | DM44: 15 | DN44: 62 | DO44: 23 | DP44: 733 | DQ44: 284.4038199
A45: Federation | B45: 11 | C45: Large Rural | D45: Riverina and Murray | E45: 5685 | F45: 12444 | G45: -0.9472259811 | H45: 2.188918206 | I45: 6172 | J45: 49.59819994 | K45: 6272 | L45: 50.40180006 | M45: 22.74991964 | N45: 42.35776278 | O45: 34.89231758 | P45: 31.19575699 | Q45: 33.91192543 | R45: 34.89231758 | S45: 1.7 | T45: 2 | U45: 37 | V45: 7.6 | W45: 46249 | X45: 2.3 | Y45: Agriculture, Forestry and Fishing | Z45: 1260 | AA45: Data not yet available | AB45: Data not yet available | AC45: Data not yet available | AD45: Data not yet available | AE45: 3.85 | AF45: 1.89 | AG45: 59.28 | AH45: 40.72188739 | AI45: 9.7 | AJ45: 28.39 | AK45: 0.8639554381 | AL45: 24.57 | AM45: 33833 | AN45: 35187 | AO45: 3227 | AP45: 533.0360093 | AQ45: 6054 | AR45: 3385 | AS45: 2958.916084 | AT45: 1144 | AU45: 561 | AV45: 883.4645669 | AW45: 635 | AX45: N/A | AY45: N/A | AZ45: 0 | BA45: 215.5123266 | BB45: 27.27122564 | BC45: 8367 | BD45: 22.44005793 | BE45: 8768 | BF45: 23.51552862 | BG45: 3369 | BH45: 9.035562946 | BI45: 1422 | BJ45: 3.813763879 | BK45: 2400 | BL45: 6.436732286 | BM45: 7499 | BN45: 20.11210642 | BO45: 5461 | BP45: 14.64624792 | BQ45: 672.3722276 | BR45: 270.7328833 | BS45: 626.4063002 | BT45: 114.2719383 | BU45: 153.4072645 | BV45: 78.19029251 | BW45: 438.8460302 | BX45: 39.45676631 | BY45: 602.6197364 | BZ45: Data not yet available | CA45: 217.3769409 | CB45: Data not yet available | CC45: Data not yet available | CD45: Data not yet available | CE45: Data not yet available | CF45: Data not yet available | CG45: Data not yet available | CH45: Data not yet available | CI45: 7567 | CJ45: 56.28386415 | CK45: 2308.14 | CL45: 185.4821601 | CM45: 327.73 | CN45: 5 | CO45: 9 | CP45: 3 | CQ45: 4.596271788 | CR45: 3852 | CS45: 5340 | CT45: 72.13 | CU45: 80.52 | CV45: 4.55 | CW45: Y | CX45: 3000 | CY45: 141000 | CZ45: 0 | DA45: 17000 | DB45: 0 | DC45: 290000 | DD45: 5 | DE45: 15372 | DF45: 0 | DG45: 9 | DH45: 1382.666667 | DI45: 23 | DJ45: 77 | DK45: 0 | DL45: 0 | DM45: 0 | DN45: 56 | DO45: 44 | DP45: 147 | DQ45: 84.65306122
A46: Forbes | B46: 10 | C46: Large Rural | D46: Central NSW | E46: 4710.1 | F46: 9859 | G46: 3.49569599 | H46: 2.093161504 | I46: 4976 | J46: 50.47165027 | K46: 4883 | L46: 49.52834973 | M46: 27.77157927 | N46: 44.81184704 | O46: 27.41657369 | P46: 38.66517902 | Q46: 33.91824729 | R46: 27.41657369 | S46: 11.1 | T46: 2.1 | U46: 39 | V46: 5.1 | W46: 47072 | X46: 2.4 | Y46: Agriculture, Forestry and Fishing | Z46: 1137 | AA46: Data not yet available | AB46: Data not yet available | AC46: Data not yet available | AD46: Data not yet available | AE46: 14.3 | AF46: 7.25 | AG46: 61.66 | AH46: 38.33966337 | AI46: 8.76 | AJ46: 5.63 | AK46: 3.006167635 | AL46: 15.61 | AM46: 38629 | AN46: 45074 | AO46: 2516 | AP46: 759.4325385 | AQ46: 3313 | AR46: 3324 | AS46: 2340.84507 | AT46: 1420 | AU46: 1172 | AV46: 2751.173709 | AW46: 426 | AX46: N/A | AY46: N/A | AZ46: 0 | BA46: 132.1757627 | BB46: 22.75882886 | BC46: 4294 | BD46: 11.11600093 | BE46: 6963 | BF46: 18.02531777 | BG46: 2193 | BH46: 5.677081985 | BI46: 1483 | BJ46: 3.839084626 | BK46: 2776 | BL46: 7.186310803 | BM46: 9785 | BN46: 25.33071009 | BO46: 11135 | BP46: 28.8254938 | BQ46: 435.5411299 | BR46: 222.4363526 | BS46: 616.9996957 | BT46: 150.4209352 | BU46: 244.8524191 | BV46: 89.25854549 | BW46: 1129.424891 | BX46: 36.71771985 | BY46: 992.4941678 | BZ46: Data not yet available | CA46: 345.3063688 | CB46: Data not yet available | CC46: Data not yet available | CD46: Data not yet available | CE46: Data not yet available | CF46: Data not yet available | CG46: Data not yet available | CH46: Data not yet available | CI46: 5411 | CJ46: 28.05396415 | CK46: 1869.17 | CL46: 189.5902221 | CM46: 48 | CN46: 1 | CO46: 2 | CP46: 1 | CQ46: 3.245428688 | CR46: 5092 | CS46: 8638 | CT46: 58.95 | CU46: 114.28 | CV46: 3.43 | CW46: Y | CX46: 52000 | CY46: 128000 | CZ46: 0 | DA46: 41000 | DB46: 1000 | DC46: 269000 | DD46: 1 | DE46: 9060 | DF46: 0 | DG46: 9 | DH46: 1095.444444 | DI46: 44 | DJ46: 56 | DK46: 0 | DL46: 22 | DM46: 0 | DN46: 56 | DO46: 44 | DP46: 118 | DQ46: 83.55084746
A47: Georges River | B47: 3 | C47: Metropolitan | E47: 38.3 | F47: 156293 | G47: 8.950666769 | H47: 4078.7 | I47: 77136 | J47: 49.35345793 | K47: 79157 | L47: 50.64654207 | M47: 22.58578439 | N47: 57.18298324 | O47: 20.23123236 | P47: 40.04657918 | Q47: 39.72218845 | R47: 20.23123236 | S47: 0.5 | T47: 53.5 | U47: 107 | V47: 3.5 | W47: 59090 | X47: 2.9 | Y47: Health Care & Social Assistance | Z47: 15369 | AA47: Data not yet available | AB47: Data not yet available | AC47: Data not yet available | AD47: Data not yet available | AE47: -2.57 | AF47: 3.86 | AG47: 78.49 | AH47: 21.45237959 | AI47: 3 | AJ47: 25.82 | AK47: 0.4598883796 | AL47: 10.88 | AM47: 131583 | AN47: 128678 | AO47: 53682 | AP47: 1031.929413 | AQ47: 52021 | AR47: N/A | AS47: N/A | AT47: N/A | AU47: 10109 | AV47: 2926.751592 | AW47: 3454 | AX47: N/A | AY47: N/A | AZ47: 0 | BA47: 576.273264 | BB47: 15.1573403 | BC47: 39114.904 | BD47: 29.72641147 | BE47: 4359 | BF47: 3.312737968 | BG47: 25708.208 | BH47: 19.53763632 | BI47: 16936 | BJ47: 12.87096357 | BK47: 25277.725 | BL47: 19.21047932 | BM47: 8791.163 | BN47: 6.681078103 | BO47: 11396 | BP47: 8.660693251 | BQ47: 250.2665123 | BR47: 164.4872643 | BS47: 0 | BT47: 108.3605792 | BU47: 118.6343918 | BV47: 27.88992469 | BW47: 72.91433398 | BX47: 43.09853928 | BY47: 56.24796376 | BZ47: Data not yet available | CA47: 434.9205129 | CB47: Data not yet available | CC47: Data not yet available | CD47: Data not yet available | CE47: Data not yet available | CF47: Data not yet available | CG47: Data not yet available | CH47: Data not yet available | CI47: 30150 | CJ47: 57.11111111 | CK47: 409.2 | CL47: 2.618159483 | CM47: 427.1 | CN47: 7 | CO47: 11 | CP47: 5 | CQ47: 5.671624904 | CR47: 22028 | CS47: 19222 | CT47: 114.6 | CU47: 76.61 | CV47: 1.83 | CW47: Y | CX47: 17000 | CY47: 464000 | CZ47: 0 | DA47: 8000 | DB47: 0 | DC47: 428200 | DD47: 2 | DE47: 13760 | DF47: 0 | DG47: 15 | DH47: 10419.53333 | DI47: 47 | DJ47: 53 | DK47: 0 | DL47: 40 | DM47: 0 | DN47: 87 | DO47: 13 | DP47: 554 | DQ47: 282.1173285
A48: Gilgandra | B48: 9 | C48: Rural | D48: Orana | E48: 4831.5 | F48: 4247 | G48: -5.137368774 | H48: 0.8790230777 | I48: 2111 | J48: 49.70567459 | K48: 2136 | L48: 50.29432541 | M48: 25.45326113 | N48: 44.8551919 | O48: 29.69154697 | P48: 35.78996939 | Q48: 34.51848364 | R48: 29.69154697 | S48: 14.1 | T48: 2.1 | U48: 14 | V48: 3.2 | W48: 42332 | X48: 2.4 | Y48: Agriculture, Forestry and Fishing | Z48: 597 | AA48: Data not yet available | AB48: Data not yet available | AC48: Data not yet available | AD48: Data not yet available | AE48: 4.66 | AF48: 3.57 | AG48: 62.39 | AH48: 37.61265643 | AI48: 6.54 | AJ48: 8.49 | AK48: 2.254767353 | AL48: 10.35 | AM48: 31247 | AN48: 32775 | AO48: 891 | AP48: 664.4295302 | AQ48: 1341 | AR48: 3527 | AS48: 4343.596059 | AT48: 812 | AU48: 235 | AV48: 1068.181818 | AW48: 220 | AX48: N/A | AY48: N/A | AZ48: 0 | BA48: 110.1913189 | BB48: 28.18791946 | BC48: 8799 | BD48: 27.81061348 | BE48: 2807 | BF48: 8.871961819 | BG48: 738 | BH48: 2.33256424 | BI48: 8445 | BJ48: 26.69174121 | BK48: 1057 | BL48: 3.340813553 | BM48: 5876 | BN48: 18.57201555 | BO48: 3917 | BP48: 12.38029015 | BQ48: 2071.815399 | BR48: 173.7697198 | BS48: 437.2498234 | BT48: 1988.462444 | BU48: 183.6590534 | BV48: 223.6873087 | BW48: 922.2980928 | BX48: 65.22251001 | BY48: 1383.564869 | BZ48: Data not yet available | CA48: 330.3504847 | CB48: Data not yet available | CC48: Data not yet available | CD48: Data not yet available | CE48: Data not yet available | CF48: Data not yet available | CG48: Data not yet available | CH48: Data not yet available | CI48: 3059 | CJ48: 45.79928081 | CK48: 1308.662 | CL48: 308.1379798 | CM48: 5 | CN48: 1 | CO48: 4 | CP48: 1 | CQ48: 5.05075188 | CR48: 5785 | CS48: 4802 | CT48: 120.47 | CU48: 138.66 | CV48: 2.14 | CW48: Y | CX48: 25000 | CY48: 127000 | CZ48: 0 | DA48: 6000 | DB48: 0 | DC48: 246000 | DD48: 0 | DE48: 0 | DF48: 0 | DG48: 9 | DH48: 471.8888889 | DI48: 33 | DJ48: 67 | DK48: 11 | DL48: 0 | DM48: 0 | DN48: 44 | DO48: 56 | DP48: 179 | DQ48: 23.72625698
A49: Glen Innes Severn | B49: 10 | C49: Large Rural | D49: New England | E49: 5480 | F49: 8919 | G49: 0.4278797433 | H49: 1.627554745 | I49: 4426 | J49: 49.62439735 | K49: 4493 | L49: 50.37560265 | M49: 23.23130396 | N49: 43.80535935 | O49: 32.9633367 | P49: 32.0327391 | Q49: 35.00392421 | R49: 32.9633367 | S49: 6 | T49: 2.1 | U49: 18 | V49: 10.1 | W49: 40925 | X49: 2.2 | Y49: Agriculture, Forestry and Fishing | Z49: 1087 | AA49: Data not yet available | AB49: Data not yet available | AC49: Data not yet available | AD49: Data not yet available | AE49: 7.74 | AF49: 4.65 | AG49: 62.76 | AH49: 37.24286403 | AI49: 6.63 | AJ49: 3.64 | AK49: 7.750853414 | AL49: 9.77 | AM49: 28102 | AN49: 30461.16181 | AO49: 2773 | AP49: 738.482024 | AQ49: 3755 | AR49: 2948 | AS49: 2848.309179 | AT49: 1035 | AU49: 682 | AV49: 1717.884131 | AW49: 397 | AX49: N/A | AY49: N/A | AZ49: 1 | BA49: 139.5971823 | BB49: 35.36617843 | BC49: 9212 | BD49: 27.98043921 | BE49: 3418 | BF49: 10.38179996 | BG49: 1407 | BH49: 4.273608116 | BI49: 3793 | BJ49: 11.52082131 | BK49: 2014 | BL49: 6.117304012 | BM49: 5621 | BN49: 17.07317073 | BO49: 7458 | BP49: 22.65285667 | BQ49: 1032.851217 | BR49: 157.7531113 | BS49: 278.3944388 | BT49: 425.2718915 | BU49: 168.5166498 | BV49: 104.8323803 | BW49: 836.1923983 | BX49: 57.29341854 | BY49: 630.227604 | BZ49: Data not yet available | CA49: 261.517976 | CB49: Data not yet available | CC49: Data not yet available | CD49: Data not yet available | CE49: Data not yet available | CF49: Data not yet available | CG49: Data not yet available | CH49: Data not yet available | CI49: 7451 | CJ49: 81.6266273 | CK49: 1165.86 | CL49: 130.716448 | CM49: 133 | CN49: 2 | CO49: 5 | CP49: 1 | CQ49: 7.34939489 | CR49: 3402 | CS49: 3402 | CT49: 100 | CU49: 97.18 | CV49: 11.62 | CW49: Y | CX49: 22000 | CY49: 106000 | CZ49: 0 | DA49: 2826 | DB49: 1552 | DC49: 235768 | DD49: 3 | DE49: 3700 | DF49: 0 | DG49: 7 | DH49: 1274.142857 | DI49: 29 | DJ49: 71 | DK49: 14 | DL49: 0 | DM49: 0 | DN49: 57.14285714 | DO49: 43 | DP49: 118 | DQ49: 75.58474576
A50: Goulburn Mulwaree | B50: 4 | C50: Regional Town/City | D50: Canberra | E50: 3220.1 | F50: 30556 | G50: 6.389053306 | H50: 9.4891463 | I50: 15600 | J50: 51.05380285 | K50: 14956 | L50: 48.94619715 | M50: 24.22437492 | N50: 50.49090195 | O50: 25.28472313 | P50: 36.61146747 | Q50: 38.1038094 | R50: 25.28472313 | S50: 4 | T50: 4.7 | U50: 52 | V50: 6.1 | W50: 53517 | X50: 2.4 | Y50: Health Care & Social Assistance | Z50: 2264 | AA50: Data not yet available | AB50: Data not yet available | AC50: Data not yet available | AD50: Data not yet available | AE50: 9.35 | AF50: 3.49 | AG50: 53.37 | AH50: 46.62079445 | AI50: 3.02 | AJ50: 2.07 | AK50: 18.87069788 | AL50: 17.85 | AM50: 57909 | AN50: 63961 | AO50: 11937 | AP50: 910.2485893 | AQ50: 13114 | AR50: 2424 | AS50: 1671.724138 | AT50: 1450 | AU50: 4418 | AV50: 5095.732411 | AW50: 867 | AX50: N/A | AY50: N/A | AZ50: 0 | BA50: 141.1552223 | BB50: 17.32499619 | BC50: 11135 | BD50: 18.46784091 | BE50: 16118 | BF50: 26.73234484 | BG50: 5820 | BH50: 9.652701761 | BI50: 2419 | BJ50: 4.012007828 | BK50: 7550 | BL50: 12.52197565 | BM50: 13108 | BN50: 21.74013998 | BO50: 4144 | BP50: 6.87298902 | BQ50: 364.4128813 | BR50: 190.4699568 | BS50: 462.5605446 | BT50: 79.16612122 | BU50: 203.8552167 | BV50: 64.92996466 | BW50: 135.6198455 | BX50: 43.23209844 | BY50: 428.9828512 | BZ50: Data not yet available | CA50: 229.6019521 | CB50: Data not yet available | CC50: Data not yet available | CD50: Data not yet available | CE50: Data not yet available | CF50: Data not yet available | CG50: Data not yet available | CH50: Data not yet available | CI50: 19927 | CJ50: 45.62151854 | CK50: 1166.98 | CL50: 38.19151721 | CM50: 1232 | CN50: 0 | CO50: 5 | CP50: 1 | CQ50: 9.707898022 | CR50: 12389 | CS50: 12842 | CT50: 96.47 | CU50: 60.21 | CV50: 2.62 | CW50: Y | CX50: 19000 | CY50: 216000 | CZ50: 0 | DA50: 6000 | DB50: 13000 | DC50: 337070 | DD50: 1 | DE50: 0 | DF50: 0 | DG50: 9 | DH50: 3395.111111 | DI50: 33 | DJ50: 67 | DK50: 11.11111111 | DL50: 0 | DM50: 22.22222222 | DN50: 33.33333333 | DO50: 44 | DP50: 267 | DQ50: 114.4419476
A51: Greater Hume | B51: 11 | C51: Large Rural | D51: Riverina | E51: 5749.5 | F51: 10602 | G51: 4.587155963 | H51: 1.843986434 | I51: 5390 | J51: 50.83946425 | K51: 5212 | L51: 49.16053575 | M51: 28.97566497 | N51: 44.576495 | O51: 26.44784003 | P51: 36.43652141 | Q51: 37.11563856 | R51: 26.44784003 | S51: 3.3 | T51: 2 | U51: 79 | V51: 4.6 | W51: 45672 | X51: 2.5 | Y51: Agriculture, Forestry and Fishing | Z51: 1358 | AA51: Data not yet available | AB51: Data not yet available | AC51: Data not yet available | AD51: Data not yet available | AE51: 8.08 | AF51: 4.96 | AG51: 47.71 | AH51: 52.2861808 | AI51: 6.09 | AJ51: 12.39 | AK51: 2.701648298 | AL51: 11.32 | AM51: 28274 | AN51: 30759 | AO51: 2777 | AP51: 749.9324872 | AQ51: 3703 | AR51: 4902 | AS51: 2129.45265 | AT51: 2302 | AU51: 235 | AV51: 462.5984252 | AW51: 508 | AX51: N/A | AY51: N/A | AZ51: 0 | BA51: 219.7910652 | BB51: 25.24979746 | BC51: 3783 | BD51: 12.76574205 | BE51: 5638 | BF51: 19.02544375 | BG51: 1869 | BH51: 6.306944726 | BI51: 1673 | BJ51: 5.645542283 | BK51: 3471 | BL51: 11.71289735 | BM51: 8407 | BN51: 28.36944051 | BO51: 4793 | BP51: 16.17398934 | BQ51: 356.819468 | BR51: 176.2874929 | BS51: 324.4670817 | BT51: 157.800415 | BU51: 269.1001698 | BV51: 207.3193737 | BW51: 452.0845124 | BX51: 58.29088851 | BY51: 792.9635918 | BZ51: Data not yet available | CA51: 187.6856603 | CB51: Data not yet available | CC51: Data not yet available | CD51: Data not yet available | CE51: Data not yet available | CF51: Data not yet available | CG51: Data not yet available | CH51: Data not yet available | CI51: 8253 | CJ51: 59.4814007 | CK51: 2077.15 | CL51: 195.920581 | CM51: 117.5 | CN51: 5 | CO51: 15 | CP51: 3 | CQ51: 3.61539915 | CR51: 4228 | CS51: 4246 | CT51: 99.58 | CU51: 121.07 | CV51: 0.07 | CW51: Y | CX51: 33000 | CY51: 108000 | CZ51: 0 | DA51: 11166 | DB51: 0 | DC51: 208000 | DD51: 1 | DE51: 0 | DF51: 0 | DG51: 9 | DH51: 1178 | DI51: 44 | DJ51: 56 | DK51: 0 | DL51: 0 | DM51: 0 | DN51: 22 | DO51: 78 | DP51: 106 | DQ51: 100.0188679
A52: Griffith | B52: 4 | C52: Regional Town/City | D52: Riverina and Murray | E52: 1639.2 | F52: 26586 | G52: 4.303817333 | H52: 16.21888726 | I52: 13317 | J52: 50.09027308 | K52: 13269 | L52: 49.90972692 | M52: 27.33769653 | N52: 51.46693749 | O52: 21.19536598 | P52: 41.26607989 | Q52: 37.53855413 | R52: 21.19536598 | S52: 4.8 | T52: 20.9 | U52: 48 | V52: 4.8 | W52: 45357 | X52: 2.7 | Y52: Manufacturing | Z52: 3184 | AA52: Data not yet available | AB52: Data not yet available | AC52: Data not yet available | AD52: Data not yet available | AE52: 10.65 | AF52: 2.86 | AG52: 79.77 | AH52: 20.2257002 | AI52: 7.54 | AJ52: 8.2 | AK52: 4.025374473 | AL52: 8.55 | AM52: 53804 | AN52: 60218 | AO52: 7953 | AP52: 940.7381121 | AQ52: 8454 | AR52: 5096 | AS52: 3558.659218 | AT52: 1432 | AU52: 2670 | AV52: 2572.254335 | AW52: 1038 | AX52: N/A | AY52: N/A | AZ52: 0 | BA52: 98.85524696 | BB52: 17.03335699 | BC52: 8498 | BD52: 15.79436473 | BE52: 14721 | BF52: 27.3604193 | BG52: 5155 | BH52: 9.581072039 | BI52: 4570 | BJ52: 8.493792283 | BK52: 9290 | BL52: 17.26637425 | BM52: 7649 | BN52: 14.21641514 | BO52: 3921 | BP52: 7.287562263 | BQ52: 319.6419168 | BR52: 193.8990446 | BS52: 494.9221395 | BT52: 171.8949823 | BU52: 313.5484842 | BV52: 58.79034078 | BW52: 147.483638 | BX52: 35.88354773 | BY52: 287.7078161 | BZ52: Data not yet available | CA52: 301.6323634 | CB52: Data not yet available | CC52: Data not yet available | CD52: Data not yet available | CE52: Data not yet available | CF52: Data not yet available | CG52: Data not yet available | CH52: Data not yet available | CI52: 10329 | CJ52: 65.78565205 | CK52: 1289.74 | CL52: 48.5119988 | CM52: 435.87 | CN52: 1 | CO52: 6 | CP52: 1 | CQ52: 6.108300811 | CR52: 7058 | CS52: 7058 | CT52: 100 | CU52: 49.33 | CV52: 1.71 | CW52: Y | CX52: 119000 | CY52: 271000 | CZ52: 0 | DA52: 6000 | DB52: 6000 | DC52: 284709 | DD52: 13 | DE52: 98350 | DF52: 0 | DG52: 12 | DH52: 2215.5 | DI52: 33.33333333 | DJ52: 66.66666667 | DK52: 0 | DL52: 25 | DM52: 0 | DN52: 58.33333333 | DO52: 41.66666667 | DP52: 279 | DQ52: 95.29032258
A53: Gunnedah | B53: 11 | C53: Large Rural | D53: Namoi | E53: 4987 | F53: 12579 | G53: -0.1508175901 | H53: 2.522358131 | I53: 6308 | J53: 50.14707051 | K53: 6271 | L53: 49.85292949 | M53: 27.02122585 | N53: 48.9705064 | O53: 24.00826775 | P53: 39.58979251 | Q53: 36.40193974 | R53: 24.00826775 | S53: 12.8 | T53: 2.2 | U53: 46 | V53: 6.6 | W53: 55618 | X53: 2.5 | Y53: Agriculture, Forestry and Fishing | Z53: 1548 | AA53: Data not yet available | AB53: Data not yet available | AC53: Data not yet available | AD53: Data not yet available | AE53: 15.01 | AF53: 5.15 | AG53: 60.94 | AH53: 39.06386156 | AI53: 3.84 | AJ53: 12.67 | AK53: 2.706194486 | AL53: 23.44 | AM53: 36839 | AN53: 43345 | AO53: 3974 | AP53: 849.8716852 | AQ53: 4676 | AR53: 4934 | AS53: 4417.188899 | AT53: 1117 | AU53: 2199 | AV53: 4543.38843 | AW53: 484 | AX53: 1198 | AY53: 239600 | AZ53: 5 | BA53: 134.0734482 | BB53: 19.43969204 | BC53: 2142 | BD53: 5.153994225 | BE53: 8163 | BF53: 19.64148219 | BG53: 4178 | BH53: 10.05293551 | BI53: 4649 | BJ53: 11.18623677 | BK53: 6283 | BL53: 15.11790183 | BM53: 13583 | BN53: 32.68286814 | BO53: 2562 | BP53: 6.164581328 | BQ53: 170.2838063 | BR53: 332.1408697 | BS53: 597.9807616 | BT53: 369.5842277 | BU53: 461.4834248 | BV53: 50.95794578 | BW53: 203.672788 | BX53: 37.999841 | BY53: 1079.815566 | BZ53: Data not yet available | CA53: 486.74 | CB53: Data not yet available | CC53: Data not yet available | CD53: Data not yet available | CE53: Data not yet available | CF53: Data not yet available | CG53: Data not yet available | CH53: Data not yet available | CI53: 10638 | CJ53: 42.78059786 | CK53: 1469.65 | CL53: 116.8336116 | CM53: 517.94 | CN53: 1 | CO53: 15 | CP53: 1 | CQ53: 2.099223947 | CR53: 6694 | CS53: 5979 | CT53: 111.96 | CU53: 187.91 | CV53: 1.71 | CW53: Y | CX53: 67000 | CY53: 128000 | CZ53: 8000 | DA53: 17000 | DB53: 1000 | DC53: 251918 | DD53: 0 | DE53: 2970 | DF53: 1 | DG53: 9 | DH53: 1397.666667 | DI53: 33 | DJ53: 67 | DK53: 0 | DL53: 0 | DM53: 11 | DN53: 22 | DO53: 67 | DP53: 175 | DQ53: 71.88
A54: Gwydir | B54: 10 | C54: Large Rural | D54: Namoi | E54: 9259.7 | F54: 5314 | G54: 3.971825474 | H54: 0.5738846831 | I54: 2660 | J54: 50.05645465 | K54: 2654 | L54: 49.94354535 | M54: 24.12495295 | N54: 43.45126082 | O54: 32.42378623 | P54: 32.70605947 | Q54: 34.87015431 | R54: 32.42378623 | S54: 5.7 | T54: 1.1 | U54: 38 | V54: 5.2 | W54: 43173 | X54: 2.3 | Y54: Agriculture, Forestry and Fishing | Z54: 728 | AA54: Data not yet available | AB54: Data not yet available | AC54: Data not yet available | AD54: Data not yet available | AE54: 0.11 | AF54: 1.72 | AG54: 58.69 | AH54: 41.31391205 | AI54: 4.29 | AJ54: 0.96 | AK54: 6.166019707 | AL54: 5.08 | AM54: 26762 | AN54: 26792 | AO54: 1112 | AP54: 642.7745665 | AQ54: 1730 | AR54: 6134 | AS54: 5357.20524 | AT54: 1145 | AU54: 210 | AV54: 1019.417476 | AW54: 206 | AX54: N/A | AY54: N/A | AZ54: 0 | BA54: 196.7727285 | BB54: 36.06936416 | BC54: 5320 | BD54: 14.80945355 | BE54: 7432 | BF54: 20.68869526 | BG54: 2008 | BH54: 5.589733597 | BI54: 5043 | BJ54: 14.03835983 | BK54: 4836 | BL54: 13.46212733 | BM54: 8840 | BN54: 24.60818974 | BO54: 2444 | BP54: 6.803440693 | BQ54: 1001.129093 | BR54: 377.8697779 | BS54: 1204.554008 | BT54: 949.0026346 | BU54: 859.6161084 | BV54: 194.0158073 | BW54: 459.9171998 | BX54: 50.43281897 | BY54: 1663.530297 | BZ54: Data not yet available | CA54: 372.8323699 | CB54: Data not yet available | CC54: Data not yet available | CD54: Data not yet available | CE54: Data not yet available | CF54: Data not yet available | CG54: Data not yet available | CH54: Data not yet available | CI54: 4147 | CJ54: 38.60622136 | CK54: 2005.21 | CL54: 377.3447497 | CM54: 131 | CN54: 2 | CO54: 13 | CP54: 2 | CQ54: 2.610045147 | CR54: 3459 | CS54: 3459 | CT54: 100 | CU54: 41.59 | CV54: 1.34 | CW54: Y | CX54: 0 | CY54: 137000 | CZ54: 0 | DA54: 54000 | DB54: 0 | DC54: 332447 | DD54: 0 | DE54: 0 | DF54: 0 | DG54: 9 | DH54: 590.4444444 | DI54: 44.44444444 | DJ54: 55.55555556 | DK54: 0 | DL54: 0 | DM54: 0 | DN54: 22.22222222 | DO54: 77.77777778 | DP54: 154 | DQ54: 34.50649351
A55: Hawkesbury | B55: 6 | C55: Metropolitan Fringe | E55: 2775.1 | F55: 66623 | G55: 3.144352242 | H55: 24.00742316 | I55: 33163 | J55: 49.777104 | K55: 33460 | L55: 50.222896 | M55: 26.85709139 | N55: 53.65264248 | O55: 19.49026612 | P55: 41.08190865 | Q55: 39.42782523 | R55: 19.49026612 | S55: 3.7 | T55: 6 | U55: 99 | V55: 4.4 | W55: 57800 | X55: 2.8 | Y55: Construction | Z55: 6763 | AA55: Data not yet available | AB55: Data not yet available | AC55: Data not yet available | AD55: Data not yet available | AE55: -4.21 | AF55: 2.93 | AG55: 70.96 | AH55: 29.04174859 | AI55: 5.63 | AJ55: 13.23 | AK55: 1.496378845 | AL55: 12.44 | AM55: 75942 | AN55: 73043 | AO55: 26146 | AP55: 1094.799431 | AQ55: 23882 | AR55: 1378 | AS55: 2750.499002 | AT55: 501 | AU55: 3304 | AV55: 6029.19708 | AW55: 548 | AX55: N/A | AY55: N/A | AZ55: 0 | BA55: 405.9632187 | BB55: 13.25684616 | BC55: 10443 | BD55: 13.70166761 | BE55: 13875 | BF55: 18.20460002 | BG55: 17475 | BH55: 22.92795571 | BI55: 3649 | BJ55: 4.787645801 | BK55: 12996 | BL55: 17.05131401 | BM55: 13175 | BN55: 17.28616975 | BO55: 4604 | BP55: 6.0406471 | BQ55: 156.7476697 | BR55: 262.2968044 | BS55: 134.728247 | BT55: 54.77087492 | BU55: 160.2149408 | BV55: 73.53316422 | BW55: 69.10526395 | BX55: 34.8528286 | BY55: 197.7545292 | BZ55: Data not yet available | CA55: 503.0566954 | CB55: Data not yet available | CC55: Data not yet available | CD55: Data not yet available | CE55: Data not yet available | CF55: Data not yet available | CG55: Data not yet available | CH55: Data not yet available | CI55: 49925 | CJ55: 66.43365048 | CK55: 1045.326 | CL55: 15.69016706 | CM55: 289 | CN55: 2 | CO55: 25 | CP55: 2 | CQ55: 3.65297732 | CR55: 21942 | CS55: 25666 | CT55: 85.49 | CU55: 65.14 | CV55: 2.27 | CW55: Y | CX55: 48000 | CY55: 312000 | CZ55: 0 | DA55: 32015 | DB55: 16317 | DC55: 285000 | DD55: 10 | DE55: 14820 | DF55: 0 | DG55: 12 | DH55: 5551.916667 | DI55: 50 | DJ55: 50 | DK55: 0 | DL55: 0 | DM55: 8 | DN55: 67 | DO55: 25 | DP55: 272 | DQ55: 244.9375
A56: Hay | B56: 9 | C56: Rural | D56: Riverina and Murray | E56: 11325.9 | F56: 2979 | G56: -0.7661558961 | H56: 0.2630254549 | I56: 1510 | J56: 50.68815039 | K56: 1469 | L56: 49.31184961 | M56: 23.86706949 | N56: 49.21114468 | O56: 26.92178583 | P56: 35.04531722 | Q56: 38.03289695 | R56: 26.92178583 | S56: 6 | T56: 3.8 | U56: 26 | V56: 7.5 | W56: 43971 | X56: 2.3 | Y56: Agriculture, Forestry and Fishing | Z56: 374 | AA56: Data not yet available | AB56: Data not yet available | AC56: Data not yet available | AD56: Data not yet available | AE56: 2.49 | AF56: 5.23 | AG56: 48.91 | AH56: 51.08615612 | AI56: 12.97 | AJ56: 15.54 | AK56: 1.972713864 | AL56: 14.35 | AM56: 10578 | AN56: 10848 | AO56: 772 | AP56: 587.5190259 | AQ56: 1314 | AR56: 1117 | AS56: 4121.771218 | AT56: 271 | AU56: 313 | AV56: 1497.607656 | AW56: 209 | AX56: N/A | AY56: N/A | AZ56: 0 | BA56: 96.31578565 | BB56: 18.49315068 | BC56: 1494 | BD56: 14.12365286 | BE56: 2526 | BF56: 23.87975043 | BG56: 739 | BH56: 6.986197769 | BI56: 1462 | BJ56: 13.82113821 | BK56: 1284 | BL56: 12.13840045 | BM56: 2525 | BN56: 23.87029684 | BO56: 548 | BP56: 5.180563434 | BQ56: 501.510574 | BR56: 248.0698221 | BS56: 672.3732796 | BT56: 490.7687143 | BU56: 341.3897281 | BV56: 175.5622692 | BW56: 183.9543471 | BX56: 89.62739174 | BY56: 847.5998657 | BZ56: Data not yet available | CA56: 229.8325723 | CB56: Data not yet available | CC56: Data not yet available | CD56: Data not yet available | CE56: Data not yet available | CF56: Data not yet available | CG56: Data not yet available | CH56: Data not yet available | CI56: 2622 | CJ56: 33.33333333 | CK56: 941.36 | CL56: 315.9986573 | CM56: 128.78 | CN56: 1 | CO56: 6 | CP56: 1 | CQ56: 7.398787471 | CR56: 1586 | CS56: 2275 | CT56: 69.71 | CU56: 90.05 | CV56: 2.18 | CW56: Y | CX56: 24000 | CY56: 93000 | CZ56: 0 | DA56: 7000 | DB56: 1000 | DC56: 196092 | DD56: 0 | DE56: 0 | DF56: 0 | DG56: 8 | DH56: 372.375 | DI56: 12.5 | DJ56: 87.5 | DK56: 0 | DL56: 0 | DM56: 0 | DN56: 50 | DO56: 50 | DP56: 51 | DQ56: 58.41176471
A57: Hills | B57: 7 | C57: Metropolitan Fringe | E57: 386.2 | F57: 167847 | G57: -6.9 | H57: 434.6116002 | I57: 83198 | J57: 49.56776112 | K57: 84649 | L57: 50.43223888 | M57: 28.45210221 | N57: 52.80106287 | O57: 18.74683492 | P57: 40.4427842 | Q57: 40.81038088 | R57: 18.74683492 | S57: 0.5 | T57: 31.9 | U57: 122 | V57: 2.5 | W57: 73048 | X57: 3.2 | Y57: Health Care & Social Assistance | Z57: 20260 | AA57: Data not yet available | AB57: Data not yet available | AC57: Data not yet available | AD57: Data not yet available | AE57: 11.99 | AF57: 17.05 | AG57: 45.7 | AH57: 54.1 | AI57: 3.62 | AJ57: 0 | AK57: 0 | AL57: 30.38 | AM57: 145090 | AN57: 151146 | AO57: 59798 | AP57: 1042.249102 | AQ57: 57374 | AR57: 434 | AS57: 2480 | AT57: 175 | AU57: 7078 | AV57: 1943.437672 | AW57: 3642 | AX57: N/A | AY57: N/A | AZ57: 0 | BA57: 684.1392445 | BB57: 9.354411406 | BC57: 6416 | BD57: 3.912552977 | BE57: 4933 | BF57: 3.00820197 | BG57: 30728 | BH57: 18.73829923 | BI57: 32672 | BJ57: 19.92377352 | BK57: 52364 | BL57: 31.93218892 | BM57: 32256 | BN57: 19.67009178 | BO57: 4616 | BP57: 2.814891606 | BQ57: 38.22528851 | BR57: 183.0714877 | BS57: 0 | BT57: 194.6534642 | BU57: 273.1296955 | BV57: 29.389861 | BW57: 27.50123624 | BX57: 38.84490042 | BY57: 192.1750165 | BZ57: Data not yet available | CA57: 408.9483041 | CB57: Data not yet available | CC57: Data not yet available | CD57: Data not yet available | CE57: Data not yet available | CF57: Data not yet available | CG57: Data not yet available | CH57: Data not yet available | CI57: 56378 | CJ57: 58.9219199 | CK57: 952.95 | CL57: 5.677492002 | CM57: 1175 | CN57: 1 | CO57: 61 | CP57: 4 | CQ57: 7.581352812 | CR57: 28845 | CS57: 18924 | CT57: 152.43 | CU57: 102.81 | CV57: 0 | CW57: Y | CX57: 126000 | CY57: 359000 | CZ57: 0 | DA57: 92000 | DB57: 49000 | DC57: 381543 | DD57: 0 | DE57: 0 | DF57: 0 | DG57: 13 | DH57: 12911.30769 | DI57: 31 | DJ57: 69 | DK57: 0 | DL57: 0 | DM57: 0 | DN57: 78 | DO57: 22 | DP57: 519 | DQ57: 323.4046243
A58: Hilltops | B58: 11 | C58: Large Rural | D58: Canberra | E58: 7140.9 | F58: 18753 | G58: -1 | H58: 2.626139562 | I58: 9218 | J58: 49.1548019 | K58: 9535 | L58: 50.8451981 | M58: 26.24113475 | N58: 44.89948275 | O58: 28.8593825 | P58: 35.90892124 | Q58: 35.23169626 | R58: 28.8593825 | S58: 4.4 | T58: 3.4 | U58: 32 | V58: 7.1 | W58: 43633 | X58: 2.4 | Y58: Agriculture, Forestry and Fishing | Z58: 2202 | AA58: Data not yet available | AB58: Data not yet available | AC58: Data not yet available | AD58: Data not yet available | AE58: * | AF58: * | AG58: * | AH58: * | AI58: * | AJ58: * | AK58: * | AL58: * | AM58: * | AN58: * | AO58: * | AP58: * | AQ58: * | AR58: * | AS58: * | AT58: * | AU58: * | AV58: * | AW58: * | AX58: * | AY58: * | AZ58: * | BA58: * | BB58: * | BC58: * | BD58: * | BE58: * | BF58: * | BG58: * | BH58: * | BI58: * | BJ58: * | BK58: * | BL58: * | BM58: * | BN58: * | BO58: * | BP58: * | BQ58: * | BR58: * | BS58: * | BT58: * | BU58: * | BV58: * | BW58: * | BX58: * | BY58: * | BZ58: Data not yet available | CA58: * | CB58: Data not yet available | CC58: Data not yet available | CD58: Data not yet available | CE58: Data not yet available | CF58: Data not yet available | CG58: Data not yet available | CH58: Data not yet available | CI58: 11719 | CJ58: 37.14480758 | CK58: 2748.16 | CL58: 146.5450861 | CM58: 233 | CN58: 4 | CO58: 15 | CP58: 3 | CQ58: 3.220859873 | CR58: * | CS58: * | CT58: * | CU58: * | CV58: * | CW58: N | CX58: * | CY58: * | CZ58: * | DA58: * | DB58: * | DC58: * | DD58: 2 | DE58: 14775 | DF58: 0 | DG58: 11 | DH58: 1704.818182 | DI58: 27 | DJ58: 73 | DK58: 0 | DL58: 0 | DM58: 0 | DN58: 64 | DO58: 36 | DP58: * | DQ58: *
A59: Hornsby | B59: 7 | C59: Metropolitan Fringe | E59: 455 | F59: 149113 | G59: -9.7 | H59: 327.7208791 | I59: 73478 | J59: 49.27672302 | K59: 75635 | L59: 50.72327698 | M59: 26.46046958 | N59: 52.37370316 | O59: 21.16582726 | P59: 37.81829887 | Q59: 41.01587387 | R59: 21.16582726 | S59: 0.5 | T59: 31.1 | U59: 120 | V59: 4.7 | W59: 72586 | X59: 2.9 | Y59: Health Care & Social Assistance | Z59: 13536 | AA59: Data not yet available | AB59: Data not yet available | AC59: Data not yet available | AD59: Data not yet available | AE59: 5.26 | AF59: 6.69 | AG59: 49.39 | AH59: 50.61340411 | AI59: 1.82 | AJ59: 19.18 | AK59: 1.023720547 | AL59: 27.39 | AM59: 119655 | AN59: 126304 | AO59: 56931 | AP59: 1134.12885 | AQ59: 50198 | AR59: 573 | AS59: 1848.387097 | AT59: 310 | AU59: 7421 | AV59: 3004.453441 | AW59: 2470 | AX59: N/A | AY59: N/A | AZ59: 0 | BA59: 526.8462012 | BB59: 12.49850592 | BC59: 17566 | BD59: 14.55464413 | BE59: 3211 | BF59: 2.660535256 | BG59: 35816 | BH59: 29.6760295 | BI59: 15573 | BJ59: 12.90330599 | BK59: 31556 | BL59: 26.1463253 | BM59: 10598 | BN59: 8.781174911 | BO59: 6370 | BP59: 5.27798492 | BQ59: 117.8032767 | BR59: 240.1936786 | BS59: 0 | BT59: 104.4375742 | BU59: 165.525474 | BV59: 21.53400441 | BW59: 42.71928001 | BX59: 46.099267 | BY59: 71.07361531 | BZ59: Data not yet available | CA59: 463.6439699 | CB59: Data not yet available | CC59: Data not yet available | CD59: Data not yet available | CE59: Data not yet available | CF59: Data not yet available | CG59: Data not yet available | CH59: Data not yet available | CI59: 49215 | CJ59: 69.77547496 | CK59: 600.64 | CL59: 4.028086082 | CM59: 1181.51 | CN59: 3 | CO59: 25 | CP59: 4 | CQ59: 6.600956835 | CR59: 8356 | CS59: 8317 | CT59: 100.47 | CU59: 0 | CV59: 0.85 | CW59: Y | CX59: 31000 | CY59: 305000 | CZ59: 0 | DA59: 12476 | DB59: 0 | DC59: 396346 | DD59: 5 | DE59: 7986 | DF59: 0 | DG59: 10 | DH59: 14911.3 | DI59: 27 | DJ59: 73 | DK59: 0 | DL59: 0 | DM59: 9 | DN59: 55 | DO59: 36 | DP59: 472 | DQ59: 315.9173729
A60: Hunters Hill | B60: 2 | C60: Metropolitan | E60: 5.7 | F60: 14747 | G60: 4.300162671 | H60: 2587.192982 | I60: 7472 | J60: 50.66793246 | K60: 7275 | L60: 49.33206754 | M60: 27.59883366 | N60: 46.26703736 | O60: 26.13412898 | P60: 37.22112972 | Q60: 36.6447413 | R60: 26.13412898 | S60: 0.6 | T60: 19.5 | U60: 125 | V60: 2.7 | W60: 106348 | X60: 2.7 | Y60: Professional Scientific & Technical Services | Z60: 1982 | AA60: Data not yet available | AB60: Data not yet available | AC60: Data not yet available | AD60: Data not yet available | AE60: -3.09 | AF60: 8.7 | AG60: 90.54 | AH60: 9.464883593 | AI60: 2.49 | AJ60: 51.23 | AK60: 0.2393326039 | AL60: 17.4 | AM60: 15076 | AN60: 14624 | AO60: 8116 | AP60: 1683.46816 | AQ60: 4821 | AR60: N/A | AS60: N/A | AT60: N/A | AU60: 248 | AV60: 1153.488372 | AW60: 215 | AX60: N/A | AY60: N/A | AZ60: 0 | BA60: 911.5185366 | BB60: 6.845052894 | BC60: 4792 | BD60: 31.37357601 | BE60: 779 | BF60: 5.100170224 | BG60: 2997 | BH60: 19.62157915 | BI60: 1857 | BJ60: 12.15791541 | BK60: 2389 | BL60: 15.64095849 | BM60: 2125 | BN60: 13.9125311 | BO60: 335 | BP60: 2.193269608 | BQ60: 324.9474469 | BR60: 203.2277751 | BS60: 0 | BT60: 125.9239167 | BU60: 112.9721299 | BV60: 52.82430325 | BW60: 22.71648471 | BX60: 49.02692073 | BY60: 144.0971045 | BZ60: Data not yet available | CA60: 527.0690728 | CB60: Data not yet available | CC60: Data not yet available | CD60: Data not yet available | CE60: Data not yet available | CF60: Data not yet available | CG60: Data not yet available | CH60: Data not yet available | CI60: 4621 | CJ60: 50.63838996 | CK60: 65 | CL60: 4.407676138 | CM60: 102.6 | CN60: 1 | CO60: 6 | CP60: 0 | CQ60: 6.264406089 | CR60: 989 | CS60: 1258 | CT60: 78.62 | CU60: 35.54 | CV60: 1.74 | CW60: Y | CX60: 58000 | CY60: 177000 | CZ60: 0 | DA60: 8326 | DB60: 1200 | DC60: 237606 | DD60: 0 | DE60: 0 | DF60: 0 | DG60: 7 | DH60: 2106.714286 | DI60: 28.57142857 | DJ60: 71.42857143 | DK60: 0 | DL60: 0 | DM60: 14.28571429 | DN60: 43 | DO60: 43 | DP60: 52 | DQ60: 283.5961538
A61: Inner West | B61: 3 | C61: Metropolitan | E61: 35.4 | F61: 194564 | G61: 7.105148714 | H61: 5496.158192 | I61: 95817 | J61: 49.24703439 | K61: 98747 | L61: 50.75296561 | M61: 18.96393989 | N61: 64.39269341 | O61: 16.64336671 | P61: 37.16823256 | Q61: 46.18840073 | R61: 16.64336671 | S61: 1.1 | T61: 28.4 | U61: 118 | V61: 5.2 | W61: 76842 | X61: 2.4 | Y61: Professional Scientific & Technical Services | Z61: 19543 | AA61: Data not yet available | AB61: Data not yet available | AC61: Data not yet available | AD61: Data not yet available | AE61: 3.24 | AF61: 3.72 | AG61: 88.83 | AH61: 11.1690338 | AI61: 3.92 | AJ61: 6.61 | AK61: 2.351788339 | AL61: 8.05 | AM61: 229080 | AN61: 236756 | AO61: 78126 | AP61: 1103.521336 | AQ61: 70797 | AR61: N/A | AS61: N/A | AT61: N/A | AU61: 34746 | AV61: 5964.978541 | AW61: 5825 | AX61: N/A | AY61: N/A | AZ61: 0 | BA61: 524.1283794 | BB61: 9.799850276 | BC61: 102330 | BD61: 42.76168707 | BE61: 11500 | BF61: 4.805622997 | BG61: 32055 | BH61: 13.39515175 | BI61: 31393 | BJ61: 13.11851502 | BK61: 35529 | BL61: 14.84686778 | BM61: 5317 | BN61: 2.221869346 | BO61: 21179 | BP61: 8.850286039 | BQ61: 525.9451903 | BR61: 164.7529862 | BS61: 0 | BT61: 161.3505068 | BU61: 140.3291462 | BV61: 59.10651508 | BW61: 108.853642 | BX61: 42.27914722 | BY61: 27.32776875 | BZ61: Data not yet available | CA61: 526.8867325 | CB61: Data not yet available | CC61: Data not yet available | CD61: Data not yet available | CE61: Data not yet available | CF61: Data not yet available | CG61: Data not yet available | CH61: Data not yet available | CI61: 59860 | CJ61: 53.27597728 | CK61: 464.8 | CL61: 2.388931149 | CM61: 251.14 | CN61: 5 | CO61: 21 | CP61: 8 | CQ61: 5.130165596 | CR61: 19305 | CS61: 24646 | CT61: 78.33 | CU61: 13.45 | CV61: 11.28 | CW61: Y | CX61: 0 | CY61: 335000 | CZ61: 0 | DA61: 0 | DB61: 0 | DC61: 486990 | DD61: 10 | DE61: 18139 | DF61: 0 | DG61: 15 | DH61: 12970.93333 | DI61: 53 | DJ61: 47 | DK61: 0 | DL61: 20 | DM61: 7 | DN61: 53 | DO61: 40 | DP61: 1038 | DQ61: 187.4412331
A62: Inverell | B62: 11 | C62: Large Rural | D62: New England | E62: 8597.2 | F62: 16815 | G62: 0.9303721489 | H62: 1.955869353 | I62: 8279 | J62: 49.23580137 | K62: 8536 | L62: 50.76419863 | M62: 27.00564972 | N62: 46.1254832 | O62: 26.86886708 | P62: 38.25156111 | Q62: 34.87957181 | R62: 26.86886708 | S62: 8.5 | T62: 3.1 | U62: 11 | V62: 8.4 | W62: 43637 | X62: 2.4 | Y62: Health Care & Social Assistance | Z62: 1705 | AA62: Data not yet available | AB62: Data not yet available | AC62: Data not yet available | AD62: Data not yet available | AE62: 18.01 | AF62: 11.71 | AG62: 63.57 | AH62: 36.42525188 | AI62: 5.69 | AJ62: 18.88 | AK62: 1.886499897 | AL62: 26.6 | AM62: 31728 | AN62: 38696 | AO62: 5172 | AP62: 855.0173582 | AQ62: 6049 | AR62: 3683 | AS62: 2714.075166 | AT62: 1357 | AU62: 2275 | AV62: 4012.345679 | AW62: 567 | AX62: N/A | AY62: N/A | AZ62: 0 | BA62: 120.2403143 | BB62: 26.43412134 | BC62: 2829 | BD62: 8.916414523 | BE62: 8200 | BF62: 25.84467978 | BG62: 3729 | BH62: 11.75302572 | BI62: 1539 | BJ62: 4.850605144 | BK62: 3100 | BL62: 9.770549672 | BM62: 8941 | BN62: 28.18015633 | BO62: 3390 | BP62: 10.68456884 | BQ62: 168.2426405 | BR62: 221.7662801 | BS62: 437.7639013 | BT62: 91.52542373 | BU62: 129.1109129 | BV62: 49.89592626 | BW62: 201.6057092 | BX62: 55.24829022 | BY62: 531.7276241 | BZ62: Data not yet available | CA62: 333.9394941 | CB62: Data not yet available | CC62: Data not yet available | CD62: Data not yet available | CE62: Data not yet available | CF62: Data not yet available | CG62: Data not yet available | CH62: Data not yet available | CI62: 12355 | CJ62: 49.17037637 | CK62: 2139.62 | CL62: 127.244722 | CM62: 260.3 | CN62: 2 | CO62: 15 | CP62: 1 | CQ62: 8.251370679 | CR62: 6373 | CS62: 6776 | CT62: 94.05 | CU62: 115.27 | CV62: 0.86 | CW62: Y | CX62: 27000 | CY62: 131000 | CZ62: 0 | DA62: 12000 | DB62: 1000 | DC62: 332042 | DD62: 0 | DE62: 0 | DF62: 0 | DG62: 9 | DH62: 1868.333333 | DI62: 33 | DJ62: 67 | DK62: 0 | DL62: 0 | DM62: 0 | DN62: 33.33333333 | DO62: 66.66666667 | DP62: 195 | DQ62: 86.23076923
A63: Junee | B63: 10 | C63: Large Rural | D63: Riverina | E63: 2030 | F63: 6511 | G63: 6.267341276 | H63: 3.207389163 | I63: 3744 | J63: 57.50268776 | K63: 2767 | L63: 42.49731224 | M63: 22.7768392 | N63: 55.50606666 | O63: 21.71709415 | P63: 36.92213178 | Q63: 41.36077407 | R63: 21.71709415 | S63: 7.8 | T63: 3.1 | U63: 29 | V63: 5.5 | W63: 48872 | X63: 2.5 | Y63: Agriculture, Forestry and Fishing | Z63: 479 | AA63: Data not yet available | AB63: Data not yet available | AC63: Data not yet available | AD63: Data not yet available | AE63: 2.23 | AF63: 1.14 | AG63: 59.22 | AH63: 40.78052503 | AI63: 8.72 | AJ63: 2.92 | AK63: 6.890492626 | AL63: 4.27 | AM63: 15580 | AN63: 15935 | AO63: 1533 | AP63: 739.5079595 | AQ63: 2073 | AR63: 1896 | AS63: 3067.961165 | AT63: 618 | AU63: 356 | AV63: 1854.166667 | AW63: 192 | AX63: N/A | AY63: N/A | AZ63: 0 | BA63: 189.9828745 | BB63: 22.67245538 | BC63: 1039 | BD63: 6.570543224 | BE63: 1115 | BF63: 7.051160438 | BG63: 1134 | BH63: 7.171314741 | BI63: 1991 | BJ63: 12.59090622 | BK63: 2254 | BL63: 14.25409473 | BM63: 3638 | BN63: 23.00638715 | BO63: 4642 | BP63: 29.3555935 | BQ63: 159.576102 | BR63: 174.1667947 | BS63: 110.7356781 | BT63: 305.7902012 | BU63: 278.605437 | BV63: 60.51297804 | BW63: 712.9473199 | BX63: 67.57794502 | BY63: 558.7467363 | BZ63: Data not yet available | CA63: 341.051616 | CB63: Data not yet available | CC63: Data not yet available | CD63: Data not yet available | CE63: Data not yet available | CF63: Data not yet available | CG63: Data not yet available | CH63: Data not yet available | CI63: 3702 | CJ63: 44.35440303 | CK63: 877.95 | CL63: 134.8410382 | CM63: 16.37 | CN63: 1 | CO63: 2 | CP63: 1 | CQ63: 3.798169336 | CR63: 1113 | CS63: 874.6 | CT63: 127.26 | CU63: 86.14 | CV63: 2.69 | CW63: Y | CX63: 1000 | CY63: 99000 | CZ63: 0 | DA63: 2000 | DB63: 0 | DC63: 206777 | DD63: 0 | DE63: 0 | DF63: 0 | DG63: 9 | DH63: 723.4444444 | DI63: 22 | DJ63: 78 | DK63: 0 | DL63: 0 | DM63: 0 | DN63: 78 | DO63: 22 | DP63: 60 | DQ63: 108.5166667
A64: Kempsey | B64: 4 | C64: Regional Town/City | D64: Mid North Coast | E64: 3375.7 | F64: 29534 | G64: 1.150763751 | H64: 8.749000207 | I64: 14924 | J64: 50.53159071 | K64: 14610 | L64: 49.46840929 | M64: 23.34936006 | N64: 44.92787973 | O64: 31.72276021 | P64: 33.05342995 | Q64: 35.22380985 | R64: 31.72276021 | S64: 11.6 | T64: 2.3 | U64: 4 | V64: 5.7 | W64: 43689 | X64: 2.4 | Y64: Health Care & Social Assistance | Z64: 2174 | AA64: Data not yet available | AB64: Data not yet available | AC64: Data not yet available | AD64: Data not yet available | AE64: 3.15 | AF64: 2.51 | AG64: 39.3 | AH64: 60.70341099 | AI64: 6.1 | AJ64: 4.35 | AK64: 9.3242521 | AL64: 11.03 | AM64: 70673 | AN64: 72971 | AO64: 13505 | AP64: 1078.674121 | AQ64: 12520 | AR64: 3067 | AS64: 2118.093923 | AT64: 1448 | AU64: 1976 | AV64: 2466.916355 | AW64: 801 | AX64: N/A | AY64: N/A | AZ64: 0 | BA64: 117.5146822 | BB64: 30.58306709 | BC64: 13490 | BD64: 17.8062302 | BE64: 26967 | BF64: 35.59530095 | BG64: 9093 | BH64: 12.00237592 | BI64: 2267 | BJ64: 2.992344245 | BK64: 4566 | BL64: 6.026927138 | BM64: 15865 | BN64: 20.94112988 | BO64: 3512 | BP64: 4.635691658 | BQ64: 456.7616984 | BR64: 307.8824406 | BS64: 873.0954155 | BT64: 76.75898964 | BU64: 123.8572493 | BV64: 39.98781066 | BW64: 118.9137943 | BX64: 30.74422699 | BY64: 537.1774904 | BZ64: Data not yet available | CA64: 357.5079872 | CB64: Data not yet available | CC64: Data not yet available | CD64: Data not yet available | CE64: Data not yet available | CF64: Data not yet available | CG64: Data not yet available | CH64: Data not yet available | CI64: 17790 | CJ64: 49.15682968 | CK64: 1221.7 | CL64: 41.36588339 | CM64: 615.52 | CN64: 4 | CO64: 15 | CP64: 3 | CQ64: 6.659466414 | CR64: 13136 | CS64: 15272 | CT64: 86.01 | CU64: 59.09 | CV64: 6.74 | CW64: Y | CX64: 52000 | CY64: 219000 | CZ64: 0 | DA64: 13000 | DB64: 0 | DC64: 274809 | DD64: 7 | DE64: 15402 | DF64: 0 | DG64: 9 | DH64: 3281.555556 | DI64: 33 | DJ64: 67 | DK64: 0 | DL64: 0 | DM64: 11 | DN64: 67 | DO64: 22 | DP64: 269 | DQ64: 109.7918216
A65: Kiama | B65: 4 | C65: Regional Town/City | D65: Illawarra Shoalhaven | E65: 257.7 | F65: 22450 | G65: 7.792769002 | H65: 87.11680248 | I65: 11026 | J65: 49.11358575 | K65: 11424 | L65: 50.88641425 | M65: 23.13140312 | N65: 45.71937639 | O65: 31.14922049 | P65: 32.86414254 | Q65: 35.98663697 | R65: 31.14922049 | S65: 1.8 | T65: 4.3 | U65: 108 | V65: 1.9 | W65: 60565 | X65: 2.5 | Y65: Health Care & Social Assistance | Z65: 1873 | AA65: Data not yet available | AB65: Data not yet available | AC65: Data not yet available | AD65: Data not yet available | AE65: -1.61 | AF65: 2.58 | AG65: 78.41 | AH65: 21.5784262 | AI65: 1.55 | AJ65: 10.73 | AK65: 1.031248286 | AL65: 9.09 | AM65: 55569 | AN65: 54716 | AO65: 13441 | AP65: 1382.250103 | AQ65: 9724 | AR65: 573 | AS65: 2459.227468 | AT65: 233 | AU65: 1176 | AV65: 2118.918919 | AW65: 555 | AX65: N/A | AY65: N/A | AZ65: 0 | BA65: 309.6621922 | BB65: 16.97860963 | BC65: 14540 | BD65: 26.17179063 | BE65: 1883 | BF65: 3.389372885 | BG65: 5771 | BH65: 10.3877169 | BI65: 14372 | BJ65: 25.86939304 | BK65: 5597 | BL65: 10.0745194 | BM65: 2853 | BN65: 5.135358917 | BO65: 10540 | BP65: 18.97184823 | BQ65: 647.6614699 | BR65: 257.0601336 | BS65: 0 | BT65: 640.1781737 | BU65: 200.6681514 | BV65: 83.8752784 | BW65: 469.4877506 | BX65: 48.64142539 | BY65: 127.0824053 | BZ65: Data not yet available | CA65: 537.5359934 | CB65: Data not yet available | CC65: Data not yet available | CD65: Data not yet available | CE65: Data not yet available | CF65: Data not yet available | CG65: Data not yet available | CH65: Data not yet available | CI65: 9120 | CJ65: 80.99780702 | CK65: 274.076 | CL65: 12.20828508 | CM65: 345.2 | CN65: 6 | CO65: 20 | CP65: 2 | CQ65: 6.301099294 | CR65: 4730 | CS65: 5019 | CT65: 94.24 | CU65: 69.72 | CV65: 1.63 | CW65: Y | CX65: 76000 | CY65: 212000 | CZ65: 0 | DA65: 27616 | DB65: 9672 | DC65: 302576 | DD65: 1 | DE65: 6260 | DF65: 1 | DG65: 9 | DH65: 2494.444444 | DI65: 11.11111111 | DJ65: 88.88888889 | DK65: 0 | DL65: 0 | DM65: 0 | DN65: 33 | DO65: 67 | DP65: 292 | DQ65: 76.88356164
A66: Ku-ring-gai | B66: 3 | C66: Metropolitan | E66: 85.4 | F66: 124444 | G66: 6.794133548 | H66: 1457.189696 | I66: 60125 | J66: 48.3149047 | K66: 64319 | L66: 51.6850953 | M66: 28.15322555 | N66: 48.95294269 | O66: 22.89383176 | P66: 38.28951175 | Q66: 38.81665649 | R66: 22.89383176 | S66: 0.2 | T66: 27.7 | U66: 130 | V66: 2.6 | W66: 99236 | X66: 2.9 | Y66: Professional Scientific & Technical Services | Z66: 14397 | AA66: Data not yet available | AB66: Data not yet available | AC66: Data not yet available | AD66: Data not yet available | AE66: 4.01 | AF66: 3.05 | AG66: 76.97 | AH66: 23.03109583 | AI66: 2.96 | AJ66: 13.96 | AK66: 1.448800468 | AL66: 16.8 | AM66: 123036 | AN66: 128175 | AO66: 56947 | AP66: 1326.230234 | AQ66: 42939 | AR66: N/A | AS66: N/A | AT66: N/A | AU66: 4351 | AV66: 4077.788191 | AW66: 1067 | AX66: N/A | AY66: N/A | AZ66: 0 | BA66: 641.4696103 | BB66: 6.832949067 | BC66: 26650 | BD66: 21.64924167 | BE66: 5112 | BF66: 4.1527551 | BG66: 27768 | BH66: 22.55745376 | BI66: 12124 | BJ66: 9.848983339 | BK66: 28480 | BL66: 23.13585001 | BM66: 15388 | BN66: 12.50050772 | BO66: 7577 | BP66: 6.155208409 | BQ66: 214.1525505 | BR66: 223.1365112 | BS66: 0 | BT66: 97.42534795 | BU66: 192.5122947 | BV66: 41.07871814 | BW66: 60.8868246 | BX66: 36.34566552 | BY66: 123.6540131 | BZ66: Data not yet available | CA66: 469.8991593 | CB66: Data not yet available | CC66: Data not yet available | CD66: Data not yet available | CE66: Data not yet available | CF66: Data not yet available | CG66: Data not yet available | CH66: Data not yet available | CI66: 36319 | CJ66: 84.79033013 | CK66: 478.6 | CL66: 3.845906593 | CM66: 1459.69 | CN66: 1 | CO66: 24 | CP66: 4 | CQ66: 7.115742446 | CR66: 16368 | CS66: 14280 | CT66: 114.62 | CU66: 61.14 | CV66: 2.9 | CW66: Y | CX66: 67000 | CY66: 303000 | CZ66: 0 | DA66: 21000 | DB66: 0 | DC66: 369588 | DD66: 7 | DE66: 4570 | DF66: 0 | DG66: 10 | DH66: 12444.4 | DI66: 30 | DJ66: 70 | DK66: 0 | DL66: 0 | DM66: 10 | DN66: 60 | DO66: 30 | DP66: 480 | DQ66: 259.2583333
A67: Kyogle | B67: 10 | C67: Large Rural | D67: Northern Rivers | E67: 3584.2 | F67: 8979 | G67: -5.732283465 | H67: 2.505161542 | I67: 4596 | J67: 51.1861009 | K67: 4383 | L67: 48.8138991 | M67: 22.37442922 | N67: 45.26116494 | O67: 32.36440584 | P67: 29.43534915 | Q67: 38.20024502 | R67: 32.36440584 | S67: 4.3 | T67: 2.7 | U67: 13 | V67: 7 | W67: 43128 | X67: 2.2 | Y67: Agriculture, Forestry and Fishing | Z67: 957 | AA67: Data not yet available | AB67: Data not yet available | AC67: Data not yet available | AD67: Data not yet available | AE67: 8.75 | AF67: 5.63 | AG67: 52.91 | AH67: 47.08582195 | AI67: 6.89 | AJ67: 21.21 | AK67: 1.639551015 | AL67: 11.12 | AM67: 21705 | AN67: 23787 | AO67: 2584 | AP67: 849.4411571 | AQ67: 3042 | AR67: 3301 | AS67: 1730.991085 | AT67: 1907 | AU67: 274 | AV67: 1175.965665 | AW67: 233 | AX67: N/A | AY67: N/A | AZ67: 0 | BA67: 165.2103832 | BB67: 36.9165023 | BC67: 2476 | BD67: 10.0736401 | BE67: 3044 | BF67: 12.38455592 | BG67: 1979 | BH67: 8.051588755 | BI67: 933 | BJ67: 3.795923349 | BK67: 2102 | BL67: 8.552015949 | BM67: 8113 | BN67: 33.00785223 | BO67: 5932 | BP67: 24.1344237 | BQ67: 275.7545384 | BR67: 220.4031629 | BS67: 246.4639715 | BT67: 103.9091213 | BU67: 191.8921929 | BV67: 92.54928166 | BW67: 660.6526339 | BX67: 42.20960018 | BY67: 903.5527342 | BZ67: Data not yet available | CA67: 295.200526 | CB67: Data not yet available | CC67: Data not yet available | CD67: Data not yet available | CE67: Data not yet available | CF67: Data not yet available | CG67: Data not yet available | CH67: Data not yet available | CI67: 4816 | CJ67: 51.66112957 | CK67: 1217.33 | CL67: 135.5752311 | CM67: 21 | CN67: 3 | CO67: 2 | CP67: 1 | CQ67: 4.855270528 | CR67: 4827.9 | CS67: 5038.53 | CT67: 95.82 | CU67: 282.86 | CV67: 4.12 | CW67: Y | CX67: 31000 | CY67: 129000 | CZ67: 0 | DA67: 8000 | DB67: 6000 | DC67: 234944 | DD67: 0 | DE67: 0 | DF67: 0 | DG67: 9 | DH67: 997.6666667 | DI67: 44 | DJ67: 56 | DK67: 0 | DL67: 0 | DM67: 11 | DN67: 33 | DO67: 56 | DP67: 106 | DQ67: 84.70754717
A68: Lachlan | B68: 10 | C68: Large Rural | D68: Central NSW | E68: 14964.3 | F68: 6225 | G68: -7.572383073 | H68: 0.4159900563 | I68: 3089 | J68: 49.62248996 | K68: 3136 | L68: 50.37751004 | M68: 28.06425703 | N68: 45.57429719 | O68: 26.36144578 | P68: 39.08433735 | Q68: 34.55421687 | R68: 26.36144578 | S68: 17.7 | T68: 2.2 | U68: 25 | V68: 7 | W68: 43330 | X68: 2.4 | Y68: Agriculture, Forestry and Fishing | Z68: 1004 | AA68: Data not yet available | AB68: Data not yet available | AC68: Data not yet available | AD68: Data not yet available | AE68: 9.6 | AF68: 5.22 | AG68: 43.6 | AH68: 56.4022976 | AI68: 8.43 | AJ68: 57.81 | AK68: 0.448335323 | AL68: 14.09 | AM68: 34076 | AN68: 37695 | AO68: 1081 | AP68: 471.2292938 | AQ68: 2294 | AR68: 4358 | AS68: 3060.393258 | AT68: 1424 | AU68: 229 | AV68: 503.2967033 | AW68: 455 | AX68: 53 | AY68: 53000 | AZ68: 1 | BA68: 152.4940093 | BB68: 19.48561465 | BC68: 3824 | BD68: 10.96047465 | BE68: 8230 | BF68: 23.58909685 | BG68: 2198 | BH68: 6.299979936 | BI68: 2193 | BJ68: 6.285648772 | BK68: 3604 | BL68: 10.32990341 | BM68: 12078 | BN68: 34.61836109 | BO68: 2762 | BP68: 7.916535298 | BQ68: 614.2971888 | BR68: 353.0923695 | BS68: 1030.040161 | BT68: 352.2891566 | BU68: 523.8554217 | BV68: 292.0481928 | BW68: 443.6947791 | BX68: 55.10040161 | BY68: 1940.240964 | BZ68: Data not yet available | CA68: 330.8631212 | CB68: Data not yet available | CC68: Data not yet available | CD68: Data not yet available | CE68: Data not yet available | CF68: Data not yet available | CG68: Data not yet available | CH68: Data not yet available | CI68: 4177 | CJ68: 29.54273402 | CK68: 3981.53 | CL68: 639.6032129 | CM68: 268.5 | CN68: 3 | CO68: 8 | CP68: 2 | CQ68: 3.040077257 | CR68: 10285 | CS68: 11243 | CT68: 91.48 | CU68: 75.3 | CV68: 6.56 | CW68: Y | CX68: 64000 | CY68: 141000 | CZ68: 0 | DA68: 16000 | DB68: 0 | DC68: 258000 | DD68: 0 | DE68: 0 | DF68: 0 | DG68: 10 | DH68: 622.5 | DI68: 20 | DJ68: 80 | DK68: 10 | DL68: 0 | DM68: 0 | DN68: 20 | DO68: 80 | DP68: 135 | DQ68: 46.11111111
A69: Lake Macquarie | B69: 5 | C69: Regional Town/City | D69: Hunter | E69: 648.6 | F69: 203376 | G69: 2.534938593 | H69: 313.5615171 | I69: 99463 | J69: 48.90596727 | K69: 103913 | L69: 51.09403273 | M69: 24.985249 | N69: 48.75059004 | O69: 26.26416096 | P69: 36.25206514 | Q69: 37.4837739 | R69: 26.26416096 | S69: 4.1 | T69: 4.4 | U69: 89 | V69: 5.5 | W69: 57506 | X69: 2.5 | Y69: Health Care & Social Assistance | Z69: 12610 | AA69: Data not yet available | AB69: Data not yet available | AC69: Data not yet available | AD69: Data not yet available | AE69: 5.56 | AF69: 2.75 | AG69: 68.32 | AH69: 31.67646044 | AI69: 3.53 | AJ69: 8.52 | AK69: 3.339628526 | AL69: 8.74 | AM69: 218028 | AN69: 230864 | AO69: 105825 | AP69: 1320.74883 | AQ69: 80125 | AR69: 72 | AS69: 1800 | AT69: 40 | AU69: 17790 | AV69: 4711.334746 | AW69: 3776 | AX69: 914 | AY69: 50777.77778 | AZ69: 18 | BA69: 194.0779176 | BB69: 20.95725429 | BC69: 14427 | BD69: 6.52504274 | BE69: 12775 | BF69: 5.777876274 | BG69: 60686 | BH69: 27.44706063 | BI69: 32281 | BJ69: 14.60004885 | BK69: 43693 | BL69: 19.76146756 | BM69: 36447 | BN69: 16.48424709 | BO69: 20793 | BP69: 9.404256859 | BQ69: 70.93757376 | BR69: 298.3931241 | BS69: 0 | BT69: 158.72571 | BU69: 161.5923216 | BV69: 62.81468807 | BW69: 102.2392023 | BX69: 53.24620408 | BY69: 179.2099363 | BZ69: Data not yet available | CA69: 431.4134165 | CB69: Data not yet available | CC69: Data not yet available | CD69: Data not yet available | CE69: Data not yet available | CF69: Data not yet available | CG69: Data not yet available | CH69: Data not yet available | CI69: 105758 | CJ69: 64.39985628 | CK69: 1366.63 | CL69: 6.719721108 | CM69: 1664.22 | CN69: 17 | CO69: 36 | CP69: 10 | CQ69: 7.137957934 | CR69: 37474 | CS69: 40421 | CT69: 92.71 | CU69: 100.4 | CV69: 2.43 | CW69: Y | CX69: 172000 | CY69: 476000 | CZ69: 0 | DA69: 94000 | DB69: 0 | DC69: 367973 | DD69: 1 | DE69: 0 | DF69: 0 | DG69: 13 | DH69: 15644.30769 | DI69: 23 | DJ69: 77 | DK69: 0 | DL69: 0 | DM69: 8 | DN69: 54 | DO69: 38 | DP69: 1212 | DQ69: 167.8019802
A70: Lane Cove | B70: 2 | C70: Metropolitan | E70: 10.5 | F70: 38742 | G70: 14.87279843 | H70: 3689.714286 | I70: 19174 | J70: 49.49150792 | K70: 19568 | L70: 50.50849208 | M70: 23.94042641 | N70: 57.90098601 | O70: 18.15858758 | P70: 37.84007021 | Q70: 44.00134221 | R70: 18.15858758 | S70: 0.3 | T70: 26.4 | U70: 126 | V70: 2.8 | W70: 96080 | X70: 2.5 | Y70: Professional Scientific & Technical Services | Z70: 4606 | AA70: Data not yet available | AB70: Data not yet available | AC70: Data not yet available | AD70: Data not yet available | AE70: 5.77 | AF70: 6.37 | AG70: 69.92 | AH70: 30.0764663 | AI70: 1.45 | AJ70: 0 | AK70: 0 | AL70: 17.48 | AM70: 41385 | AN70: 43919 | AO70: 17689 | AP70: 1181.472081 | AQ70: 14972 | AR70: N/A | AS70: N/A | AT70: N/A | AU70: 5399 | AV70: 4807.658059 | AW70: 1123 | AX70: N/A | AY70: N/A | AZ70: 0 | BA70: 508.684653 | BB70: 5.577077211 | BC70: 9442 | BD70: 22.81447833 | BE70: 1464 | BF70: 3.537428116 | BG70: 8535 | BH70: 20.62291596 | BI70: 6029 | BJ70: 14.56772822 | BK70: 9821 | BL70: 23.73024694 | BM70: 3508 | BN70: 8.476296332 | BO70: 2587 | BP70: 6.250906104 | BQ70: 243.7148314 | BR70: 220.3035465 | BS70: 0 | BT70: 155.6192246 | BU70: 181.9988643 | BV70: 37.78844665 | BW70: 66.77507614 | BX70: 71.49863198 | BY70: 90.54772598 | BZ70: Data not yet available | CA70: 414.1063318 | CB70: Data not yet available | CC70: Data not yet available | CD70: Data not yet available | CE70: Data not yet available | CF70: Data not yet available | CG70: Data not yet available | CH70: Data not yet available | CI70: 8943 | CJ70: 52.64452645 | CK70: 101.61 | CL70: 2.622735016 | CM70: 212 | CN70: 4 | CO70: 12 | CP70: 2 | CQ70: 13.45456655 | CR70: 4609.843 | CS70: 2317.425 | CT70: 198.92 | CU70: 117.12 | CV70: 0.83 | CW70: Y | CX70: 51000 | CY70: 212000 | CZ70: 0 | DA70: 9000 | DB70: 0 | DC70: 401954 | DD70: 2 | DE70: 0 | DF70: 0 | DG70: 9 | DH70: 4304.666667 | DI70: 56 | DJ70: 44 | DK70: 0 | DL70: 0 | DM70: 11.11111111 | DN70: 67 | DO70: 22 | DP70: 192 | DQ70: 201.78125
A71: Leeton | B71: 11 | C71: Large Rural | D71: Riverina and Murray | E71: 1167.2 | F71: 11417 | G71: -0.7044703427 | H71: 9.781528444 | I71: 5683 | J71: 49.77664886 | K71: 5734 | L71: 50.22335114 | M71: 29.69256372 | N71: 47.26285364 | O71: 23.04458264 | P71: 41.19295787 | Q71: 35.76245949 | R71: 23.04458264 | S71: 5.7 | T71: 7.3 | U71: 35 | V71: 6.3 | W71: 48701 | X71: 2.5 | Y71: Manufacturing | Z71: 957 | AA71: Data not yet available | AB71: Data not yet available | AC71: Data not yet available | AD71: Data not yet available | AE71: 12.86 | AF71: 5.12 | AG71: 71.84 | AH71: 28.16358407 | AI71: 3.92 | AJ71: 25.15 | AK71: 1.29133242 | AL71: 22.51 | AM71: 26723 | AN71: 30666 | AO71: 3476 | AP71: 871.8334587 | AQ71: 3987 | AR71: 2788 | AS71: 3433.497537 | AT71: 812 | AU71: 408 | AV71: 798.4344423 | AW71: 511 | AX71: N/A | AY71: N/A | AZ71: 0 | BA71: 76.34003417 | BB71: 23.04991221 | BC71: 2989 | BD71: 11.18512143 | BE71: 6827 | BF71: 25.54728137 | BG71: 2789 | BH71: 10.43670247 | BI71: 3096 | BJ71: 11.58552558 | BK71: 3728 | BL71: 13.95052951 | BM71: 4940 | BN71: 18.48594843 | BO71: 2354 | BP71: 8.808891217 | BQ71: 261.8025751 | BR71: 244.2848384 | BS71: 533.064728 | BT71: 271.1745642 | BU71: 286.3274065 | BV71: 64.9032145 | BW71: 206.1837611 | BX71: 40.20320575 | BY71: 432.6880967 | BZ71: Data not yet available | CA71: 260.8477552 | CB71: Data not yet available | CC71: Data not yet available | CD71: Data not yet available | CE71: Data not yet available | CF71: Data not yet available | CG71: Data not yet available | CH71: Data not yet available | CI71: 7175 | CJ71: 51.45644599 | CK71: 900.96 | CL71: 78.91390032 | CM71: 185.75 | CN71: 2 | CO71: 6 | CP71: 1 | CQ71: 3.158581436 | CR71: 5313 | CS71: 5313 | CT71: 100 | CU71: 63.76 | CV71: 2.17 | CW71: Y | CX71: 45000 | CY71: 129000 | CZ71: 0 | DA71: 19000 | DB71: 0 | DC71: 237101 | DD71: 0 | DE71: 0 | DF71: 0 | DG71: 9 | DH71: 1268.555556 | DI71: 22 | DJ71: 78 | DK71: 0 | DL71: 11 | DM71: 0 | DN71: 67 | DO71: 33 | DP71: 117 | DQ71: 97.58119658
A72: Lismore | B72: 4 | C72: Regional Town/City | D72: Northern Rivers | E72: 1287.7 | F72: 43905 | G72: -1.303810273 | H72: 34.09567446 | I72: 21479 | J72: 48.92153513 | K72: 22426 | L72: 51.07846487 | M72: 24.80355313 | N72: 49.79615078 | O72: 25.40029609 | P72: 35.74991459 | Q72: 38.84978932 | R72: 25.40029609 | S72: 5 | T72: 4.6 | U72: 45 | V72: 5.9 | W72: 45735 | X72: 2.4 | Y72: Health Care & Social Assistance | Z72: 4045 | AA72: Data not yet available | AB72: Data not yet available | AC72: Data not yet available | AD72: Data not yet available | AE72: 1.44 | AF72: 1.37 | AG72: 71.36 | AH72: 28.63608367 | AI72: 9.02 | AJ72: 3.41 | AK72: 7.468155806 | AL72: 7.46 | AM72: 106776 | AN72: 108340 | AO72: 18148 | AP72: 1171.518946 | AQ72: 15491 | AR72: 4443 | AS72: 2337.190952 | AT72: 1901 | AU72: 5425 | AV72: 4443.079443 | AW72: 1221 | AX72: N/A | AY72: N/A | AZ72: 0 | BA72: 121.7707988 | BB72: 23.07791621 | BC72: 6661 | BD72: 6.04095625 | BE72: 30716 | BF72: 27.85678009 | BG72: 16279 | BH72: 14.76365813 | BI72: 4236 | BJ72: 3.841689037 | BK72: 17144 | BL72: 15.54813901 | BM72: 22236 | BN72: 20.1661467 | BO72: 12992 | BP72: 11.78263078 | BQ72: 151.7139278 | BR72: 370.7778157 | BS72: 624.0063774 | BT72: 96.48103861 | BU72: 272.2924496 | BV72: 75.59503473 | BW72: 295.9116274 | BX72: 118.1869946 | BY72: 506.4571233 | BZ72: Data not yet available | CA72: 296.4947389 | CB72: Data not yet available | CC72: Data not yet available | CD72: Data not yet available | CE72: Data not yet available | CF72: Data not yet available | CG72: Data not yet available | CH72: Data not yet available | CI72: 21932 | CJ72: 63.35947474 | CK72: 1223.03 | CL72: 27.85628061 | CM72: 405.088 | CN72: 3 | CO72: 7 | CP72: 3 | CQ72: 8.991053496 | CR72: 10498 | CS72: 11332 | CT72: 92.64 | CU72: 60.07 | CV72: 13.63 | CW72: Y | CX72: 160000 | CY72: 268000 | CZ72: 12000 | DA72: 17000 | DB72: 2000 | DC72: 347622 | DD72: 12 | DE72: 39074 | DF72: 2 | DG72: 11 | DH72: 3991.363636 | DI72: 45 | DJ72: 55 | DK72: 0 | DL72: 9 | DM72: 0 | DN72: 82 | DO72: 18 | DP72: 431 | DQ72: 101.8677494
A73: Lithgow | B73: 4 | C73: Regional Town/City | E73: 4512.3 | F73: 21565 | G73: 2.64648484 | H73: 4.779159187 | I73: 10992 | J73: 50.97148157 | K73: 10573 | L73: 49.02851843 | M73: 23.22281475 | N73: 48.11500116 | O73: 28.66218409 | P73: 34.30558776 | Q73: 37.03222815 | R73: 28.66218409 | S73: 5.7 | T73: 3.4 | U73: 17 | V73: 7.5 | W73: 56652 | X73: 2.3 | Y73: Health Care & Social Assistance | Z73: 1271 | AA73: Data not yet available | AB73: Data not yet available | AC73: Data not yet available | AD73: Data not yet available | AE73: -1.99 | AF73: 1.81 | AG73: 73.97 | AH73: 26.02871715 | AI73: 5.92 | AJ73: 4.49 | AK73: 6.079466124 | AL73: 12.95 | AM73: 43096 | AN73: 42257 | AO73: 13602 | AP73: 1422.803347 | AQ73: 9560 | AR73: 1762 | AS73: 1377.63878 | AT73: 1279 | AU73: 1729 | AV73: 3528.571429 | AW73: 490 | AX73: 2035 | AY73: 156538.4615 | AZ73: 13 | BA73: 83.69390893 | BB73: 25.46025105 | BC73: 621 | BD73: 1.410914709 | BE73: 14796 | BF73: 33.61657654 | BG73: 3356 | BH73: 7.62484664 | BI73: 4222 | BJ73: 9.592402417 | BK73: 7392 | BL73: 16.79465625 | BM73: 4455 | BN73: 10.12177943 | BO73: 9172 | BP73: 20.83882401 | BQ73: 28.79666126 | BR73: 155.6225365 | BS73: 616.090888 | BT73: 195.7801994 | BU73: 269.2789242 | BV73: 70.02086715 | BW73: 425.3188036 | BX73: 73.49872479 | BY73: 206.5847438 | BZ73: Data not yet available | CA73: 368.4100418 | CB73: Data not yet available | CC73: Data not yet available | CD73: Data not yet available | CE73: Data not yet available | CF73: Data not yet available | CG73: Data not yet available | CH73: Data not yet available | CI73: 17690 | CJ73: 35.00847937 | CK73: 1331.928 | CL73: 61.76341294 | CM73: 92.63 | CN73: 1 | CO73: 12 | CP73: 3 | CQ73: 3.650398222 | CR73: 5346 | CS73: 7138 | CT73: 74.89 | CU73: 86.97 | CV73: 6.04 | CW73: Y | CX73: 26000 | CY73: 117000 | CZ73: 0 | DA73: 8366 | DB73: 0 | DC73: 238740 | DD73: 3 | DE73: 9500 | DF73: 3 | DG73: 9 | DH73: 2396.111111 | DI73: 33 | DJ73: 67 | DK73: 0 | DL73: 0 | DM73: 0 | DN73: 56 | DO73: 44 | DP73: 184 | DQ73: 117.201087
A74: Liverpool | B74: 3 | C74: Metropolitan | E74: 305.7 | F74: 217586 | G74: 13.7740269 | H74: 711.7631665 | I74: 108572 | J74: 49.89843097 | K74: 109014 | L74: 50.10156903 | M74: 29.81901409 | N74: 55.33444247 | O74: 14.84654344 | P74: 44.63154799 | Q74: 40.52190858 | R74: 14.84654344 | S74: 1.5 | T74: 51.9 | U74: 82 | V74: 4.9 | W74: 55082 | X74: 3.2 | Y74: Health Care & Social Assistance | Z74: 15538 | AA74: Data not yet available | AB74: Data not yet available | AC74: Data not yet available | AD74: Data not yet available | AE74: 5.4 | AF74: 2.11 | AG74: 55.15 | AH74: 44.87977636 | AI74: 4.61 | AJ74: 6.4 | AK74: 4.018496453 | AL74: 15.16 | AM74: 173013 | AN74: 182769 | AO74: 71309 | AP74: 1081.438906 | AQ74: 65939 | AR74: 511 | AS74: 3729.927007 | AT74: 137 | AU74: 22089 | AV74: 6752.98074 | AW74: 3271 | AX74: N/A | AY74: N/A | AZ74: 0 | BA74: 345.6286856 | BB74: 13.51703847 | BC74: 39903 | BD74: 21.8478975 | BE74: 6818 | BF74: 3.733026719 | BG74: 38036 | BH74: 20.82566798 | BI74: 25612 | BJ74: 14.02321507 | BK74: 36835 | BL74: 20.16809023 | BM74: 25546 | BN74: 13.98707841 | BO74: 9890 | BP74: 5.415024091 | BQ74: 183.3895563 | BR74: 174.809041 | BS74: 0 | BT74: 117.7097791 | BU74: 127.9723879 | BV74: 31.33473661 | BW74: 45.45329203 | BX74: 41.3169965 | BY74: 117.4064508 | BZ74: Data not yet available | CA74: 438.6175101 | CB74: Data not yet available | CC74: Data not yet available | CD74: Data not yet available | CE74: Data not yet available | CF74: Data not yet available | CG74: Data not yet available | CH74: Data not yet available | CI74: 58528 | CJ74: 47.47983871 | CK74: 920.495 | CL74: 4.230488175 | CM74: 1672.11 | CN74: 3 | CO74: 29 | CP74: 6 | CQ74: 3.264324687 | CR74: 19955 | CS74: 18843 | CT74: 105.9 | CU74: 86.47 | CV74: 2.6 | CW74: Y | CX74: 85000 | CY74: 335000 | CZ74: 0 | DA74: 14761 | DB74: 14376 | DC74: 389329 | DD74: 2 | DE74: 2000 | DF74: 0 | DG74: 11 | DH74: 19780.54545 | DI74: 36 | DJ74: 64 | DK74: 0 | DL74: 40 | DM74: 10 | DN74: 50 | DO74: 40 | DP74: 743 | DQ74: 292.8479139
A75: Liverpool Plains | B75: 10 | C75: Large Rural | D75: Namoi | E75: 5082.2 | F75: 7867 | G75: 1.066289825 | H75: 1.547951674 | I75: 3941 | J75: 50.09533494 | K75: 3926 | L75: 49.90466506 | M75: 25.37180628 | N75: 45.11249523 | O75: 29.51569849 | P75: 34.62565146 | Q75: 35.85865006 | R75: 29.51569849 | S75: 12.4 | T75: 1.1 | U75: 15 | V75: 6.8 | W75: 47792 | X75: 2.3 | Y75: Agriculture, Forestry and Fishing | Z75: 997 | AA75: Data not yet available | AB75: Data not yet available | AC75: Data not yet available | AD75: Data not yet available | AE75: -35.1 | AF75: 3.68 | AG75: 57.83 | AH75: 42.17074593 | AI75: 6.63 | AJ75: 3.28 | AK75: 2.139012834 | AL75: 14.72 | AM75: 29369 | AN75: 21739 | AO75: 1933 | AP75: 663.5770683 | AQ75: 2913 | AR75: 4105 | AS75: 4117.352056 | AT75: 997 | AU75: 328 | AV75: 961.8768328 | AW75: 341 | AX75: 297 | AY75: 74250 | AZ75: 4 | BA75: 215.0226129 | BB75: 28.9392379 | BC75: 4996 | BD75: 16.82948191 | BE75: 5277 | BF75: 17.77605605 | BG75: 1847 | BH75: 6.221788048 | BI75: 1784 | BJ75: 6.009566799 | BK75: 3212 | BL75: 10.81991511 | BM75: 10723 | BN75: 36.12140403 | BO75: 1847 | BP75: 6.221788048 | BQ75: 635.0578365 | BR75: 234.7781874 | BS75: 559.8067878 | BT75: 226.7700521 | BU75: 346.2565146 | BV75: 110.9698742 | BW75: 234.7781874 | BX75: 62.03126986 | BY75: 1363.035465 | BZ75: Data not yet available | CA75: 463.4397528 | CB75: Data not yet available | CC75: Data not yet available | CD75: Data not yet available | CE75: Data not yet available | CF75: Data not yet available | CG75: Data not yet available | CH75: Data not yet available | CI75: 7044 | CJ75: 34.59681999 | CK75: 1393.91 | CL75: 177.1844413 | CM75: 90 | CN75: 2 | CO75: 9 | CP75: 3 | CQ75: 3.354760999 | CR75: 6240 | CS75: 6451 | CT75: 96.73 | CU75: 15.43 | CV75: 2.08 | CW75: Y | CX75: 47000 | CY75: 106000 | CZ75: 4000 | DA75: 8000 | DB75: 11000 | DC75: 262069 | DD75: 2 | DE75: 5331 | DF75: 0 | DG75: 7 | DH75: 1123.857143 | DI75: 14 | DJ75: 86 | DK75: 10 | DL75: 0 | DM75: 0 | DN75: 30 | DO75: 70 | DP75: 114 | DQ75: 69.00877193
A76: Lockhart | B76: 9 | C76: Rural | D76: Riverina | E76: 2895.8 | F76: 3237 | G76: 5.029201817 | H76: 1.117825817 | I76: 1601 | J76: 49.45937597 | K76: 1636 | L76: 50.54062403 | M76: 27.58727217 | N76: 43.86777881 | O76: 28.54494903 | P76: 36.45350633 | Q76: 35.00154464 | R76: 28.54494903 | S76: 3.4 | T76: 1.3 | U76: 81 | V76: 3.2 | W76: 45645 | X76: 2.5 | Y76: Agriculture, Forestry and Fishing | Z76: 297 | AA76: Data not yet available | AB76: Data not yet available | AC76: Data not yet available | AD76: Data not yet available | AE76: 8.4 | AF76: 8.36 | AG76: 34.46 | AH76: 65.54403541 | AI76: 5.03 | AJ76: 37.64 | AK76: 1.036074221 | AL76: 18.87 | AM76: 9725 | AN76: 10617 | AO76: 335 | AP76: 291.3043478 | AQ76: 1150 | AR76: 1890 | AS76: 1687.5 | AT76: 1120 | AU76: 101 | AV76: 463.3027523 | AW76: 218 | AX76: N/A | AY76: N/A | AZ76: 0 | BA76: 320.9203689 | BB76: 27.56521739 | BC76: 1920 | BD76: 19.46 | BE76: 726 | BF76: 7.357859532 | BG76: 1145 | BH76: 11.60433769 | BI76: 593 | BJ76: 6.009932097 | BK76: 730 | BL76: 7.398398703 | BM76: 3255 | BN76: 32.99 | BO76: 1498 | BP76: 15.18191953 | BQ76: 593.141798 | BR76: 353.7225826 | BS76: 154.4640099 | BT76: 183.1943157 | BU76: 190.2996602 | BV76: 69.81773247 | BW76: 462.7741736 | BX76: 35.21779425 | BY76: 1005.560704 | BZ76: Data not yet available | CA76: 297.3913043 | CB76: Data not yet available | CC76: Data not yet available | CD76: Data not yet available | CE76: Data not yet available | CF76: Data not yet available | CG76: Data not yet available | CH76: Data not yet available | CI76: 2116 | CJ76: 44.3289225 | CK76: 1368.21 | CL76: 422.6784059 | CM76: 37 | CN76: 2 | CO76: 8 | CP76: 0 | CQ76: 2.706317411 | CR76: 1864 | CS76: 1673 | CT76: 111.42 | CU76: 57.15 | CV76: 1.07 | CW76: Y | CX76: 18000 | CY76: 116000 | CZ76: 0 | DA76: 10000 | DB76: 0 | DC76: 209613 | DD76: 0 | DE76: 0 | DF76: 0 | DG76: 9 | DH76: 359.6666667 | DI76: 11.11111111 | DJ76: 88.88888889 | DK76: 0 | DL76: 0 | DM76: 0 | DN76: 33 | DO76: 67 | DP76: 51 | DQ76: 63.47058824
A77: Maitland | B77: 5 | C77: Regional Town/City | D77: Hunter | E77: 391.5 | F77: 80989 | G77: 12.69445913 | H77: 206.8684547 | I77: 39682 | J77: 48.99677734 | K77: 41307 | L77: 51.00322266 | M77: 28.57425082 | N77: 52.22190668 | O77: 19.2038425 | P77: 42.17733272 | Q77: 38.61882478 | R77: 19.2038425 | S77: 5.3 | T77: 4 | U77: 75 | V77: 4.8 | W77: 59924 | X77: 2.7 | Y77: Health Care & Social Assistance | Z77: 5434 | AA77: Data not yet available | AB77: Data not yet available | AC77: Data not yet available | AD77: Data not yet available | AE77: * | AF77: * | AG77: * | AH77: * | AI77: * | AJ77: * | AK77: * | AL77: * | AM77: * | AN77: * | AO77: * | AP77: * | AQ77: * | AR77: * | AS77: * | AT77: * | AU77: * | AV77: * | AW77: * | AX77: * | AY77: * | AZ77: * | BA77: * | BB77: * | BC77: * | BD77: * | BE77: * | BF77: * | BG77: * | BH77: * | BI77: * | BJ77: * | BK77: * | BL77: * | BM77: * | BN77: * | BO77: * | BP77: * | BQ77: * | BR77: * | BS77: * | BT77: * | BU77: * | BV77: * | BW77: * | BX77: * | BY77: * | BZ77: Data not yet available | CA77: * | CB77: Data not yet available | CC77: Data not yet available | CD77: Data not yet available | CE77: Data not yet available | CF77: Data not yet available | CG77: Data not yet available | CH77: Data not yet available | CI77: 45760 | CJ77: 46.45541958 | CK77: 719.07 | CL77: 8.878613145 | CM77: 514.62 | CN77: 3 | CO77: 17 | CP77: 4 | CQ77: 5.653991506 | CR77: * | CS77: * | CT77: * | CU77: * | CV77: * | CW77: N | CX77: * | CY77: * | CZ77: * | DA77: * | DB77: * | DC77: * | DD77: 0 | DE77: 0 | DF77: 0 | DG77: 13 | DH77: 6229.923077 | DI77: 31 | DJ77: 69 | DK77: 0 | DL77: 0 | DM77: 8 | DN77: 69 | DO77: 23 | DP77: * | DQ77: *
A78: Mid-Coast | B78: 5 | C78: Regional Town/City | D78: Hunter | E78: 10053.2 | F78: 92462 | G78: 3.545511557 | H78: 9.197270521 | I78: 45357 | J78: 49.05474681 | K78: 47105 | L78: 50.94525319 | M78: 21.33525124 | N78: 40.74863187 | O78: 37.91611689 | P78: 29.16441349 | Q78: 32.91946962 | R78: 37.91611689 | S78: 6.2 | T78: 2.6 | U78: 20 | V78: 5 | W78: 45338 | X78: 2.2 | Y78: Health Care & Social Assistance | Z78: 6658 | AA78: Data not yet available | AB78: Data not yet available | AC78: Data not yet available | AD78: Data not yet available | AE78: 1.9 | AF78: 5.3 | AG78: 76.43 | AH78: 23.57309144 | AI78: 6.28 | AJ78: 2.8 | AK78: 14.30090912 | AL78: 10.72 | AM78: 234273 | AN78: 238803 | AO78: 60328 | AP78: 1328.313187 | AQ78: 45417 | AR78: 4938 | AS78: 789.9536074 | AT78: 6251 | AU78: 3413 | AV78: 1280.195049 | AW78: 2666 | AX78: 282 | AY78: 47000 | AZ78: 6 | BA78: 143.2561173 | BB78: 26.12237708 | BC78: 29919 | BD78: 12.75281641 | BE78: 82106 | BF78: 34.99725072 | BG78: 29807 | BH78: 12.705077 | BI78: 16424 | BJ78: 7.00064363 | BK78: 19317 | BL78: 8.233769666 | BM78: 48233 | BN78: 20.5590626 | BO78: 8801 | BP78: 3.751379967 | BQ78: 323.5815795 | BR78: 322.370271 | BS78: 838.9392399 | BT78: 177.629729 | BU78: 161.7853821 | BV78: 49.05799139 | BW78: 95.18504899 | BX78: 47.13287621 | BY78: 521.6521382 | BZ78: Data not yet available | CA78: 366.2725411 | CB78: Data not yet available | CC78: Data not yet available | CD78: Data not yet available | CE78: Data not yet available | CF78: Data not yet available | CG78: Data not yet available | CH78: Data not yet available | CI78: 55137 | CJ78: 62.42994722 | CK78: 3599 | CL78: 38.92409855 | CM78: 1554.8 | CN78: 18 | CO78: 29 | CP78: 8 | CQ78: 7.957620802 | CR78: 44876 | CS78: 61552 | CT78: 72.91 | CU78: 38.25 | CV78: 8.83 | CW78: Y | CX78: 58000 | CY78: 198000 | CZ78: 0 | DA78: 18000 | DB78: 2000 | DC78: 417683 | DD78: 3 | DE78: 0 | DF78: 0 | DG78: 11 | DH78: 8405.636364 | DI78: 45 | DJ78: 55 | DK78: 9 | DL78: 0 | DM78: 0 | DN78: 36 | DO78: 64 | DP78: 737 | DQ78: 125.4572592
A79: Mid-Western Regional | B79: 4 | C79: Regional Town/City | D79: Orana | E79: 8752.3 | F79: 24815 | G79: 5.627208105 | H79: 2.835254733 | I79: 12483 | J79: 50.30425146 | K79: 12332 | L79: 49.69574854 | M79: 26.34696756 | N79: 48.48680234 | O79: 25.1662301 | P79: 36.49405601 | Q79: 38.33971388 | R79: 25.1662301 | S79: 5.4 | T79: 2.7 | U79: 44 | V79: 5.6 | W79: 57633 | X79: 2.4 | Y79: Mining | Z79: 2497 | AA79: Data not yet available | AB79: Data not yet available | AC79: Data not yet available | AD79: Data not yet available | AE79: 11.69 | AF79: 4.02 | AG79: 63.29 | AH79: 36.70555344 | AI79: 3.52 | AJ79: 9.36 | AK79: 3.824354244 | AL79: 15.6 | AM79: 59832 | AN79: 67750 | AO79: 9535 | AP79: 858.467633 | AQ79: 11107 | AR79: 4509 | AS79: 2376.910912 | AT79: 1897 | AU79: 1297 | AV79: 1858.166189 | AW79: 698 | AX79: 2179 | AY79: 198090.9091 | AZ79: 11 | BA79: 131.8673522 | BB79: 17.22337265 | BC79: 9944 | BD79: 15.16339072 | BE79: 12329 | BF79: 18.80022568 | BG79: 7776 | BH79: 11.85745437 | BI79: 4033 | BJ79: 6.149834551 | BK79: 6633 | BL79: 10.11451837 | BM79: 15615 | BN79: 23.81097607 | BO79: 9249 | BP79: 14.10360024 | BQ79: 400.7253677 | BR79: 313.3588555 | BS79: 432.4400564 | BT79: 162.5226677 | BU79: 222.4461011 | BV79: 64.39653435 | BW79: 372.718114 | BX79: 44.85190409 | BY79: 629.2564981 | BZ79: Data not yet available | CA79: 117.4934726 | CB79: Data not yet available | CC79: Data not yet available | CD79: Data not yet available | CE79: Data not yet available | CF79: Data not yet available | CG79: Data not yet available | CH79: Data not yet available | CI79: 20348 | CJ79: 27.6833104 | CK79: 2201.14 | CL79: 88.70199476 | CM79: 474.28 | CN79: 3 | CO79: 16 | CP79: 3 | CQ79: 3.381293805 | CR79: 9588 | CS79: 9521 | CT79: 100.7 | CU79: 123.17 | CV79: 4.42 | CW79: Y | CX79: 20000 | CY79: 216000 | CZ79: 0 | DA79: 7000 | DB79: 0 | DC79: 310120 | DD79: 2 | DE79: 0 | DF79: 0 | DG79: 9 | DH79: 2757.222222 | DI79: 11 | DJ79: 89 | DK79: 0 | DL79: 0 | DM79: 22 | DN79: 44.44444444 | DO79: 34 | DP79: 307 | DQ79: 80.83061889
A80: Moree Plains | B80: 11 | C80: Large Rural | D80: New England | E80: 17906.5 | F80: 13451 | G80: -4.906327324 | H80: 0.7511797392 | I80: 6770 | J80: 50.33083042 | K80: 6681 | L80: 49.66916958 | M80: 28.2358189 | N80: 51.50546428 | O80: 20.25871682 | P80: 41.11218497 | Q80: 38.62909821 | R80: 20.25871682 | S80: 21.6 | T80: 3.5 | U80: 24 | V80: 8.4 | W80: 48248 | X80: 2.5 | Y80: Agriculture, Forestry and Fishing | Z80: 1925 | AA80: Data not yet available | AB80: Data not yet available | AC80: Data not yet available | AD80: Data not yet available | AE80: 6.84 | AF80: 1.13 | AG80: 66.23 | AH80: 33.76922829 | AI80: 5.06 | AJ80: 4.45 | AK80: 7.608849809 | AL80: 8.65 | AM80: 52547 | AN80: 56408 | AO80: 4527 | AP80: 1047.431745 | AQ80: 4322 | AR80: 14906 | AS80: 10739.19308 | AT80: 1388 | AU80: 2527 | AV80: 4312.286689 | AW80: 586 | AX80: N/A | AY80: N/A | AZ80: 0 | BA80: 172.2763069 | BB80: 13.88246182 | BC80: 7538 | BD80: 13.92702079 | BE80: 10627 | BF80: 19.63418014 | BG80: 4974 | BH80: 9.189838337 | BI80: 3935 | BJ80: 7.270207852 | BK80: 5412 | BL80: 9.999076212 | BM80: 11481 | BN80: 21.21200924 | BO80: 10158 | BP80: 18.76766744 | BQ80: 560.4044309 | BR80: 369.786633 | BS80: 625.5297004 | BT80: 292.5433053 | BU80: 340.7181622 | BV80: 164.5230838 | BW80: 755.1854881 | BX80: 61.63110549 | BY80: 853.5424875 | BZ80: Data not yet available | CA80: 482.8782971 | CB80: Data not yet available | CC80: Data not yet available | CD80: Data not yet available | CE80: Data not yet available | CF80: Data not yet available | CG80: Data not yet available | CH80: Data not yet available | CI80: 8743 | CJ80: 25.26592703 | CK80: 2899.4 | CL80: 215.552747 | CM80: 238 | CN80: 3 | CO80: 8 | CP80: 2 | CQ80: 3.286097852 | CR80: 8844 | CS80: 9164 | CT80: 96.51 | CU80: 74.27 | CV80: 0.65 | CW80: Y | CX80: 92000 | CY80: 129000 | CZ80: 0 | DA80: 9000 | DB80: 0 | DC80: 256000 | DD80: 1 | DE80: 720 | DF80: 0 | DG80: 9 | DH80: 1494.555556 | DI80: 33.33333333 | DJ80: 66.66666667 | DK80: 0 | DL80: 11.11111111 | DM80: 0 | DN80: 55.55555556 | DO80: 44.44444444 | DP80: 219 | DQ80: 61.42009132
A81: Mosman | B81: 2 | C81: Metropolitan | E81: 8.7 | F81: 30564 | G81: 3.239317683 | H81: 3513.103448 | I81: 14287 | J81: 46.74453606 | K81: 16277 | L81: 53.25546394 | M81: 23.16123544 | N81: 52.50621646 | O81: 24.3325481 | P81: 33.52309907 | Q81: 42.14435283 | R81: 24.3325481 | S81: 0.2 | T81: 15.1 | U81: 128 | V81: 2.3 | W81: 143856 | X81: 2.4 | Y81: Professional Scientific & Technical Services | Z81: 4227 | AA81: Data not yet available | AB81: Data not yet available | AC81: Data not yet available | AD81: Data not yet available | AE81: 4.28 | AF81: 1.87 | AG81: 87.84 | AH81: 12.15623856 | AI81: 2.48 | AJ81: 4.72 | AK81: 3.631815045 | AL81: 4.22 | AM81: 44382 | AN81: 46368 | AO81: 17627 | AP81: 1378.509424 | AQ81: 12787 | AR81: N/A | AS81: N/A | AT81: N/A | AU81: 1812 | AV81: 3025.041736 | AW81: 599 | AX81: N/A | AY81: N/A | AZ81: 0 | BA81: 612.5378688 | BB81: 9.838116837 | BC81: 11447 | BD81: 25.09041492 | BE81: 2151 | BF81: 4.714727221 | BG81: 5800 | BH81: 12.71288604 | BI81: 6000 | BJ81: 13.15126143 | BK81: 11850 | BL81: 25.97374131 | BM81: 6392 | BN81: 14.01047717 | BO81: 1983 | BP81: 4.346491901 | BQ81: 374.5255857 | BR81: 189.7657375 | BS81: 0 | BT81: 196.3093836 | BU81: 309.1545609 | BV81: 70.37691402 | BW81: 64.88025128 | BX81: 78.55647167 | BY81: 209.13493 | BZ81: Data not yet available | CA81: 523.7350434 | CB81: Data not yet available | CC81: Data not yet available | CD81: Data not yet available | CE81: Data not yet available | CF81: Data not yet available | CG81: Data not yet available | CH81: Data not yet available | CI81: 8230 | CJ81: 65.00607533 | CK81: 93.87 | CL81: 3.071260306 | CM81: 177.4 | CN81: 4 | CO81: 1 | CP81: 1 | CQ81: 10.04523223 | CR81: 10316 | CS81: 8263 | CT81: 124.85 | CU81: 126.48 | CV81: 1.03 | CW81: Y | CX81: 11000 | CY81: 178000 | CZ81: 0 | DA81: 7000 | DB81: 0 | DC81: 297346.08 | DD81: 0 | DE81: 0 | DF81: 0 | DG81: 7 | DH81: 4366.285714 | DI81: 43 | DJ81: 57 | DK81: 0 | DL81: 0 | DM81: 0 | DN81: 57.14285714 | DO81: 42.85714286 | DP81: 164 | DQ81: 186.3658537
A82: Murray River | B82: 11 | C82: Large Rural | D82: Riverina and Murray | E82: 11863.5 | F82: 11956 | G82: 5.385632437 | H82: 1.007797024 | I82: 5941 | J82: 49.69053195 | K82: 6015 | L82: 50.30946805 | M82: 23.04282369 | N82: 43.63499498 | O82: 33.32218133 | P82: 31.54901305 | Q82: 35.12880562 | R82: 33.32218133 | S82: 3.2 | T82: 2.5 | U82: 78 | V82: 4.6 | W82: 45737 | X82: 2.3 | Y82: Agriculture, Forestry and Fishing | Z82: 1197 | AA82: Data not yet available | AB82: Data not yet available | AC82: Data not yet available | AD82: Data not yet available | AE82: 6.4 | AF82: 5.92 | AG82: 54.4 | AH82: 45.59952752 | AI82: 10.31 | AJ82: 14.58 | AK82: 2.303672283 | AL82: 24.51 | AM82: 39941 | AN82: 42671 | AO82: 3402 | AP82: 689.3617021 | AQ82: 4935 | AR82: 5399 | AS82: 2729.524772 | AT82: 1978 | AU82: 844 | AV82: 830.7086614 | AW82: 1016 | AX82: N/A | AY82: N/A | AZ82: 0 | BA82: 116.4727969 | BB82: 21.25633232 | BC82: 6299 | BD82: 15.74828741 | BE82: 7652 | BF82: 19.13095655 | BG82: 2889 | BH82: 7.222861143 | BI82: 3175 | BJ82: 7.937896895 | BK82: 3790 | BL82: 9.475473774 | BM82: 12541 | BN82: 31.3540677 | BO82: 3652 | BP82: 9.130456523 | BQ82: 526.8484443 | BR82: 241.6359987 | BS82: 511.4586818 | BT82: 265.5570425 | BU82: 242.3051188 | BV82: 128.5547006 | BW82: 305.4533289 | BX82: 74.69053195 | BY82: 1048.929408 | BZ82: Data not yet available | CA82: 573.2783991 | CB82: Data not yet available | CC82: Data not yet available | CD82: Data not yet available | CE82: Data not yet available | CF82: Data not yet available | CG82: Data not yet available | CH82: Data not yet available | CI82: 5214 | CJ82: 77.06175681 | CK82: 3034.88 | CL82: 253.8374038 | CM82: 192.23 | CN82: 5 | CO82: 18 | CP82: 3 | CQ82: 2.451003344 | CR82: 6453 | CS82: 6453 | CT82: 100 | CU82: 113.53 | CV82: 0.9 | CW82: Y | CX82: 186000 | CY82: 108000 | CZ82: 0 | DA82: 33114 | DB82: 0 | DC82: 310004 | DD82: 2 | DE82: 2860 | DF82: 1 | DG82: 9 | DH82: 1328.444444 | DI82: 33 | DJ82: 67 | DK82: 0 | DL82: 11 | DM82: 0 | DN82: 44 | DO82: 56 | DP82: 172 | DQ82: 69.51162791
A83: Murrumbidgee (new) | B83: 9 | C83: Rural | D83: Riverina and Murray | E83: 6882.8 | F83: 3952 | G83: 0.2791169754 | H83: 0.5741849247 | I83: 2070 | J83: 52.37854251 | K83: 1882 | L83: 47.62145749 | M83: 27.85931174 | N83: 48.86133603 | O83: 23.27935223 | P83: 39.701417 | Q83: 37.01923077 | R83: 23.27935223 | S83: 7.5 | T83: 3.3 | U83: 54 | V83: 4.6 | W83: 42853 | X83: 2.5 | Y83: Agriculture, Forestry and Fishing | Z83: 656 | AA83: Data not yet available | AB83: Data not yet available | AC83: Data not yet available | AD83: Data not yet available | AE83: -25.3 | AF83: 5.67 | AG83: 49.39 | AH83: 50.60920836 | AI83: 8.47 | AJ83: 17.2 | AK83: 0.6422076683 | AL83: 19.85 | AM83: 19271 | AN83: 15727 | AO83: 325 | AP83: 279.6901893 | AQ83: 1162 | AR83: 3564 | AS83: 3494.117647 | AT83: 1020 | AU83: 101 | AV83: 410.5691057 | AW83: 246 | AX83: N/A | AY83: N/A | AZ83: 0 | BA83: 93.84015564 | BB83: 22.11703959 | BC83: 8426 | BD83: 34.37219548 | BE83: 2228 | BF83: 9.088684017 | BG83: 1052 | BH83: 4.291425308 | BI83: 1324 | BJ83: 5.40099535 | BK83: 1666 | BL83: 6.796116505 | BM83: 8095 | BN83: 33.02194664 | BO83: 1723 | BP83: 7.028636697 | BQ83: 2132.08502 | BR83: 266.194332 | BS83: 424.5951417 | BT83: 335.0202429 | BU83: 351.9736842 | BV83: 139.1700405 | BW83: 435.9817814 | BX83: 69.58502024 | BY83: 2048.32996 | BZ83: Data not yet available | CA83: 224.6127367 | CB83: Data not yet available | CC83: Data not yet available | CD83: Data not yet available | CE83: Data not yet available | CF83: Data not yet available | CG83: Data not yet available | CH83: Data not yet available | CI83: 2217 | CJ83: 36.12990528 | CK83: 1715.05 | CL83: 433.9701417 | CM83: 186 | CN83: 3 | CO83: 9 | CP83: 1 | CQ83: 4.78694332 | CR83: 4054 | CS83: 3437 | CT83: 117.95 | CU83: 15.22 | CV83: 0 | CW83: Y | CX83: 50000 | CY83: 120000 | CZ83: 0 | DA83: 2000 | DB83: 0 | DC83: 289956 | DD83: 0 | DE83: 0 | DF83: 0 | DG83: 9 | DH83: 439.1111111 | DI83: 44 | DJ83: 56 | DK83: 0 | DL83: 0 | DM83: 0 | DN83: 56 | DO83: 44 | DP83: 82 | DQ83: 48.19512195
A84: Muswellbrook | B84: 11 | C84: Large Rural | D84: Hunter | E84: 3404.9 | F84: 16431 | G84: -1.575416317 | H84: 4.825692385 | I84: 8441 | J84: 51.37240582 | K84: 7990 | L84: 48.62759418 | M84: 29.3043637 | N84: 52.8695758 | O84: 17.8260605 | P84: 42.31026718 | Q84: 39.86367233 | R84: 17.8260605 | S84: 8.3 | T84: 3.5 | U84: 22 | V84: 7.3 | W84: 68390 | X84: 2.5 | Y84: Mining | Z84: 1032 | AA84: Data not yet available | AB84: Data not yet available | AC84: Data not yet available | AD84: Data not yet available | AE84: 13.03 | AF84: 2.02 | AG84: 65.83 | AH84: 34.17395077 | AI84: 7.7 | AJ84: 2.3 | AK84: 16.07811197 | AL84: 7.7 | AM84: 44850 | AN84: 51567 | AO84: 4670 | AP84: 712.1073498 | AQ84: 6558 | AR84: 1300 | AS84: 2725.366876 | AT84: 477 | AU84: 1110 | AV84: 1831.683168 | AW84: 606 | AX84: 7801 | AY84: 410578.9474 | AZ84: 19 | BA84: 78.12948942 | BB84: 12.47331504 | BC84: 4464 | BD84: 9.925072815 | BE84: 11667 | BF84: 25.93992485 | BG84: 7482 | BH84: 16.63516909 | BI84: 1964 | BJ84: 4.366676301 | BK84: 5848 | BL84: 13.00220113 | BM84: 7894 | BN84: 17.55119283 | BO84: 5658 | BP84: 12.57976299 | BQ84: 271.6815775 | BR84: 455.3587731 | BS84: 639.7054348 | BT84: 119.5301564 | BU84: 288.2965127 | BV84: 70.35481711 | BW84: 344.3490962 | BX84: 67.61609153 | BY84: 480.4333272 | BZ84: Data not yet available | CA84: 330.8935651 | CB84: Data not yet available | CC84: Data not yet available | CD84: Data not yet available | CE84: Data not yet available | CF84: Data not yet available | CG84: Data not yet available | CH84: Data not yet available | CI84: 12715 | CJ84: 43.31104994 | CK84: 619.53 | CL84: 37.70494796 | CM84: 358.16 | CN84: 2 | CO84: 2 | CP84: 2 | CQ84: 3.23680526 | CR84: 6418 | CS84: 8542 | CT84: 75.13 | CU84: 97.11 | CV84: 5.54 | CW84: Y | CX84: 29000 | CY84: 164000 | CZ84: 0 | DA84: 12000 | DB84: 0 | DC84: 179073 | DD84: 0 | DE84: 0 | DF84: 0 | DG84: 12 | DH84: 1369.25 | DI84: 25 | DJ84: 75 | DK84: 8.333333333 | DL84: 0 | DM84: 0 | DN84: 92 | DO84: 8 | DP84: 166 | DQ84: 98.98192771
A85: Nambucca | B85: 11 | C85: Large Rural | E85: 1491.3 | F85: 19688 | G85: 1.910036751 | H85: 13.20190438 | I85: 9659 | J85: 49.06034132 | K85: 10029 | L85: 50.93965868 | M85: 22.44006501 | N85: 41.79195449 | O85: 35.7679805 | P85: 30.53636733 | Q85: 33.69565217 | R85: 35.7679805 | S85: 7.6 | T85: 2.4 | U85: 9 | V85: 6.1 | W85: 44054 | X85: 2.3 | Y85: Health Care & Social Assistance | Z85: 1427 | AA85: Data not yet available | AB85: Data not yet available | AC85: Data not yet available | AD85: Data not yet available | AE85: 6.93 | AF85: 2.06 | AG85: 69.73 | AH85: 30.00094962 | AI85: 5.07 | AJ85: 2.53 | AK85: 15.69388261 | AL85: 11.96 | AM85: 33819 | AN85: 36711 | AO85: 8186 | AP85: 978.1335882 | AQ85: 8369 | AR85: 961 | AS85: 1945.34413 | AT85: 494 | AU85: 1086 | AV85: 1813.021703 | AW85: 599 | AX85: N/A | AY85: N/A | AZ85: 0 | BA85: 146.7194563 | BB85: 29.9318915 | BC85: 2403 | BD85: 6.596030853 | BE85: 12209 | BF85: 33.51266778 | BG85: 6524 | BH85: 17.90782575 | BI85: 1826 | BJ85: 5.012214872 | BK85: 3728 | BL85: 10.23304329 | BM85: 8005 | BN85: 21.97304493 | BO85: 1736 | BP85: 4.765172518 | BQ85: 122.0540431 | BR85: 331.369362 | BS85: 539.1101178 | BT85: 92.74685087 | BU85: 152.9865908 | BV85: 81.01381552 | BW85: 88.1755384 | BX85: 36.36733035 | BY85: 406.5928484 | BZ85: Data not yet available | CA85: 460.031067 | CB85: Data not yet available | CC85: Data not yet available | CD85: Data not yet available | CE85: Data not yet available | CF85: Data not yet available | CG85: Data not yet available | CH85: Data not yet available | CI85: 9499 | CJ85: 60.0273713 | CK85: 714.321 | CL85: 36.28204998 | CM85: 515 | CN85: 1 | CO85: 15 | CP85: 2 | CQ85: 4.668382166 | CR85: 5845 | CS85: 5845 | CT85: 100 | CU85: 91.73 | CV85: 2.61 | CW85: Y | CX85: 23000 | CY85: 154000 | CZ85: 0 | DA85: 3041 | DB85: 0 | DC85: 233587 | DD85: 0 | DE85: 0 | DF85: 0 | DG85: 9 | DH85: 2187.555556 | DI85: 44 | DJ85: 56 | DK85: 11.11111111 | DL85: 11 | DM85: 0 | DN85: 33 | DO85: 67 | DP85: 110 | DQ85: 178.9818182
A86: Narrabri | B86: 11 | C86: Large Rural | D86: New England | E86: 13015 | F86: 13278 | G86: -1.891532437 | H86: 1.020207453 | I86: 6638 | J86: 49.99246875 | K86: 6640 | L86: 50.00753125 | M86: 28.20454888 | N86: 49.00587438 | O86: 22.78957674 | P86: 39.2754933 | Q86: 37.93492996 | R86: 22.78957674 | S86: 12.2 | T86: 1.8 | U86: 41 | V86: 6.1 | W86: 50962 | X86: 2.5 | Y86: Agriculture, Forestry and Fishing | Z86: 1760 | AA86: Data not yet available | AB86: Data not yet available | AC86: Data not yet available | AD86: Data not yet available | AE86: 12.02 | AF86: 4.65 | AG86: 71.7 | AH86: 28.30428812 | AI86: 8.17 | AJ86: 11.82 | AK86: 2.6765122 | AL86: 17.18 | AM86: 45395 | AN86: 51597 | AO86: 4179 | AP86: 914.0419948 | AQ86: 4572 | AR86: 6219 | AS86: 3787.454324 | AT86: 1642 | AU86: 912 | AV86: 1625.668449 | AW86: 561 | AX86: 1023 | AY86: 204600 | AZ86: 5 | BA86: 152.7218591 | BB86: 18.91951006 | BC86: 6685 | BD86: 14.30283061 | BE86: 7387 | BF86: 15.80478829 | BG86: 3606 | BH86: 7.715184321 | BI86: 1028 | BJ86: 2.199447998 | BK86: 6175 | BL86: 13.21166478 | BM86: 10580 | BN86: 22.63634224 | BO86: 11278 | BP86: 24.12974176 | BQ86: 503.4643772 | BR86: 271.5770447 | BS86: 474.1677964 | BT86: 77.42129839 | BU86: 416.9302606 | BV86: 82.16598885 | BW86: 849.3749059 | BX86: 48.12471758 | BY86: 796.806748 | BZ86: Data not yet available | CA86: 257.2178478 | CB86: Data not yet available | CC86: Data not yet available | CD86: Data not yet available | CE86: Data not yet available | CF86: Data not yet available | CG86: Data not yet available | CH86: Data not yet available | CI86: 8323 | CJ86: 37.17409588 | CK86: 2313.469 | CL86: 174.233243 | CM86: 351.17 | CN86: 4 | CO86: 3 | CP86: 3 | CQ86: 3.496302383 | CR86: 7580 | CS86: 7582 | CT86: 99.97 | CU86: 94.34 | CV86: 9.15 | CW86: Y | CX86: 95000 | CY86: 129000 | CZ86: 6000 | DA86: 6000 | DB86: 0 | DC86: 266187 | DD86: 0 | DE86: 0 | DF86: 0 | DG86: 9 | DH86: 1475.333333 | DI86: 44 | DJ86: 56 | DK86: 0 | DL86: 0 | DM86: 0 | DN86: 44 | DO86: 56 | DP86: 161 | DQ86: 82.47204969
A87: Narrandera | B87: 10 | C87: Large Rural | D87: Riverina and Murray | E87: 4116.3 | F87: 5931 | G87: -2.306045133 | H87: 1.44085708 | I87: 2969 | J87: 50.05901197 | K87: 2962 | L87: 49.94098803 | M87: 25.8472433 | N87: 45.928174 | O87: 28.2245827 | P87: 35.49148542 | Q87: 36.28393188 | R87: 28.2245827 | S87: 9.7 | T87: 2.5 | U87: 23 | V87: 8.8 | W87: 45460 | X87: 2.3 | Y87: Agriculture, Forestry and Fishing | Z87: 569 | AA87: Data not yet available | AB87: Data not yet available | AC87: Data not yet available | AD87: Data not yet available | AE87: 3.74 | AF87: 7.85 | AG87: 54.83 | AH87: 45.17329492 | AI87: 5.73 | AJ87: 0 | AK87: 0 | AL87: 20.09 | AM87: 18616 | AN87: 19339 | AO87: 1365 | AP87: 699.6412096 | AQ87: 1951 | AR87: 2795 | AS87: 3601.804124 | AT87: 776 | AU87: 395 | AV87: 1431.15942 | AW87: 276 | AX87: N/A | AY87: N/A | AZ87: 0 | BA87: 140.7402419 | BB87: 30.34341363 | BC87: 3484 | BD87: 18.06866508 | BE87: 3703 | BF87: 19.20443937 | BG87: 1433 | BH87: 7.43180168 | BI87: 1327 | BJ87: 6.882066176 | BK87: 2719 | BL87: 14.10123431 | BM87: 4958 | BN87: 25.7131003 | BO87: 1658 | BP87: 8.598693082 | BQ87: 587.4220199 | BR87: 241.6118698 | BS87: 521.1600067 | BT87: 223.7396729 | BU87: 401.1127972 | BV87: 103.1866464 | BW87: 279.5481369 | BX87: 57.32591469 | BY87: 835.9467206 | BZ87: Data not yet available | CA87: 322.3987699 | CB87: Data not yet available | CC87: Data not yet available | CD87: Data not yet available | CE87: Data not yet available | CF87: Data not yet available | CG87: Data not yet available | CH87: Data not yet available | CI87: 4175 | CJ87: 44.81437126 | CK87: 1555.6 | CL87: 262.2829202 | CM87: 14.4 | CN87: 2 | CO87: 2 | CP87: 1 | CQ87: 7.376575365 | CR87: 2763 | CS87: 1246 | CT87: 221.75 | CU87: 110.51 | CV87: 0.84 | CW87: Y | CX87: 28000 | CY87: 129000 | CZ87: 0 | DA87: 16000 | DB87: 4000 | DC87: 227028 | DD87: 0 | DE87: 0 | DF87: 0 | DG87: 9 | DH87: 659 | DI87: 56 | DJ87: 44 | DK87: 0 | DL87: 0 | DM87: 0 | DN87: 62 | DO87: 38 | DP87: 110 | DQ87: 53.91818182
A88: Narromine | B88: 10 | C88: Large Rural | D88: Orana | E88: 5261.5 | F88: 6578 | G88: -3.97080292 | H88: 1.250213817 | I88: 3279 | J88: 49.84797811 | K88: 3299 | L88: 50.15202189 | M88: 28.215263 | N88: 45.34813013 | O88: 26.43660687 | P88: 38.43113408 | Q88: 35.13225905 | R88: 26.43660687 | S88: 19.9 | T88: 1.2 | U88: 31 | V88: 2.6 | W88: 47603 | X88: 2.5 | Y88: Agriculture, Forestry and Fishing | Z88: 954 | AA88: Data not yet available | AB88: Data not yet available | AC88: Data not yet available | AD88: Data not yet available | AE88: -0.88 | AF88: 5.98 | AG88: 53.43 | AH88: 46.56852042 | AI88: 11.61 | AJ88: 12.68 | AK88: 2.25889684 | AL88: 18.93 | AM88: 20721 | AN88: 20541 | AO88: 1454 | AP88: 649.9776486 | AQ88: 2237 | AR88: 3178 | AS88: 3842.80532 | AT88: 827 | AU88: 561 | AV88: 1876.254181 | AW88: 299 | AX88: 268 | AY88: 134000 | AZ88: 2 | BA88: 151.1900531 | BB88: 22.17255253 | BC88: 3650.404 | BD88: 17.61692968 | BE88: 3946.583 | BF88: 19.04629603 | BG88: 1648.49 | BH88: 7.955648859 | BI88: 1217.284 | BJ88: 5.874639255 | BK88: 2435.072 | BL88: 11.75171082 | BM88: 4191.861 | BN88: 20.23001303 | BO88: 3631.306 | BP88: 17.52476232 | BQ88: 554.9413196 | BR88: 250.6065673 | BS88: 470.0997264 | BT88: 185.0538157 | BU88: 296.1120401 | BV88: 129.8672849 | BW88: 552.0380055 | BX88: 74.0722104 | BY88: 637.2546367 | BZ88: Data not yet available | CA88: 421.5467143 | CB88: Data not yet available | CC88: Data not yet available | CD88: Data not yet available | CE88: Data not yet available | CF88: Data not yet available | CG88: Data not yet available | CH88: Data not yet available | CI88: 5106 | CJ88: 68.86016451 | CK88: 1571.79 | CL88: 238.9464883 | CM88: 60.1 | CN88: 2 | CO88: 5 | CP88: 2 | CQ88: 4.040280745 | CR88: 6738 | CS88: 6881 | CT88: 97.92 | CU88: 124.57 | CV88: 7.23 | CW88: Y | CX88: 37000 | CY88: 127000 | CZ88: 0 | DA88: 11000 | DB88: 0 | DC88: 240702 | DD88: 0 | DE88: 0 | DF88: 0 | DG88: 9 | DH88: 730.8888889 | DI88: 25 | DJ88: 75 | DK88: 0 | DL88: 0 | DM88: 0 | DN88: 38 | DO88: 62 | DP88: 78 | DQ88: 84.33333333
A89: Newcastle | B89: 5 | C89: Regional Town/City | D89: Hunter | E89: 186.8 | F89: 162358 | G89: 3.233231387 | H89: 869.1541756 | I89: 80645 | J89: 49.6710972 | K89: 81713 | L89: 50.3289028 | M89: 22.84149842 | N89: 56.55773045 | O89: 20.60077114 | P89: 40.57699651 | Q89: 38.82223235 | R89: 20.60077114 | S89: 3.5 | T89: 9.9 | U89: 96 | V89: 5.9 | W89: 58859 | X89: 2.4 | Y89: Health Care & Social Assistance | Z89: 13054 | AA89: Data not yet available | AB89: Data not yet available | AC89: Data not yet available | AD89: Data not yet available | AE89: 1.68 | AF89: 3 | AG89: 86.47 | AH89: 13.52529226 | AI89: 2.74 | AJ89: 7.32 | AK89: 2.364703402 | AL89: 5.27 | AM89: 279485 | AN89: 284560 | AO89: 83107 | AP89: 1300.090733 | AQ89: 63924 | AR89: 38 | AS89: 4222.222222 | AT89: 9 | AU89: 50051 | AV89: 11026.87817 | AW89: 4539 | AX89: N/A | AY89: N/A | AZ89: 0 | BA89: 179.8812003 | BB89: 17.81021213 | BC89: 56946 | BD89: 19.93035261 | BE89: 8901 | BF89: 3.115233179 | BG89: 64776 | BH89: 22.67074985 | BI89: 9510 | BJ89: 3.328375186 | BK89: 40959 | BL89: 14.33511243 | BM89: 47960 | BN89: 16.78537055 | BO89: 56673 | BP89: 19.83480619 | BQ89: 350.7434189 | BR89: 398.970177 | BS89: 0 | BT89: 58.57426182 | BU89: 201.4067678 | BV89: 54.82329174 | BW89: 349.0619495 | BX89: 50.86906712 | BY89: 295.3965927 | BZ89: Data not yet available | CA89: 330.4862024 | CB89: Data not yet available | CC89: Data not yet available | CD89: Data not yet available | CE89: Data not yet available | CF89: Data not yet available | CG89: Data not yet available | CH89: Data not yet available | CI89: 71599 | CJ89: 55.18373162 | CK89: 813.17 | CL89: 5.008499735 | CM89: 10467.51 | CN89: 7 | CO89: 16 | CP89: 9 | CQ89: 7.652560315 | CR89: 26362 | CS89: 27753 | CT89: 94.99 | CU89: 56.63 | CV89: 10.95 | CW89: Y | CX89: 143000 | CY89: 452000 | CZ89: 9000 | DA89: 6000 | DB89: 3000 | DC89: 406912 | DD89: 4 | DE89: 6646 | DF89: 0 | DG89: 13 | DH89: 12489.07692 | DI89: 38 | DJ89: 62 | DK89: 0 | DL89: 0 | DM89: 8 | DN89: 92.30769231 | DO89: 0 | DP89: 975 | DQ89: 166.5210256
A90: North Sydney | B90: 3 | C90: Metropolitan | E90: 10.5 | F90: 73032 | G90: 7.840878887 | H90: 6955.428571 | I90: 34843 | J90: 47.70922335 | K90: 38189 | L90: 52.29077665 | M90: 15.59864169 | N90: 65.10570709 | O90: 19.29565122 | P90: 32.51177566 | Q90: 48.19257312 | R90: 19.29565122 | S90: 0.3 | T90: 22.3 | U90: 127 | V90: 2.7 | W90: 100437 | X90: 2 | Y90: Professional Scientific & Technical Services | Z90: 15768 | AA90: Data not yet available | AB90: Data not yet available | AC90: Data not yet available | AD90: Data not yet available | AE90: 7.08 | AF90: 2.2 | AG90: 89.35 | AH90: 10.65087785 | AI90: 1.29 | AJ90: 91.17 | AK90: 0.2637278189 | AL90: 6.69 | AM90: 106407 | AN90: 114501 | AO90: 25937 | AP90: 730.0028145 | AQ90: 35530 | AR90: N/A | AS90: N/A | AT90: N/A | AU90: 16943 | AV90: 4577.951905 | AW90: 3701 | AX90: N/A | AY90: N/A | AZ90: 0 | BA90: 503.6145677 | BB90: 4.373768646 | BC90: 35352 | BD90: 32.94350067 | BE90: 8644 | BF90: 8.055092209 | BG90: 20010 | BH90: 18.64673705 | BI90: 9550 | BJ90: 8.89936726 | BK90: 19692 | BL90: 18.3504021 | BM90: 2746 | BN90: 2.558917539 | BO90: 11317 | BP90: 10.54598317 | BQ90: 484.0617811 | BR90: 273.9894841 | BS90: 0 | BT90: 130.7645963 | BU90: 226.3802169 | BV90: 118.3590755 | BW90: 154.9594698 | BX90: 43.2550115 | BY90: 37.59995618 | BZ90: Data not yet available | CA90: 360.2870813 | CB90: Data not yet available | CC90: Data not yet available | CD90: Data not yet available | CE90: Data not yet available | CF90: Data not yet available | CG90: Data not yet available | CH90: Data not yet available | CI90: 13672 | CJ90: 67.05675834 | CK90: 152.5 | CL90: 2.088125753 | CM90: 130.97 | CN90: 1 | CO90: 12 | CP90: 1 | CQ90: 7.826853866 | CR90: 9183 | CS90: 8509 | CT90: 107.92 | CU90: 199.63 | CV90: 6.76 | CW90: Y | CX90: 28000 | CY90: 231000 | CZ90: 0 | DA90: 7000 | DB90: 0 | DC90: 404490 | DD90: 0 | DE90: 0 | DF90: 0 | DG90: 10 | DH90: 7303.2 | DI90: 60 | DJ90: 40 | DK90: 0 | DL90: 0 | DM90: 10 | DN90: 70 | DO90: 20 | DP90: 373 | DQ90: 195.7962466
A91: Northern Beaches | B91: 3 | C91: Metropolitan | E91: 254.2 | F91: 268666 | G91: 5.422469168 | H91: 1056.907946 | I91: 132173 | J91: 49.19602778 | K91: 136493 | L91: 50.80397222 | M91: 25.31544743 | N91: 53.12879188 | O91: 21.55576068 | P91: 36.4679565 | Q91: 41.97628282 | R91: 21.55576068 | S91: 0.6 | T91: 15.1 | U91: 121 | V91: 3.2 | W91: 79756 | X91: 2.7 | Y91: Professional Scientific & Technical Services | Z91: 31943 | AA91: Data not yet available | AB91: Data not yet available | AC91: Data not yet available | AD91: Data not yet available | AE91: 8 | AF91: 3.09 | AG91: 82.23 | AH91: 17.77240261 | AI91: 3.87 | AJ91: 4.57 | AK91: 3.724643092 | AL91: 8.59 | AM91: 310568 | AN91: 337513 | AO91: 129691 | AP91: 1373.001757 | AQ91: 94458 | AR91: 14 | AS91: 2000 | AT91: 7 | AU91: 27131 | AV91: 3698.336968 | AW91: 7336 | AX91: N/A | AY91: N/A | AZ91: 0 | BA91: 537.6576759 | BB91: 10.74975121 | BC91: 88899 | BD91: 28.43594164 | BE91: 20979 | BF91: 6.710509902 | BG91: 95361 | BH91: 30.50292839 | BI91: 32447 | BJ91: 10.37875565 | BK91: 51237 | BL91: 16.38907459 | BM91: 15678 | BN91: 5.014889853 | BO91: 8028 | BP91: 2.567899971 | BQ91: 330.8903992 | BR91: 354.9425681 | BS91: 0 | BT91: 120.7707711 | BU91: 159.257219 | BV91: 78.0858017 | BW91: 29.88096745 | BX91: 31.45169095 | BY91: 58.35498351 | BZ91: Data not yet available | CA91: 554.5745199 | CB91: Data not yet available | CC91: Data not yet available | CD91: Data not yet available | CE91: Data not yet available | CF91: Data not yet available | CG91: Data not yet available | CH91: Data not yet available | CI91: 82786 | CJ91: 65.54731476 | CK91: 843.677 | CL91: 3.140244765 | CM91: 2397.05 | CN91: 26 | CO91: 41 | CP91: 6 | CQ91: 5.545760975 | CR91: 37670 | CS91: 32202 | CT91: 116.98 | CU91: 100 | CV91: 0.51 | CW91: Y | CX91: 138000 | CY91: 389000 | CZ91: 0 | DA91: 15000 | DB91: 1000 | DC91: 1146521 | DD91: 6 | DE91: 37418 | DF91: 2 | DG91: 15 | DH91: 17911.06667 | DI91: 46 | DJ91: 54 | DK91: 0 | DL91: 0 | DM91: 7 | DN91: 60 | DO91: 33 | DP91: 1136 | DQ91: 236.5017606
A92: Oberon | B92: 10 | C92: Large Rural | D92: Central NSW | E92: 3625 | F92: 5382 | G92: 3.2 | H92: 1.484689655 | I92: 2821 | J92: 52.41545894 | K92: 2561 | L92: 47.58454106 | M92: 24.67484207 | N92: 46.84132293 | O92: 28.48383501 | P92: 35.8974359 | Q92: 35.6187291 | R92: 28.48383501 | S92: 3.4 | T92: 3.4 | U92: 59 | V92: 3.5 | W92: 53634 | X92: 2.4 | Y92: Agriculture, Forestry and Fishing | Z92: 667 | AA92: Data not yet available | AB92: Data not yet available | AC92: Data not yet available | AD92: Data not yet available | AE92: 21.77 | AF92: 6.69 | AG92: 64.06 | AH92: 35.94264495 | AI92: 9.04 | AJ92: 12.36 | AK92: 3.283357515 | AL92: 14.49 | AM92: 14558 | AN92: 18609 | AO92: 1712 | AP92: 749.2341357 | AQ92: 2285 | AR92: 1875 | AS92: 1651.982379 | AT92: 1135 | AU92: 384 | AV92: 1714.285714 | AW92: 224 | AX92: N/A | AY92: N/A | AZ92: 0 | BA92: 220.8743317 | BB92: 17.89934354 | BC92: 2233 | BD92: 15.21324431 | BE92: 2997 | BF92: 20.41831312 | BG92: 937 | BH92: 6.383703502 | BI92: 1161 | BJ92: 7.909796975 | BK92: 1080 | BL92: 7.357950674 | BM92: 2187 | BN92: 14.89985012 | BO92: 4083 | BP92: 27.8171413 | BQ92: 414.9015236 | BR92: 174.098848 | BS92: 415.6447417 | BT92: 215.7190635 | BU92: 167.5956893 | BV92: 141.2114456 | BW92: 758.6399108 | BX92: 33.07320699 | BY92: 406.3545151 | BZ92: Data not yet available | CA92: 98.9059081 | CB92: Data not yet available | CC92: Data not yet available | CD92: Data not yet available | CE92: Data not yet available | CF92: Data not yet available | CG92: Data not yet available | CH92: Data not yet available | CI92: 5139 | CJ92: 33.19712006 | CK92: 940.29 | CL92: 174.7101449 | CM92: 29.5 | CN92: 1 | CO92: 1 | CP92: 1 | CQ92: 1.894843462 | CR92: 1763 | CS92: 2908 | CT92: 60.63 | CU92: 143.97 | CV92: 1.81 | CW92: Y | CX92: 31000 | CY92: 119000 | CZ92: 0 | DA92: 0 | DB92: 0 | DC92: 215172 | DD92: 0 | DE92: 0 | DF92: 0 | DG92: 9 | DH92: 598 | DI92: 33.33333333 | DJ92: 66.66666667 | DK92: 11.11111111 | DL92: 0 | DM92: 0 | DN92: 22.22222222 | DO92: 77.77777778 | DP92: 74 | DQ92: 72.72972973
A93: Orange | B93: 4 | C93: Regional Town/City | D93: Central NSW | E93: 284.2 | F93: 41468 | G93: 3.4 | H93: 145.91133 | I93: 20203 | J93: 48.71949455 | K93: 21265 | L93: 51.28050545 | M93: 28.03366451 | N93: 50.27973377 | O93: 21.68660172 | P93: 40.74467059 | Q93: 37.56872769 | R93: 21.68660172 | S93: 6.3 | T93: 6 | U93: 77 | V93: 5.2 | W93: 56382 | X93: 2.5 | Y93: Health Care & Social Assistance | Z93: 3385 | AA93: Data not yet available | AB93: Data not yet available | AC93: Data not yet available | AD93: Data not yet available | AE93: 14.01 | AF93: 2.75 | AG93: 72.74 | AH93: 27.27620864 | AI93: 6.27 | AJ93: 8.02 | AK93: 4.035610636 | AL93: 16.83 | AM93: 87703 | AN93: 101936 | AO93: 21213 | AP93: 1254.390633 | AQ93: 16911 | AR93: 675 | AS93: 1824.324324 | AT93: 370 | AU93: 8237 | AV93: 6336.153846 | AW93: 1300 | AX93: N/A | AY93: N/A | AZ93: 0 | BA93: 100.7423663 | BB93: 16.64005677 | BC93: 6159 | BD93: 7.022564793 | BE93: 24789 | BF93: 28.26471158 | BG93: 11131 | BH93: 12.69169812 | BI93: 14035 | BJ93: 16.00287333 | BK93: 16447 | BL93: 18.75306432 | BM93: 4898 | BN93: 5.584757648 | BO93: 10244 | BP93: 11.68033021 | BQ93: 148.5241632 | BR93: 268.4238449 | BS93: 521.3658725 | BT93: 338.4537475 | BU93: 347.3039452 | BV93: 76.42037234 | BW93: 247.0338574 | BX93: 49.31513456 | BY93: 118.1151731 | BZ93: Data not yet available | CA93: 421.1459996 | CB93: Data not yet available | CC93: Data not yet available | CD93: Data not yet available | CE93: Data not yet available | CF93: Data not yet available | CG93: Data not yet available | CH93: Data not yet available | CI93: 27955 | CJ93: 56.68395636 | CK93: 506.85 | CL93: 12.22267773 | CM93: 633.33 | CN93: 1 | CO93: 9 | CP93: 1 | CQ93: 4.309155538 | CR93: 4550 | CS93: 40745 | CT93: 11.17 | CU93: 0 | CV93: 0.85 | CW93: Y | CX93: 147000 | CY93: 274000 | CZ93: 0 | DA93: 26000 | DB93: 6000 | DC93: 328618 | DD93: 4 | DE93: 4758 | DF93: 0 | DG93: 12 | DH93: 3455.666667 | DI93: 8 | DJ93: 92 | DK93: 0 | DL93: 0 | DM93: 0 | DN93: 75 | DO93: 25 | DP93: 410 | DQ93: 101.1414634
A94: Parkes | B94: 11 | C94: Large Rural | D94: Central NSW | E94: 5957.6 | F94: 14906 | G94: -1.636531609 | H94: 2.502014234 | I94: 7355 | J94: 49.34254663 | K94: 7551 | L94: 50.65745337 | M94: 27.61975044 | N94: 46.72615054 | O94: 25.65409902 | P94: 38.83000134 | Q94: 35.51589964 | R94: 25.65409902 | S94: 10.1 | T94: 2.8 | U94: 28 | V94: 7.1 | W94: 50650 | X94: 2.4 | Y94: Health Care & Social Assistance | Z94: 1422 | AA94: Data not yet available | AB94: Data not yet available | AC94: Data not yet available | AD94: Data not yet available | AE94: -0.17 | AF94: 1.99 | AG94: 59.86 | AH94: 40.10974401 | AI94: 5.37 | AJ94: 7.48 | AK94: 3.640881837 | AL94: 10.86 | AM94: 43939 | AN94: 43903 | AO94: 5429 | AP94: 928.034188 | AQ94: 5850 | AR94: 3708 | AS94: 2602.105263 | AT94: 1425 | AU94: 2702 | AV94: 4038.863976 | AW94: 669 | AX94: 1352 | AY94: 676000 | AZ94: 2 | BA94: 69.82560079 | BB94: 23.11111111 | BC94: 6598 | BD94: 14.42059711 | BE94: 14134 | BF94: 30.89128819 | BG94: 3731 | BH94: 8.154478297 | BI94: 2523 | BJ94: 5.514271976 | BK94: 5493 | BL94: 12.00550772 | BM94: 8844 | BN94: 19.32945753 | BO94: 4431 | BP94: 9.684399178 | BQ94: 442.6405474 | BR94: 250.3018919 | BS94: 786.8643499 | BT94: 169.2607004 | BU94: 316.651013 | BV94: 161.3444251 | BW94: 297.2628472 | BX94: 51.85831209 | BY94: 593.3181269 | BZ94: Data not yet available | CA94: 341.025641 | CB94: Data not yet available | CC94: Data not yet available | CD94: Data not yet available | CE94: Data not yet available | CF94: Data not yet available | CG94: Data not yet available | CH94: Data not yet available | CI94: 9306 | CJ94: 32.31248657 | CK94: 2172.52 | CL94: 145.7480209 | CM94: 209.25 | CN94: 4 | CO94: 14 | CP94: 4 | CQ94: 5.105495979 | CR94: 6913 | CS94: 6020 | CT94: 114.83 | CU94: 184.68 | CV94: 1.15 | CW94: Y | CX94: 64000 | CY94: 143000 | CZ94: 0 | DA94: 46000 | DB94: 2000 | DC94: 236380 | DD94: 1 | DE94: 0 | DF94: 1 | DG94: 10 | DH94: 1490.6 | DI94: 30 | DJ94: 70 | DK94: 10 | DL94: 0 | DM94: 0 | DN94: 40 | DO94: 60 | DP94: 185 | DQ94: 80.57297297
A95: Parramatta (new) | B95: 3 | C95: Metropolitan | E95: 83.8 | F95: 243276 | G95: n/a | H95: 2903.054893 | I95: 122790 | J95: 50.47353623 | K95: 120486 | L95: 49.52646377 | M95: 23.54527368 | N95: 60.03715944 | O95: 16.41756688 | P95: 39.85349973 | Q95: 43.72893339 | R95: 16.41756688 | S95: 0.7 | T95: 52 | U95: 112 | V95: 3.6 | W95: 60990 | X95: 2.8 | Y95: Health Care & Social Assistance | Z95: 24519 | AA95: Data not yet available | AB95: Data not yet available | AC95: Data not yet available | AD95: Data not yet available | AE95: -5.29 | AF95: 4.87 | AG95: 77.08 | AH95: 22.85623742 | AI95: 4.51 | AJ95: 2.14 | AK95: 5.467086004 | AL95: 10.91 | AM95: 262192 | AN95: 249992.2314 | AO95: 83205 | AP95: 958.0641818 | AQ95: 86847 | AR95: N/A | AS95: N/A | AT95: N/A | AU95: 53377 | AV95: 8255.026291 | AW95: 6466 | AX95: N/A | AY95: N/A | AZ95: 0 | BA95: 343.6671576 | BB95: 9.417711608 | BC95: 105938 | BD95: 40.3876433 | BE95: 9160 | BF95: 3.492144581 | BG95: 43999 | BH95: 16.77411238 | BI95: 19891 | BJ95: 7.583214832 | BK95: 36517 | BL95: 13.92168599 | BM95: 26827 | BN95: 10.22748501 | BO95: 19971 | BP95: 7.613713911 | BQ95: 435.4642464 | BR95: 180.8604219 | BS95: 0 | BT95: 81.76310035 | BU95: 115.5518835 | BV95: 37.65270721 | BW95: 82.09194495 | BX95: 34.55334682 | BY95: 110.2739276 | BZ95: Data not yet available | CA95: 361.8317271 | CB95: Data not yet available | CC95: Data not yet available | CD95: Data not yet available | CE95: Data not yet available | CF95: Data not yet available | CG95: Data not yet available | CH95: Data not yet available | CI95: 45147 | CJ95: 52.88945002 | CK95: 660.453 | CL95: 2.71483007 | CM95: 868.73 | CN95: 3 | CO95: 21 | CP95: 7 | CQ95: 4.706268689 | CR95: 48795 | CS95: 50936 | CT95: 95.8 | CU95: 111.19 | CV95: 1.93 | CW95: Y | CX95: 220000 | CY95: 464000 | CZ95: 0 | DA95: 0 | DB95: 0 | DC95: 728235 | DD95: 7 | DE95: 23394 | DF95: 0 | DG95: 15 | DH95: 16218.4 | DI95: 26 | DJ95: 74 | DK95: 6 | DL95: 26 | DM95: 0 | DN95: 73 | DO95: 27 | DP95: 934 | DQ95: 260.4668094
A96: Penrith | B96: 7 | C96: Metropolitan Fringe | E96: 404.7 | F96: 205043 | G96: 9.685029261 | H96: 506.6543118 | I96: 102048 | J96: 49.76907283 | K96: 102995 | L96: 50.23092717 | M96: 27.7931946 | N96: 55.64881513 | O96: 16.55799028 | P96: 43.39089849 | Q96: 40.05111123 | R96: 16.55799028 | S96: 3.9 | T96: 16.9 | U96: 93 | V96: 3.6 | W96: 57287 | X96: 2.9 | Y96: Construction | Z96: 13532 | AA96: Data not yet available | AB96: Data not yet available | AC96: Data not yet available | AD96: Data not yet available | AE96: 7.13 | AF96: 3.01 | AG96: 74.11 | AH96: 25.88507884 | AI96: 2.92 | AJ96: 3.38 | AK96: 5.99162742 | AL96: 7.58 | AM96: 205864 | AN96: 221676 | AO96: 87049 | AP96: 1239.978918 | AQ96: 70202 | AR96: 1889 | AS96: 4382.830626 | AT96: 431 | AU96: 21608 | AV96: 6364.653903 | AW96: 3395 | AX96: N/A | AY96: N/A | AZ96: 0 | BA96: 250.5154502 | BB96: 14.1762343 | BC96: 40076 | BD96: 19.44776047 | BE96: 7000 | BF96: 3.396903965 | BG96: 35579 | BH96: 17.26549231 | BI96: 35832 | BJ96: 17.38826612 | BK96: 37410 | BL96: 18.15402533 | BM96: 33235 | BN96: 16.12801475 | BO96: 16938 | BP96: 8.219537051 | BQ96: 195.4516857 | BR96: 173.5197007 | BS96: 0 | BT96: 174.7535883 | BU96: 148.5834679 | BV96: 34.13918056 | BW96: 82.60706291 | BX96: 33.86606712 | BY96: 162.0879523 | BZ96: Data not yet available | CA96: 442.1668898 | CB96: Data not yet available | CC96: Data not yet available | CD96: Data not yet available | CE96: Data not yet available | CF96: Data not yet available | CG96: Data not yet available | CH96: Data not yet available | CI96: 95866 | CJ96: 48.5657063 | CK96: 1096.84 | CL96: 5.349316973 | CM96: 881 | CN96: 2 | CO96: 40 | CP96: 3 | CQ96: 2.478340699 | CR96: 19518 | CS96: 19663 | CT96: 99.3 | CU96: 46.83 | CV96: 1.16 | CW96: Y | CX96: 130000 | CY96: 505000 | CZ96: 0 | DA96: 24763 | DB96: 28605 | DC96: 434558 | DD96: 0 | DE96: 6345 | DF96: 0 | DG96: 15 | DH96: 13669.53333 | DI96: 20 | DJ96: 80 | DK96: 0 | DL96: 0 | DM96: 14 | DN96: 60 | DO96: 26 | DP96: 1031 | DQ96: 198.8777886
A97: Port Macquarie-Hastings | B97: 5 | C97: Regional Town/City | D97: Mid North Coast | E97: 3683 | F97: 81404 | G97: 7.08657274 | H97: 22.10263372 | I97: 39240 | J97: 48.20401946 | K97: 42164 | L97: 51.79598054 | M97: 23.00132672 | N97: 42.97946047 | O97: 34.01921282 | P97: 31.66306324 | Q97: 34.31772394 | R97: 34.01921282 | S97: 4 | T97: 3.1 | U97: 68 | V97: 3.3 | W97: 49336 | X97: 2.3 | Y97: Health Care & Social Assistance | Z97: 6340 | AA97: Data not yet available | AB97: Data not yet available | AC97: Data not yet available | AD97: Data not yet available | AE97: 4.66 | AF97: 2.16 | AG97: 66.14 | AH97: 33.85769771 | AI97: 4.88 | AJ97: 3.98 | AK97: 8.769059819 | AL97: 26.14 | AM97: 154446 | AN97: 161990 | AO97: 36833 | AP97: 1099.328458 | AQ97: 33505 | AR97: 2264 | AS97: 1900.923594 | AT97: 1191 | AU97: 7354 | AV97: 3498.572788 | AW97: 2102 | AX97: N/A | AY97: N/A | AZ97: 0 | BA97: 187.6517087 | BB97: 29.10013431 | BC97: 5284 | BD97: 3.317803368 | BE97: 50547 | BF97: 31.73826776 | BG97: 30310 | BH97: 19.03153295 | BI97: 9781 | BJ97: 6.141452449 | BK97: 17663 | BL97: 11.09053007 | BM97: 27730 | BN97: 17.41156082 | BO97: 17947 | BP97: 11.26885258 | BQ97: 64.91081519 | BR97: 372.3404255 | BS97: 566.348091 | BT97: 120.1538008 | BU97: 184.4872488 | BV97: 54.59191195 | BW97: 220.4682817 | BX97: 32.49226082 | BY97: 340.6466513 | BZ97: Data not yet available | CA97: 368.3330846 | CB97: Data not yet available | CC97: Data not yet available | CD97: Data not yet available | CE97: Data not yet available | CF97: Data not yet available | CG97: Data not yet available | CH97: Data not yet available | CI97: 39390 | CJ97: 87.62883981 | CK97: 1343.773 | CL97: 16.50745664 | CM97: 675.1 | CN97: 6 | CO97: 19 | CP97: 3 | CQ97: 8.882281225 | CR97: 20282 | CS97: 22182 | CT97: 91.43 | CU97: 37.21 | CV97: 5.63 | CW97: Y | CX97: 52000 | CY97: 213000 | CZ97: 2000 | DA97: 11000 | DB97: 0 | DC97: 319238 | DD97: 2 | DE97: 29130 | DF97: 2 | DG97: 9 | DH97: 9044.888889 | DI97: 33 | DJ97: 67 | DK97: 0 | DL97: 0 | DM97: 0 | DN97: 77.77777778 | DO97: 22.22222222 | DP97: 535 | DQ97: 152.1570093
A98: Port Stephens | B98: 5 | C98: Regional Town/City | D98: Hunter | E98: 858.4 | F98: 71736 | G98: 5.590391239 | H98: 83.5694315 | I98: 35517 | J98: 49.51070592 | K98: 36219 | L98: 50.48929408 | M98: 24.16917587 | N98: 46.39093342 | O98: 29.43989071 | P98: 34.54471953 | Q98: 36.01538976 | R98: 29.43989071 | S98: 4.8 | T98: 3.4 | U98: 70 | V98: 5.5 | W98: 53643 | X98: 2.5 | Y98: Health Care & Social Assistance | Z98: 4653 | AA98: Data not yet available | AB98: Data not yet available | AC98: Data not yet available | AD98: Data not yet available | AE98: -0.08 | AF98: 2.05 | AG98: 78.08 | AH98: 21.91816198 | AI98: 2.84 | AJ98: 2.36 | AK98: 5.433574806 | AL98: 5.53 | AM98: 116186 | AN98: 116093 | AO98: 31259 | AP98: 989.0523651 | AQ98: 31605 | AR98: 795 | AS98: 1609.311741 | AT98: 494 | AU98: 7589 | AV98: 4142.467249 | AW98: 1832 | AX98: N/A | AY98: N/A | AZ98: 0 | BA98: 199.8574166 | BB98: 18.18383167 | BC98: 27076 | BD98: 23.18964705 | BE98: 5318 | BF98: 4.55468101 | BG98: 22237 | BH98: 19.04521279 | BI98: 7608 | BJ98: 6.51598592 | BK98: 8829 | BL98: 7.561729717 | BM98: 10674 | BN98: 9.14190769 | BO98: 35017 | BP98: 29.99083582 | BQ98: 377.4395004 | BR98: 309.9838296 | BS98: 0 | BT98: 106.055537 | BU98: 97.70547563 | BV98: 74.13293186 | BW98: 488.1370581 | BX98: 25.37080406 | BY98: 148.7955838 | BZ98: Data not yet available | CA98: 410.0933397 | CB98: Data not yet available | CC98: Data not yet available | CD98: Data not yet available | CE98: Data not yet available | CF98: Data not yet available | CG98: Data not yet available | CH98: Data not yet available | CI98: 41763 | CJ98: 55.22112875 | CK98: 732.55 | CL98: 10.21174863 | CM98: 956 | CN98: 5 | CO98: 23 | CP98: 4 | CQ98: 4.452744158 | CR98: 12537 | CS98: 12043 | CT98: 123.1 | CU98: 123.1 | CV98: 1.83 | CW98: Y | CX98: 109000 | CY98: 234000 | CZ98: 0 | DA98: 33652 | DB98: 0 | DC98: 306767 | DD98: 7 | DE98: 2400 | DF98: 0 | DG98: 10 | DH98: 7173.6 | DI98: 20 | DJ98: 80 | DK98: 0 | DL98: 0 | DM98: 10 | DN98: 70 | DO98: 20 | DP98: 485 | DQ98: 147.9092784
A99: Queanbeyan-Palerang Regional | B99: 4 | C99: Regional Town/City | D99: Canberra | E99: 5318.9 | F99: 58771 | G99: 6.292049483 | H99: 11.04946511 | I99: 29641 | J99: 50.43473822 | K99: 29130 | L99: 49.56526178 | M99: 26.05026288 | N99: 56.55850675 | O99: 17.39123037 | P99: 38.93586973 | Q99: 43.6728999 | R99: 17.39123037 | S99: 3.1 | T99: 12.1 | U99: 110 | V99: 2.4 | W99: 67996 | X99: 2.6 | Y99: Public Administration & Safety | Z99: 4574 | AA99: Data not yet available | AB99: Data not yet available | AC99: Data not yet available | AD99: Data not yet available | AE99: 0.39 | AF99: 2.05 | AG99: 62.37 | AH99: 37.37377602 | AI99: 5.05 | AJ99: 6.64 | AK99: 2.89535998 | AL99: 9.41 | AM99: 125781 | AN99: 127462 | AO99: 26087 | AP99: 1069.139344 | AQ99: 24400 | AR99: 2364 | AS99: 2299.610895 | AT99: 1028 | AU99: 5801 | AV99: 4381.41994 | AW99: 1324 | AX99: 24 | AY99: 12000 | AZ99: 2 | BA99: 213.277011 | BB99: 10.12295082 | BC99: 28518 | BD99: 21.67070678 | BE99: 31483 | BF99: 23.92379765 | BG99: 17257 | BH99: 13.11352082 | BI99: 9906 | BJ99: 7.527527223 | BK99: 17446 | BL99: 13.25714112 | BM99: 10979 | BN99: 8.342895355 | BO99: 16008 | BP99: 12.16441104 | BQ99: 485.2393187 | BR99: 293.6312127 | BS99: 483.9972095 | BT99: 168.5525174 | BU99: 256.3849518 | BV99: 51.6921611 | BW99: 272.3792347 | BX99: 40.46213268 | BY99: 186.8098212 | BZ99: Data not yet available | CA99: 254.3852459 | CB99: Data not yet available | CC99: Data not yet available | CD99: Data not yet available | CE99: Data not yet available | CF99: Data not yet available | CG99: Data not yet available | CH99: Data not yet available | CI99: 31128 | CJ99: 55.32960678 | CK99: 1660.22 | CL99: 28.24896633 | CM99: 760.8 | CN99: 4 | CO99: 13 | CP99: 3 | CQ99: 4.025957116 | CR99: 13464 | CS99: 14632 | CT99: 92.02 | CU99: 46.7 | CV99: 2.6 | CW99: Y | CX99: 33000 | CY99: 245000 | CZ99: 0 | DA99: 18000 | DB99: 0 | DC99: 337222 | DD99: 5 | DE99: 60000 | DF99: 1 | DG99: 11 | DH99: 5342.818182 | DI99: 18 | DJ99: 82 | DK99: 0 | DL99: 9 | DM99: 0 | DN99: 64 | DO99: 36 | DP99: 406 | DQ99: 144.7561576
A100: Randwick | B100: 3 | C100: Metropolitan | E100: 36.3 | F100: 151996 | G100: 9.063251175 | H100: 4187.217631 | I100: 75485 | J100: 49.66249112 | K100: 76511 | L100: 50.33750888 | M100: 20.3538251 | N100: 62.23979578 | O100: 17.40637912 | P100: 42.45835417 | Q100: 40.13526672 | R100: 17.40637912 | S100: 1.5 | T100: 32.1 | U100: 117 | V100: 3.9 | W100: 74742 | X100: 2.5 | Y100: Health Care & Social Assistance | Z100: 12718 | AA100: Data not yet available | AB100: Data not yet available | AC100: Data not yet available | AD100: Data not yet available | AE100: 6.2 | AF100: 3.63 | AG100: 91.15 | AH100: 8.853730613 | AI100: 2.41 | AJ100: 0 | AK100: 0 | AL100: 3.03 | AM100: 144868 | AN100: 154427 | AO100: 61174 | AP100: 1220.526326 | AQ100: 50121 | AR100: N/A | AS100: N/A | AT100: N/A | AU100: 14637 | AV100: 7112.244898 | AW100: 2058 | AX100: N/A | AY100: N/A | AZ100: 0 | BA100: 531.5586767 | BB100: 8.856567108 | BC100: 11601 | BD100: 7.656920335 | BE100: 8587 | BF100: 5.667612699 | BG100: 47310 | BH100: 31.22566167 | BI100: 24964 | BJ100: 16.47680021 | BK100: 34374 | BL100: 22.68761138 | BM100: 16757 | BN100: 11.05999604 | BO100: 7917 | BP100: 5.225397664 | BQ100: 76.32437696 | BR100: 311.258191 | BS100: 0 | BT100: 164.2411642 | BU100: 171.050554 | BV100: 56.49490776 | BW100: 52.08689702 | BX100: 55.10013421 | BY100: 110.2463223 | BZ100: Data not yet available | CA100: 643.3630614 | CB100: Data not yet available | CC100: Data not yet available | CD100: Data not yet available | CE100: Data not yet available | CF100: Data not yet available | CG100: Data not yet available | CH100: Data not yet available | CI100: 30209 | CJ100: 63.36853256 | CK100: 302.59 | CL100: 1.990776073 | CM100: 785 | CN100: 9 | CO100: 13 | CP100: 3 | CQ100: 5.860993598 | CR100: 11818 | CS100: 7389 | CT100: 159.94 | CU100: 119.7 | CV100: 0.65 | CW100: Y | CX100: 180000 | CY100: 433000 | CZ100: 0 | DA100: 30000 | DB100: 25000 | DC100: 472787 | DD100: 1 | DE100: 2000 | DF100: 0 | DG100: 15 | DH100: 10133.06667 | DI100: 33 | DJ100: 67 | DK100: 0 | DL100: 0 | DM100: 7 | DN100: 80 | DO100: 13.33333333 | DP100: 507 | DQ100: 299.7948718
A101: Richmond Valley | B101: 4 | C101: Regional Town/City | D101: Northern Rivers | E101: 3047.4 | F101: 23317 | G101: 2.709012422 | H101: 7.651440572 | I101: 11607 | J101: 49.77913111 | K101: 11710 | L101: 50.22086889 | M101: 26.24694429 | N101: 44.55547455 | O101: 29.19758116 | P101: 36.19676631 | Q101: 34.60565253 | R101: 29.19758116 | S101: 7.2 | T101: 1.7 | U101: 6 | V101: 6.9 | W101: 43918 | X101: 2.4 | Y101: Manufacturing | Z101: 1661 | AA101: Data not yet available | AB101: Data not yet available | AC101: Data not yet available | AD101: Data not yet available | AE101: -7.31 | AF101: 3.08 | AG101: 64.04 | AH101: 35.76855627 | AI101: 13.29 | AJ101: 0.93 | AK101: 28.27730918 | AL101: 7.81 | AM101: 51651 | AN101: 48451 | AO101: 7208 | AP101: 857.1768343 | AQ101: 8409 | AR101: 2248 | AS101: 1462.58946 | AT101: 1537 | AU101: 1521 | AV101: 2280.35982 | AW101: 667 | AX101: N/A | AY101: N/A | AZ101: 0 | BA101: 151.7249057 | BB101: 25.68676418 | BC101: 2720 | BD101: 4.984149671 | BE101: 17792 | BF101: 32.60220255 | BG101: 7059 | BH101: 12.93496784 | BI101: 3347 | BJ101: 6.133069467 | BK101: 4408 | BL101: 8.07725432 | BM101: 11879 | BN101: 21.76717424 | BO101: 7368 | BP101: 13.5011819 | BQ101: 116.6530857 | BR101: 302.7404898 | BS101: 633.0145387 | BT101: 143.5433375 | BU101: 133.7650641 | BV101: 130.0338809 | BW101: 315.9926234 | BX101: 55.28155423 | BY101: 509.4566196 | BZ101: Data not yet available | CA101: 385.6582233 | CB101: Data not yet available | CC101: Data not yet available | CD101: Data not yet available | CE101: Data not yet available | CF101: Data not yet available | CG101: Data not yet available | CH101: Data not yet available | CI101: 12418 | CJ101: 67.10420358 | CK101: 1077.48 | CL101: 46.21006133 | CM101: 463.9 | CN101: 4 | CO101: 17 | CP101: 2 | CQ101: 5.22660056 | CR101: 5363 | CS101: 4501 | CT101: 119.15 | CU101: 83.65 | CV101: 1.92 | CW101: Y | CX101: 21000 | CY101: 176000 | CZ101: 0 | DA101: 5000 | DB101: 2000 | DC101: 276161 | DD101: 0 | DE101: 0 | DF101: 0 | DG101: 7 | DH101: 3331 | DI101: 29 | DJ101: 71 | DK101: 0 | DL101: 0 | DM101: 14 | DN101: 72 | DO101: 14 | DP101: 276 | DQ101: 84.48188406
A102: Ryde | B102: 3 | C102: Metropolitan | E102: 40.5 | F102: 124497 | G102: 12.37104097 | H102: 3074 | I102: 60917 | J102: 48.93049632 | K102: 63580 | L102: 51.06950368 | M102: 21.47360981 | N102: 59.79581837 | O102: 18.73057182 | P102: 39.83067865 | Q102: 41.43874953 | R102: 18.73057182 | S102: 0.4 | T102: 48.1 | U102: 115 | V102: 3.9 | W102: 66383 | X102: 2.7 | Y102: Professional Scientific & Technical Services | Z102: 11920 | AA102: Data not yet available | AB102: Data not yet available | AC102: Data not yet available | AD102: Data not yet available | AE102: 12.99 | AF102: 3.06 | AG102: 76.92 | AH102: 23.07921054 | AI102: 3.89 | AJ102: 33.2 | AK102: 0.7923804694 | AL102: 17.5 | AM102: 109812 | AN102: 126202 | AO102: 39688.43689 | AP102: 867.089856 | AQ102: 45772 | AR102: N/A | AS102: N/A | AT102: N/A | AU102: 22827.56311 | AV102: 12174.70032 | AW102: 1875 | AX102: N/A | AY102: N/A | AZ102: 0 | BA102: 486.2178657 | BB102: 9.658743337 | BC102: 24596 | BD102: 19.82860782 | BE102: 6415 | BF102: 5.171593722 | BG102: 23187 | BH102: 18.6927114 | BI102: 14590 | BJ102: 11.76205026 | BK102: 24423 | BL102: 19.68914006 | BM102: 28475 | BN102: 22.95574922 | BO102: 2357 | BP102: 1.900147529 | BQ102: 197.5629935 | BR102: 186.2454517 | BS102: 0 | BT102: 117.1915789 | BU102: 148.6300875 | BV102: 51.52734604 | BW102: 18.9321831 | BX102: 47.5433143 | BY102: 228.7203708 | BZ102: Data not yet available | CA102: 436.0089137 | CB102: Data not yet available | CC102: Data not yet available | CD102: Data not yet available | CE102: Data not yet available | CF102: Data not yet available | CG102: Data not yet available | CH102: Data not yet available | CI102: 23902 | CJ102: 60.27110702 | CK102: 318.49 | CL102: 2.558214254 | CM102: 764.04 | CN102: 1 | CO102: 13 | CP102: 5 | CQ102: 6.790381256 | CR102: 19192 | CS102: 20637 | CT102: 93 | CU102: 180.78 | CV102: 1.78 | CW102: Y | CX102: 89000 | CY102: 364000 | CZ102: 0 | DA102: 18000 | DB102: 0 | DC102: 360394 | DD102: 6 | DE102: 46766 | DF102: 0 | DG102: 12 | DH102: 10374.75 | DI102: 17 | DJ102: 83 | DK102: 0 | DL102: 0 | DM102: 16.66666667 | DN102: 66 | DO102: 16.66666667 | DP102: 474 | DQ102: 262.6518987
A103: Shellharbour | B103: 5 | C103: Regional Town/City | D103: Illawarra Shoalhaven | E103: 147.4 | F103: 70994 | G103: 6.284807474 | H103: 481.641791 | I103: 34871 | J103: 49.11823534 | K103: 36123 | L103: 50.88176466 | M103: 26.85015635 | N103: 50.95219314 | O103: 22.19765051 | P103: 39.32585852 | Q103: 38.47649097 | R103: 22.19765051 | S103: 3.8 | T103: 10.4 | U103: 66 | V103: 4.9 | W103: 56694 | X103: 2.7 | Y103: Health Care & Social Assistance | Z103: 3208 | AA103: Data not yet available | AB103: Data not yet available | AC103: Data not yet available | AD103: Data not yet available | AE103: 9.02 | AF103: 2.09 | AG103: 77.05 | AH103: 22.94717285 | AI103: 4.76 | AJ103: 12.61 | AK103: 1.404188909 | AL103: 7.66 | AM103: 119217 | AN103: 131083 | AO103: 37332 | AP103: 1411.898188 | AQ103: 26441 | AR103: 303 | AS103: 4094.594595 | AT103: 74 | AU103: 5688 | AV103: 4816.257409 | AW103: 1181 | AX103: N/A | AY103: N/A | AZ103: 0 | BA103: 192.0694737 | BB103: 22.04152642 | BC103: 26565 | BD103: 29.93745422 | BE103: 3737 | BF103: 4.211416014 | BG103: 23404 | BH103: 26.375162 | BI103: 6388 | BJ103: 7.198963205 | BK103: 18180 | BL103: 20.4879698 | BM103: 4587 | BN103: 5.169324393 | BO103: 5874 | BP103: 6.619710374 | BQ103: 374.186551 | BR103: 329.6616615 | BS103: 0 | BT103: 89.97943488 | BU103: 217.7507958 | BV103: 52.63825112 | BW103: 82.73938643 | BX103: 38.32718258 | BY103: 64.6110939 | BZ103: Data not yet available | CA103: 493.513861 | CB103: Data not yet available | CC103: Data not yet available | CD103: Data not yet available | CE103: Data not yet available | CF103: Data not yet available | CG103: Data not yet available | CH103: Data not yet available | CI103: 34179 | CJ103: 55.3146669 | CK103: 408.25 | CL103: 5.750485957 | CM103: 737.94 | CN103: 4 | CO103: 25 | CP103: 5 | CQ103: 5.066582278 | CR103: 12914 | CS103: 11884 | CT103: 108.67 | CU103: 265.34 | CV103: 1.98 | CW103: Y | CX103: 116000 | CY103: 172000 | CZ103: 0 | DA103: 18912 | DB103: 5181 | DC103: 306894 | DD103: 0 | DE103: 0 | DF103: 0 | DG103: 7 | DH103: 10142 | DI103: 43 | DJ103: 57 | DK103: 14 | DL103: 0 | DM103: 0 | DN103: 71 | DO103: 29 | DP103: 372 | DQ103: 190.844086
A104: Shoalhaven | B104: 5 | C104: Regional Town/City | D104: Illawarra Shoalhaven | E104: 4566.7 | F104: 103012 | G104: 6.277920497 | H104: 22.55720761 | I104: 51138 | J104: 49.64276007 | K104: 51874 | L104: 50.35723993 | M104: 22.16926183 | N104: 44.28998563 | O104: 33.54075253 | P104: 31.96812022 | Q104: 34.49112725 | R104: 33.54075253 | S104: 5.5 | T104: 4 | U104: 50 | V104: 9.4 | W104: 47246 | X104: 2.3 | Y104: Health Care & Social Assistance | Z104: 6934 | AA104: Data not yet available | AB104: Data not yet available | AC104: Data not yet available | AD104: Data not yet available | AE104: 7.42 | AF104: 1.76 | AG104: 80.82 | AH104: 19.1800259 | AI104: 8.16 | AJ104: 5.55 | AK104: 6.10471152 | AL104: 9.36 | AM104: 222949 | AN104: 240824 | AO104: 60197 | AP104: 1106.115174 | AQ104: 54422 | AR104: 2060 | AS104: 2415.005862 | AT104: 853 | AU104: 4684 | AV104: 2074.402126 | AW104: 2258 | AX104: N/A | AY104: N/A | AZ104: 0 | BA104: 241.1470858 | BB104: 23.28102606 | BC104: 14729 | BD104: 6.601291664 | BE104: 61889 | BF104: 27.73761558 | BG104: 41015 | BH104: 18.3822376 | BI104: 10830 | BJ104: 4.85382502 | BK104: 31236 | BL104: 13.99945322 | BM104: 29296 | BN104: 13.12997764 | BO104: 34128 | BP104: 15.29559929 | BQ104: 142.9833417 | BR104: 398.1574962 | BS104: 535.1997825 | BT104: 105.1333825 | BU104: 278.2879665 | BV104: 65.59429969 | BW104: 331.3012076 | BX104: 24.93884208 | BY104: 284.3940512 | BZ104: Data not yet available | CA104: 357.0247326 | CB104: Data not yet available | CC104: Data not yet available | CD104: Data not yet available | CE104: Data not yet available | CF104: Data not yet available | CG104: Data not yet available | CH104: Data not yet available | CI104: 56774 | CJ104: 87.0909219 | CK104: 1774.86 | CL104: 17.22964315 | CM104: 2172.98 | CN104: 12 | CO104: 32 | CP104: 5 | CQ104: 4.631216504 | CR104: 49823 | CS104: 56500 | CT104: 88.18 | CU104: 37.33 | CV104: 3.23 | CW104: Y | CX104: 223000 | CY104: 294000 | CZ104: 0 | DA104: 71000 | DB104: 7000 | DC104: 340780 | DD104: 6 | DE104: 5400 | DF104: 0 | DG104: 13 | DH104: 7924 | DI104: 46.15384615 | DJ104: 53.84615385 | DK104: 0 | DL104: 8 | DM104: 7.692307692 | DN104: 38.46153846 | DO104: 53.84615385 | DP104: 842 | DQ104: 122.3420428
A105: Singleton | B105: 4 | C105: Regional Town/City | D105: Hunter | E105: 4892.7 | F105: 23482 | G105: -1.273912129 | H105: 4.799395017 | I105: 11869 | J105: 50.54509837 | K105: 11613 | L105: 49.45490163 | M105: 28.62192318 | N105: 53.20671152 | O105: 18.1713653 | P105: 41.42321778 | Q105: 40.40541692 | R105: 18.1713653 | S105: 5.7 | T105: 3.1 | U105: 85 | V105: 4.2 | W105: 72769 | X105: 2.7 | Y105: Mining | Z105: 1979 | AA105: Data not yet available | AB105: Data not yet available | AC105: Data not yet available | AD105: Data not yet available | AE105: 2.31 | AF105: 3.18 | AG105: 69.2 | AH105: 30.84556474 | AI105: 2.77 | AJ105: 7.93 | AK105: 2.966673027 | AL105: 15.09 | AM105: 54693 | AN105: 55891.644 | AO105: 8151 | AP105: 897.2919419 | AQ105: 9084 | AR105: 1471 | AS105: 1890.745501 | AT105: 778 | AU105: 1786 | AV105: 1986.651835 | AW105: 899 | AX105: 6324 | AY105: 137478.2609 | AZ105: 46 | BA105: 141.6343789 | BB105: 12.32937032 | BC105: 7480 | BD105: 13.67633884 | BE105: 11630 | BF105: 21.26414715 | BG105: 7093 | BH105: 12.96875286 | BI105: 6954 | BJ105: 12.71460699 | BK105: 7894 | BL105: 14.43329128 | BM105: 9692 | BN105: 17.72073209 | BO105: 3950 | BP105: 7.222130803 | BQ105: 318.5418619 | BR105: 302.0611532 | BS105: 422.962269 | BT105: 296.1417256 | BU105: 262.797036 | BV105: 72.31070607 | BW105: 168.2139511 | BX105: 73.37535133 | BY105: 412.7416745 | BZ105: Data not yet available | CA105: 436.7018934 | CB105: Data not yet available | CC105: Data not yet available | CD105: Data not yet available | CE105: Data not yet available | CF105: Data not yet available | CG105: Data not yet available | CH105: Data not yet available | CI105: 17348 | CJ105: 54.72676966 | CK105: 871.784 | CL105: 37.12562814 | CM105: 245.3 | CN105: 1 | CO105: 5 | CP105: 1 | CQ105: 4.703055839 | CR105: 10862 | CS105: 13473 | CT105: 80.62 | CU105: 37.58 | CV105: 2.46 | CW105: Y | CX105: 85000 | CY105: 235000 | CZ105: 0 | DA105: 9000 | DB105: 2000 | DC105: 324155 | DD105: 0 | DE105: 0 | DF105: 0 | DG105: 10 | DH105: 2348.2 | DI105: 50 | DJ105: 50 | DK105: 0 | DL105: 0 | DM105: 0 | DN105: 40 | DO105: 60 | DP105: 208 | DQ105: 112.8942308
A106: Snowy Monaro Regional | B106: 4 | C106: Regional Town/City | D106: Canberra | E106: 15163.5 | F106: 20655 | G106: 0.7315288954 | H106: 1.362152537 | I106: 10782 | J106: 52.20043573 | K106: 9873 | L106: 47.79956427 | M106: 23.03074316 | N106: 51.77438877 | O106: 25.19486807 | P106: 34.73735173 | Q106: 40.0677802 | R106: 25.19486807 | S106: 2.2 | T106: 5.3 | U106: 90 | V106: 4 | W106: 47790 | X106: 2.3 | Y106: Accommodation & Food Services | Z106: 2462 | AA106: Data not yet available | AB106: Data not yet available | AC106: Data not yet available | AD106: Data not yet available | AE106: -3.67 | AF106: 4.13 | AG106: 66.36 | AH106: 33.63992143 | AI106: 10.64 | AJ106: 14.76 | AK106: 1.459572278 | AL106: 19.72 | AM106: 72520 | AN106: 69952 | AO106: 8004 | AP106: 792.4752475 | AQ106: 10100 | AR106: 4842 | AS106: 1703.130496 | AT106: 2843 | AU106: 2361 | AV106: 2212.746017 | AW106: 1067 | AX106: N/A | AY106: N/A | AZ106: 0 | BA106: 130.3641173 | BB106: 15.79207921 | BC106: 12818 | BD106: 17.6751241 | BE106: 16140 | BF106: 22.2559294 | BG106: 8108 | BH106: 11.18036404 | BI106: 9712 | BJ106: 13.39216768 | BK106: 5387 | BL106: 7.428295643 | BM106: 12476 | BN106: 17.20353006 | BO106: 7879 | BP106: 10.86458908 | BQ106: 620.5761317 | BR106: 392.5441782 | BS106: 677.4146696 | BT106: 470.2009199 | BU106: 227.063665 | BV106: 103.9941903 | BW106: 381.4572743 | BX106: 33.74485597 | BY106: 604.0183975 | BZ106: Data not yet available | CA106: 236.039604 | CB106: Data not yet available | CC106: Data not yet available | CD106: Data not yet available | CE106: Data not yet available | CF106: Data not yet available | CG106: Data not yet available | CH106: Data not yet available | CI106: 12053 | CJ106: 57.86941011 | CK106: 2684.76 | CL106: 129.9811184 | CM106: 559.13 | CN106: 5 | CO106: 27 | CP106: 2 | CQ106: 4.709650944 | CR106: 8423 | CS106: 11823.91286 | CT106: 71.24 | CU106: 18.27 | CV106: 6.45 | CW106: Y | CX106: 59000 | CY106: 244000 | CZ106: 0 | DA106: 1000 | DB106: 22000 | DC106: 250000 | DD106: 3 | DE106: 1500 | DF106: 0 | DG106: 11 | DH106: 1877.727273 | DI106: 18 | DJ106: 82 | DK106: 0 | DL106: 0 | DM106: 9 | DN106: 27 | DO106: 64 | DP106: 340 | DQ106: 60.75
A107: Snowy Valleys | B107: 11 | C107: Large Rural | D107: Canberra | E107: 8959 | F107: 14552 | G107: -1.722158439 | H107: 1.624288425 | I107: 7365 | J107: 50.61159978 | K107: 7187 | L107: 49.38840022 | M107: 24.34029687 | N107: 46.86641012 | O107: 28.79329302 | P107: 33.56239692 | Q107: 37.64431006 | R107: 28.79329302 | S107: 4.4 | T107: 3.5 | U107: 34 | V107: 5.6 | W107: 50491 | X107: 2.3 | Y107: Agriculture, Forestry and Fishing | Z107: 1465 | AA107: Data not yet available | AB107: Data not yet available | AC107: Data not yet available | AD107: Data not yet available | AE107: -7.95 | AF107: 5.75 | AG107: 66.81 | AH107: 33.19398274 | AI107: 3.18 | AJ107: 4.12 | AK107: 4.031851186 | AL107: 11.3 | AM107: 49210 | AN107: 45587 | AO107: 3589 | AP107: 590.781893 | AQ107: 6075 | AR107: 3840 | AS107: 1819.905213 | AT107: 2110 | AU107: 948 | AV107: 1559.210526 | AW107: 608 | AX107: N/A | AY107: N/A | AZ107: 0 | BA107: 151.3598955 | BB107: 28.01646091 | BC107: 10898 | BD107: 20.05520795 | BE107: 13012 | BF107: 23.94552816 | BG107: 3235 | BH107: 5.953257269 | BI107: 3499 | BJ107: 6.439087229 | BK107: 4454 | BL107: 8.196540302 | BM107: 9952 | BN107: 18.31431726 | BO107: 9290 | BP107: 17.09606183 | BQ107: 748.9004948 | BR107: 222.3062122 | BS107: 717.1522815 | BT107: 240.4480484 | BU107: 254.8103353 | BV107: 177.0203408 | BW107: 638.4002199 | BX107: 51.26443101 | BY107: 683.8922485 | BZ107: Data not yet available | CA107: 300.9053498 | CB107: Data not yet available | CC107: Data not yet available | CD107: Data not yet available | CE107: Data not yet available | CF107: Data not yet available | CG107: Data not yet available | CH107: Data not yet available | CI107: 11019 | CJ107: 53.23532081 | CK107: 1194.6703 | CL107: 82.09663964 | CM107: 331 | CN107: 5 | CO107: 9 | CP107: 5 | CQ107: 5.618159375 | CR107: 3649 | CS107: 3792 | CT107: 96.23 | CU107: 73.41 | CV107: 0.26 | CW107: Y | CX107: 282000 | CY107: 0 | CZ107: 0 | DA107: 15000 | DB107: 0 | DC107: 227300 | DD107: 3 | DE107: 1810 | DF107: 0 | DG107: 9 | DH107: 1616.888889 | DI107: 44 | DJ107: 56 | DK107: 0 | DL107: 11 | DM107: 11 | DN107: 33 | DO107: 56 | DP107: 228 | DQ107: 63.8245614
A108: Strathfield | B108: 2 | C108: Metropolitan | E108: 14 | F108: 43803 | G108: 16.2962963 | H108: 3128.785714 | I108: 22412 | J108: 51.16544529 | K108: 21391 | L108: 48.83455471 | M108: 20.93463918 | N108: 63.08472022 | O108: 15.9806406 | P108: 44.04721138 | Q108: 39.97214803 | R108: 15.9806406 | S108: 0.3 | T108: 64.2 | U108: 113 | V108: 4.3 | W108: 56935 | X108: 3 | Y108: Health Care & Social Assistance | Z108: 5868 | AA108: Data not yet available | AB108: Data not yet available | AC108: Data not yet available | AD108: Data not yet available | AE108: 7.43 | AF108: 3.7 | AG108: 72.33 | AH108: 27.67308835 | AI108: 2.24 | AJ108: 0 | AK108: 0 | AL108: 17.7 | AM108: 37473 | AN108: 40480 | AO108: 11906 | AP108: 803.9162728 | AQ108: 14810 | AR108: N/A | AS108: N/A | AT108: N/A | AU108: 5141 | AV108: 4746.999077 | AW108: 1083 | AX108: N/A | AY108: N/A | AZ108: 0 | BA108: 739.8606594 | BB108: 7.683997299 | BC108: 5454 | BD108: 13.79711611 | BE108: 2996 | BF108: 7.579053883 | BG108: 9882 | BH108: 24.99873514 | BI108: 3373 | BJ108: 8.532759929 | BK108: 8644 | BL108: 21.8669365 | BM108: 3981 | BN108: 10.07083228 | BO108: 5200 | BP108: 13.15456615 | BQ108: 124.5120197 | BR108: 225.6009862 | BS108: 0 | BT108: 77.00385818 | BU108: 158.7334201 | BV108: 68.39714175 | BW108: 118.7133301 | BX108: 38.60466178 | BY108: 90.88418601 | BZ108: Data not yet available | CA108: 692.8426739 | CB108: Data not yet available | CC108: Data not yet available | CD108: Data not yet available | CE108: Data not yet available | CF108: Data not yet available | CG108: Data not yet available | CH108: Data not yet available | CI108: 6563 | CJ108: 42.54152065 | CK108: 97.1 | CL108: 2.216743145 | CM108: 116.41 | CN108: 0 | CO108: 4 | CP108: 2 | CQ108: 5.380039004 | CR108: 10559 | CS108: 10258 | CT108: 102.93 | CU108: 373.08 | CV108: 1.2 | CW108: Y | CX108: 45000 | CY108: 180000 | CZ108: 0 | DA108: 16000 | DB108: 0 | DC108: 373000 | DD108: 0 | DE108: 0 | DF108: 0 | DG108: 7 | DH108: 6257.571429 | DI108: 57 | DJ108: 43 | DK108: 0 | DL108: 0 | DM108: 0 | DN108: 71 | DO108: 29 | DP108: 207 | DQ108: 211.6086957
A109: Sutherland | B109: 3 | C109: Metropolitan | E109: 333.6 | F109: 227546 | G109: 2.893550444 | H109: 682.0923261 | I109: 112003 | J109: 49.2221353 | K109: 115543 | L109: 50.7778647 | M109: 25.14788219 | N109: 52.45840402 | O109: 22.3937138 | P109: 37.53438865 | Q109: 40.07189755 | R109: 22.3937138 | S109: 1.1 | T109: 13 | U109: 114 | V109: 2.8 | W109: 69825 | X109: 2.7 | Y109: Health Care & Social Assistance | Z109: 21705 | AA109: Data not yet available | AB109: Data not yet available | AC109: Data not yet available | AD109: Data not yet available | AE109: 3.15 | AF109: 2.91 | AG109: 83.98 | AH109: 16.02201229 | AI109: 3.58 | AJ109: 17.8 | AK109: 0.710583182 | AL109: 7.72 | AM109: 218979 | AN109: 226293 | AO109: 96911 | AP109: 1188.698223 | AQ109: 81527 | AR109: N/A | AS109: N/A | AT109: N/A | AU109: 16810 | AV109: 3637.740749 | AW109: 4621 | AX109: N/A | AY109: N/A | AZ109: 0 | BA109: 480.9860319 | BB109: 15.6745618 | BC109: 44759 | BD109: 20.41515389 | BE109: 17637 | BF109: 8.044461878 | BG109: 44716 | BH109: 20.39554104 | BI109: 22248 | BJ109: 10.14759811 | BK109: 51639 | BL109: 23.55321012 | BM109: 25400 | BN109: 11.58526573 | BO109: 12845 | BP109: 5.858769225 | BQ109: 196.7030842 | BR109: 196.5141114 | BS109: 0 | BT109: 97.77363698 | BU109: 191.9392123 | BV109: 77.50960245 | BW109: 56.45012437 | BX109: 34.99951658 | BY109: 111.6257812 | BZ109: Data not yet available | CA109: 457.2963558 | CB109: Data not yet available | CC109: Data not yet available | CD109: Data not yet available | CE109: Data not yet available | CF109: Data not yet available | CG109: Data not yet available | CH109: Data not yet available | CI109: 71572 | CJ109: 91.15436204 | CK109: 824.52 | CL109: 3.623531066 | CM109: 2672.69 | CN109: 13 | CO109: 37 | CP109: 8 | CQ109: 6.907012282 | CR109: 27991 | CS109: 30859 | CT109: 90.71 | CU109: 105.54 | CV109: 2.13 | CW109: Y | CX109: 59000 | CY109: 516000 | CZ109: 0 | DA109: 8990 | DB109: 0 | DC109: 430756 | DD109: 0 | DE109: 0 | DF109: 0 | DG109: 15 | DH109: 15169.73333 | DI109: 21 | DJ109: 79 | DK109: 0 | DL109: 14 | DM109: 20 | DN109: 33 | DO109: 47 | DP109: 1021 | DQ109: 222.8658178
A110: Sydney | B110: 1 | C110: Metropolitan | E110: 26.7 | F110: 232926 | G110: 24.1867979 | H110: 8723.820225 | I110: 120965 | J110: 51.93280269 | K110: 111961 | L110: 48.06719731 | M110: 10.47886453 | N110: 77.66243356 | O110: 11.85870191 | P110: 43.51253188 | Q110: 44.62876622 | R110: 11.85870191 | S110: 1.2 | T110: 36.2 | U110: 116 | V110: 3.5 | W110: 68007 | X110: 2 | Y110: Professional Scientific & Technical Services | Z110: 66697 | AA110: Data not yet available | AB110: Data not yet available | AC110: Data not yet available | AD110: Data not yet available | AE110: 5.68 | AF110: 4.06 | AG110: 79.08 | AH110: 20.93894189 | AI110: 1.32 | AJ110: 0 | AK110: 0 | AL110: 9.2 | AM110: 540554.4009 | AN110: 572624.0528 | AO110: 66686.56 | AP110: 651.0261342 | AQ110: 102433 | AR110: N/A | AS110: N/A | AT110: N/A | AU110: 197163.04 | AV110: 10637.33693 | AW110: 18535 | AX110: N/A | AY110: N/A | AZ110: 0 | BA110: 261.2525683 | BB110: 2.833071373 | BC110: 124560.499 | BD110: 23.04309727 | BE110: 51065 | BF110: 9.446781054 | BG110: 69642 | BH110: 12.88343731 | BI110: 62600 | BJ110: 11.58070095 | BK110: 116722 | BL110: 21.5930124 | BM110: 38376 | BN110: 7.099376672 | BO110: 77589 | BP110: 14.35359434 | BQ110: 534.7642556 | BR110: 298.9876613 | BS110: 0 | BT110: 268.7548835 | BU110: 455.0071697 | BV110: 219.2327177 | BW110: 333.1057933 | BX110: 46.10477147 | BY110: 164.7561887 | BZ110: Data not yet available | CA110: 446.9960852 | CB110: Data not yet available | CC110: Data not yet available | CD110: Data not yet available | CE110: Data not yet available | CF110: Data not yet available | CG110: Data not yet available | CH110: Data not yet available | CI110: 42191 | CJ110: 50.68142495 | CK110: 326.5 | CL110: 1.401732739 | CM110: 426.07 | CN110: 5 | CO110: 34 | CP110: 9 | CQ110: 4.590878881 | CR110: 56851.94308 | CS110: 57856.128 | CT110: 98.26 | CU110: 0.95 | CV110: 2.05 | CW110: Y | CX110: 127430 | CY110: 602470 | CZ110: 2000 | DA110: 5000 | DB110: 4000 | DC110: 487274 | DD110: 0 | DE110: 0 | DF110: 0 | DG110: 10 | DH110: 23292.6 | DI110: 70 | DJ110: 30 | DK110: 0 | DL110: 30 | DM110: 0 | DN110: 90 | DO110: 10 | DP110: 1794 | DQ110: 129.8361204
A111: Tamworth Regional | B111: 4 | C111: Regional Town/City | D111: Namoi | E111: 9884.4 | F111: 61571 | G111: 4.495774074 | H111: 6.229108494 | I111: 30179 | J111: 49.01495834 | K111: 31392 | L111: 50.98504166 | M111: 27.24984165 | N111: 48.47736759 | O111: 24.27279076 | P111: 39.37568011 | Q111: 36.35152913 | R111: 24.27279076 | S111: 10.1 | T111: 3.7 | U111: 53 | V111: 6.3 | W111: 49825 | X111: 2.5 | Y111: Health Care & Social Assistance | Z111: 5426 | AA111: Data not yet available | AB111: Data not yet available | AC111: Data not yet available | AD111: Data not yet available | AE111: 5.62 | AF111: 3.86 | AG111: 77.1 | AH111: 22.90450608 | AI111: 4.82 | AJ111: 4.35 | AK111: 7.295433337 | AL111: 17.16 | AM111: 129454 | AN111: 137168 | AO111: 22103 | AP111: 961.6689871 | AQ111: 22984 | AR111: 5531 | AS111: 1846.744574 | AT111: 2995 | AU111: 5553 | AV111: 3027.80807 | AW111: 1834 | AX111: 17 | AY111: 8500 | AZ111: 2 | BA111: 141.5719988 | BB111: 19.97476505 | BC111: 10572 | BD111: 7.636576398 | BE111: 39364 | BF111: 28.43418401 | BG111: 15599 | BH111: 11.26777859 | BI111: 5665 | BJ111: 4.092054985 | BK111: 17169 | BL111: 12.40185208 | BM111: 26233 | BN111: 18.94914005 | BO111: 23837 | BP111: 17.21841389 | BQ111: 171.7042114 | BR111: 253.3497913 | BS111: 610.6933459 | BT111: 92.00760098 | BU111: 241.3149047 | BV111: 28.63360998 | BW111: 387.1465463 | BX111: 37.53390395 | BY111: 426.0609703 | BZ111: Data not yet available | CA111: 298.9035851 | CB111: Data not yet available | CC111: Data not yet available | CD111: Data not yet available | CE111: Data not yet available | CF111: Data not yet available | CG111: Data not yet available | CH111: Data not yet available | CI111: 48012 | CJ111: 33.48954428 | CK111: 3198.82 | CL111: 51.95335466 | CM111: 850 | CN111: 6 | CO111: 23 | CP111: 6 | CQ111: 3.514864997 | CR111: 32917 | CS111: 35813 | CT111: 91.91 | CU111: 33.06 | CV111: 0.64 | CW111: Y | CX111: 138000 | CY111: 216000 | CZ111: 3000 | DA111: 37000 | DB111: 0 | DC111: 338000 | DD111: 0 | DE111: 0 | DF111: 0 | DG111: 9 | DH111: 6841.222222 | DI111: 22.22222222 | DJ111: 77.77777778 | DK111: 0 | DL111: 0 | DM111: 0 | DN111: 22 | DO111: 78 | DP111: 537 | DQ111: 114.6573557
A112: Temora | B112: 10 | C112: Large Rural | D112: Riverina | E112: 2802 | F112: 6236 | G112: 4.473111074 | H112: 2.225553176 | I112: 3112 | J112: 49.90378448 | K112: 3124 | L112: 50.09621552 | M112: 25.56125722 | N112: 44.32328416 | O112: 30.11545863 | P112: 34.97434253 | Q112: 34.91019885 | R112: 30.11545863 | S112: 2.3 | T112: 2.1 | U112: 47 | V112: 6.1 | W112: 44501 | X112: 2.4 | Y112: Agriculture, Forestry and Fishing | Z112: 706 | AA112: Data not yet available | AB112: Data not yet available | AC112: Data not yet available | AD112: Data not yet available | AE112: 7.71 | AF112: 2.17 | AG112: 49.91 | AH112: 50.08649114 | AI112: 3.68 | AJ112: 18.8 | AK112: 1.445717403 | AL112: 5.6 | AM112: 20301 | AN112: 21996 | AO112: 1346 | AP112: 543.6187399 | AQ112: 2476 | AR112: 1821 | AS112: 2066.969353 | AT112: 881 | AU112: 478 | AV112: 1361.823362 | AW112: 351 | AX112: N/A | AY112: N/A | AZ112: 0 | BA112: 181.7257119 | BB112: 24.91922456 | BC112: 2990 | BD112: 14.72833851 | BE112: 1808 | BF112: 8.905965223 | BG112: 1304 | BH112: 6.4233289 | BI112: 3483 | BJ112: 17.15679031 | BK112: 2307 | BL112: 11.36397222 | BM112: 4382 | BN112: 21.58514359 | BO112: 4027 | BP112: 19.83646126 | BQ112: 479.4740218 | BR112: 209.1084028 | BS112: 121.5522771 | BT112: 558.5311097 | BU112: 317.8319436 | BV112: 168.3771648 | BW112: 645.766517 | BX112: 52.1167415 | BY112: 702.6940346 | BZ112: Data not yet available | CA112: 163.9741519 | CB112: Data not yet available | CC112: Data not yet available | CD112: Data not yet available | CE112: Data not yet available | CF112: Data not yet available | CG112: Data not yet available | CH112: Data not yet available | CI112: 4269 | CJ112: 61.23213867 | CK112: 1331.93 | CL112: 213.5872354 | CM112: 40 | CN112: 2 | CO112: 2 | CP112: 1 | CQ112: 4.492809204 | CR112: 3282 | CS112: 2852 | CT112: 115.08 | CU112: 130.46 | CV112: 2.5 | CW112: Y | CX112: 27000 | CY112: 96000 | CZ112: 0 | DA112: 0 | DB112: 0 | DC112: 224788 | DD112: 0 | DE112: 0 | DF112: 0 | DG112: 9 | DH112: 692.8888889 | DI112: 22 | DJ112: 78 | DK112: 0 | DL112: 0 | DM112: 0 | DN112: 44 | DO112: 56 | DP112: 109 | DQ112: 57.21100917
A113: Tenterfield | B113: 10 | C113: Large Rural | D113: New England | E113: 7322.8 | F113: 6656 | G113: -4.859919954 | H113: 0.9089419348 | I113: 3274 | J113: 49.18870192 | K113: 3382 | L113: 50.81129808 | M113: 21.30408654 | N113: 41.06069712 | O113: 37.63521635 | P113: 27.71935096 | Q113: 34.64543269 | R113: 37.63521635 | S113: 6 | T113: 2.5 | U113: 10 | V113: 9.6 | W113: 40090 | X113: 2.1 | Y113: Agriculture, Forestry and Fishing | Z113: 929 | AA113: Data not yet available | AB113: Data not yet available | AC113: Data not yet available | AD113: Data not yet available | AE113: 12.81 | AF113: 4.81 | AG113: 52.87 | AH113: 47.13119586 | AI113: 7.12 | AJ113: 11.83 | AK113: 3.435464636 | AL113: 15.08 | AM113: 19010 | AN113: 21802 | AO113: 1803 | AP113: 561.1577965 | AQ113: 3213 | AR113: 2136 | AS113: 1519.203414 | AT113: 1406 | AU113: 272 | AV113: 1157.446809 | AW113: 235 | AX113: 10 | AY113: 909.0909091 | AZ113: 11 | BA113: 183.7858254 | BB113: 30.18985372 | BC113: 2238 | BD113: 11.35752347 | BE113: 4653 | BF113: 23.61329612 | BG113: 1791 | BH113: 9.089063689 | BI113: 700 | BJ113: 3.552397869 | BK113: 2040 | BL113: 10.35270236 | BM113: 6542 | BN113: 33.19969551 | BO113: 1741 | BP113: 8.835320985 | BQ113: 336.2379808 | BR113: 269.0805288 | BS113: 568.9603365 | BT113: 105.1682692 | BU113: 234.8257212 | BV113: 130.1081731 | BW113: 261.5685096 | BX113: 71.66466346 | BY113: 982.8725962 | BZ113: Data not yet available | CA113: 221.2885154 | CB113: Data not yet available | CC113: Data not yet available | CD113: Data not yet available | CE113: Data not yet available | CF113: Data not yet available | CG113: Data not yet available | CH113: Data not yet available | CI113: 3576 | CJ113: 66.8344519 | CK113: 1689.19 | CL113: 253.7845553 | CM113: 65 | CN113: 1 | CO113: 11 | CP113: 2 | CQ113: 4.915220999 | CR113: 5703 | CS113: 5703 | CT113: 100 | CU113: 84.82 | CV113: 10.85 | CW113: Y | CX113: 42000 | CY113: 139000 | CZ113: 0 | DA113: 16000 | DB113: 3000 | DC113: 170126 | DD113: 1 | DE113: 1540 | DF113: 0 | DG113: 10 | DH113: 665.6 | DI113: 10 | DJ113: 90 | DK113: 0 | DL113: 0 | DM113: 0 | DN113: 20 | DO113: 80 | DP113: 81 | DQ113: 82.17283951
A114: Tweed | B114: 5 | C114: Regional Town/City | D114: Northern Rivers | E114: 1307.7 | F114: 94857 | G114: 6.741610965 | H114: 72.53727919 | I114: 45925 | J114: 48.41498255 | K114: 48932 | L114: 51.58501745 | M114: 22.7521427 | N114: 45.39359246 | O114: 31.85426484 | P114: 31.71932488 | Q114: 36.42641028 | R114: 31.85426484 | S114: 4 | T114: 4.2 | U114: 65 | V114: 4.4 | W114: 48609 | X114: 2.4 | Y114: Health Care & Social Assistance | Z114: 7238 | AA114: Data not yet available | AB114: Data not yet available | AC114: Data not yet available | AD114: Data not yet available | AE114: 11.26 | AF114: 1.83 | AG114: 71.17 | AH114: 28.83243222 | AI114: 3.99 | AJ114: 3.81 | AK114: 10.14479879 | AL114: 21.55 | AM114: 179819 | AN114: 202599 | AO114: 49561 | AP114: 1330.78245 | AQ114: 37242 | AR114: 3001 | AS114: 2061.126374 | AT114: 1456 | AU114: 5104 | AV114: 2769.397721 | AW114: 1843 | AX114: N/A | AY114: N/A | AZ114: 0 | BA114: 191.8050824 | BB114: 23.08146716 | BC114: 21024 | BD114: 11.2902966 | BE114: 59073 | BF114: 31.72334907 | BG114: 22178 | BH114: 11.91001702 | BI114: 11983 | BJ114: 6.435103886 | BK114: 22319 | BL114: 11.98573676 | BM114: 33741 | BN114: 18.11957275 | BO114: 15895 | BP114: 8.535923915 | BQ114: 221.638888 | BR114: 233.804569 | BS114: 561.0339775 | BT114: 126.3269975 | BU114: 207.016878 | BV114: 61.72449055 | BW114: 167.5680234 | BX114: 28.27413897 | BY114: 355.703849 | BZ114: Data not yet available | CA114: 332.5546426 | CB114: Data not yet available | CC114: Data not yet available | CD114: Data not yet available | CE114: Data not yet available | CF114: Data not yet available | CG114: Data not yet available | CH114: Data not yet available | CI114: 37447 | CJ114: 73.62672577 | CK114: 1254 | CL114: 13.21989943 | CM114: 964 | CN114: 3 | CO114: 19 | CP114: 3 | CQ114: 5.910901456 | CR114: 25477 | CS114: 25660 | CT114: 99.29 | CU114: 56.9 | CV114: 1.43 | CW114: Y | CX114: 0 | CY114: 181000 | CZ114: 0 | DA114: 18000 | DB114: 11000 | DC114: 335000 | DD114: 15 | DE114: 53182 | DF114: 0 | DG114: 7 | DH114: 13551 | DI114: 28.57142857 | DJ114: 71.42857143 | DK114: 0 | DL114: 0 | DM114: 14 | DN114: 57 | DO114: 29 | DP114: 704 | DQ114: 134.7400568
A115: Upper Hunter | B115: 11 | C115: Large Rural | D115: Hunter | E115: 8096.1 | F115: 14265 | G115: -1.681714798 | H115: 1.761959462 | I115: 7076 | J115: 49.60392569 | K115: 7189 | L115: 50.39607431 | M115: 26.74377848 | N115: 49.106204 | O115: 24.15001753 | P115: 37.47634069 | Q115: 38.37364178 | R115: 24.15001753 | S115: 5.1 | T115: 3 | U115: 67 | V115: 3.6 | W115: 59852 | X115: 2.4 | Y115: Agriculture, Forestry and Fishing | Z115: 1644 | AA115: Data not yet available | AB115: Data not yet available | AC115: Data not yet available | AD115: Data not yet available | AE115: 16.7 | AF115: 2.69 | AG115: 68.8 | AH115: 31.20151157 | AI115: 6.85 | AJ115: 9.04 | AK115: 3.706706582 | AL115: 10.34 | AM115: 40067 | AN115: 48102 | AO115: 3979 | AP115: 755.1717593 | AQ115: 5269 | AR115: 5563 | AS115: 3496.543055 | AT115: 1591 | AU115: 587 | AV115: 890.7435508 | AW115: 659 | AX115: 90 | AY115: 90000 | AZ115: 1 | BA115: 182.6448341 | BB115: 22.03454166 | BC115: 1528 | BD115: 3.701281399 | BE115: 8719 | BF115: 21.12007364 | BG115: 5154 | BH115: 12.48455781 | BI115: 5381 | BJ115: 13.03442095 | BK115: 3978 | BL115: 9.635927622 | BM115: 11192 | BN115: 27.11043287 | BO115: 5331 | BP115: 12.91330572 | BQ115: 107.1153172 | BR115: 361.3038906 | BS115: 504.3112513 | BT115: 377.2169646 | BU115: 232.8776726 | BV115: 106.9050123 | BW115: 373.7118822 | BX115: 45.98668069 | BY115: 784.5776376 | BZ115: Data not yet available | CA115: 404.0614917 | CB115: Data not yet available | CC115: Data not yet available | CD115: Data not yet available | CE115: Data not yet available | CF115: Data not yet available | CG115: Data not yet available | CH115: Data not yet available | CI115: 11630 | CJ115: 48.37489252 | CK115: 1769.45 | CL115: 124.04136 | CM115: 175.1 | CN115: 3 | CO115: 10 | CP115: 5 | CQ115: 2.667644593 | CR115: 8350 | CS115: 8609 | CT115: 96.99 | CU115: 142.19 | CV115: 1.01 | CW115: Y | CX115: 34000 | CY115: 129000 | CZ115: 0 | DA115: 5000 | DB115: 17000 | DC115: 253564 | DD115: 1 | DE115: 5436 | DF115: 2 | DG115: 9 | DH115: 1585 | DI115: 33.33333333 | DJ115: 66.66666667 | DK115: 0 | DL115: 0 | DM115: 0 | DN115: 78 | DO115: 22 | DP115: 203 | DQ115: 70.27093596
A116: Upper Lachlan | B116: 10 | C116: Large Rural | D116: Canberra | E116: 7127.4 | F116: 7909 | G116: 4.796607924 | H116: 1.109661307 | I116: 4034 | J116: 51.00518397 | K116: 3875 | L116: 48.99481603 | M116: 23.93475787 | N116: 45.60627134 | O116: 30.45897079 | P116: 32.05209255 | Q116: 37.48893665 | R116: 30.45897079 | S116: 2.3 | T116: 1.6 | U116: 91 | V116: 3 | W116: 49730 | X116: 2.4 | Y116: Agriculture, Forestry and Fishing | Z116: 1161 | AA116: Data not yet available | AB116: Data not yet available | AC116: Data not yet available | AD116: Data not yet available | AE116: 5.29 | AF116: 2.97 | AG116: 56.37 | AH116: 43.62892814 | AI116: 2.94 | AJ116: 19.85 | AK116: 1.347543353 | AL116: 18.48 | AM116: 26215 | AN116: 27680 | AO116: 1533 | AP116: 490.8741595 | AQ116: 3123 | AR116: 4808 | AS116: 1749.636099 | AT116: 2748 | AU116: 274 | AV116: 982.078853 | AW116: 279 | AX116: 2 | AY116: 2000 | AZ116: 1 | BA116: 250.0215052 | BB116: 20.10886968 | BC116: 3930 | BD116: 14.97142857 | BE116: 4305 | BF116: 16.4 | BG116: 2024 | BH116: 7.71047619 | BI116: 1100 | BJ116: 4.19047619 | BK116: 1659 | BL116: 6.32 | BM116: 7390 | BN116: 28.15238095 | BO116: 5842 | BP116: 22.2552381 | BQ116: 496.9022632 | BR116: 255.9109875 | BS116: 403.9701606 | BT116: 139.0820584 | BU116: 155.2661525 | BV116: 140.3464408 | BW116: 738.6521684 | BX116: 54.49487925 | BY116: 934.3785561 | BZ116: Data not yet available | CA116: 338.7768172 | CB116: Data not yet available | CC116: Data not yet available | CD116: Data not yet available | CE116: Data not yet available | CF116: Data not yet available | CG116: Data not yet available | CH116: Data not yet available | CI116: 5168 | CJ116: 30.90170279 | CK116: 1985.4 | CL116: 251.0304716 | CM116: 89.06 | CN116: 2 | CO116: 8 | CP116: 2 | CQ116: 5.193413553 | CR116: 5627 | CS116: 5048 | CT116: 111.47 | CU116: 233.42 | CV116: 0.49 | CW116: Y | CX116: 54000 | CY116: 130000 | CZ116: 0 | DA116: 9000 | DB116: 0 | DC116: 303835 | DD116: 4 | DE116: 7323 | DF116: 0 | DG116: 9 | DH116: 878.7777778 | DI116: 11.11111111 | DJ116: 88.88888889 | DK116: 0 | DL116: 0 | DM116: 0 | DN116: 44 | DO116: 56 | DP116: 138 | DQ116: 57.3115942
A117: Uralla | B117: 10 | C117: Large Rural | D117: New England | E117: 3226.5 | F117: 6103 | G117: -2.83394364 | H117: 1.891523322 | I117: 2953 | J117: 48.38603965 | K117: 3150 | L117: 51.61396035 | M117: 26.01999017 | N117: 45.81353433 | O117: 28.1664755 | P117: 33.73750614 | Q117: 38.09601835 | R117: 28.1664755 | S117: 6.9 | T117: 1.6 | U117: 76 | V117: 4.4 | W117: 46021 | X117: 2.4 | Y117: Agriculture, Forestry and Fishing | Z117: 654 | AA117: Data not yet available | AB117: Data not yet available | AC117: Data not yet available | AD117: Data not yet available | AE117: 2.16 | AF117: 2.25 | AG117: 69.45 | AH117: 43.60834264 | AI117: 5.38 | AJ117: 13.18 | AK117: 1.737022824 | AL117: 10.26 | AM117: 19376 | AN117: 19804 | AO117: 1482 | AP117: 651.4285714 | AQ117: 2275 | AR117: 2013 | AS117: 3360.601002 | AT117: 599 | AU117: 101 | AV117: 664.4736842 | AW117: 152 | AX117: N/A | AY117: N/A | AZ117: 0 | BA117: 224.4654741 | BB117: 26.06593407 | BC117: 1847 | BD117: 9.491264132 | BE117: 2463 | BF117: 12.65673176 | BG117: 1925 | BH117: 9.892086331 | BI117: 6517 | BJ117: 33.48920863 | BK117: 895 | BL117: 4.599177801 | BM117: 5106 | BN117: 26.23843782 | BO117: 707 | BP117: 3.633093525 | BQ117: 302.6380469 | BR117: 315.4186466 | BS117: 329.8377847 | BT117: 1067.835491 | BU117: 92.24971326 | BV117: 73.73422907 | BW117: 115.8446666 | BX117: 54.39947567 | BY117: 836.6377192 | BZ117: Data not yet available | CA117: 232.5274725 | CB117: Data not yet available | CC117: Data not yet available | CD117: Data not yet available | CE117: Data not yet available | CF117: Data not yet available | CG117: Data not yet available | CH117: Data not yet available | CI117: 6060 | CJ117: 40.18151815 | CK117: 935.35 | CL117: 153.2606915 | CM117: 30 | CN117: 1 | CO117: 2 | CP117: 1 | CQ117: 3.283728536 | CR117: 4041.12385 | CS117: 4124 | CT117: 97.99 | CU117: 63.39 | CV117: 0.42 | CW117: Y | CX117: 8000 | CY117: 120000 | CZ117: 0 | DA117: 3000 | DB117: 1000 | DC117: 241765 | DD117: 0 | DE117: 0 | DF117: 0 | DG117: 9 | DH117: 678.1111111 | DI117: 33 | DJ117: 67 | DK117: 0 | DL117: 0 | DM117: 11 | DN117: 33 | DO117: 56 | DP117: 136 | DQ117: 44.875
A118: Wagga Wagga | B118: 4 | C118: Regional Town/City | E118: 4824.5 | F118: 64265 | G118: 4.079616493 | H118: 13.32055135 | I118: 31367 | J118: 48.8088384 | K118: 32898 | L118: 51.1911616 | M118: 27.65268809 | N118: 52.07500195 | O118: 20.27230997 | P118: 43.07476854 | Q118: 36.6529215 | R118: 20.27230997 | S118: 5.6 | T118: 6.6 | U118: 88 | V118: 6.1 | W118: 53209 | X118: 2.5 | Y118: Health Care & Social Assistance | Z118: 5379 | AA118: Data not yet available | AB118: Data not yet available | AC118: Data not yet available | AD118: Data not yet available | AE118: -8.11 | AF118: 2.99 | AG118: 65.01 | AH118: 34.94762166 | AI118: 4.82 | AJ118: 4.79 | AK118: 5.28825801 | AL118: 8.89 | AM118: 121045.336 | AN118: 112146.15 | AO118: 25476.391 | AP118: 1038.623303 | AQ118: 24529 | AR118: 4860.063 | AS118: 2665.96983 | AT118: 1823 | AU118: 10636.374 | AV118: 5690.94382 | AW118: 1869 | AX118: N/A | AY118: N/A | AZ118: 0 | BA118: 129.1763023 | BB118: 12.88271026 | BC118: 19542.33989 | BD118: 15.67083389 | BE118: 20088.17273 | BF118: 16.10853254 | BG118: 13289.39104 | BH118: 10.65664811 | BI118: 8050.23587 | BJ118: 6.455414747 | BK118: 19043.90792 | BL118: 15.27114559 | BM118: 8481.50656 | BN118: 6.801246996 | BO118: 36209.61499 | BP118: 29.03617812 | BQ118: 304.0899384 | BR118: 206.7904931 | BS118: 260.0943442 | BT118: 125.2662549 | BU118: 260.3445269 | BV118: 52.48906403 | BW118: 563.4422312 | BX118: 35.98952618 | BY118: 131.9770724 | BZ118: Data not yet available | CA118: 295.3517061 | CB118: Data not yet available | CC118: Data not yet available | CD118: Data not yet available | CE118: Data not yet available | CF118: Data not yet available | CG118: Data not yet available | CH118: Data not yet available | CI118: 45749 | CJ118: 61.02209884 | CK118: 2305.71 | CL118: 35.87816074 | CM118: 1822.37 | CN118: 1 | CO118: 10 | CP118: 2 | CQ118: 4.745280676 | CR118: 15349.716 | CS118: 24321.149 | CT118: 63.11 | CU118: 42.15 | CV118: 23.16 | CW118: Y | CX118: 0 | CY118: 215907 | CZ118: 4000 | DA118: 16000 | DB118: 3000 | DC118: 312271 | DD118: 1 | DE118: 0 | DF118: 0 | DG118: 9 | DH118: 7140.555556 | DI118: 22 | DJ118: 78 | DK118: 0 | DL118: 0 | DM118: 0 | DN118: 56 | DO118: 44 | DP118: 465 | DQ118: 138.2043011
A119: Walcha | B119: 9 | C119: Rural | D119: Namoi | E119: 6261 | F119: 3144 | G119: 1.813471503 | H119: 0.5021562051 | I119: 1594 | J119: 50.69974555 | K119: 1550 | L119: 49.30025445 | M119: 22.70992366 | N119: 44.46564885 | O119: 32.82442748 | P119: 32.15648855 | Q119: 35.01908397 | R119: 32.82442748 | S119: 6 | T119: 1.4 | U119: 80 | V119: 4.6 | W119: 41354 | X119: 2.3 | Y119: Agriculture, Forestry and Fishing | Z119: 622 | AA119: Data not yet available | AB119: Data not yet available | AC119: Data not yet available | AD119: Data not yet available | AE119: 7.45 | AF119: 6.48 | AG119: 59.12 | AH119: 40.88367354 | AI119: 3.43 | AJ119: 24.74 | AK119: 0.7178209982 | AL119: 9.65 | AM119: 13667 | AN119: 14766.91268 | AO119: 409 | AP119: 445.5337691 | AQ119: 918 | AR119: 2755 | AS119: 3753.405995 | AT119: 734 | AU119: 111 | AV119: 776.2237762 | AW119: 143 | AX119: 2 | AY119: 666.6666667 | AZ119: 3 | BA119: 328.5831306 | BB119: 26.79738562 | BC119: 765 | BD119: 5.350398657 | BE119: 2162 | BF119: 15.12099594 | BG119: 1037 | BH119: 7.252762624 | BI119: 1206 | BJ119: 8.434746118 | BK119: 802 | BL119: 5.609176109 | BM119: 4426 | BN119: 30.95537837 | BO119: 3900 | BP119: 27.27654217 | BQ119: 243.3206107 | BR119: 329.8346056 | BS119: 490.1399491 | BT119: 383.5877863 | BU119: 200.0636132 | BV119: 197.519084 | BW119: 1240.458015 | BX119: 55.02544529 | BY119: 1407.760814 | BZ119: Data not yet available | CA119: 388.8888889 | CB119: Data not yet available | CC119: Data not yet available | CD119: Data not yet available | CE119: Data not yet available | CF119: Data not yet available | CG119: Data not yet available | CH119: Data not yet available | CI119: 1874 | CJ119: 35.96584845 | CK119: 933.79 | CL119: 297.0069975 | CM119: 32 | CN119: 1 | CO119: 0 | CP119: 1 | CQ119: 2.717136522 | CR119: 2586.528 | CS119: 2295 | CT119: 112.7 | CU119: 103.59 | CV119: 4.15 | CW119: Y | CX119: 75000 | CY119: 114000 | CZ119: 4000 | DA119: 2431 | DB119: 11724 | DC119: 231137 | DD119: 0 | DE119: 0 | DF119: 0 | DG119: 8 | DH119: 393 | DI119: 25 | DJ119: 75 | DK119: 0 | DL119: 0 | DM119: 12.5 | DN119: 50 | DO119: 37 | DP119: 73 | DQ119: 43.06849315
A120: Walgett | B120: 10 | C120: Large Rural | D120: Far North West | E120: 22308.4 | F120: 6190 | G120: -8.943807002 | H120: 0.277473956 | I120: 3284 | J120: 53.05331179 | K120: 2906 | L120: 46.94668821 | M120: 24.95961228 | N120: 49.22455574 | O120: 25.81583199 | P120: 36.04200323 | Q120: 38.14216478 | R120: 25.81583199 | S120: 29.4 | T120: 5.3 | U120: 3 | V120: 6.3 | W120: 41523 | X120: 2.3 | Y120: Agriculture, Forestry and Fishing | Z120: 761 | AA120: Data not yet available | AB120: Data not yet available | AC120: Data not yet available | AD120: Data not yet available | AE120: -3.79 | AF120: 5.17 | AG120: 51.05 | AH120: 48.95293363 | AI120: 9.48 | AJ120: 7.73 | AK120: 2.572926909 | AL120: 17.04 | AM120: 31666 | AN120: 30510 | AO120: 1204 | AP120: 334.6303502 | AQ120: 3598 | AR120: 3661 | AS120: 4389.688249 | AT120: 834 | AU120: 322 | AV120: 682.2033898 | AW120: 472 | AX120: N/A | AY120: N/A | AZ120: 0 | BA120: 239.1443788 | BB120: 19.03835464 | BC120: 4608 | BD120: 14.5518853 | BE120: 3392 | BF120: 10.71180446 | BG120: 1532 | BH120: 4.837996589 | BI120: 3672 | BJ120: 11.5960336 | BK120: 2639 | BL120: 8.33385966 | BM120: 5589 | BN120: 17.64984526 | BO120: 10234 | BP120: 32.31857513 | BQ120: 744.4264943 | BR120: 247.4959612 | BS120: 471.2439418 | BT120: 593.2148627 | BU120: 355.2504039 | BV120: 76.73667205 | BW120: 1653.311793 | BX120: 71.08239095 | BY120: 902.907916 | BZ120: Data not yet available | CA120: 347.1372985 | CB120: Data not yet available | CC120: Data not yet available | CD120: Data not yet available | CE120: Data not yet available | CF120: Data not yet available | CG120: Data not yet available | CH120: Data not yet available | CI120: 4111 | CJ120: 33.4711749 | CK120: 2376.06 | CL120: 383.8546042 | CM120: 38.8 | CN120: 6 | CO120: 5 | CP120: 2 | CQ120: 1.972396084 | CR120: 4356 | CS120: 5770 | CT120: 75.49 | CU120: 61.92 | CV120: 6.47 | CW120: Y | CX120: 38000 | CY120: 124000 | CZ120: 0 | DA120: 12000 | DB120: 0 | DC120: 214685 | DD120: 1 | DE120: 8871 | DF120: 0 | DG120: 9 | DH120: 687.7777778 | DI120: 22 | DJ120: 78 | DK120: 22.22222222 | DL120: 11.11111111 | DM120: 0 | DN120: 33 | DO120: 67 | DP120: 99 | DQ120: 62.52525253
A121: Warren | B121: 9 | C121: Rural | D121: Orana | E121: 10753.8 | F121: 2763 | G121: -4.724137931 | H121: 0.2569324332 | I121: 1353 | J121: 48.96851249 | K121: 1410 | L121: 51.03148751 | M121: 26.63771263 | N121: 46.72457474 | O121: 26.63771263 | P121: 37.24212812 | Q121: 36.12015925 | R121: 26.63771263 | S121: 14.5 | T121: 2 | U121: 51 | V121: 2.9 | W121: 45146 | X121: 2.4 | Y121: Agriculture, Forestry and Fishing | Z121: 428 | AA121: Data not yet available | AB121: Data not yet available | AC121: Data not yet available | AD121: Data not yet available | AE121: 10.91 | AF121: 6.76 | AG121: 52.67 | AH121: 47.33238522 | AI121: 3.26 | AJ121: 44.46 | AK121: 0.6710071751 | AL121: 13.65 | AM121: 13410 | AN121: 15052 | AO121: 565 | AP121: 521.6989843 | AQ121: 1083 | AR121: 3786 | AS121: 5535.087719 | AT121: 684 | AU121: 190 | AV121: 1338.028169 | AW121: 142 | AX121: N/A | AY121: N/A | AZ121: 0 | BA121: 181.8851167 | BB121: 19.66759003 | BC121: 3053 | BD121: 20.92959484 | BE121: 2090 | BF121: 14.32782615 | BG121: 747 | BH121: 5.120998149 | BI121: 335 | BJ121: 2.296565435 | BK121: 1593 | BL121: 10.9206828 | BM121: 5064 | BN121: 34.71584287 | BO121: 1705 | BP121: 11.68848975 | BQ121: 1104.958379 | BR121: 270.3583062 | BS121: 573.6518277 | BT121: 121.2450235 | BU121: 456.0260586 | BV121: 182.7723489 | BW121: 617.0828809 | BX121: 120.5211726 | BY121: 1832.790445 | BZ121: Data not yet available | CA121: 206.8328717 | CB121: Data not yet available | CC121: Data not yet available | CD121: Data not yet available | CE121: Data not yet available | CF121: Data not yet available | CG121: Data not yet available | CH121: Data not yet available | CI121: 1797 | CJ121: 54.03450195 | CK121: 1323.96 | CL121: 479.17481 | CM121: 70 | CN121: 1 | CO121: 1 | CP121: 1 | CQ121: 7.291079812 | CR121: 3385 | CS121: 2221 | CT121: 152.41 | CU121: 101.34 | CV121: 0.67 | CW121: Y | CX121: 23000 | CY121: 136000 | CZ121: 0 | DA121: 12000 | DB121: 0 | DC121: 220000 | DD121: 0 | DE121: 0 | DF121: 0 | DG121: 12 | DH121: 230.25 | DI121: 42 | DJ121: 58 | DK121: 0 | DL121: 0 | DM121: 0 | DN121: 75 | DO121: 25 | DP121: 75 | DQ121: 36.84
A122: Warrumbungle | B122: 10 | C122: Large Rural | D122: Orana | E122: 12372.1 | F122: 9451 | G122: -3.875101709 | H122: 0.7638961858 | I122: 4750 | J122: 50.25923183 | K122: 4701 | L122: 49.74076817 | M122: 24.13501217 | N122: 42.4928579 | O122: 33.37212993 | P122: 32.1341657 | Q122: 34.49370437 | R122: 33.37212993 | S122: 9.8 | T122: 2.1 | U122: 21 | V122: 3.5 | W122: 43986 | X122: 2.3 | Y122: Agriculture, Forestry and Fishing | Z122: 1020 | AA122: Data not yet available | AB122: Data not yet available | AC122: Data not yet available | AD122: Data not yet available | AE122: -8.1 | AF122: 4.05 | AG122: 47.4 | AH122: 52.59980549 | AI122: 8.68 | AJ122: 7.3 | AK122: 2.743569371 | AL122: 5.76 | AM122: 43538 | AN122: 40276 | AO122: 2068 | AP122: 537.5617364 | AQ122: 3847 | AR122: 4962 | AS122: 2855.005754 | AT122: 1738 | AU122: 563 | AV122: 1517.520216 | AW122: 371 | AX122: N/A | AY122: N/A | AZ122: 0 | BA122: 151.9387662 | BB122: 30.38731479 | BC122: 8121.94891 | BD122: 18.13600823 | BE122: 10697 | BF122: 23.88600104 | BG122: 2996.60437 | BH122: 6.691305514 | BI122: 4853 | BJ122: 10.83656754 | BK122: 4416 | BL122: 9.860762884 | BM122: 8511 | BN122: 19.00474477 | BO122: 5188 | BP122: 11.58461002 | BQ122: 859.374554 | BR122: 317.0674394 | BS122: 619.4053539 | BT122: 513.4906359 | BU122: 397.7356893 | BV122: 512.4325468 | BW122: 548.9366205 | BX122: 69.51645329 | BY122: 900.5396254 | BZ122: Data not yet available | CA122: 373.7977645 | CB122: Data not yet available | CC122: Data not yet available | CD122: Data not yet available | CE122: Data not yet available | CF122: Data not yet available | CG122: Data not yet available | CH122: Data not yet available | CI122: 7342 | CJ122: 51.5663307 | CK122: 2667.71 | CL122: 282.2674849 | CM122: 94 | CN122: 6 | CO122: 10 | CP122: 3 | CQ122: 4.197643562 | CR122: 7181 | CS122: 6667 | CT122: 107.71 | CU122: 54.59 | CV122: 0.64 | CW122: Y | CX122: 20000 | CY122: 129000 | CZ122: 0 | DA122: 18000 | DB122: 2000 | DC122: 490744.48 | DD122: 2 | DE122: 630 | DF122: 1 | DG122: 9 | DH122: 1050.111111 | DI122: 22 | DJ122: 78 | DK122: 11 | DL122: 11 | DM122: 0 | DN122: 44 | DO122: 56 | DP122: 175 | DQ122: 54.00571429
A123: Waverley | B123: 3 | C123: Metropolitan | E123: 9.4 | F123: 73300 | G123: 5.572438824 | H123: 7797.87234 | I123: 35886 | J123: 48.95770805 | K123: 37414 | L123: 51.04229195 | M123: 19.66030014 | N123: 63.61527967 | O123: 16.72442019 | P123: 36.85129604 | Q123: 46.42428377 | R123: 16.72442019 | S123: 0.4 | T123: 21 | U123: 124 | V123: 2.3 | W123: 84833 | X123: 2.4 | Y123: Professional Scientific & Technical Services | Z123: 9992 | AA123: Data not yet available | AB123: Data not yet available | AC123: Data not yet available | AD123: Data not yet available | AE123: 1.76 | AF123: 10.15 | AG123: 86.46 | AH123: 13.5214019 | AI123: 3.13 | AJ123: 23.78 | AK123: 0.7451921161 | AL123: 14.82 | AM123: 123258 | AN123: 125643 | AO123: 31152 | AP123: 1065.389877 | AQ123: 29240 | AR123: N/A | AS123: N/A | AT123: N/A | AU123: 11728 | AV123: 6268.305719 | AW123: 1871 | AX123: N/A | AY123: N/A | AZ123: 0 | BA123: 631.6542436 | BB123: 6.904924761 | BC123: 26715 | BD123: 21.03543307 | BE123: 9731 | BF123: 7.662204724 | BG123: 25881 | BH123: 20.37874016 | BI123: 20168 | BJ123: 15.88031496 | BK123: 19090 | BL123: 15.03149606 | BM123: 13990 | BN123: 11.01574803 | BO123: 11425 | BP123: 8.996062992 | BQ123: 364.4611187 | BR123: 353.0832196 | BS123: 0 | BT123: 275.1432469 | BU123: 193.1514325 | BV123: 132.7557981 | BW123: 155.8663029 | BX123: 67.2851296 | BY123: 190.8594816 | BZ123: Data not yet available | CA123: 552.872777 | CB123: Data not yet available | CC123: Data not yet available | CD123: Data not yet available | CE123: Data not yet available | CF123: Data not yet available | CG123: Data not yet available | CH123: Data not yet available | CI123: 16187 | CJ123: 56.56390931 | CK123: 123.46 | CL123: 1.68431105 | CM123: 115.5 | CN123: 2 | CO123: 10 | CP123: 1 | CQ123: 5.636779819 | CR123: 19243 | CS123: 20418 | CT123: 94.25 | CU123: 31.24 | CV123: 1.05 | CW123: Y | CX123: 160000 | CY123: 266000 | CZ123: 0 | DA123: 12000 | DB123: 0 | DC123: 443000 | DD123: 5 | DE123: 2842 | DF123: 0 | DG123: 12 | DH123: 6108.333333 | DI123: 42 | DJ123: 58 | DK123: 8 | DL123: 8 | DM123: 8 | DN123: 50 | DO123: 41.66666667 | DP123: 583 | DQ123: 125.728988
A124: Weddin | B124: 9 | C124: Rural | D124: Central NSW | E124: 3414.9 | F124: 3641 | G124: -2.386058981 | H124: 1.066209845 | I124: 1822 | J124: 50.04119747 | K124: 1819 | L124: 49.95880253 | M124: 21.91705575 | N124: 42.02142269 | O124: 36.06152156 | P124: 28.70090634 | Q124: 35.2375721 | R124: 36.06152156 | S124: 3.1 | T124: 1.3 | U124: 56 | V124: 4 | W124: 39169 | X124: 2.2 | Y124: Agriculture, Forestry and Fishing | Z124: 503 | AA124: Data not yet available | AB124: Data not yet available | AC124: Data not yet available | AD124: Data not yet available | AE124: -11.12 | AF124: 4.09 | AG124: 45.59 | AH124: 54.4083724 | AI124: 5.44 | AJ124: 5.91 | AK124: 2.116658588 | AL124: 7.1 | AM124: 13755 | AN124: 12378 | AO124: 764 | AP124: 513.7861466 | AQ124: 1487 | AR124: 1543 | AS124: 1560.16178 | AT124: 989 | AU124: 127 | AV124: 947.761194 | AW124: 134 | AX124: 6 | AY124: 6000 | AZ124: 1 | BA124: 254.9993959 | BB124: 32.41425689 | BC124: 3281 | BD124: 23.82197052 | BE124: 1096 | BF124: 7.957598199 | BG124: 696 | BH124: 5.05336528 | BI124: 386 | BJ124: 2.802584767 | BK124: 1104 | BL124: 8.015682858 | BM124: 5220 | BN124: 37.9002396 | BO124: 1990 | BP124: 14.44855877 | BQ124: 901.1260643 | BR124: 191.1562757 | BS124: 115.352925 | BT124: 106.0148311 | BU124: 267.5089261 | BV124: 185.6632793 | BW124: 546.5531447 | BX124: 35.70447679 | BY124: 1433.672068 | BZ124: Data not yet available | CA124: 217.2158709 | CB124: Data not yet available | CC124: Data not yet available | CD124: Data not yet available | CE124: Data not yet available | CF124: Data not yet available | CG124: Data not yet available | CH124: Data not yet available | CI124: 2411 | CJ124: 53.00705102 | CK124: 1084.89 | CL124: 297.9648448 | CM124: 11.5 | CN124: 2 | CO124: 2 | CP124: 1 | CQ124: 3.552976516 | CR124: 1259 | CS124: 1238 | CT124: 101.7 | CU124: 223.88 | CV124: 1.68 | CW124: Y | CX124: 5000 | CY124: 129000 | CZ124: 0 | DA124: 0 | DB124: 0 | DC124: 192189 | DD124: 0 | DE124: 0 | DF124: 0 | DG124: 9 | DH124: 404.5555556 | DI124: 22.22222222 | DJ124: 77.77777778 | DK124: 0 | DL124: 0 | DM124: 0 | DN124: 78 | DO124: 22 | DP124: 59 | DQ124: 61.71186441
A125: Wentworth | B125: 10 | C125: Large Rural | D125: Far South West | E125: 26256.2 | F125: 6972 | G125: 2.213751649 | H125: 0.2655372826 | I125: 3625 | J125: 51.99368904 | K125: 3347 | L125: 48.00631096 | M125: 25.34423408 | N125: 46.41422834 | O125: 28.24153758 | P125: 34.66724039 | Q125: 37.09122203 | R125: 28.24153758 | S125: 9.6 | T125: 3 | U125: 49 | V125: 11.6 | W125: 38231 | X125: 2.4 | Y125: Agriculture, Forestry and Fishing | Z125: 764 | AA125: Data not yet available | AB125: Data not yet available | AC125: Data not yet available | AD125: Data not yet available | AE125: 1.33 | AF125: 7.93 | AG125: 58.44 | AH125: 41.55732473 | AI125: 9.96 | AJ125: 16.94 | AK125: 1.781579144 | AL125: 16.28 | AM125: 26419 | AN125: 26774 | AO125: 1845 | AP125: 707.7100115 | AQ125: 2607 | AR125: 1671 | AS125: 1585.388994 | AT125: 1054 | AU125: 1406 | AV125: 5305.660377 | AW125: 265 | AX125: N/A | AY125: N/A | AZ125: 0 | BA125: 103.9984193 | BB125: 19.90794016 | BC125: 4717 | BD125: 17.85457436 | BE125: 4694 | BF125: 17.7675158 | BG125: 2661 | BH125: 10.07229645 | BI125: 986 | BJ125: 3.732162459 | BK125: 2435 | BL125: 9.216851508 | BM125: 3444 | BN125: 13.03607252 | BO125: 7482 | BP125: 28.32052689 | BQ125: 676.5633964 | BR125: 381.6695353 | BS125: 530.4073437 | BT125: 141.4228342 | BU125: 283.1325301 | BV125: 142.8571429 | BW125: 1073.149742 | BX125: 66.12162937 | BY125: 493.9759036 | BZ125: Data not yet available | CA125: 255.4660529 | CB125: Data not yet available | CC125: Data not yet available | CD125: Data not yet available | CE125: Data not yet available | CF125: Data not yet available | CG125: Data not yet available | CH125: Data not yet available | CI125: 4570 | CJ125: 79.93435449 | CK125: 2319.58 | CL125: 332.7 | CM125: 178 | CN125: 2 | CO125: 9 | CP125: 3 | CQ125: 2.67922358 | CR125: 3655 | CS125: 4574 | CT125: 79.91 | CU125: 58.53 | CV125: 6.83 | CW125: Y | CX125: 102000 | CY125: 130000 | CZ125: 0 | DA125: 15000 | DB125: 0 | DC125: 225353 | DD125: 0 | DE125: 0 | DF125: 0 | DG125: 9 | DH125: 774.6666667 | DI125: 33 | DJ125: 67 | DK125: 0 | DL125: 0 | DM125: 0 | DN125: 44 | DO125: 56 | DP125: 109 | DQ125: 63.96330275
A126: Willoughby | B126: 3 | C126: Metropolitan | E126: 22.4 | F126: 79681 | G126: 10.77113425 | H126: 3557.1875 | I126: 38651 | J126: 48.50717235 | K126: 41030 | L126: 51.49282765 | M126: 24.80516058 | N126: 56.91821137 | O126: 18.27662805 | P126: 38.33536226 | Q126: 43.38800969 | R126: 18.27662805 | S126: 0.2 | T126: 40.2 | U126: 123 | V126: 3.9 | W126: 91982 | X126: 2.7 | Y126: Professional Scientific & Technical Services | Z126: 12213 | AA126: Data not yet available | AB126: Data not yet available | AC126: Data not yet available | AD126: Data not yet available | AE126: 10.74 | AF126: 4.66 | AG126: 78.76 | AH126: 21.24210788 | AI126: 1.33 | AJ126: 6.8 | AK126: 3.572543041 | AL126: 18.61 | AM126: 100116 | AN126: 112153 | AO126: 29070 | AP126: 1009.480154 | AQ126: 28797 | AR126: N/A | AS126: N/A | AT126: N/A | AU126: 20159 | AV126: 6717.427524 | AW126: 3001 | AX126: N/A | AY126: N/A | AZ126: 0 | BA126: 570.3702541 | BB126: 6.785429038 | BC126: 23294 | BD126: 23.15437909 | BE126: 5075 | BF126: 5.044581176 | BG126: 19480 | BH126: 19.36323966 | BI126: 12867 | BJ126: 12.78987704 | BK126: 26460 | BL126: 26.30140254 | BM126: 7880 | BN126: 7.832768407 | BO126: 5547 | BP126: 5.513752075 | BQ126: 292.3407086 | BR126: 244.4748434 | BS126: 0 | BT126: 161.4814071 | BU126: 274.7455479 | BV126: 63.69146974 | BW126: 69.61509017 | BX126: 57.32859778 | BY126: 98.89434119 | BZ126: Data not yet available | CA126: 525.8881133 | CB126: Data not yet available | CC126: Data not yet available | CD126: Data not yet available | CE126: Data not yet available | CF126: Data not yet available | CG126: Data not yet available | CH126: Data not yet available | CI126: 16386 | CJ126: 64.82362993 | CK126: 211.51 | CL126: 2.654459658 | CM126: 361.6 | CN126: 3 | CO126: 17 | CP126: 6 | CQ126: 12.42502576 | CR126: 14283 | CS126: 14283 | CT126: 100 | CU126: 100.95 | CV126: 1.4 | CW126: Y | CX126: 0 | CY126: 332000 | CZ126: 0 | DA126: 13188 | DB126: 0 | DC126: 351884 | DD126: 15 | DE126: 49352 | DF126: 2 | DG126: 13 | DH126: 6129.307692 | DI126: 38 | DJ126: 62 | DK126: 0 | DL126: 0 | DM126: 8 | DN126: 54 | DO126: 38.46153846 | DP126: 369 | DQ126: 215.9376694
A127: Wingecarribee | B127: 4 | C127: Regional Town/City | D127: Canberra | E127: 2689.3 | F127: 49649 | G127: 6.965270596 | H127: 18.46168148 | I127: 23836 | J127: 48.00902334 | K127: 25813 | L127: 51.99097666 | M127: 24.54832927 | N127: 43.55978972 | O127: 31.891881 | P127: 33.1587746 | Q127: 34.9493444 | R127: 31.891881 | S127: 2 | T127: 5.6 | U127: 100 | V127: 3 | W127: 56904 | X127: 2.4 | Y127: Health Care & Social Assistance | Z127: 5350 | AA127: Data not yet available | AB127: Data not yet available | AC127: Data not yet available | AD127: Data not yet available | AE127: 6.07 | AF127: 4.53 | AG127: 63.46 | AH127: 36.53505383 | AI127: 2.17 | AJ127: 6.18 | AK127: 5.295955916 | AL127: 22.07 | AM127: 101592 | AN127: 108158 | AO127: 31068 | AP127: 1463.745583 | AQ127: 21225 | AR127: 4403 | AS127: 3363.636364 | AT127: 1309 | AU127: 5174 | AV127: 4152.487961 | AW127: 1246 | AX127: 112 | AY127: 16013 | AZ127: 7 | BA127: 245.7532094 | BB127: 21.58303887 | BC127: 19697 | BD127: 18.85114895 | BE127: 28431 | BF127: 27.21008355 | BG127: 15098 | BH127: 14.44964445 | BI127: 6489 | BJ127: 6.210341956 | BK127: 10589 | BL127: 10.13427508 | BM127: 14187 | BN127: 13.57776566 | BO127: 9996 | BP127: 9.56674036 | BQ127: 396.7250096 | BR127: 304.0947451 | BS127: 505.6295192 | BT127: 130.6974964 | BU127: 186.6100022 | BV127: 67.0104131 | BW127: 201.3333602 | BX127: 26.66720377 | BY127: 285.7459365 | BZ127: Data not yet available | CA127: 366.4546525 | CB127: Data not yet available | CC127: Data not yet available | CD127: Data not yet available | CE127: Data not yet available | CF127: Data not yet available | CG127: Data not yet available | CH127: Data not yet available | CI127: 32299 | CJ127: 75.37694665 | CK127: 1214.84 | CL127: 24.46856936 | CM127: 549.79 | CN127: 4 | CO127: 24 | CP127: 3 | CQ127: 4.971152686 | CR127: 15997 | CS127: 18677 | CT127: 85.65 | CU127: 63.97 | CV127: 1.62 | CW127: Y | CX127: 0 | CY127: 215910 | CZ127: 0 | DA127: 1715 | DB127: 0 | DC127: 312298 | DD127: 6 | DE127: 28369 | DF127: 1 | DG127: 9 | DH127: 5516.555556 | DI127: 0 | DJ127: 100 | DK127: 0 | DL127: 0 | DM127: 0 | DN127: 0 | DO127: 100 | DP127: 430 | DQ127: 115.4627907
A128: Wollondilly | B128: 6 | C128: Metropolitan Fringe | E128: 2555.4 | F128: 51002 | G128: 12.5325449 | H128: 19.95851921 | I128: 25641 | J128: 50.27449904 | K128: 25361 | L128: 49.72550096 | M128: 29.25571546 | N128: 51.84502569 | O128: 18.89925885 | P128: 41.49837261 | Q128: 39.60236853 | R128: 18.89925885 | S128: 3.2 | T128: 5.7 | U128: 104 | V128: 2.3 | W128: 61156 | X128: 3 | Y128: Construction | Z128: 4341 | AA128: Data not yet available | AB128: Data not yet available | AC128: Data not yet available | AD128: Data not yet available | AE128: -26.58 | AF128: 2.69 | AG128: 69.49 | AH128: 30.50743221 | AI128: 5.08 | AJ128: 1.46 | AK128: 4.131712507 | AL128: 9.9 | AM128: 72578 | AN128: 57337 | AO128: 28164 | AP128: 1619.830908 | AQ128: 17387 | AR128: 932 | AS128: 3035.830619 | AT128: 307 | AU128: 1524 | AV128: 2523.178808 | AW128: 604 | AX128: 1468 | AY128: 183500 | AZ128: 8 | BA128: 272.080177 | BB128: 13.88393627 | BC128: 6603 | BD128: 9.097798231 | BE128: 4792 | BF128: 6.602551737 | BG128: 23776 | BH128: 32.75923834 | BI128: 8302 | BJ128: 11.43872799 | BK128: 9713 | BL128: 13.38284329 | BM128: 16368 | BN128: 22.55228857 | BO128: 3024 | BP128: 4.166551848 | BQ128: 129.4655112 | BR128: 466.1777969 | BS128: 0 | BT128: 162.7779303 | BU128: 164.6798165 | BV128: 93.95709972 | BW128: 59.29179248 | BX128: 25.76369554 | BY128: 320.928591 | BZ128: Data not yet available | CA128: 452.0043711 | CB128: Data not yet available | CC128: Data not yet available | CD128: Data not yet available | CE128: Data not yet available | CF128: Data not yet available | CG128: Data not yet available | CH128: Data not yet available | CI128: 35447 | CJ128: 67.90983722 | CK128: 865.8631 | CL128: 16.97704208 | CM128: 346.54 | CN128: 2 | CO128: 10 | CP128: 1 | CQ128: 1.733140712 | CR128: 28558 | CS128: 15092 | CT128: 189.23 | CU128: 100.65 | CV128: 11.95 | CW128: Y | CX128: 22000 | CY128: 231000 | CZ128: 0 | DA128: 5062 | DB128: 4352 | DC128: 353129 | DD128: 2 | DE128: 2500 | DF128: 0 | DG128: 9 | DH128: 5666.888889 | DI128: 11 | DJ128: 89 | DK128: 0 | DL128: 0 | DM128: 0 | DN128: 89 | DO128: 11 | DP128: 241 | DQ128: 211.626556
A129: Wollongong | B129: 5 | C129: Regional Town/City | D129: Illawarra Shoalhaven | E129: 684 | F129: 213132 | G129: 4.978204655 | H129: 311.5964912 | I129: 105680 | J129: 49.58429518 | K129: 107452 | L129: 50.41570482 | M129: 24.25116829 | N129: 53.25009853 | O129: 22.49873318 | P129: 39.60409511 | Q129: 37.89717171 | R129: 22.49873318 | S129: 2.6 | T129: 16.8 | U129: 94 | V129: 4.6 | W129: 59856 | X129: 2.6 | Y129: Health Care & Social Assistance | Z129: 12911 | AA129: Data not yet available | AB129: Data not yet available | AC129: Data not yet available | AD129: Data not yet available | AE129: 2.76 | AF129: 2.93 | AG129: 77.06 | AH129: 22.93259152 | AI129: 4.66 | AJ129: 6.3 | AK129: 3.212286924 | AL129: 5.83 | AM129: 265649 | AN129: 273331 | AO129: 108969 | AP129: 1399.460605 | AQ129: 77865 | AR129: 302 | AS129: 2475.409836 | AT129: 122 | AU129: 46875 | AV129: 11469.29288 | AW129: 4087 | AX129: 803 | AY129: 53533.33333 | AZ129: 15 | BA129: 162.0732847 | BB129: 18.98285494 | BC129: 32752 | BD129: 12.31231909 | BE129: 16101 | BF129: 6.052779971 | BG129: 63237 | BH129: 23.77241457 | BI129: 32195 | BJ129: 12.10292846 | BK129: 57049 | BL129: 21.44618623 | BM129: 50294 | BN129: 18.90680801 | BO129: 14382 | BP129: 5.406563663 | BQ129: 153.6700261 | BR129: 296.7034514 | BS129: 0 | BT129: 151.0566222 | BU129: 211.8311657 | BV129: 75.54473284 | BW129: 67.4793086 | BX129: 55.83863521 | BY129: 235.9758272 | BZ129: Data not yet available | CA129: 419.906248 | CB129: Data not yet available | CC129: Data not yet available | CD129: Data not yet available | CE129: Data not yet available | CF129: Data not yet available | CG129: Data not yet available | CH129: Data not yet available | CI129: 80303 | CJ129: 72.76814067 | CK129: 1029.1 | CL129: 4.828463112 | CM129: 2464 | CN129: 18 | CO129: 36 | CP129: 7 | CQ129: 6.046441047 | CR129: 67951 | CS129: 68961 | CT129: 98.54 | CU129: 56 | CV129: 5.5 | CW129: Y | CX129: 106000 | CY129: 482000 | CZ129: 13948 | DA129: 34228 | DB129: 0 | DC129: 401044 | DD129: 1 | DE129: 0 | DF129: 0 | DG129: 13 | DH129: 16394.76923 | DI129: 46 | DJ129: 54 | DK129: 0 | DL129: 0 | DM129: 8 | DN129: 46 | DO129: 46 | DP129: 1175 | DQ129: 181.3889362
A130: Woollahra | B130: 2 | C130: Metropolitan | E130: 12.3 | F130: 58456 | G130: 2.57958095 | H130: 4752.520325 | I130: 27380 | J130: 46.83864787 | K130: 31076 | L130: 53.16135213 | M130: 20.37771999 | N130: 56.33638976 | O130: 23.28589024 | P130: 35.40098536 | Q130: 41.3131244 | R130: 23.28589024 | S130: 0.3 | T130: 15.4 | U130: 129 | V130: 1.6 | W130: 114376 | X130: 2.3 | Y130: Professional Scientific & Technical Services | Z130: 9989 | AA130: Data not yet available | AB130: Data not yet available | AC130: Data not yet available | AD130: Data not yet available | AE130: 3.73 | AF130: 4.46 | AG130: 91.55 | AH130: 8.447502288 | AI130: 3.74 | AJ130: 2.94 | AK130: 7.110172852 | AL130: 8.6 | AM130: 89832 | AN130: 93316 | AO130: 32819 | AP130: 1335.897749 | AQ130: 24567 | AR130: N/A | AS130: N/A | AT130: N/A | AU130: 4868 | AV130: 3452.48227 | AW130: 1410 | AX130: N/A | AY130: N/A | AZ130: 0 | BA130: 910.864007 | BB130: 3.386656897 | BC130: 21232 | BD130: 23.0082358 | BE130: 6236 | BF130: 6.757693975 | BG130: 16477 | BH130: 17.85543997 | BI130: 10605 | BJ130: 11.49219766 | BK130: 14721 | BL130: 15.95253576 | BM130: 8713 | BN130: 9.441915908 | BO130: 14296 | BP130: 15.49198093 | BQ130: 363.2133571 | BR130: 281.8701245 | BS130: 0 | BT130: 181.4185028 | BU130: 161.3179143 | BV130: 106.6785274 | BW130: 244.5600109 | BX130: 90.51252224 | BY130: 149.0522786 | BZ130: Data not yet available | CA130: 565.7182399 | CB130: Data not yet available | CC130: Data not yet available | CD130: Data not yet available | CE130: Data not yet available | CF130: Data not yet available | CG130: Data not yet available | CH130: Data not yet available | CI130: 15314 | CJ130: 55.33498759 | CK130: 145.82 | CL130: 2.494525797 | CM130: 102 | CN130: 3 | CO130: 15 | CP130: 3 | CQ130: 10.67438819 | CR130: 9170 | CS130: 8551 | CT130: 107.24 | CU130: 87.95 | CV130: 1.27 | CW130: Y | CX130: 14000 | CY130: 312000 | CZ130: 0 | DA130: 10000 | DB130: 2000 | DC130: 365335 | DD130: 0 | DE130: 0 | DF130: 0 | DG130: 15 | DH130: 3897.066667 | DI130: 60 | DJ130: 40 | DK130: 0 | DL130: 0 | DM130: 0 | DN130: 80 | DO130: 20 | DP130: 365 | DQ130: 160.1534247
A131: Yass Valley | B131: 11 | C131: Large Rural | D131: Canberra | E131: 3995.3 | F131: 16739 | G131: 4.74313247 | H131: 4.189672866 | I131: 8251 | J131: 49.29207241 | K131: 8488 | L131: 50.70792759 | M131: 27.73164466 | N131: 50.08662405 | O131: 22.18173129 | P131: 37.14080889 | Q131: 40.67745982 | R131: 22.18173129 | S131: 2.5 | T131: 3.6 | U131: 111 | V131: 2.5 | W131: 66321 | X131: 2.7 | Y131: Public Administration & Safety | Z131: 1931 | AA131: Data not yet available | AB131: Data not yet available | AC131: Data not yet available | AD131: Data not yet available | AE131: 5.49 | AF131: 2.86 | AG131: 61.46 | AH131: 38.54007137 | AI131: 4.07 | AJ131: 3.14 | AK131: 8.656666105 | AL131: 8.83 | AM131: 28036 | AN131: 29665 | AO131: 4778 | AP131: 846.8628146 | AQ131: 5642 | AR131: 3562 | AS131: 2458.247067 | AT131: 1449 | AU131: 728 | AV131: 2572.438163 | AW131: 283 | AX131: N/A | AY131: N/A | AZ131: 0 | BA131: 292.7296361 | BB131: 13.08046792 | BC131: 3479 | BD131: 11.87980195 | BE131: 6482 | BF131: 22.1341984 | BG131: 3738 | BH131: 12.76421376 | BI131: 2417 | BJ131: 8.253372033 | BK131: 2575 | BL131: 8.792897388 | BM131: 4172 | BN131: 14.24620113 | BO131: 6422 | BP131: 21.92931535 | BQ131: 207.8379832 | BR131: 223.310831 | BS131: 309.3374754 | BT131: 144.3933329 | BU131: 128.2035964 | BV131: 77.90190573 | BW131: 383.6549376 | BX131: 25.62877113 | BY131: 249.2383058 | BZ131: Data not yet available | CA131: 252.2155264 | CB131: Data not yet available | CC131: Data not yet available | CD131: Data not yet available | CE131: Data not yet available | CF131: Data not yet available | CG131: Data not yet available | CH131: Data not yet available | CI131: 10734 | CJ131: 48.28582076 | CK131: 1240.03 | CL131: 74.08029153 | CM131: 256 | CN131: 2 | CO131: 4 | CP131: 1 | CQ131: 4.457445542 | CR131: 7329 | CS131: 7448 | CT131: 98.4 | CU131: 76.02 | CV131: 1.95 | CW131: Y | CX131: 18000 | CY131: 133000 | CZ131: 4000 | DA131: 9000 | DB131: 0 | DC131: 254000 | DD131: 0 | DE131: 0 | DF131: 0 | DG131: 9 | DH131: 1859.888889 | DI131: 33.33333333 | DJ131: 66.66666667 | DK131: 0 | DL131: 0 | DM131: 12 | DN131: 44 | DO131: 44 | DP131: 126 | DQ131: 132.8492063
A133: * Council received an extension to submit 2017/18 financial statements. As at 15 April 2019, this information is yet to be provided | BC133: =BC76+BE76+BG76+BI76+BK76+BM76+BO76 -> 9867 | BD133: =BM76/BC133 -> 0.3298875038
BC134: =BC76/BC133 -> 0.1945880207
A135: # This information will be updated once made available by the lead agency

Sheet Sheet1 (hidden)
B1: 1 | H1: Total Road Length (inlcuding local, regional & state) (km) | I1: Road legth per capita
C2: Area | D2: Pop | F2: EFT | G2: Pop
B3: Albury | C3: 305.9 | D3: 51082 | E3: =D3/C3 -> 166.9892122 | F3: 456 | G3: =D3/F3 -> 112.0219298 | H3: 565.11 | I3: =((H3)/(D3/1000)) -> 11.06280099
B4: Armidale Dumaresq | C4: 4231.5 | D4: 25327 | E4: =D4/C4 -> 5.985347985 | F4: 231 | G4: =D4/F4 -> 109.6406926 | H4: 1064.94 | I4: =((H4)/(D4/1000)) -> 42.04761717
B5: Ashfield | C5: 8.3 | D5: 44498 | E5: 5361.204819 | F5: 178 | G5: 249.988764 | H5: 97.62 | I5: 2.193806463
B6: Auburn | C6: 32.5 | D6: 85446 | E6: 2629.107692 | F6: 279 | G6: 306.2580645 | H6: 225 | I6: 2.633242048
B7: Ballina | C7: 485.4 | D7: 41644 | E7: 85.79316028 | F7: 274 | G7: 151.9854015 | H7: 656.72 | I7: 15.7698588
B8: Balranald | C8: 21699.5 | D8: 2400 | E8: 0.1106016268 | F8: 63 | G8: 38.0952381 | H8: 1586.61 | I8: 661.0875
B9: Bankstown | C9: 76.8 | D9: 200357 | E9: 2608.815104 | F9: 721 | G9: 277.887656 | H9: 596.85 | I9: 2.978932605
B10: Bathurst Regional | C10: 3818 | D10: 41682 | E10: 10.91723415 | F10: 381 | G10: 109.4015748 | H10: 1334.88 | I10: 32.02533468
B11: Bega Valley | C11: 6279.9 | D11: 33468 | E11: 5.329384226 | F11: 360 | G11: 92.96666667 | H11: 1434.675 | I11: 42.86706705
B12: Bellingen | C12: 1602.1 | D12: 13032 | E12: 8.1343237 | F12: 135 | G12: 96.53333333 | H12: 563.96 | I12: 43.27501535
B13: Berrigan | C13: 2065.9 | D13: 8413 | E13: 4.07231715 | F13: 84 | G13: 100.1547619 | H13: 1376.04 | I13: 163.5611554
B14: Blacktown | C14: 340.3 | D14: 332424 | E14: 976.8557155 | F14: 1427 | G14: 232.9530484 | H14: 1350.62 | I14: 4.06294371
B15: Bland | C15: 8560.4 | D15: 5994 | E15: 0.7002009252 | F15: 115 | G15: 52.12173913 | H15: 3093.47 | I15: 516.0944278
B16: Blayney | C16: 1525.5 | D16: 7409 | E16: 4.856768273 | F16: 72 | G16: 102.9027778 | H16: 730.3 | I16: 98.5693076
B17: Blue Mountains | C17: 1432 | D17: 79688 | E17: 55.64804469 | F17: 512 | G17: 155.640625 | H17: 742.28 | I17: 9.314827829
B18: Bogan | C18: 14612.3 | D18: 3076 | E18: 0.2105075861 | F18: 66 | G18: 46.60606061 | H18: 1605.2 | I18: 521.846554
B19: Bombala | C19: 3945.2 | D19: 2422 | E19: 0.6139105749 | F19: 42 | G19: 57.66666667 | H19: 752.77 | I19: 310.8051197
B20: Boorowa | C20: 2578.6 | D20: 2602 | E20: 1.009074692 | F20: 56 | G20: 46.46428571 | H20: 721.1 | I20: 277.1329746
B21: Botany Bay | C21: 21.7 | D21: 44742 | E21: 2061.843318 | F21: 324 | G21: 138.0925926 | H21: 96.86 | I21: 2.164856287
B22: Bourke | C22: 41652 | D22: 2973 | E22: 0.07137712475 | F22: 81 | G22: 36.7037037 | H22: 2453.86 | I22: 825.3817693
B23: Brewarrina | C23: 19188.2 | D23: 1931 | E23: 0.1006347651 | F23: 43 | G23: 44.90697674 | H23: 1551.7 | I23: 803.5732781
B24: Broken Hill | C24: 178.3 | D24: 19048 | E24: 106.8311834 | F24: 161 | G24: 118.310559 | H24: 250.96 | I24: 13.1751365
B25: Burwood | C25: 36053 | D25: 36053 | E25: 1 | F25: 170 | G25: 212.0764706 | H25: 85.46 | I25: 2.370399135
B26: Byron | C26: 566.6 | D26: 32119 | E26: 56.68725732 | F26: 248 | G26: 129.5120968 | H26: 637.712 | I26: 19.85466546
B27: Cabonne | C27: 6026.8 | D27: 13776 | E27: 2.285790137 | F27: 166 | G27: 82.98795181 | H27: 1930.714 | I27: 140.1505517
B28: Camden | C28: 201.3 | D28: 67084 | E28: 333.25385 | F28: 342 | G28: 196.1520468 | H28: 558.878 | I28: 8.331017828
B29: Campbelltown | C29: 312 | D29: 156572 | E29: 501.8333333 | F29: 601 | G29: 260.5191348 | H29: 713.63 | I29: 4.557839205
B30: Canada Bay | C30: 19.9 | D30: 87480 | E30: 4395.979899 | F30: 316 | G30: 276.835443 | H30: 207 | I30: 2.366255144
B31: Canterbury | C31: 33.6 | D31: 150626 | E31: 4482.916667 | F31: 514 | G31: 293.0466926 | H31: 342.683 | I31: 2.275058755
B32: Carrathool | C32: 18939.5 | D32: 2795 | E32: 0.1475751736 | F32: 92 | G32: 30.38043478 | H32: 2619.66 | I32: 937.2665474
B33: Central Darling | C33: 53533.8 | D33: 2065 | E33: 0.03857376088 | F33: 50 | G33: 41.3 | H33: 2395.82 | I33: 1160.20339
B34: Cessnock | C34: 1966.4 | D34: 54979 | E34: 27.95921481 | F34: 280 | G34: 196.3535714 | H34: 1013.09 | I34: 18.42685389
B35: Clarence Valley | C35: 10441.2 | D35: 51003 | E35: 4.884783358 | F35: 542 | G35: 94.10147601 | H35: 2456.28 | I35: 48.15952003
B36: Cobar | C36: 45604.8 | D36: 5111 | E36: 0.1120715363 | F36: 131 | G36: 39.01526718 | H36: 2319.98 | I36: 453.9189982
B37: Coffs Harbour | C37: 1175.1 | D37: 72382 | E37: 61.59645988 | F37: 438 | G37: 165.2557078 | H37: 872.727 | I37: 12.05723799
B38: Conargo | C38: 8738.2 | D38: 1535 | E38: 0.1756654689 | F38: 34 | G38: 45.14705882 | H38: 1426.19 | I38: 929.1140065
B39: Coolamon | C39: 2431.3 | D39: 4308 | E39: 1.771891581 | F39: 68 | G39: 63.35294118 | H39: 1142.68 | I39: 265.2460539
B40: Cooma-Monaro | C40: 5183.8 | D40: 10216 | E40: 1.970755045 | F40: 160 | G40: 63.85 | H40: 1000.74 | I40: 97.95810493
B41: Coonamble | C41: 9925.3 | D41: 4292 | E41: 0.432430254 | F41: 98 | G41: 43.79591837 | H41: 1657.04 | I41: 386.0764212
B42: Cootamundra | C42: 1524 | D42: 7749 | E42: 5.084645669 | F42: 85.3 | G42: 90.84407972 | H42: 617.58 | I42: 79.69802555
B43: Corowa | C43: 2329 | D43: 11455 | E43: 4.918419923 | F43: 108 | G43: 106.0648148 | H43: 1322.95 | I43: 115.4910519
B44: Cowra | C44: 2809.6 | D44: 12574 | E44: 4.475370159 | F44: 167 | G44: 75.29341317 | H44: 1271.58 | I44: 101.1277239
B45: Deniliquin | C45: 143.2 | D45: 7437 | E45: 51.93435754 | F45: 71.88 | G45: 103.4641068 | H45: 172.57 | I45: 23.20424903
B46: Dubbo | C46: 3425 | D46: 41573 | E46: 12.13810219 | F46: 321 | G46: 129.5109034 | H46: 1316.17 | I46: 31.65924999
B47: Dungog | C47: 2251.5 | D47: 9108 | E47: 4.045303131 | F47: 65 | G47: 140.1230769 | H47: 724.22 | I47: 79.51471234
B48: Eurobodalla | C48: 3427.7 | D48: 37643 | E48: 10.98199959 | F48: 461 | G48: 81.65509761 | H48: 1006.202 | I48: 26.73012247
B49: Fairfield | C49: 101.6 | D49: 203109 | E49: 1999.104331 | F49: 725 | G49: 280.1503448 | H49: 681.39 | I49: 3.35479964
B50: Forbes | C50: 4720 | D50: 9759 | E50: 2.067584746 | F50: 115 | G50: 84.86086957 | H50: 1869.17 | I50: 191.5329439
B51: Gilgandra | C51: 4835.8 | D51: 4440 | E51: 0.9181521155 | F51: 178 | G51: 24.94382022 | H51: 1361.41 | I51: 306.6238739
B52: Glen Innes Severn | C52: 5486.9 | D52: 8966 | E52: 1.634073885 | F52: 122 | G52: 73.49180328 | H52: 1165.32 | I52: 129.9710016
B53: Gloucester | C53: 2952.3 | D53: 5064 | E53: 1.715272838 | F53: 84 | G53: 60.28571429 | H53: 757.26 | I53: 149.5379147
B54: Gosford | C54: 1028 | D54: 171992 | E54: 167.307393 | F54: 1075 | G54: 159.9925581 | H54: 1142.45 | I54: 6.642460114
B55: Goulburn Mulwaree | C55: 3220.3 | D55: 29376 | E55: 9.122131478 | F55: 259 | G55: 113.4208494 | H55: 1189.83 | I55: 40.50347222
B56: Great Lakes | C56: 3375.5 | D56: 36499 | E56: 10.8129166 | F56: 292 | G56: 124.9965753 | H56: 1120.9 | I56: 30.71043042
B57: Greater Hume | C57: 5748.7 | D57: 10258 | E57: 1.78440343 | F57: 114 | G57: 89.98245614 | H57: 2071.71 | I57: 201.9604211
B58: Greater Taree | C58: 3732 | D58: 48941 | E58: 13.11387996 | F58: 248 | G58: 197.3427419 | H58: 1724.18 | I58: 35.22976645
B59: Griffith | C59: 1640.3 | D59: 25811 | E59: 15.73553618 | F59: 280 | G59: 92.18214286 | H59: 1287.42 | I59: 49.87873387
B60: Gundagai | C60: 2457.3 | D60: 3755 | E60: 1.528099947 | F60: 54 | G60: 69.53703704 | H60: 779.42 | I60: 207.5685752
B61: Gunnedah | C61: 4992 | D61: 12826 | E61: 2.569310897 | F61: 174.9 | G61: 73.33333333 | H61: 1469.96 | I61: 114.6078278
B62: Guyra | C62: 4394.4 | D62: 4619 | E62: 1.051110504 | F62: 65 | G62: 71.06153846 | H62: 971.66 | I62: 210.3615501
B63: Gwydir | C63: 9273.6 | D63: 5080 | E63: 0.5477915804 | F63: 0 | H63: 2071.462 | I63: 407.7681102
B64: Harden | C64: 1868.5 | D64: 3751 | E64: 2.007492641 | F64: 0 | H64: 844.24 | I64: 225.0706478
B65: Hawkesbury | C65: 2775.8 | D65: 65527 | E65: 23.60652785 | F65: 288 | G65: 227.5243056 | H65: 1038.75 | I65: 15.85224411
B66: Hay | C66: 11328.5 | D66: 2989 | E66: 0.2638478175 | F66: 54 | G66: 55.35185185 | H66: 941.05 | I66: 314.8377384
B67: Hills | C67: 400.6 | D67: 187703 | E67: 468.554668 | F67: 539.92 | G67: 347.6496518 | H67: 1005.95 | I67: 5.35926437
B68: Holroyd | C68: 40.2 | D68: 111100 | E68: =D68/C68 -> 2763.681592 | F68: 485 | G68: =D68/F68 -> 229.0721649 | H68: 345.17 | I68: =((H68)/(D68/1000)) -> 3.106840684
B69: Hornsby | C69: 510 | D69: 168614 | E69: 330.6156863 | F69: 571 | G69: 295.295972 | H69: 663.53 | I69: 3.93520111
B70: Hunters Hill | C70: 5.7 | D70: 14689 | E70: 2577.017544 | F70: 59 | G70: 248.9661017 | H70: 65 | I70: 4.425079992
B71: Hurstville | C71: 22.7 | D71: 85886 | E71: 3783.524229 | F71: 315.62 | G71: 272.1183702 | H71: 230.38 | I71: 2.682392939
B72: Inverell | C72: 8605.8 | D72: 16846 | E72: 1.957517023 | F72: 210 | G72: 80.21904762 | H72: 2139.394 | I72: 126.9971507
B73: Jerilderie | C73: 3373.1 | D73: 1519 | E73: 0.4503275918 | F73: 42 | G73: 36.16666667 | H73: 1101.22 | I73: 724.963792
B74: Junee | C74: 2030.2 | D74: 6297 | E74: 3.101664861 | F74: 60 | G74: 104.95 | H74: 881.51 | I74: 139.9888836
B75: Kempsey | C75: 3378.8 | D75: 29643 | E75: 8.773233101 | F75: 298 | G75: 99.47315436 | H75: 1188.4 | I75: 40.0904092
B76: Kiama | C76: 258 | D76: 21314 | E76: 82.6124031 | F76: 338 | G76: 63.0591716 | H76: 262.51 | I76: 12.31631791
B77: Kogarah | C77: 15.6 | D77: 61030 | E77: 3912.179487 | F77: 243 | G77: 251.1522634 | H77: 163.63 | I77: 2.681140423
B78: Ku-Ring-Gai | C78: 85.4 | D78: 120978 | E78: 1416.604215 | F78: 424 | G78: 285.3254717 | H78: 482.23 | I78: 3.986096646
B79: Kyogle | C79: 3589.1 | D79: 9531 | E79: 2.655540386 | F79: 101 | G79: 94.36633663 | H79: 1216.13 | I79: 127.597314
B80: Lachlan | C80: 14973.2 | D80: 6775 | E80: 0.4524750888 | F80: 132 | G80: 51.32575758 | H80: 3981.53 | I80: 587.6797048
B81: Lake Macquarie | C81: 757 | D81: 202676 | E81: 267.7357992 | F81: 932 | G81: 217.4635193 | H81: 1332.92 | I81: 6.576605025
B82: Lane Cove | C82: 10.5 | D82: 34807 | E82: 3314.952381 | F82: 185 | G82: 188.1459459 | H82: 101.46 | I82: 2.914930905
B83: Leeton | C83: 1167 | D83: 11595 | E83: 9.935732648 | F83: 135 | G83: 85.88888889 | H83: 900.96 | I83: 77.70245796
B84: Leichhardt | C84: 10.32 | D84: 58136 | E84: 5633.333333 | F84: 451 | G84: 128.9046563 | H84: 151.38 | I84: 2.603894317
B85: Lismore | C85: 1289.6 | D85: 44629 | E85: 34.60685484 | F85: 417.44 | G85: 106.9111729 | H85: 1216.1 | I85: 27.24909812
B86: Lithgow | C86: 4513.8 | D86: 21249 | E86: 4.707563472 | F86: 188 | G86: 113.0265957 | H86: 904.325 | I86: 42.55847334
B87: Liverpool | C87: 305.5 | D87: 199928 | E87: 654.4288052 | F87: 704 | G87: 283.9886364 | H87: 875.67 | I87: 4.379926774
B88: Liverpool Plains | C88: 5086.4 | D88: 7819 | E88: 1.537236552 | F88: 113 | G88: 69.19469027 | H88: 1394.25 | I88: 178.3156414
B89: Lockhart | C89: 2895.8 | D89: 3080 | E89: 1.063609365 | F89: 48 | G89: 64.16666667 | H89: 1630.44 | I89: 529.3636364
B90: Maitland | C90: 391.7 | D90: 75170 | E90: 191.9070717 | F90: 369 | G90: 203.7127371 | H90: 687.26 | I90: 9.142743116
B91: Manly | C91: 14.4 | D91: 44786 | E91: 3110.138889 | F91: 338 | G91: 132.5029586 | H91: 109.3 | I91: 2.440494797
B92: Marrickville | C92: 16.5 | D92: 83356 | E92: 5051.878788 | F92: 520.44 | G92: 160.1644762 | H92: 216.1 | I92: 2.592494841
B93: Mid Western Regional | C93: 8757.9 | D93: 24017 | E93: 2.742324073 | F93: 300 | G93: 80.05666667 | H93: 2246.943 | I93: 93.55635591
B94: Moree Plains | C94: 17928.8 | D94: 14092 | E94: 0.7859979474 | F94: 222 | G94: 63.47747748 | H94: 2899.4 | I94: 205.7479421
B95: Mosman | C95: 8.7 | D95: 30276 | E95: 3480 | F95: 174 | G95: 174 | H95: 96.6 | I95: 3.190646056
B96: Murray | C96: 4344 | D96: 7466 | E96: 1.718692449 | F96: 91 | G96: 82.04395604 | H96: 1422.953 | I96: 190.5910796
B97: Murrumbidgee | C97: 3507.1 | D97: 2528 | E97: 0.7208234724 | F97: 39 | G97: 64.82051282 | H97: 613.09 | I97: 242.5197785
B98: Muswellbrook | C98: 3407.1 | D98: 17045 | E98: 5.002788295 | F98: 158 | G98: 107.8797468 | H98: 621.99 | I98: 36.49105309
B99: Nambucca | C99: 1492.8 | D99: 19655 | E99: 13.16653269 | F99: 107.94 | G99: 182.0919029 | H99: 708.13 | I99: 36.0279827
B100: Narrabri | C100: 13027.8 | D100: 13764 | E100: 1.056509925 | F100: 162 | G100: 84.96296296 | H100: 2316.58 | I100: 168.3071781
B101: Narrandera | C101: 4116.9 | D101: 5961 | E101: 1.447934125 | F101: 119 | G101: 50.09243697 | H101: 1555.591 | I101: 260.9614159
B102: Narromine | C102: 5224 | D102: 6854 | E102: 1.31202144 | F102: 80 | G102: 85.675 | H102: 1571.79 | I102: 229.3244821
B103: Newcastle | C103: 214 | D103: 160021 | E103: 747.7616822 | F103: 867 | G103: 184.5686275 | H103: 874.96 | I103: 5.467782354
B104: North Sydney | C104: 10.5 | D104: 71025 | E104: 6764.285714 | F104: 391 | G104: 181.6496164 | H104: 152.5 | I104: 2.147131292
B105: Oberon | C105: 3628 | D105: 5327 | E105: 1.468302095 | F105: 72 | G105: 73.98611111 | H105: 951.66 | I105: 178.648395
B106: Orange | C106: 284.1 | D106: 41431 | E106: 145.8324534 | F106: 377 | G106: 109.8965517 | H106: 484.019 | I106: 11.6825324
B107: Palerang | C107: 5146.7 | D107: 15510 | E107: 3.013581518 | F107: 120 | G107: 129.25 | H107: 1301.43 | I107: 83.90909091
B108: Parkes | C108: 5958.1 | D108: 15217 | E108: 2.554002115 | F108: 165 | G108: 92.22424242 | H108: 2127.38 | I108: 139.8028521
B109: Parramatta | C109: 61.4 | D109: 189932 | E109: 3093.355049 | F109: 790.5 | G109: 240.2681847 | H109: 558.569 | I109: 2.940889371
B110: Penrith | C110: 404.8 | D110: 194134 | E110: 479.5800395 | F110: 1055.5 | G110: 183.9261014 | H110: 1071.98 | I110: 5.521856038
B111: Pittwater | C111: 90.4 | D111: 63338 | E111: 700.6415929 | F111: 302 | G111: 209.7284768 | H111: 254.47 | I111: 4.017651331
B112: Port Macquarie-Hastings | C112: 3686 | D112: 77481 | E112: 21.02034726 | F112: 492 | G112: 157.4817073 | H112: 1321.869 | I112: 17.06055678
B113: Port Stephens | C113: 859 | D113: 69728 | E113: 81.17345751 | F113: 419 | G113: 166.4152745 | H113: 718.56 | I113: 10.30518587
B114: Queanbeyan | C114: 172.4 | D114: 40858 | E114: 236.9953596 | F114: 278 | G114: 146.971223 | H114: 310.65 | I114: 7.603162171
B115: Randwick | C115: 36.3 | D115: 143776 | E115: 3960.77135 | F115: 530 | G115: 271.2754717 | H115: 302.9 | I115: 2.106749388
B116: Richmond Valley | C116: 3051.4 | D116: 22983 | E116: 7.531952546 | F116: 244 | G116: 94.19262295 | H116: 1084.45 | I116: 47.18487578
B117: Rockdale | C117: 28.2 | D117: 108072 | E117: 3832.340426 | F117: 361 | G117: 299.3684211 | H117: 284.25 | I117: 2.630190984
B118: Ryde | C118: 40.5 | D118: 114598 | E118: 2829.580247 | F118: 441 | G118: 259.8594104 | H118: 318.49 | I118: 2.779193354
B119: Shellharbour | C119: 147.4 | D119: 68762 | E119: 466.4993216 | F119: 344 | G119: 199.8895349 | H119: 388.23 | I119: 5.645996335
B120: Shoalhaven | C120: 4530.6 | D120: 99016 | E120: 21.85494195 | F120: 756 | G120: 130.973545 | H120: 1731.897 | I120: 17.49108225
B121: Singleton | C121: 4895.6 | D121: 23884 | E121: 4.878666558 | F121: 201 | G121: 118.8258706 | H121: 845.43 | I121: 35.39733713
B122: Snowy River | C122: 6029 | D122: 8069 | E122: 1.338364571 | F122: 129.4 | G122: 62.35703246 | H122: 895.64 | I122: 110.9976453
B123: Strathfield | C123: 13.9 | D123: 39481 | E123: 2840.359712 | F123: 137 | G123: 288.1824818 | H123: 97.02 | I123: 2.457384565
B124: Sutherland | C124: 370 | D124: 225070 | E124: 608.2972973 | F124: 1018 | G124: 221.0903733 | H124: 818 | I124: 3.634424846
B125: Sydney | C125: 26.7 | D125: 198331 | E125: 7428.127341 | F125: 1803.5 | G125: 109.9700582 | H125: 329.37 | I125: 1.660708613
B126: Tamworth Regional | C126: 9893.6 | D126: 60495 | E126: 6.114558907 | F126: 496 | G126: 121.9657258 | H126: 3185.85 | I126: 52.66303
B127: Temora | C127: 2802.6 | D127: 6050 | E127: 2.158709769 | F127: 88 | G127: 68.75 | H127: 1240.16 | I127: 204.985124
B128: Tenterfield | C128: 7332.1 | D128: 6980 | E128: 0.9519782873 | F128: 94 | G128: 74.25531915 | H128: 1689.188 | I128: 242.0040115
B129: Tumbarumba | C129: 4391 | D129: 3578 | E129: 0.8148485539 | F129: 90 | G129: 39.75555556 | H129: 556.44 | I129: 155.5170486
B130: Tumut | C130: 4566.5 | D130: 11375 | E130: 2.490966824 | F130: 130 | G130: 87.5 | H130: 635.3 | I130: 55.85054945
B131: Tweed | C131: 1309.4 | D131: 91210 | E131: 69.65785856 | F131: 675 | G131: 135.1259259 | H131: 1245 | I131: 13.6498191
B132: Upper Hunter | C132: 8100 | D132: 14658 | E132: =D132/C132 -> 1.80962963 | F132: 198 | G132: =D132/F132 -> 74.03030303 | H132: 1769.5 | I132: =((H132)/(D132/1000)) -> 120.7190613
B133: Upper Lachlan | C133: 7228.8 | D133: 7761 | E133: 1.073622178 | F133: 133 | G133: 58.35338346 | H133: 1985.4 | I133: 255.8175493
B134: Uralla | C134: 3229.8 | D134: 6408 | E134: 1.984023779 | F134: 114 | G134: 56.21052632 | H134: 961.1 | I134: 149.9843945
B135: Urana | C135: 3356 | D135: 1147 | E135: 0.3417759237 | F135: 35 | G135: 32.77142857 | H135: 984.65 | I135: 858.4568439
B136: Wagga Wagga | C136: 4825.9 | D136: 62799 | E136: 13.01290951 | F136: 451.35 | G136: 139.1359256 | H136: 2291.114 | I136: 36.48328795
B137: Wakool | C137: 7520.8 | D137: 3990 | E137: 0.5305286672 | F137: 74 | G137: 53.91891892 | H137: 1571.83 | I137: 393.9423559
B138: Walcha | C138: 6266.9 | D138: 3098 | E138: 0.4943432957 | F138: 68.36 | G138: 45.31889994 | H138: 931.63 | I138: 300.7198192
B139: Walgett | C139: 22334.8 | D139: 6840 | E139: 0.3062485449 | F139: 129 | G139: 53.02325581 | H139: 2374.922 | I139: 347.2108187
B140: Warren | C140: 10763 | D140: 2921 | E140: 0.2713927344 | F140: 73 | G140: 40.01369863 | H140: 1323.96 | I140: 453.2557343
B141: Warringah | C141: 149.4 | D141: 155289 | E141: 1039.417671 | F141: 589 | G141: 263.6485569 | H141: 486.97 | I141: 3.135895009
B142: Warrumbungle | C142: 12381.3 | D142: 9786 | E142: 0.7903855007 | F142: 183 | G142: 53.47540984 | H142: 2667.71 | I142: 272.6047415
B143: Waverley | C143: 9.2 | D143: 71769 | E143: 7800.978261 | F143: 600.1 | G143: 119.5950675 | H143: 123.46 | I143: 1.72024133
B144: Weddin | C144: 3409.6 | D144: 3709 | E144: 1.087810887 | F144: 57 | G144: 65.07017544 | H144: 1093.99 | I144: 294.9555136
B145: Wellington | C145: 4112.5 | D145: 9054 | E145: 2.201580547 | F145: 106 | G145: 85.41509434 | H145: 1415.6 | I145: 156.3507842
B146: Wentworth | C146: 26266.9 | D146: 6884 | E146: 0.2620788902 | F146: 102 | G146: 67.49019608 | H146: 2318.75 | I146: 336.8317838
B147: Willoughby | C147: 22.4 | D147: 74166 | E147: 3310.982143 | F147: 395 | G147: 187.7620253 | H147: 211.45 | I147: 2.851036863
B148: Wingecarribee | C148: 2688.9 | D148: 47584 | E148: 17.6964558 | F148: 367 | G148: 129.6566757 | H148: 1203.868 | I148: 25.29984869
B149: Wollondilly | C149: 2556.6 | D149: 47084 | E149: 18.41664711 | F149: 221 | G149: 213.0497738 | H149: 865.174 | I149: 18.37511681
B150: Wollongong | C150: 715 | D150: 206794 | E150: 289.2223776 | F150: 1009 | G150: 204.9494549 | H150: 1014.88 | I150: 4.90768591
B151: Woollahra | C151: 12.2 | D151: 58619 | E151: 4804.836066 | F151: 367 | G151: 159.7247956 | H151: 145.82 | I151: 2.487589348
B152: Wyong | C152: 821.5 | D152: 159015 | E152: 193.5666464 | F152: 906 | G152: 175.513245 | H152: 1039.4 | I152: 6.536490268
B153: Yass Valley | C153: 3998.5 | D153: 16433 | E153: 4.109791172 | F153: 149 | G153: 110.2885906 | H153: 1232.69 | I153: 75.01308343
B154: Young | C154: 2693.3 | D154: 12641 | E154: 4.693498682 | F154: 111 | G154: 113.8828829 | H154: 1171.54 | I154: 92.67779448
